Workbook

Sheet Instrucoes
C2: Células que representam uma informação ao usuário, como o início de uma nova seção de análise
C3: Títulos de rótulos de colunas ou linhas
C4: Valores com fórmulas que não devem ser alteradas
C5: Valores de entrada (definidos pelo usuário)
B7: Esta pasta de trabalho, contendo um conjunto de planilhas (abas) para a determinação do valor intrínseco de uma empresa,
B8: é calculada com base nos demonstrativos contábeis da empresa provenientes do sítio Internet do professor Alexandre Assaf Neto
B9: (www.institutoassaf.com.br), do professor Aswath Damodaran (www.damodaran.com) e demais como BM&F Bovespa e Yahoo Finanças.
B10: As fórmulas e expressões de cálculo estão disponíveis na literatura de finanças, dentre os quais:
B11: FINANÇAS CORPORATIVAS. 3ª edição. São Paulo: Atlas, 2007
B12: ESTRUTURA E ANÁLISE DE BALANÇOS. 8ª edição. São Paulo: Atlas, 2006.
B14: Acrescentamos que decisões de investimento/desinvestimento devem ser tomadas com base em análises detalhadas
B15: realizadas por profissionais de mercado qualificados. Esta pasta de trabalho tem propósitos acadêmicos e, portanto,
B16: não tem como objetivo orientar decisões de investimento/desinvestimento.

Sheet Parametros_de_entrada
B1: Parâmetros do Valuation
B3: Informações de base
B4: Nome da empresa | C4: São Martinho
B5: Setor de atuação | C5: 10
B6: Ano da avaliação | C6: 2015
B7: Tipo de empresa (1=grande, 2= financeira; 3=pequena) | C7: 1
B8: Dados para custo médio ponderado de capital (Wacc)
B9: Parâmetros para álculo do custo do capital de terceiros (Kd)
C10: Parâmetros
B11: 1-Período para o cálculo do custo da dívida (Kd) (Contábil - histórico) | C11: 5 | D11: <-Digite ao lado os últimos anos do demonstrativo para o cálculo da média
B12: 2-Período para o cálculo do custo da dívida (Kd) (Contábil - dívida líquida) | C12: 5 | D12: <-Digite ao lado os últimos anos do demonstrativo para o cálculo da média
B13: EBIT (últimos 12 meses) | C13: =Demonstrativos!B55 -> 332597 | D13: Valores provenientes da planilha (aba) Demonstrativos
B14: Juros pagos (últimos 12 meses) | C14: =-Demonstrativos!B57 -> 430638 | D14: Valores provenientes da planilha (aba) Demonstrativos
B16: Parâmetros para cálculo do custo do capital próprio (Ke)
C17: Parâmetros
B18: US T-Bond (Rf) | C18: 0.02 | D18: US T-Bond (Rf) - Fonte: www.damodaran.com http://pages.stern.nyu.edu/~adamodar/New_Home_Page/datafile/ctryprem.html)
B19: Country Default Spread (CDS) | C19: 0.052 | D19: T-bond (maturidade de 10 anos) - Damodaran (http://pages.stern.nyu.edu/~adamodar/New_Home_Page/datafile/ctryprem.html)
B20: Índice de volatilidade | C20: 1.858813701 | D20: http://pages.stern.nyu.edu/~adamodar/New_Home_Page/datafile/ctryprem.html
B21: Opção de coeficiente beta | C21: 2 | D21: Escolha o tipo de coefirience que será usado para determinação da taxa de desconto (veja B22 e B23)
B22: 1. Beta desalavancado da empresa - Desde o IPO | C22: 0.5109369056 | D22: Calculado com base na variação mensal das ações ordinárias da empresa desde o IPO
B23: 2. Beta desalavancado do setor (βo) - Damodaran Developing countries | C23: 1.05 | D23: Planilha ctryprem.xls - Damodaran: http://pages.stern.nyu.edu/~adamodar/New_Home_Page/datafile/ctryprem.html
B24: Fonte: www.damodaran.com
C25: Parâmetros
B26: Relação D/(D+CP) | C26: 3 | D26: -> Marque a opção para uso de capital oneroso médio (Veja B27:B30)
B27: 1-Média móvel dos últimos 5 anos de empresas do setor | C27: =INDEX(Endividamento_Brasil!A1:P37,C5+1,16) -> 0.568 | D27: -> Conforme Assaf Neto (ver aba Endividamento_Brasil)
B28: 2- Endividamento médio mercados emergentes (Damodaran) | C28: 0.2446 | D28: -> Escolher no sítio do Damodaran o indicador D/(D+E) para empresas do setor em análise
B29: 3- Endividamento histórico da empresa em análise | C29: =AVERAGE(OFFSET(Indicadores!B8,0,0,1,D29)) -> 0.3211209346 | D29: 5 | E29: <-Digite ao lado os últimos anos do demonstrativo para o cálculo da média | F29: =Parametros_de_entrada!C55 -> 44305119
B30: 4- Outro valor | C30: 0 | D30: --> Digite aqui outro valor de referência para o endividamento oneroso médio da empresa ou de seu setor
B31: US Risk Premium | C31: 0.0406 | D31: Planilha ctryprem.xls - Damodaran: http://pages.stern.nyu.edu/~adamodar/New_Home_Page/datafile/ctryprem.html
B33: Parâmetros macroeconômicos | C33: Parâmetros
B34: Inflação BRASIL | C34: 0.07933772298 | D34: Média dos últimos 15 anos (IGP-M)
B35: Inflação EUA | C35: 0.02
B36: Fonte: http://www.portalbrasil.net/ipca.htm
B38: Cálculo do WACC pelo valor do patrimônio líquido e passivo oneroso contábil (dívida líquida):
B39: Custo da dívida (Kd) - 1: Dívida contábil; 2: Dívida líquida; 3: Rf+Risco da empresa + CDS | D39: 3 | E39: -> selecione o item referente ao custo da dívida
B41: Modo 1 - Wacc conforme levantamento do Assaf Neto | C41: Parâmetros
B42: Setor de atuação | C42: =INDEX(Endividamento_Brasil!A1:P37,Parametros_de_entrada!C5+1,1) -> Cultivos da natureza | E42: --> Não modifique aqui (use célula C5)
B43: Critério para o cálculo do Wacc médio | C43: 1 | E43: --> escolha entre o ultimo ano, últimos dois anos ou todos os anos
B44: Último ano
B45: Últimos dois anos
B46: Todos os anos (média)
B48: Modo 2 - Wacc usando D/(D+CP) contábil
B49: Valores derivados dos demonstrativos - Veja planilha "Custo de Capital Empresa"
B51: Modo 3 - Wacc usando D/(D+CP) a valor de mercado | D51: Ano do valuation
C52: Quantidade de ações | D52: ="31/12/"&C6 -> 31/12/2015
B53: PNA | C53: 0 | D53: -
B54: PNB | C54: - | D54: -
B55: ON | C55: 44305119 | D55: 35.6
B57: g (taxa de crescimento do fluxo de caixa livre)
B58: Taxa de reinvestimento do fluxo de caixa livre - TR | D58: -> Obtido a partir de Damodaran, usando as taxas de reinvestimento para empresas do setor

Sheet Resumo
B2: Resultados | G2: ="Valor mercado ("&Indicadores!$B$1&")" -> Valor mercado (2015) | H2: Valor intrínseco
B3: Equity Book Value (Valor contábil do Patrimônio Líquido) | C3: =Demonstrativos!B33 -> 2485795 | D3: [R$ 1.000] | F3: Valor da ação | G3: =SUMPRODUCT(Custo_de_capital_Empresa!C86:C88,Custo_de_capital_Empresa!D86:D88)/SUM(Custo_de_capital_Empresa!C86:C88) -> 35.6 | H3: =IF(Analise_Fundamentalista!F32=0,Analise_Fundamentalista!F34,SUMPRODUCT(Custo_de_capital_Empresa!C86:C88,Analise_Fundamentalista!F34:F35)/SUM(Custo_de_capital_Empresa!C86:C88)) -> 15.17106386 | I3: [R$/ação]
B4: Debt book value (Valor contábil da dívida) | C4: =Demonstrativos!B21+Demonstrativos!B27 -> 3562115 | D4: [R$ 1.000] | G4: =Indicadores!$B$1 -> 2015 | H4: =Demonstrativos!B1+Analise_Fundamentalista!C2 -> 2025
B5: Ativo total | C5: =Demonstrativos!B2 -> 7123640 | D5: [R$ 1.000] | F5: Receitas líquidas | G5: =Demonstrativos!B45 -> 1649531 | H5: =G5*(1+Analise_Fundamentalista!C4)^Analise_Fundamentalista!C2 -> 3020290.378 | I5: [R$ 1.000]
B6: Debt market value (dívida líquida do excendente de caixa) | C6: =Custo_de_capital_Empresa!C111 -> 0 | D6: [R$ 1.000] | F6: Wacc utilizado | G6: =Analise_Fundamentalista!C10 -> 0.08265908233 | I6: [Real em R$]
B7: EBIT | C7: =Demonstrativos!B55 -> 332597 | D7: [R$ 1.000] | G7: =Indicadores!$B$1 -> 2015 | H7: Valor intrínseco
C8: Nominal | D8: Real | F8: Market value of equity | G8: =Custo_de_capital_Empresa!D89 -> 1577262.236 | H8: =Analise_Fundamentalista!F28 -> 672155.7898 | I8: [R$ 1.000]
B9: WACC - Instituto Assaf para empresas do setor | C9: =Custo_de_capital_Empresa!C114 -> 0.127 | D9: =Custo_de_capital_Empresa!D114 -> 0.04415881703 | E9: [ao ano] | G9: Drivers do Valor (%)
B10: WACC - Dívida líquida | C10: =Custo_de_capital_Empresa!C115 -> 0.1631607664 | D10: =(1+Analise_Fundamentalista!C4)/(1+Parametros_de_entrada!C34)-1 -> -0.01573630612 | E10: [ao ano] | F10: [Nopat/Receitas] | G10: =Analise_Fundamentalista!C5 -> 0.177518619 | H10: [ao ano]
B11: WACC conforme equity de mercado | C11: =Custo_de_capital_Empresa!C116 -> 0.1685547887 | D11: =Custo_de_capital_Empresa!D116 -> 0.08265908233 | E11: [ao ano] | F11: [Invest/Receitas] | G11: =-Analise_Fundamentalista!C13 -> -0.1473970867 | H11: [ao ano]
F12: [∆NCG/Receitas] | G12: =-Analise_Fundamentalista!C14 -> -0.08226835324 | H12: [ao ano]
B13: Outras informações | F13: [Deprec/Receitas] | G13: =Analise_Fundamentalista!C12 -> 0.1631126904 | H13: [ao ano]
B14: Capital investido | C14: =Indicadores!B20 -> 4345820 | D14: [R$ 1.000] | F14: Cresc. Vendas | G14: =Analise_Fundamentalista!C4 -> 0.06235293416 | H14: [ao ano] - nominal
B15: Nopat | C15: =Demonstrativos!B55*(1-Custo_de_capital_Empresa!C20) -> 245076.1102 | D15: [R$ 1.000]
B16: EVA | C16: =(C22-Analise_Fundamentalista!C10)*C14 -> -114145.383 | D16: [R$ 1.000] - ações ordinárias e preferenciais
B17: MVA | C17: =C16/Analise_Fundamentalista!C10 -> -1380917.617 | D17: [R$ 1.000]
B18: P/L | C18: =SUMPRODUCT(Custo_de_capital_Empresa!C86:C88,Custo_de_capital_Empresa!D86:D88)/SUM(Custo_de_capital_Empresa!C86:C88)/C19 -> 12.5809589 | D18: [R$/ação]
B19: LPA | C19: =Demonstrativos!B62/SUM(Custo_de_capital_Empresa!C86:C88)*1000 -> 2.829673023 | D19: [R$/ação]
B20: ROA | C20: =C15/C5 -> 0.03440321383
B21: ROE | C21: =Indicadores!B30 -> 0.05043416694
B22: ROCE | C22: =C15/C14 -> 0.05639352532
B23: Enterprise Value | C23: =Custo_de_capital_Empresa!D91 -> 1577262.236 | D23: [R$ 1.000]
B24: GAF (Grau de alavancagem financeira) | C24: =C21/C20 -> 1.465972545

Sheet Resumo_WACC
B1: =Parametros_de_entrada!C4 -> São Martinho | C1: Modo 1 - Assaf Neto | D1: Modo 2 - Estrutura de capital contábil | E1: Modo 3 - A valor de mercado | F1: Observação
B2: Inflação Brasil (a.a) | C2: =Custo_de_capital_Empresa!F44 -> 0.07933772298 | F2: IGP-DI médio dos últimos 15 anos
B3: Inflação EUA (a.a.) | C3: =Custo_de_capital_Empresa!F45 -> 0.02 | F3: www.damodaran.com
B4: Alíquota marginal de IR | D4: =Custo_de_capital_Empresa!C20 -> 0.2631439544 | F4: Imposto de renda efetivamente pago (valor médio)
B5: D/(D+CP) | D5: =Custo_de_capital_Empresa!C79 -> 0.3211209346 | E5: =Custo_de_capital_Empresa!D90/Custo_de_capital_Empresa!D91 -> 0
B6: CP/(D+CP) | D6: =1-D5 -> 0.6788790654 | E6: =1-E5 -> 1
B7: Kd (nominal, R$) | D7: =Custo_de_capital_Empresa!D70 -> 0.1608424842 | F7: =IF(Custo_de_capital_Empresa!E70=1,"Usa dívida contábil",IF(Custo_de_capital_Empresa!E70=2,"Usa dívida líquida","Usa Rf+Risco da Empresa+CDS")) -> Usa Rf+Risco da Empresa+CDS
B8: Kcp (nominal, R$) | D8: =(D10+D9*D11+D12*D13)*(1+C2)/(1+C3) -> 0.1227687597 | E8: =(D10+E9*D11+D12*D13)*(1+C2)/(1+C3) -> 0.1685547887 | F8: =Rf+Beta*(Rm-Rf)*CDS*IV
B9: Coef. Beta (alavancado) | D9: =(1+Analise_Fundamentalista!C4)/(1+Parametros_de_entrada!C34)-1 -> -0.01573630612 | E9: =Custo_de_capital_Empresa!C40 -> 1.05 | F9: =Parametros_de_entrada!D31 -> Planilha ctryprem.xls - Damodaran: http://pages.stern.nyu.edu/~adamodar/New_Home_Page/datafile/ctryprem.html
B10: Rf | D10: =Custo_de_capital_Empresa!C24 -> 0.02 | F10: =Parametros_de_entrada!D18 -> US T-Bond (Rf) - Fonte: www.damodaran.com http://pages.stern.nyu.edu/~adamodar/New_Home_Page/datafile/ctryprem.html)
B11: Rm-Rf | D11: =Custo_de_capital_Empresa!C41 -> 0.0406 | F11: =Parametros_de_entrada!D31 -> Planilha ctryprem.xls - Damodaran: http://pages.stern.nyu.edu/~adamodar/New_Home_Page/datafile/ctryprem.html
B12: Country Deafault Spread (CDS) | C12: =Parametros_de_entrada!C18 -> 0.02 | D12: =Custo_de_capital_Empresa!C25 -> 0.052 | F12: =Parametros_de_entrada!D19 -> T-bond (maturidade de 10 anos) - Damodaran (http://pages.stern.nyu.edu/~adamodar/New_Home_Page/datafile/ctryprem.html)
B13: ìndice de Volatilidade (IV) | C13: =Parametros_de_entrada!C20 -> 1.858813701 | D13: =Custo_de_capital_Empresa!C26 -> 1.858813701 | F13: Volatidade dos retornos das ações de empresas brasileiras/volatilidade títulos da dívida pública brasileira
B14: WACC (nominal R$) | C14: =Custo_de_capital_Empresa!C74 -> 0.127 | D14: =D7*D5*(1-D4)+D8*D6 -> 0.1214036737 | E14: =D7*E5*(1-D4)+E8*E6 -> 0.1685547887
F28: =Parametros_de_entrada!C55 -> 44305119

Sheet Analise_Fundamentalista
B2: Período de avaliação explícita | C2: 10 | D2: [anos] | E2: -> escolha um valor entre 3 e 20 anos (em C2)
B3: Receitas anuais | C3: =Demonstrativos!B45 -> 1649531 | D3: [R$ 1.000]
B4: Crescimento das receitas (nominal) | C4: =((Demonstrativos!B45/OFFSET(Demonstrativos!B45,0,Analise_Fundamentalista!F4))^(1/(Demonstrativos!B44-OFFSET(Demonstrativos!B44,0,Analise_Fundamentalista!F4)))-1)*(1-H4) -> 0.06235293416 | D4: [% ao ano] | E4: Últimos (anos) | F4: 4 | G4: --> Reduzir em (%) | H4: 0
B5: Margem operacional | C5: =AVERAGE(OFFSET(Indicadores!B3,0,0,1,F5))*(1-H5) -> 0.177518619 | D5: [%/líquida] | E5: Últimos (anos) | F5: 4 | G5: --> Reduzir em (%) | H5: 0
B6: Alíquota de IR/CSLL | C6: =AVERAGE(OFFSET(Indicadores!B7,0,0,1,F6))*(1-H6) -> 0.2631439544 | D6: [%] | E6: Últimos (anos) | F6: 4 | G6: --> Reduzir em (%) | H6: 0
B8: Taxa de desconto | C8: 3 | D8: 1- WACC pelo Instituto Assaf; 2 - WACC contábil; 3- WACC por valor de mercado
B9: Custo do capital (WACC) | C9: =IF(C8=1,Custo_de_capital_Empresa!C74,IF(C8=2,Custo_de_capital_Empresa!C81,Custo_de_capital_Empresa!D92)) -> 0.1685547887 | D9: [%] - nominal (R$)
B10: Custo do capital (WACC) | C10: =IF(C8=1,Custo_de_capital_Empresa!C73,IF(C8=2,Custo_de_capital_Empresa!C82,Custo_de_capital_Empresa!D93)) -> 0.08265908233
B12: Taxa de depreciação | C12: =(AVERAGE(OFFSET(Indicadores!B12,0,0,1,F12)))*(1-H12) -> 0.1631126904 | D12: [% das receitas] | E12: Últimos (anos) | F12: 4 | G12: --> Reduzir em (%) | H12: 0
B13: Taxa de investimento | C13: =AVERAGE(OFFSET(Indicadores!B13,0,0,1,F13))*(1-H13) -> 0.1473970867 | D13: [% das receitas] | E13: Últimos (anos) | F13: 4 | G13: --> Reduzir em (%) | H13: 0
B14: Variação Nec Capital de Giro | C14: =AVERAGE(OFFSET(Indicadores!B19,0,0,1,F14))*(1-H14) -> 0.08226835324 | D14: [% das receitas] | E14: Últimos (anos) | F14: 4 | G14: --> Reduzir em (%) | H14: 0
B15: Ativos de curto prazo | C15: =Demonstrativos!B3 -> 1770246 | D15: [R$ 1.000]
B16: Passivo de curto prazo | C16: =Demonstrativos!C17 -> 693970 | D16: [R$ 1.000]
B17: Dívida | C17: =Demonstrativos!C21+Demonstrativos!C27 -> 1590821 | D17: [R$ 1.000]
B19: Avaliação
C21: + Fluxos de caixa descontados | F21: =SUM(N39:N121) - F22 -> 651333.4111 | G21: [R$ 1.000]
C22: + Fluxo de caixa residual descontado | F22: 535367.3786 | G22: [R$ 1.000]
C23: + Ativos de curto prazo | F23: =C15 -> 1770246 | G23: [R$ 1.000]
C24: = Valor total da empresa | F24: =F21+F22+F23 -> 2956946.79 | G24: [R$ 1.000]
C26: - Dívida | F26: =-C17 -> -1590821 | G26: [R$ 1.000]
C27: - Passivos de curto prazo | F27: =-C16 -> -693970 | G27: [R$ 1.000]
C28: = Valor total do capital próprio (equity) | F28: =F24+F26+F27 -> 672155.7898 | G28: [R$ 1.000]
C29: Quantidade de ações ordinárias em circulação | F29: =Parametros_de_entrada!C55 -> 44305119
C30: Quantidade de ações preferenciais em circulação | F30: =SUM(Parametros_de_entrada!C53:C54) -> 0
C31: % ações ordinárias em circulação | F31: =Parametros_de_entrada!C55/SUM(Parametros_de_entrada!C53:C55) -> 1
C32: % ações preferenciais em circulação | F32: =SUM(Parametros_de_entrada!C53:C54)/SUM(Parametros_de_entrada!C53:C55) -> 0
C34: = Valor intrínseco por ação ordinária | F34: =F31*F28/F29*1000 -> 15.17106386
C35: = Valor intrínseco por ação preferencial | F35: =IF(ISERR(F32*F28/F30*1000),0,F32*F28/F30*1000) -> 0
C37: Período | D37: Receitas | E37: Lucro Operacional | F37: IR/CSLL | G37: Nopat | H37: Investimento | I37: Depreciação | J37: Variação investimento | K37: Mudança em Capital de giro | L37: Fluxo de Caixa | M37: Fator de desconto | N37: FC Descontado
C38: 0 | D38: =C3 -> 1649531
C39: 1 | D39: =D38*(1+$C$4)/(1+Parametros_de_entrada!$C$34) -> 1623573.475 | E39: =$C$5*D39 -> 288214.5212 | F39: =-$C$6*E39 -> -75841.90882 | G39: =E39+F39 -> 212372.6124 | H39: =$C$13*D39 -> 239310.0003 | I39: =$C$12*D39 -> 264825.4377 | J39: =H39-I39 -> -25515.43741 | K39: =$C$14*D39 -> 133568.7162 | L39: =G39-J39-K39 -> 104319.3336 | M39: =1/(1+$C$10)^C39 -> 0.9236517906 | N39: =L39*M39 -> 96354.73926
C40: 2 | D40: =D39*(1+$C$4)/(1+Parametros_de_entrada!$C$34) -> 1598024.426 | E40: =$C$5*D40 -> 283679.0892 | F40: =-$C$6*E40 -> -74648.43732 | G40: =E40+F40 -> 209030.6519 | H40: =$C$13*D40 -> 235544.1448 | I40: =$C$12*D40 -> 260658.0635 | J40: =H40-I40 -> -25113.91868 | K40: =$C$14*D40 -> 131466.838 | L40: =G40-J40-K40 -> 102677.7326 | M40: =1/(1+$C$10)^C40 -> 0.8531326303 | N40: =L40*M40 -> 87597.7241
C41: 3 | D41: =D40*(1+$C$4)/(1+Parametros_de_entrada!$C$34) -> 1572877.424 | E41: 279215.0282 | F41: -73473.74666 | G41: 205741.2816 | H41: 231837.5501 | I41: 256556.2684 | J41: -24718.71837 | K41: 129398.0356 | L41: 101061.9644 | M41: 0.7879974816 | N41: 79636.57342
C42: 4 | D42: =D41*(1+$C$4)/(1+Parametros_de_entrada!$C$34) -> 1548126.144 | E42: 274821.2151 | F42: -72317.54129 | G42: 202503.6738 | H42: 228189.2834 | I42: 252519.0205 | J42: -24329.73705 | K42: 127361.7885 | L42: 99471.62238 | M42: 0.7278352848 | N42: 72398.95661
C43: 5 | D43: =D42*(1+$C$4)/(1+Parametros_de_entrada!$C$34) -> 1523764.357 | E43: 270496.5443 | F43: -71179.53032 | G43: 199317.014 | H43: 224598.427 | I43: 248545.3039 | J43: -23946.87686 | K43: 125357.5844 | L43: 97906.30648 | M43: 0.6722663641 | N43: 65819.11668
C44: 6 | D44: =D43*(1+$C$4)/(1+Parametros_de_entrada!$C$34) -> 1499785.935 | E44: 266239.9279 | F44: -70059.42745 | G44: 196180.5004 | H44: 221064.0774 | I44: 244634.1189 | J44: -23570.04147 | K44: 123384.9191 | L44: 96365.62287 | M44: 0.620940031 | N44: 59837.27285
C45: 7 | D45: =D44*(1+$C$4)/(1+Parametros_de_entrada!$C$34) -> 1476184.844 | E45: 262050.2949 | F45: -68956.95085 | G45: 193093.344 | H45: 217585.3454 | I45: 240784.4815 | J45: -23199.13609 | K45: 121443.2962 | L45: 94849.18393 | M45: 0.5735323715 | N45: 54399.07739
C46: 8 | D46: =D45*(1+$C$4)/(1+Parametros_de_entrada!$C$34) -> 1452955.147 | E46: 257926.5912 | F46: -67871.82316 | G46: 190054.7681 | H46: 214161.3558 | I46: 236995.4232 | J46: -22834.06738 | K46: 119532.2273 | L46: 93356.60813 | M46: 0.5297442019 | N46: 49455.12187
C47: 9 | D47: =D46*(1+$C$4)/(1+Parametros_de_entrada!$C$34) -> 1430091 | E47: 253867.7794 | F47: -66803.77137 | G47: 187064.0081 | H47: 210791.2471 | I47: 233265.9906 | J47: -22474.7435 | K47: 117651.2316 | L47: 91887.51997 | M47: 0.4892991806 | N47: 44960.48823
C48: 10 | D48: =D47*(1+$C$4)/(1+Parametros_de_entrada!$C$34) -> 1407586.651 | E48: 249872.8383 | F48: -65752.52678 | G48: 184120.3116 | H48: 207474.1715 | I48: 229595.2456 | J48: -22121.07406 | K48: 115799.8358 | L48: 90441.54983 | M48: 0.4519420643 | N48: 40874.34073
L50: 1184592.94 | M50: 0.4519420643 | N50: 535367.3786

Sheet Demonstrativos
A1: BALANÇO PATRIMONIAL | B1: 2015 | C1: 2014 | D1: 2013 | E1: 2012 | F1: 2011 | G1: 2010 | H1: 2009 | I1: 2008 | J1: 2007 | K1: 2006 | L1: 2005 | M1: 2004
A2: ATIVO TOTAL | B2: 7123640 | C2: 5038396 | D2: 5633110 | E2: 4787167 | F2: 3941658 | G2: 4100068 | H2: 3394692 | I2: 2916623 | J2: 2642926 | K2: 644582
A3: ATIVO CIRCULANTE | B3: 1770246 | C3: 862657 | D3: 1031966 | E3: 663206 | F3: 471214 | G3: 413595 | H3: 641777 | I3: 431824 | J3: 609081 | K3: 114604
A4: Disponibilidades | B4: 345548 | C4: 551359 | D4: 634290 | E4: 410567 | F4: 222219 | G4: 130634 | H4: 190063 | I4: 72534 | J4: 366964 | K4: 36758
A5: Aplicações Financeiras | B5: 306407 | C5: 0 | D5: 0 | E5: 0 | F5: 0 | G5: 0 | H5: 0 | I5: 0 | J5: 0 | K5: 0
A6: Valores a Receber | B6: 197108 | C6: 72106 | D6: 62667 | E6: 38399 | F6: 59673 | G6: 41628 | H6: 45544 | I6: 94225 | J6: 22708 | K6: 12722
A7: Estoques | B7: 657410 | C7: 99658 | D7: 148661 | E7: 137375 | F7: 139106 | G7: 105069 | H7: 296404 | I7: 173625 | J7: 168890 | K7: 50587
A8: Outros Ativos Circulantes | B8: =80656+183117 -> 263773 | C8: 139534 | D8: 186348 | E8: 76865 | F8: 50216 | G8: 136264 | H8: 109766 | I8: 91440 | J8: 50519 | K8: 14537
A9: ATIVO NÃO CIRCULANTE | B9: 5353394 | C9: 4175739 | D9: 4601144 | E9: 4123961 | F9: 3470444 | G9: 3686473 | H9: 2752915 | I9: 2484799 | J9: 2033845 | K9: 529978
A10: Ativo Realizável a Longo Prazo | B10: 1125719 | C10: 727267 | D10: 1006824 | E10: 802022 | F10: 568957 | G10: 606547 | H10: 226941 | I10: 153468 | J10: 94786 | K10: 37878
A11: Ativo Permanente | B11: =SUM(B12:B14) -> 4227675 | C11: 3448472 | D11: 3594320 | E11: 3321939 | F11: 2901487 | G11: 3079926 | H11: 2525974 | I11: 2331331 | J11: 1939059 | K11: 492100
A12: Investimentos | B12: 471328 | C12: 537764 | D12: 11488 | E12: 8262 | F12: 0 | G12: 0 | H12: 3482 | I12: 167 | J12: 142 | K12: 60
A13: Imobilizado | B13: 3268061 | C13: 2717791 | D13: 3339886 | E13: 3244267 | F13: 2864761 | G13: 3042759 | H13: 2481605 | I13: 2292158 | J13: 1938917 | K13: 492040
A14: Intangível | B14: 488286 | C14: 192917 | D14: 242946 | E14: 69410 | F14: 36726 | G14: 37167 | H14: 40887 | I14: 39006 | J14: 0 | K14: 0
B15: 2015 | C15: 2014 | D15: 2013 | E15: 2012 | F15: 2011 | G15: 2010 | H15: 2009 | I15: 2008 | J15: 2007 | K15: 2006 | L15: =L1 -> 2005 | M15: =M1 -> 2004
A16: PASSIVO TOTAL E PATRIMÔNIO LÍQUIDO | B16: 7123640 | C16: 5038396 | D16: 5633110 | E16: 4787167 | F16: 3941658 | G16: 4100068 | H16: 3394692 | I16: 2916623 | J16: 2642926 | K16: 281254
A17: PASSIVO CIRCULANTE | B17: 1223332 | C17: 693970 | D17: 663946 | E17: 517353 | F17: 340860 | G17: 481214 | H17: 559508 | I17: 312813 | J17: 217856 | K17: 67204
A18: Obrigações Sociais e Trabalhistas | B18: 88173 | C18: 58847 | D18: 66523 | E18: 57297 | F18: 44000 | G18: 41546 | H18: 0 | I18: 0 | J18: 0 | K18: 0
A19: Fornecedores | B19: 152547 | C19: 64429 | D19: 98235 | E19: 76655 | F19: 61096 | G19: 74172 | H19: 76150 | I19: 55705 | J19: 55468 | K19: 13661
A20: Obrigações Fiscais | B20: 17582 | C20: 11651 | D20: 12969 | E20: 12439 | F20: 21172 | G20: 16602 | H20: 9704 | I20: 9970 | J20: 6883 | K20: 739
A21: Empréstimos e Financiamentos | B21: 694514 | C21: 439644 | D21: 363529 | E21: 247504 | F21: 140982 | G21: 326746 | H21: 401115 | I21: 144761 | J21: 110148 | K21: 34544
A22: Outros Passivos de Curto Prazo | B22: 270506 | C22: 119399 | D22: 122690 | E22: 123458 | F22: 73610 | G22: 22148 | H22: 37607 | I22: 79219 | J22: 25293 | K22: 11212
A23: Provisões | B23: 0 | C23: 0 | D23: 0 | E23: 0 | F23: 0 | G23: 0 | H23: 34932 | I23: 23158 | J23: 20064 | K23: 7048
A24: Passivos sobre Ativos Não-Correntes a Venda e Descontinuados | B24: 0 | C24: 0 | D24: 0 | E24: 0 | F24: 0 | G24: 0 | H24: 0 | I24: 0 | J24: 0 | K24: 0
A25: PASSIVO NÃO CIRCULANTE | B25: 3414523 | C25: 2268474 | D25: 2868547 | E25: 2245136 | F25: 1647312 | G25: 1709463 | H25: 1241740 | I25: 947234 | J25: 745979 | K25: 214050
A26: Passivo Exigível a Longo Prazo | B26: =SUM(B27:B32) -> 3414523 | C26: 2268474 | D26: 2868547 | E26: 2245136 | F26: 1647312 | G26: 1709463 | H26: 1241740 | I26: 947234 | J26: 745979 | K26: 214050
A27: Empréstimos e Financiamentos | B27: 2867601 | C27: 1151177 | D27: 1618397 | E27: 984865 | F27: 570711 | G27: 628393 | H27: 730486 | I27: 409637 | J27: 212655 | K27: 80479
A28: Tributos Diferidos | B28: 150490 | C28: 807880 | D28: 867891 | E28: 820201 | F28: 728368 | G28: 756387 | H28: 0 | I28: 0 | J28: 0 | K28: 0
A29: Provisões de Longo Prazo | B29: 58678 | C29: 56649 | D29: 66331 | E29: 74259 | F29: 74284 | G29: 67889 | H29: 74127 | I29: 70165 | J29: 72160 | K29: 10621
A30: Outros Passivos de Longo Prazo | B30: 337754 | C30: 252768 | D30: 315928 | E30: 365811 | F30: 273949 | G30: 256794 | H30: 437127 | I30: 467432 | J30: 461164 | K30: 122950
A31: Passivos sobre Ativos Não-Correntes a Venda e Descontinuados | B31: 0 | C31: 0 | D31: 0 | E31: 0 | F31: 0 | G31: 0 | H31: 0 | I31: 0 | J31: 0 | K31: 0
A32: Lucros e Receitas a Apropriar | B32: 0 | C32: 0 | D32: 0 | E32: 0 | F32: 0 | G32: 0 | H32: 0 | I32: 0 | J32: 0 | K32: 0
A33: PATRIMÔNIO LÍQUIDO | B33: 2485795 | C33: 2075952 | D33: 2100617 | E33: 2024678 | F33: 1953486 | G33: 1909391 | H33: 1593444 | I33: 1656576 | J33: 1679091 | K33: 363328
A34: Capital Social | B34: 931340 | C34: 737200 | D34: 614150 | E34: 455900 | F34: 455900 | G34: 360000 | H34: 360000 | I34: 360000 | J34: 360000 | K34: 2786
A35: Reservas de Capital | B35: 7391 | C35: -8234 | D35: -11958 | E35: -12647 | F35: -1899 | G35: -1899 | H35: 0 | I35: 0 | J35: 0 | K35: 0
A36: Reservas de Reavaliação | B36: 0 | C36: 0 | D36: 0 | E36: 0 | F36: 0 | G36: 0 | H36: 1117599 | I36: 1161846 | J36: 1210974 | K36: 306807
A37: Reservas de Lucros | B37: 272214 | C37: 230277 | D37: 232556 | E37: 308867 | F37: 194516 | G37: 218631 | H37: 97602 | I37: 102735 | J37: 100506 | K37: 1729
A38: Ajustes de Avaliação Patrimonial | B38: 1133337 | C38: 1116709 | D38: 1265869 | E38: 1272558 | F38: 1304969 | G38: 1403668 | H38: 0 | I38: 0 | J38: 0 | K38: 0
A39: Lucros/Prejuízos acumulados | B39: 141513 | C39: 0 | D39: 0 | E39: 0 | F39: 0 | G39: -71009 | H39: 0 | I39: 24384 | J39: 0 | K39: 52006
A40: Participação de acionistas não controladores | B40: 0 | C40: 0 | D40: 0 | E40: 0 | F40: 0 | G40: 0 | H40: 18243 | I40: 7611 | J40: 7611 | K40: 0
A41: Ajustes Acumulados de Conversão | B41: 0 | C41: 0 | D41: 0 | E41: 0 | F41: 0 | G41: 0 | H41: 0 | I41: 0 | J41: 0 | K41: 0
A42: Outros Resultados | B42: 0 | C42: 0 | D42: 0 | E42: 0 | F42: 0 | G42: 0 | H42: 0 | I42: 0 | J42: 0 | K42: 0
E43: (R$ 000) | H43: (R$ 000)
A44: DEMONSTRAÇÃO DO RESULTADO DO EXERCÍCIO | B44: 2015 | C44: 2014 | D44: 2013 | E44: 2012 | F44: 2011 | G44: 2010 | H44: 2009 | I44: 2008 | J44: 2007 | K44: 2006 | L44: 2005 | M44: 2004
A45: (=) RECEITA DE VENDAS | B45: 1649531 | C45: 1533675 | D45: 1366990 | E45: 1295046 | F45: 1295046 | G45: 1183286 | H45: 774443 | I45: 712420 | J45: 767022 | K45: 282470
A46: (-) Custo dos bens e serviços vendidos | B46: -1191960 | C46: -1089056 | D46: -990438 | E46: -895702 | F46: -895702 | G46: -895775 | H46: -637041 | I46: -623583 | J46: -529736 | K46: -206576
A47: (=) RESULTADO BRUTO | B47: 457571 | C47: 444619 | D47: 376552 | E47: 399344 | F47: 399344 | G47: 287511 | H47: 137402 | I47: 88837 | J47: 237286 | K47: 75894
A48: (-) Despesas Operacionais | B48: -124974 | C48: -200785 | D48: -147711 | E48: -163579 | F48: -163579 | G48: -158364 | H48: -42219 | I48: -126082 | J48: -114957 | K48: -32230
A49: Despesas com Vendas | B49: -70879 | C49: -73893 | D49: -53748 | E49: -58205 | F49: -58205 | G49: -61453 | H49: -34979 | I49: -42624 | J49: -52316 | K49: -11201
A50: Despesas Gerais e Administrativas | B50: -99388 | C50: -113553 | D50: -120499 | E50: -101130 | F50: -101130 | G50: -96120 | H50: -108648 | I50: -99395 | J50: -75756 | K50: -29636
A51: Perdas pela Não Recuperabilidade de Ativos | C51: 0 | D51: 0 | E51: 0 | F51: 0 | G51: 0 | K51: 0
A52: Outras Receitas Operacionais | B52: 4200 | C52: 3105 | D52: 26987 | E52: 0 | F52: 0 | G52: 0 | H52: 114174 | I52: 36709 | J52: 14677 | K52: 8639
A53: Outras Despesas Operacionais | C53: 0 | D53: 0 | E53: -4244 | F53: -4244 | G53: -791 | H53: -12766 | I53: -20772 | J53: -1562 | K53: -32
A54: Resultado da Equivalência Patrimonial | B54: 41093 | C54: -16444 | D54: -451 | E54: 0 | F54: 0 | G54: 0 | H54: 0 | I54: 0 | J54: 0 | K54: 0
A55: (=) RESULTADO ANTES DOS JUROS E NÃO OPERACIONAL | B55: 332597 | C55: 243834 | D55: 228841 | E55: 235765 | F55: 235765 | G55: 129417 | H55: 95183 | I55: -37245 | J55: 122329 | K55: 43664
A56: (+) Receitas Financeiras | B56: 198157 | C56: 68422 | D56: 236226 | E56: 62938 | F56: 120324 | G56: 187926 | H56: 97084 | I56: 88051 | J56: 77882 | K56: 22499
A57: (-) Despesas Financeiras | B57: -430638 | C57: -123695 | D57: -298864 | E57: -101607 | F57: -158993 | G57: -171209 | H57: -269573 | I57: -96999 | J57: -98910 | K57: -34899
A58: (=) RESULTADO ANTES IR/CSSL E DEDUÇÕES | B58: 100116 | C58: 188561 | D58: 166203 | E58: 197096 | F58: 197096 | G58: 145864 | H58: -77306 | I58: -46193 | J58: 101301 | K58: 31565
A59: (-) Provisão para IR e CSLL | B59: -25253 | C59: -53560 | D59: -39592 | E59: -54808 | F59: -54808 | G59: -39866 | H59: -954 | I59: -2601 | J59: -34296 | K59: -10677
A60: (=) RESULTADO LÍQUIDO DAS OPERAÇÕES CONTINUADAS | B60: =B58-B59 -> 125369 | C60: 135001 | D60: 126611 | E60: 142288 | F60: 142288 | G60: 105998 | H60: -78260 | I60: -48794 | J60: 67005 | K60: 20888
A61: (+) Resultado Líquido de Operações Descontinuadas | B61: 0 | C61: 0 | D61: 0 | E61: 0 | F61: 0 | G61: 0 | H61: 6395 | I61: 0 | J61: 0 | K61: 0
A62: (=) RESULTADO LÍQUIDO DO EXERCÍCIO | B62: 125369 | C62: 135001 | D62: 126611 | E62: 142288 | F62: 142288 | G62: 105998 | H62: -71865 | I62: -48794 | J62: 67005 | K62: 20888
E63: (R$ 000) | H63: (R$ 000)
A64: DEMONSTRAÇÃO DO FLUXO DE CAIXA | B64: 2015 | C64: 2014 | D64: 2013 | E64: 2012 | F64: 2011 | G64: 2010 | H64: 2009 | I64: 2008 | J64: 2007 | K64: 2006 | L64: 2005 | M64: 2004
A65: Caixa Líquido Atividades OPERACIONAIS | B65: 220537 | C65: 473418 | D65: 394796 | E65: 269079 | F65: 465885 | G65: 445267 | H65: 245681 | I65: 76226 | J65: 245681 | K65: 0
A66: Caixa Líquido Atividades de INVESTIMENTO | B66: -755093 | C66: -530689 | D66: -480456 | E66: 1253 | F66: -307901 | G66: -416430 | H66: -435275 | I66: -655980 | J66: -435275 | K66: 0
A67: Caixa Líquido Atividades de FINANCIAMENTO | B67: -140008 | C67: 77489 | D67: 257753 | E67: -178071 | F67: -66369 | G67: -88266 | H67: 307123 | I67: 285324 | J67: 307123 | K67: 0
A68: Dividendos e Juros sobre Capital Próprio | B68: 0 | C68: 0 | D68: -30243 | E68: -34865 | F68: -34865 | G68: -18331 | H68: 0 | I68: 0 | J68: 0 | K68: 0
A69: Variação Cambial sobre Caixa e Equivalentes | B69: 0 | C69: 0 | D69: 0 | E69: 0 | F69: 0 | G69: 0 | H69: 0 | I69: 0 | J69: 0 | K69: 0
A70: AUMENTO/REDUÇÃO CAIXA E EQUIVALENTES | B70: -674564 | C70: 20218 | D70: 172093 | E70: 92261 | F70: 91585 | G70: -59429 | H70: 117529 | I70: -294430 | J70: 117529 | K70: 0
A71: Saldo Inicial de Caixa e Equivalentes | B71: 1020112 | C71: 531141 | D71: 116461 | E71: 24200 | F71: 130634 | G71: 190063 | H71: 72534 | I71: 366964 | J71: 72534 | K71: 0
A72: Saldo Final de Caixa e Equivalentes | B72: 345548 | C72: 551359 | D72: 288554 | E72: 116461 | F72: 222219 | G72: 130634 | H72: 190063 | I72: 72534 | J72: 190063 | K72: 0
E73: (R$ 000) | H73: (R$ 000)
A74: DEMONSTRAÇÃO DO VALOR ADICIONADO | B74: 2015 | C74: 2014 | D74: 2013 | E74: 2012 | F74: 2011 | G74: 2010 | H74: 2009 | I74: 2008 | J74: 2007 | K74: 2006 | L74: 2005 | M74: 2004
A75: Receitas | B75: 2049056 | C75: 1839244 | D75: 1189595 | E75: 0 | F75: 1699975 | G75: 1570517 | H75: 1107448 | I75: 907787 | J75: 1107448 | K75: 0
A76: (-) Insumos Adquiridos de Terceiros | B76: -897355 | C76: -913739 | D76: -571193 | E76: 0 | F76: -824081 | G76: -790434 | H76: -533404 | I76: -480450 | J76: -533404 | K76: 0
A77: (=) Valor Adicionado Bruto | B77: 1151701 | C77: 925505 | D77: 618402 | E77: 0 | F77: 875894 | G77: 780083 | H77: 574044 | I77: 427337 | J77: 574044 | K77: 0
A78: (-) Retenções | B78: -442422 | C78: -306089 | D78: -252430 | E78: 0 | F78: -330360 | G78: -333908 | H78: -202506 | I78: -191215 | J78: -202506 | K78: 0
A79: Depreciação, Amortização e Exaustão | B79: -442422 | C79: -306089 | D79: -252430 | E79: 0 | F79: -330360 | G79: -333908 | H79: 0 | I79: 0 | J79: 0 | K79: 0
A80: (=) Valor Adicionado Líquido Produzido | B80: 709279 | C80: 619416 | D80: 365972 | E80: 0 | F80: 545534 | G80: 446175 | H80: 371538 | I80: 236122 | J80: 371538 | K80: 0
A81: (+) Vlr Adicionado Recebido em Transferência | B81: 744682 | C81: 249717 | D81: 107065 | E81: 0 | F81: 145699 | G81: 267513 | H81: 97529 | I81: 89141 | J81: 97529 | K81: 0
A82: (=) VALOR ADICIONADO TOTAL | B82: 1453961 | C82: 869133 | D82: 473037 | E82: 0 | F82: 691233 | G82: 713688 | H82: 469067 | I82: 325263 | J82: 469067 | K82: 0
A84: DISTRIBUIÇÃO DO VALOR ADICIONADO | B84: =B82 -> 1453961 | C84: 869133 | D84: 473037 | E84: 0 | F84: 691233 | G84: 713688 | K84: 0
A85: Pessoal | B85: 381781 | C85: 307492 | D85: 193735 | E85: 0 | F85: 256720 | G85: 259582 | H85: 214771 | I85: 182764 | J85: 214771 | K85: 0
A86: Impostos, Taxas e Contribuições | B86: 11338 | C86: 86567 | D86: 48148 | E86: 0 | F86: 116913 | G86: 86457 | H86: 61184 | I86: 91144 | J86: 61184 | K86: 0
A87: Remuneração de Capitais de Terceiros | B87: 935473 | C87: 340073 | D87: 170943 | E87: 0 | F87: 175312 | G87: 261651 | H87: 271372 | I87: 100149 | J87: 271372 | K87: 0
A88: Remuneração de Capitais Próprios | B88: 125369 | C88: 135001 | D88: 60211 | E88: 0 | F88: 142288 | G88: 105998 | H88: -78260 | I88: -48794 | J88: -78260 | K88: 0
A89: Outros | B89: 0 | C89: 0 | D89: 0 | E89: 0 | F89: 0 | G89: 0 | H89: 0 | I89: 0 | J89: 0 | K89: 0

Sheet Indicadores
B1: =Demonstrativos!B15 -> 2015 | C1: =Demonstrativos!C15 -> 2014 | D1: =Demonstrativos!D15 -> 2013 | E1: =Demonstrativos!E15 -> 2012 | F1: =Demonstrativos!F15 -> 2011 | G1: =Demonstrativos!G15 -> 2010 | H1: =Demonstrativos!H15 -> 2009 | I1: =Demonstrativos!I15 -> 2008 | J1: =Demonstrativos!J15 -> 2007 | K1: =Demonstrativos!K15 -> 2006 | L1: =Demonstrativos!L15 -> 2005 | M1: =Demonstrativos!M15 -> 2004
A2: Margem Bruta | B2: =Demonstrativos!B47/Demonstrativos!B45 -> 0.2773946049 | C2: =Demonstrativos!C47/Demonstrativos!C45 -> 0.2899043148 | D2: =Demonstrativos!D47/Demonstrativos!D45 -> 0.2754606837 | E2: =Demonstrativos!E47/Demonstrativos!E45 -> 0.3083627917 | F2: =Demonstrativos!F47/Demonstrativos!F45 -> 0.3083627917 | G2: =Demonstrativos!G47/Demonstrativos!G45 -> 0.2429767613 | H2: =Demonstrativos!H47/Demonstrativos!H45 -> 0.177420417 | I2: =Demonstrativos!I47/Demonstrativos!I45 -> 0.1246975099 | J2: =Demonstrativos!J47/Demonstrativos!J45 -> 0.3093600966 | K2: =Demonstrativos!K47/Demonstrativos!K45 -> 0.2686798598 | L2: =Demonstrativos!L47/Demonstrativos!L45 ->  | M2: =Demonstrativos!M47/Demonstrativos!M45 -> 
A3: Margem Operacional (EBIT) | B3: =Demonstrativos!B55/Demonstrativos!B45 -> 0.2016312515 | C3: =Demonstrativos!C55/Demonstrativos!C45 -> 0.1589867475 | D3: =Demonstrativos!D55/Demonstrativos!D45 -> 0.1674050286 | E3: =Demonstrativos!E55/Demonstrativos!E45 -> 0.1820514484 | F3: =Demonstrativos!F55/Demonstrativos!F45 -> 0.1820514484 | G3: =Demonstrativos!G55/Demonstrativos!G45 -> 0.1093708537 | H3: =Demonstrativos!H55/Demonstrativos!H45 -> 0.1229051073 | I3: =Demonstrativos!I55/Demonstrativos!I45 -> -0.0522795542 | J3: =Demonstrativos!J55/Demonstrativos!J45 -> 0.1594856471 | K3: =Demonstrativos!K55/Demonstrativos!K45 -> 0.1545792474 | L3: =Demonstrativos!L55/Demonstrativos!L45 ->  | M3: =Demonstrativos!M55/Demonstrativos!M45 -> 
A4: Margem EBITDA | B4: =(Demonstrativos!B55-Demonstrativos!B79)/Demonstrativos!B45 -> 0.4698420339 | C4: =(Demonstrativos!C55-Demonstrativos!C79)/Demonstrativos!C45 -> 0.358565537 | D4: =(Demonstrativos!D55-Demonstrativos!D79)/Demonstrativos!D45 -> 0.3520662185 | E4: =(Demonstrativos!E55-Demonstrativos!E79)/Demonstrativos!E45 -> 0.1820514484 | F4: =(Demonstrativos!F55-Demonstrativos!F79)/Demonstrativos!F45 -> 0.4371466342 | G4: =(Demonstrativos!G55-Demonstrativos!G79)/Demonstrativos!G45 -> 0.3915579158 | H4: =(Demonstrativos!H55-Demonstrativos!H79)/Demonstrativos!H45 -> 0.1229051073 | I4: =(Demonstrativos!I55-Demonstrativos!I79)/Demonstrativos!I45 -> -0.0522795542 | J4: =(Demonstrativos!J55-Demonstrativos!J79)/Demonstrativos!J45 -> 0.1594856471 | K4: =(Demonstrativos!K55-Demonstrativos!K79)/Demonstrativos!K45 -> 0.1545792474 | L4: =(Demonstrativos!L55-Demonstrativos!L79)/Demonstrativos!L45 ->  | M4: =(Demonstrativos!M55-Demonstrativos!M79)/Demonstrativos!M45 -> 
A5: Margem Líquida | B5: =Demonstrativos!B62/Demonstrativos!B45 -> 0.07600281535 | C5: =Demonstrativos!C62/Demonstrativos!C45 -> 0.08802451628 | D5: =Demonstrativos!D62/Demonstrativos!D45 -> 0.09262028252 | E5: =Demonstrativos!E62/Demonstrativos!E45 -> 0.1098710007 | F5: =Demonstrativos!F62/Demonstrativos!F45 -> 0.1098710007 | G5: =Demonstrativos!G62/Demonstrativos!G45 -> 0.08957935782 | H5: =Demonstrativos!H62/Demonstrativos!H45 -> -0.09279572544 | I5: =Demonstrativos!I62/Demonstrativos!I45 -> -0.06849049718 | J5: =Demonstrativos!J62/Demonstrativos!J45 -> 0.08735733786 | K5: =Demonstrativos!K62/Demonstrativos!K45 -> 0.07394767586 | L5: =Demonstrativos!L62/Demonstrativos!L45 ->  | M5: =Demonstrativos!M62/Demonstrativos!M45 -> 
A7: IR Pago | B7: =-Demonstrativos!B59/Demonstrativos!B58 -> 0.2522374046 | C7: =-Demonstrativos!C59/Demonstrativos!C58 -> 0.2840460116 | D7: =-Demonstrativos!D59/Demonstrativos!D58 -> 0.2382147133 | E7: =-Demonstrativos!E59/Demonstrativos!E58 -> 0.278077688 | F7: =-Demonstrativos!F59/Demonstrativos!F58 -> 0.278077688 | G7: =-Demonstrativos!G59/Demonstrativos!G58 -> 0.2733093841 | H7: =-Demonstrativos!H59/Demonstrativos!H58 -> -0.01234056865 | I7: =-Demonstrativos!I59/Demonstrativos!I58 -> -0.0563072327 | J7: =-Demonstrativos!J59/Demonstrativos!J58 -> 0.3385553943 | K7: =-Demonstrativos!K59/Demonstrativos!K58 -> 0.3382543957 | L7: =-Demonstrativos!L59/Demonstrativos!L58 ->  | M7: =-Demonstrativos!M59/Demonstrativos!M58 -> 
A8: Endividamento oneroso | B8: =(Demonstrativos!B21+Demonstrativos!B27)/Demonstrativos!B16 -> 0.5000414114 | C8: =(Demonstrativos!C21+Demonstrativos!C27)/Demonstrativos!C16 -> 0.3157395727 | D8: =(Demonstrativos!D21+Demonstrativos!D27)/Demonstrativos!D16 -> 0.3518351319 | E8: =(Demonstrativos!E21+Demonstrativos!E27)/Demonstrativos!E16 -> 0.2574317963 | F8: =(Demonstrativos!F21+Demonstrativos!F27)/Demonstrativos!F16 -> 0.1805567606 | G8: =(Demonstrativos!G21+Demonstrativos!G27)/Demonstrativos!G16 -> 0.232956868 | H8: =(Demonstrativos!H21+Demonstrativos!H27)/Demonstrativos!H16 -> 0.3333442327 | I8: =(Demonstrativos!I21+Demonstrativos!I27)/Demonstrativos!I16 -> 0.1900821601 | J8: =(Demonstrativos!J21+Demonstrativos!J27)/Demonstrativos!J16 -> 0.1221384935 | K8: =(Demonstrativos!K21+Demonstrativos!K27)/Demonstrativos!K16 -> 0.4089648503 | L8: =(Demonstrativos!L21+Demonstrativos!L27)/Demonstrativos!L16 ->  | M8: =(Demonstrativos!M21+Demonstrativos!M27)/Demonstrativos!M16 -> 
A9: Alavancagem Financeira | B9: =(Demonstrativos!B21+Demonstrativos!B27)/Demonstrativos!B33 -> 1.432988239 | C9: =(Demonstrativos!C21+Demonstrativos!C27)/Demonstrativos!C33 -> 0.7663091439 | D9: =(Demonstrativos!D21+Demonstrativos!D27)/Demonstrativos!D33 -> 0.9434970773 | E9: =(Demonstrativos!E21+Demonstrativos!E27)/Demonstrativos!E33 -> 0.6086740706 | F9: =(Demonstrativos!F21+Demonstrativos!F27)/Demonstrativos!F33 -> 0.3643194781 | G9: =(Demonstrativos!G21+Demonstrativos!G27)/Demonstrativos!G33 -> 0.500232273 | H9: =(Demonstrativos!H21+Demonstrativos!H27)/Demonstrativos!H33 -> 0.7101605077 | I9: =(Demonstrativos!I21+Demonstrativos!I27)/Demonstrativos!I33 -> 0.3346649958 | J9: =(Demonstrativos!J21+Demonstrativos!J27)/Demonstrativos!J33 -> 0.1922486631 | K9: =(Demonstrativos!K21+Demonstrativos!K27)/Demonstrativos!K33 -> 0.3165817113 | L9: =(Demonstrativos!L21+Demonstrativos!L27)/Demonstrativos!L33 ->  | M9: =(Demonstrativos!M21+Demonstrativos!M27)/Demonstrativos!M33 -> 
A10: Custo da dívida (Kd) | B10: =-(Demonstrativos!B57)/(Demonstrativos!B21+Demonstrativos!B27) -> 0.1208939071 | C10: =-(Demonstrativos!C57)/(Demonstrativos!C21+Demonstrativos!C27) -> 0.07775544829 | D10: =-(Demonstrativos!D57)/(Demonstrativos!D21+Demonstrativos!D27) -> 0.150794732 | E10: =-(Demonstrativos!E57)/(Demonstrativos!E21+Demonstrativos!E27) -> 0.08244851988 | F10: =-(Demonstrativos!F57)/(Demonstrativos!F21+Demonstrativos!F27) -> 0.2234011013 | G10: =-(Demonstrativos!G57)/(Demonstrativos!G21+Demonstrativos!G27) -> 0.1792503499 | H10: =-(Demonstrativos!H57)/(Demonstrativos!H21+Demonstrativos!H27) -> 0.2382226598 | I10: =-(Demonstrativos!I57)/(Demonstrativos!I21+Demonstrativos!I27) -> 0.1749627524 | J10: =-(Demonstrativos!J57)/(Demonstrativos!J21+Demonstrativos!J27) -> 0.3064097917 | K10: =-(Demonstrativos!K57)/(Demonstrativos!K21+Demonstrativos!K27) -> 0.3034088834 | L10: =-(Demonstrativos!L57)/(Demonstrativos!L21+Demonstrativos!L27) ->  | M10: =-(Demonstrativos!M57)/(Demonstrativos!M21+Demonstrativos!M27) -> 
A11: Custo da dívida líquida (Kd) | B11: =-(Demonstrativos!B57)/B39 ->  | C11: =-(Demonstrativos!C57)/C39 -> 0.1174627774 | D11: =-(Demonstrativos!D57)/D39 -> 0.1516738918 | E11: =-(Demonstrativos!E57)/E39 -> 0.08300499875 | F11: =-(Demonstrativos!F57)/F39 -> 0.2234011013 | G11: =-(Demonstrativos!G57)/G39 -> 0.1792503499 | H11: =-(Demonstrativos!H57)/H39 -> 0.2389579468 | I11: =-(Demonstrativos!I57)/I39 -> 0.1750154719 | J11: =-(Demonstrativos!J57)/J39 -> 0.3065446397 | K11: =-(Demonstrativos!K57)/K39 -> 0.3035672347 | L11: =-(Demonstrativos!L57)/L39 ->  | M11: =-(Demonstrativos!M57)/M39 -> 
A12: Depreciação/Receitas | B12: =-Demonstrativos!B79/Demonstrativos!B45 -> 0.2682107823 | C12: =-Demonstrativos!C79/Demonstrativos!C45 -> 0.1995787895 | D12: =-Demonstrativos!D79/Demonstrativos!D45 -> 0.1846611899 | E12: =-Demonstrativos!E79/Demonstrativos!E45 -> 0 | F12: =-Demonstrativos!F79/Demonstrativos!F45 -> 0.2550951858 | G12: =-Demonstrativos!G79/Demonstrativos!G45 -> 0.2821870621 | H12: =-Demonstrativos!H79/Demonstrativos!H45 -> 0 | I12: =-Demonstrativos!I79/Demonstrativos!I45 -> 0 | J12: =-Demonstrativos!J79/Demonstrativos!J45 -> 0 | K12: =-Demonstrativos!K79/Demonstrativos!K45 -> 0 | L12: =-Demonstrativos!L79/Demonstrativos!L45 ->  | M12: =-Demonstrativos!M79/Demonstrativos!M45 -> 
A13: Investimento/Receitas | B13: =(Demonstrativos!B13+Demonstrativos!B14-Demonstrativos!C13-Demonstrativos!C14)/Demonstrativos!B45 -> 0.5126542029 | C13: =(Demonstrativos!C13+Demonstrativos!C14-Demonstrativos!D13-Demonstrativos!D14)/Demonstrativos!C45 -> -0.4382440869 | D13: =(Demonstrativos!D13+Demonstrativos!D14-Demonstrativos!E13-Demonstrativos!E14)/Demonstrativos!D45 -> 0.1968961002 | E13: =(Demonstrativos!E13+Demonstrativos!E14-Demonstrativos!F13-Demonstrativos!F14)/Demonstrativos!E45 -> 0.3182821305 | F13: =(Demonstrativos!F13+Demonstrativos!F14-Demonstrativos!G13-Demonstrativos!G14)/Demonstrativos!F45 -> -0.1377858393 | G13: =(Demonstrativos!G13+Demonstrativos!G14-Demonstrativos!H13-Demonstrativos!H14)/Demonstrativos!G45 -> 0.4710898295 | H13: =(Demonstrativos!H13+Demonstrativos!H14-Demonstrativos!I13-Demonstrativos!I14)/Demonstrativos!H45 -> 0.2470523977 | I13: =(Demonstrativos!I13+Demonstrativos!I14-Demonstrativos!J13-Demonstrativos!J14)/Demonstrativos!I45 -> 0.5505839252 | J13: =(Demonstrativos!J13+Demonstrativos!J14-Demonstrativos!K13-Demonstrativos!K14)/Demonstrativos!J45 -> 1.886356584 | K13: =(Demonstrativos!K13+Demonstrativos!K14-Demonstrativos!L13-Demonstrativos!L14)/Demonstrativos!K45 -> 1.741919496 | L13: =(Demonstrativos!L13+Demonstrativos!L14-Demonstrativos!M13-Demonstrativos!M14)/Demonstrativos!L45 ->  | M13: =(Demonstrativos!M13+Demonstrativos!M14-Demonstrativos!N13-Demonstrativos!N14)/Demonstrativos!M45 -> 
C14: =Demonstrativos!B55 -> 332597
A15: Ativo Circulante Cíclico | B15: =SUM(Demonstrativos!B6:B8) -> 1118291 | C15: =SUM(Demonstrativos!C6:C8) -> 311298 | D15: =SUM(Demonstrativos!D6:D8) -> 397676 | E15: =SUM(Demonstrativos!E6:E8) -> 252639 | F15: =SUM(Demonstrativos!F6:F8) -> 248995 | G15: =SUM(Demonstrativos!G6:G8) -> 282961 | H15: =SUM(Demonstrativos!H6:H8) -> 451714 | I15: =SUM(Demonstrativos!I6:I8) -> 359290 | J15: =SUM(Demonstrativos!J6:J8) -> 242117 | K15: =SUM(Demonstrativos!K6:K8) -> 77846 | L15: =SUM(Demonstrativos!L6:L8) -> 0 | M15: =SUM(Demonstrativos!M6:M8) -> 0
A16: Passivo Circulante Cíclico | B16: =Demonstrativos!B17-Demonstrativos!B21 -> 528818 | C16: =Demonstrativos!C17-Demonstrativos!C21 -> 254326 | D16: =Demonstrativos!D17-Demonstrativos!D21 -> 300417 | E16: =Demonstrativos!E17-Demonstrativos!E21 -> 269849 | F16: =Demonstrativos!F17-Demonstrativos!F21 -> 199878 | G16: =Demonstrativos!G17-Demonstrativos!G21 -> 154468 | H16: =Demonstrativos!H17-Demonstrativos!H21 -> 158393 | I16: =Demonstrativos!I17-Demonstrativos!I21 -> 168052 | J16: =Demonstrativos!J17-Demonstrativos!J21 -> 107708 | K16: =Demonstrativos!K17-Demonstrativos!K21 -> 32660 | L16: =Demonstrativos!L17-Demonstrativos!L21 -> 0 | M16: =Demonstrativos!M17-Demonstrativos!M21 -> 0
A17: NCG | B17: =B15-B16 -> 589473 | C17: =C15-C16 -> 56972 | D17: =D15-D16 -> 97259 | E17: -17210 | F17: 49117 | G17: 128493 | H17: 293321 | I17: 191238 | J17: 134409 | K17: 45186 | L17: 0 | M17: 0
A18: Variação NCG | B18: =B17-C17 -> 532501 | C18: =C17-D17 -> -40287 | D18: 114469 | E18: -66327 | F18: -79376 | G18: -164828 | H18: 102083 | I18: =I17-J17 -> 56829 | J18: 89223 | K18: 45186 | L18: 0
A19: Variação NCG/Receita | B19: =B18/Demonstrativos!B45 -> 0.3228196378 | C19: =C18/Demonstrativos!C45 -> -0.02626827718 | D19: =D18/Demonstrativos!D45 -> 0.08373799369 | E19: =E18/Demonstrativos!E45 -> -0.05121594136 | F19: =F18/Demonstrativos!F45 -> -0.06129203133 | G19: =G18/Demonstrativos!G45 -> -0.1392968395 | H19: =H18/Demonstrativos!H45 -> 0.1318147365 | I19: =I18/Demonstrativos!I45 -> 0.07976895651 | J19: =J18/Demonstrativos!J45 -> 0.1163239125 | K19: =K18/Demonstrativos!K45 -> 0.1599674302 | L19: =L18/Demonstrativos!L45 ->  | M19: =M18/Demonstrativos!M45 -> 
A20: Capital empregado | B20: =(Demonstrativos!B13+Demonstrativos!B14)+(B17) -> 4345820 | C20: =(Demonstrativos!C13+Demonstrativos!C14)+(C17) -> 2967680 | D20: =(Demonstrativos!D13+Demonstrativos!D14)+(D17) -> 3680091 | E20: =(Demonstrativos!E13+Demonstrativos!E14)+(E17) -> 3296467 | F20: =(Demonstrativos!F13+Demonstrativos!F14)+(F17) -> 2950604 | G20: =(Demonstrativos!G13+Demonstrativos!G14)+(G17) -> 3208419 | H20: =(Demonstrativos!H13+Demonstrativos!H14)+(H17) -> 2815813 | I20: =(Demonstrativos!I13+Demonstrativos!I14)+(I17) -> 2522402 | J20: =(Demonstrativos!J13+Demonstrativos!J14)+(J17) -> 2073326 | K20: =(Demonstrativos!K13+Demonstrativos!K14)+(K17) -> 537226 | L20: =(Demonstrativos!L13+Demonstrativos!L14)+(L17) -> 0 | M20: =(Demonstrativos!M13+Demonstrativos!M14)+(M17) -> 0
A21: Reinvestimento | B21: =IF((B17-C17)<0,0,(B17-C17))+(Demonstrativos!B13-Demonstrativos!C13)+(Demonstrativos!B14-Demonstrativos!C14)+Demonstrativos!B79 -> 935718 | C21: =IF((C17-D17)<0,0,(C17-D17))+(Demonstrativos!C13-Demonstrativos!D13)+(Demonstrativos!C14-Demonstrativos!D14)+Demonstrativos!C79 -> -978213 | D21: =IF((D17-E17)<0,0,(D17-E17))+(Demonstrativos!D13-Demonstrativos!E13)+(Demonstrativos!D14-Demonstrativos!E14)+Demonstrativos!D79 -> 131194 | E21: =IF((E17-F17)<0,0,(E17-F17))+(Demonstrativos!E13-Demonstrativos!F13)+(Demonstrativos!E14-Demonstrativos!F14)+Demonstrativos!E79 -> 412190 | F21: =IF((F17-G17)<0,0,(F17-G17))+(Demonstrativos!F13-Demonstrativos!G13)+(Demonstrativos!F14-Demonstrativos!G14)+Demonstrativos!F79 -> -508799 | G21: =IF((G17-H17)<0,0,(G17-H17))+(Demonstrativos!G13-Demonstrativos!H13)+(Demonstrativos!G14-Demonstrativos!H14)+Demonstrativos!G79 -> 223526 | H21: =IF((H17-I17)<0,0,(H17-I17))+(Demonstrativos!H13-Demonstrativos!I13)+(Demonstrativos!H14-Demonstrativos!I14)+Demonstrativos!H79 -> 293411 | I21: =IF((I17-J17)<0,0,(I17-J17))+(Demonstrativos!I13-Demonstrativos!J13)+(Demonstrativos!I14-Demonstrativos!J14)+Demonstrativos!I79 -> 449076 | J21: =IF((J17-K17)<0,0,(J17-K17))+(Demonstrativos!J13-Demonstrativos!K13)+(Demonstrativos!J14-Demonstrativos!K14)+Demonstrativos!J79 -> 1536100 | K21: =IF((K17-L17)<0,0,(K17-L17))+(Demonstrativos!K13-Demonstrativos!L13)+(Demonstrativos!K14-Demonstrativos!L14)+Demonstrativos!K79 -> 537226 | L21: =IF((L17-M17)<0,0,(L17-M17))+(Demonstrativos!L13-Demonstrativos!M13)+(Demonstrativos!L14-Demonstrativos!M14)+Demonstrativos!L79 -> 0 | M21: =IF((M17-N17)<0,0,(M17-N17))+(Demonstrativos!M13-Demonstrativos!N13)+(Demonstrativos!M14-Demonstrativos!N14)+Demonstrativos!M79 -> 0
A22: EBIT * (1-Alíquota de IR) | B22: =Demonstrativos!B55*(1-B7) -> 248703.5959 | C22: =Demonstrativos!C55*(1-C7) -> 174573.9248 | D22: =Demonstrativos!D55*(1-D7) -> 174327.7068 | E22: =Demonstrativos!E55*(1-E7) -> 170204.0139 | F22: =Demonstrativos!F55*(1-F7) -> 170204.0139 | G22: =Demonstrativos!G55*(1-G7) -> 94046.11944 | H22: =Demonstrativos!H55*(1-H7) -> 96357.61235 | I22: =Demonstrativos!I55*(1-I7) -> -39342.16288 | J22: =Demonstrativos!J55*(1-J7) -> 80913.85717 | K22: =Demonstrativos!K55*(1-K7) -> 28894.46007 | L22: =Demonstrativos!L55*(1-L7) ->  | M22: =Demonstrativos!M55*(1-M7) -> 
A24: Cresc receitas anual | B24: =Demonstrativos!B45/Demonstrativos!C45-1 -> 0.07554142827 | C24: =Demonstrativos!C45/Demonstrativos!D45-1 -> 0.1219357859 | D24: =Demonstrativos!D45/Demonstrativos!E45-1 -> 0.05555323904 | E24: =Demonstrativos!E45/Demonstrativos!F45-1 -> 0 | F24: =Demonstrativos!F45/Demonstrativos!G45-1 -> 0.09444884838 | G24: =Demonstrativos!G45/Demonstrativos!H45-1 -> 0.5279187752 | H24: =Demonstrativos!H45/Demonstrativos!I45-1 -> 0.08705959967 | I24: =Demonstrativos!I45/Demonstrativos!J45-1 -> -0.07118700637 | J24: =Demonstrativos!J45/Demonstrativos!K45-1 -> 1.715410486 | K24: =Demonstrativos!K45/Demonstrativos!L45-1 ->  | L24: =Demonstrativos!L45/Demonstrativos!M45-1 -> 
A25: Cresc custos anual | B25: =(Demonstrativos!B46/Demonstrativos!C46)-1 -> 0.09448917227 | C25: =(Demonstrativos!C46/Demonstrativos!D46)-1 -> 0.09957008919 | D25: =(Demonstrativos!D46/Demonstrativos!E46)-1 -> 0.1057673199 | E25: =(Demonstrativos!E46/Demonstrativos!F46)-1 -> 0 | F25: =(Demonstrativos!F46/Demonstrativos!G46)-1 -> -8.149367866e-05 | G25: =(Demonstrativos!G46/Demonstrativos!H46)-1 -> 0.4061496827 | H25: =(Demonstrativos!H46/Demonstrativos!I46)-1 -> 0.0215817301 | I25: =(Demonstrativos!I46/Demonstrativos!J46)-1 -> 0.1771580561 | J25: =(Demonstrativos!J46/Demonstrativos!K46)-1 -> 1.564363721 | K25: =(Demonstrativos!K46/Demonstrativos!L46)-1 ->  | L25: =(Demonstrativos!L46/Demonstrativos!M46)-1 -> 
A26: Cresc desp anual | B26: =(Demonstrativos!B48/Demonstrativos!C48)-1 -> -0.3775730259 | C26: =(Demonstrativos!C48/Demonstrativos!D48)-1 -> 0.3593097332 | D26: =(Demonstrativos!D48/Demonstrativos!E48)-1 -> -0.09700511679 | E26: =(Demonstrativos!E48/Demonstrativos!F48)-1 -> 0 | F26: =(Demonstrativos!F48/Demonstrativos!G48)-1 -> 0.03293046399 | G26: =(Demonstrativos!G48/Demonstrativos!H48)-1 -> 2.751012577 | H26: =(Demonstrativos!H48/Demonstrativos!I48)-1 -> -0.665146492 | I26: =(Demonstrativos!I48/Demonstrativos!J48)-1 -> 0.09677531599 | J26: =(Demonstrativos!J48/Demonstrativos!K48)-1 -> 2.56677009 | K26: =(Demonstrativos!K48/Demonstrativos!L48)-1 ->  | L26: =(Demonstrativos!L48/Demonstrativos!M48)-1 -> 
A27: Cresc custos + despesas anual | B27: =(Demonstrativos!B46+Demonstrativos!B48)/(Demonstrativos!C46+Demonstrativos!C48)-1 -> 0.02100491456 | C27: =(Demonstrativos!C46+Demonstrativos!C48)/(Demonstrativos!D46+Demonstrativos!D48)-1 -> 0.1332795618 | D27: =(Demonstrativos!D46+Demonstrativos!D48)/(Demonstrativos!E46+Demonstrativos!E48)-1 -> 0.07445427606 | E27: =(Demonstrativos!E46+Demonstrativos!E48)/(Demonstrativos!F46+Demonstrativos!F46)-1 -> -0.4086867061 | F27: =(Demonstrativos!F46+Demonstrativos!F48)/(Demonstrativos!G46+Demonstrativos!G48)-1 -> 0.004877914582 | G27: =(Demonstrativos!G46+Demonstrativos!G48)/(Demonstrativos!H46+Demonstrativos!H48)-1 -> 0.5518932368 | H27: =(Demonstrativos!H46+Demonstrativos!H48)/(Demonstrativos!I46+Demonstrativos!I48)-1 -> -0.09391528216 | I27: =(Demonstrativos!I46+Demonstrativos!I48)/(Demonstrativos!J46+Demonstrativos!J48)-1 -> 0.1628247864 | J27: =(Demonstrativos!J46+Demonstrativos!J48)/(Demonstrativos!K46+Demonstrativos!K48)-1 -> 1.6996516 | K27: =(Demonstrativos!K46+Demonstrativos!K48)/(Demonstrativos!L46+Demonstrativos!L48)-1 ->  | L27: =(Demonstrativos!L46+Demonstrativos!L48)/(Demonstrativos!M46+Demonstrativos!M48)-1 -> 
A29: ROCE | B29: =B22/B20 -> 0.05722823217 | C29: 0.05882505014 | D29: 0.04737048806 | E29: 0.05163225171 | F29: 0.05768446524 | G29: 0.02931229351 | H29: 0.03422017454 | I29: -0.01559710264 | J29: 0.03902611416 | K29: 0.05378455262
A30: ROE | B30: =Demonstrativos!B62/Demonstrativos!B33 -> 0.05043416694 | C30: =Demonstrativos!C62/Demonstrativos!C33 -> 0.06503088703 | D30: =Demonstrativos!D62/Demonstrativos!D33 -> 0.06027324353 | E30: =Demonstrativos!E62/Demonstrativos!E33 -> 0.0702768539 | F30: =Demonstrativos!F62/Demonstrativos!F33 -> 0.07283799321 | G30: =Demonstrativos!G62/Demonstrativos!G33 -> 0.05551403563 | H30: =Demonstrativos!H62/Demonstrativos!H33 -> -0.04510042399 | I30: =Demonstrativos!I62/Demonstrativos!I33 -> -0.02945473072 | J30: =Demonstrativos!J62/Demonstrativos!J33 -> 0.03990552031 | K30: =Demonstrativos!K62/Demonstrativos!K33 -> 0.05749075216 | L30: =Demonstrativos!L62/Demonstrativos!L33 ->  | M30: =Demonstrativos!M62/Demonstrativos!M33 -> 
A31: ROA | B31: =B22/Demonstrativos!B2 -> 0.03491243184 | C31: =C22/Demonstrativos!C2 -> 0.03464871058 | D31: =D22/Demonstrativos!D2 -> 0.03094697366 | E31: =E22/Demonstrativos!E2 -> 0.03555422526 | F31: =F22/Demonstrativos!F2 -> 0.04318081728 | G31: =G22/Demonstrativos!G2 -> 0.02293769748 | H31: =H22/Demonstrativos!H2 -> 0.02838478788 | I31: =I22/Demonstrativos!I2 -> -0.01348894351 | J31: =J22/Demonstrativos!J2 -> 0.03061525641 | K31: =K22/Demonstrativos!K2 -> 0.04482666296 | L31: =L22/Demonstrativos!L2 ->  | M31: =M22/Demonstrativos!M2 -> 
A32: Vendas/Capital | B32: =Demonstrativos!B45/Indicadores!B20 -> 0.3795672623 | C32: =Demonstrativos!C45/Indicadores!C20 -> 0.5167925787 | D32: =Demonstrativos!D45/Indicadores!D20 -> 0.3714554885 | E32: =Demonstrativos!E45/Indicadores!E20 -> 0.3928587788 | F32: =Demonstrativos!F45/Indicadores!F20 -> 0.4389087794 | G32: =Demonstrativos!G45/Indicadores!G20 -> 0.368806568 | H32: =Demonstrativos!H45/Indicadores!H20 -> 0.2750335338 | I32: =Demonstrativos!I45/Indicadores!I20 -> 0.2824371373 | J32: =Demonstrativos!J45/Indicadores!J20 -> 0.3699476107 | K32: =Demonstrativos!K45/Indicadores!K20 -> 0.5257936139 | L32: =Demonstrativos!L45/Indicadores!L20 ->  | M32: =Demonstrativos!M45/Indicadores!M20 -> 
A34: Elementos para o cálculo da dívida líquida
A35: Disponível | B35: =Demonstrativos!B4 -> 345548 | C35: =Demonstrativos!C4 -> 551359 | D35: =Demonstrativos!D4 -> 634290 | E35: =Demonstrativos!E4 -> 410567 | F35: =Demonstrativos!F4 -> 222219 | G35: =Demonstrativos!G4 -> 130634 | H35: =Demonstrativos!H4 -> 190063 | I35: =Demonstrativos!I4 -> 72534 | J35: =Demonstrativos!J4 -> 366964 | K35: =Demonstrativos!K4 -> 36758 | L35: =Demonstrativos!L4 -> 0 | M35: =Demonstrativos!M4 -> 0
A36: Aplicações financeiras | B36: =Demonstrativos!B5 -> 306407 | C36: =Demonstrativos!C5 -> 0 | D36: =Demonstrativos!D5 -> 0 | E36: =Demonstrativos!E5 -> 0 | F36: =Demonstrativos!F5 -> 0 | G36: =Demonstrativos!G5 -> 0 | H36: =Demonstrativos!H5 -> 0 | I36: =Demonstrativos!I5 -> 0 | J36: =Demonstrativos!J5 -> 0 | K36: =Demonstrativos!K5 -> 0 | L36: =Demonstrativos!L5 -> 0 | M36: =Demonstrativos!M5 -> 0
A37: Investimentos | B37: =Demonstrativos!B13 -> 3268061 | C37: =Demonstrativos!C12 -> 537764 | D37: =Demonstrativos!D12 -> 11488 | E37: =Demonstrativos!E12 -> 8262 | F37: =Demonstrativos!F12 -> 0 | G37: =Demonstrativos!G12 -> 0 | H37: =Demonstrativos!H12 -> 3482 | I37: =Demonstrativos!I12 -> 167 | J37: =Demonstrativos!J12 -> 142 | K37: =Demonstrativos!K12 -> 60 | L37: =Demonstrativos!L12 -> 0 | M37: =Demonstrativos!M12 -> 0
A38: Dívida | B38: =Demonstrativos!B21+Demonstrativos!B27 -> 3562115 | C38: =Demonstrativos!C21+Demonstrativos!C27 -> 1590821 | D38: =Demonstrativos!D21+Demonstrativos!D27 -> 1981926 | E38: =Demonstrativos!E21+Demonstrativos!E27 -> 1232369 | F38: =Demonstrativos!F21+Demonstrativos!F27 -> 711693 | G38: =Demonstrativos!G21+Demonstrativos!G27 -> 955139 | H38: =Demonstrativos!H21+Demonstrativos!H27 -> 1131601 | I38: =Demonstrativos!I21+Demonstrativos!I27 -> 554398 | J38: =Demonstrativos!J21+Demonstrativos!J27 -> 322803 | K38: =Demonstrativos!K21+Demonstrativos!K27 -> 115023 | L38: =Demonstrativos!L21+Demonstrativos!L27 -> 0 | M38: =Demonstrativos!M21+Demonstrativos!M27 -> 0
A39: Nova dívida líquida do caixa excedente | B39: =IF((B38-B37-B36)<=0,0,B38-B37-B36) -> 0 | C39: =IF((C38-C37-C36)<=0,0,C38-C37-C36) -> 1053057 | D39: 1970438 | E39: =IF((E38-E37-E36)<=0,0,E38-E37-E36) -> 1224107 | F39: 711693 | G39: 955139 | H39: 1128119 | I39: 554231 | J39: 322661 | K39: 114963 | L39: 0 | M39: 0
A41: Giro do Ativo | B41: =Demonstrativos!B45/Demonstrativos!B2 -> 0.2315573218 | C41: =Demonstrativos!C45/Demonstrativos!C2 -> 0.3043974709 | D41: =Demonstrativos!D45/Demonstrativos!D2 -> 0.2426705674 | E41: =Demonstrativos!E45/Demonstrativos!E2 -> 0.2705245085 | F41: =Demonstrativos!F45/Demonstrativos!F2 -> 0.3285536188 | G41: =Demonstrativos!G45/Demonstrativos!G2 -> 0.2886015549 | H41: =Demonstrativos!H45/Demonstrativos!H2 -> 0.2281335096 | I41: =Demonstrativos!I45/Demonstrativos!I2 -> 0.2442619427 | J41: =Demonstrativos!J45/Demonstrativos!J2 -> 0.2902169792 | K41: =Demonstrativos!K45/Demonstrativos!K2 -> 0.4382219795 | L41: =Demonstrativos!L45/Demonstrativos!L2 ->  | M41: =Demonstrativos!M45/Demonstrativos!M2 -> 
A42: Prazo Médio de Pagamento de Fornecedores | B42: =(Demonstrativos!B19/-Demonstrativos!B46)*360 -> 46.07278768 | C42: =(Demonstrativos!C19/-Demonstrativos!C46)*360 -> 21.29774777 | D42: =(Demonstrativos!D19/-Demonstrativos!D46)*360 -> 35.70602097 | E42: =(Demonstrativos!E19/-Demonstrativos!E46)*360 -> 30.80913072 | F42: =(Demonstrativos!F19/-Demonstrativos!F46)*360 -> 24.55566695 | G42: =(Demonstrativos!G19/-Demonstrativos!G46)*360 -> 29.80873545 | H42: =(Demonstrativos!H19/-Demonstrativos!H46)*360 -> 43.03333694 | I42: =(Demonstrativos!I19/-Demonstrativos!I46)*360 -> 32.15899086 | J42: =(Demonstrativos!J19/-Demonstrativos!J46)*360 -> 37.69515381 | K42: =(Demonstrativos!K19/-Demonstrativos!K46)*360 -> 23.80702502 | L42: =(Demonstrativos!L19/-Demonstrativos!L46)*360 ->  | M42: =(Demonstrativos!M19/-Demonstrativos!M46)*360 -> 
A43: Prazo Médio de Recebimento das Vendas | B43: =(Demonstrativos!B6/Demonstrativos!B45)*360 -> 43.01760925 | C43: =(Demonstrativos!C6/Demonstrativos!C45)*360 -> 16.92546335 | D43: =(Demonstrativos!D6/Demonstrativos!D45)*360 -> 16.50350039 | E43: =(Demonstrativos!E6/Demonstrativos!E45)*360 -> 10.67424632 | F43: =(Demonstrativos!F6/Demonstrativos!F45)*360 -> 16.58804398 | G43: =(Demonstrativos!G6/Demonstrativos!G45)*360 -> 12.66479955 | H43: =(Demonstrativos!H6/Demonstrativos!H45)*360 -> 21.17113848 | I43: =(Demonstrativos!I6/Demonstrativos!I45)*360 -> 47.61376716 | J43: =(Demonstrativos!J6/Demonstrativos!J45)*360 -> 10.65794723 | K43: =(Demonstrativos!K6/Demonstrativos!K45)*360 -> 16.21382802 | L43: =(Demonstrativos!L6/Demonstrativos!L45)*360 ->  | M43: =(Demonstrativos!M6/Demonstrativos!M45)*360 -> 
A44: Dias de vendas em caixa | B44: =(Demonstrativos!B4+Demonstrativos!B5)/Demonstrativos!B45*360 -> 142.2851708 | C44: =(Demonstrativos!C4+Demonstrativos!C5)/Demonstrativos!C45*360 -> 129.420666 | D44: =(Demonstrativos!D4+Demonstrativos!D5)/Demonstrativos!D45*360 -> 167.0417487 | E44: =(Demonstrativos!E4+Demonstrativos!E5)/Demonstrativos!E45*360 -> 114.1304015 | F44: =(Demonstrativos!F4+Demonstrativos!F5)/Demonstrativos!F45*360 -> 61.77297177 | G44: =(Demonstrativos!G4+Demonstrativos!G5)/Demonstrativos!G45*360 -> 39.7437644 | H44: =(Demonstrativos!H4+Demonstrativos!H5)/Demonstrativos!H45*360 -> 88.35082763 | I44: =(Demonstrativos!I4+Demonstrativos!I5)/Demonstrativos!I45*360 -> 36.65287331 | J44: =(Demonstrativos!J4+Demonstrativos!J5)/Demonstrativos!J45*360 -> 172.2337039 | K44: =(Demonstrativos!K4+Demonstrativos!K5)/Demonstrativos!K45*360 -> 46.847028 | L44: =(Demonstrativos!L4+Demonstrativos!L5)/Demonstrativos!L45*360 ->  | M44: =(Demonstrativos!M4+Demonstrativos!M5)/Demonstrativos!M45*360 -> 
A45: Capital Circulante Líquido | B45: =Demonstrativos!B3-Demonstrativos!B17 -> 546914 | C45: =Demonstrativos!C3-Demonstrativos!C17 -> 168687 | D45: =Demonstrativos!D3-Demonstrativos!D17 -> 368020 | E45: =Demonstrativos!E3-Demonstrativos!E17 -> 145853 | F45: =Demonstrativos!F3-Demonstrativos!F17 -> 130354 | G45: =Demonstrativos!G3-Demonstrativos!G17 -> -67619 | H45: =Demonstrativos!H3-Demonstrativos!H17 -> 82269 | I45: =Demonstrativos!I3-Demonstrativos!I17 -> 119011 | J45: =Demonstrativos!J3-Demonstrativos!J17 -> 391225 | K45: =Demonstrativos!K3-Demonstrativos!K17 -> 47400 | L45: =Demonstrativos!L3-Demonstrativos!L17 -> 0 | M45: =Demonstrativos!M3-Demonstrativos!M17 -> 0
A46: Giro do estoque | B46: =IF(ISERR(-Demonstrativos!B46/Demonstrativos!B7),0,-Demonstrativos!B46/Demonstrativos!B7) -> 1.813115103 | C46: =IF(ISERR(-Demonstrativos!C46/Demonstrativos!C7),0,-Demonstrativos!C46/Demonstrativos!C7) -> 10.92793353 | D46: =IF(ISERR(-Demonstrativos!D46/Demonstrativos!D7),0,-Demonstrativos!D46/Demonstrativos!D7) -> 6.662392961 | E46: =IF(ISERR(-Demonstrativos!E46/Demonstrativos!E7),0,-Demonstrativos!E46/Demonstrativos!E7) -> 6.520123749 | F46: =IF(ISERR(-Demonstrativos!F46/Demonstrativos!F7),0,-Demonstrativos!F46/Demonstrativos!F7) -> 6.438988972 | G46: =IF(ISERR(-Demonstrativos!G46/Demonstrativos!G7),0,-Demonstrativos!G46/Demonstrativos!G7) -> 8.525587947 | H46: =IF(ISERR(-Demonstrativos!H46/Demonstrativos!H7),0,-Demonstrativos!H46/Demonstrativos!H7) -> 2.149232129 | I46: =IF(ISERR(-Demonstrativos!I46/Demonstrativos!I7),0,-Demonstrativos!I46/Demonstrativos!I7) -> 3.591550756 | J46: =IF(ISERR(-Demonstrativos!J46/Demonstrativos!J7),0,-Demonstrativos!J46/Demonstrativos!J7) -> 3.136574101 | K46: =IF(ISERR(-Demonstrativos!K46/Demonstrativos!K7),0,-Demonstrativos!K46/Demonstrativos!K7) -> 4.083578785 | L46: =IF(ISERR(-Demonstrativos!L46/Demonstrativos!L7),0,-Demonstrativos!L46/Demonstrativos!L7) -> 0 | M46: =IF(ISERR(-Demonstrativos!M46/Demonstrativos!M7),0,-Demonstrativos!M46/Demonstrativos!M7) -> 0
A48: Liquidez Corrente | B48: =Demonstrativos!B3/Demonstrativos!B17 -> 1.447069152 | C48: =Demonstrativos!C3/Demonstrativos!C17 -> 1.243075349 | D48: =Demonstrativos!D3/Demonstrativos!D17 -> 1.554292066 | E48: =Demonstrativos!E3/Demonstrativos!E17 -> 1.281921628 | F48: =Demonstrativos!F3/Demonstrativos!F17 -> 1.382426803 | G48: =Demonstrativos!G3/Demonstrativos!G17 -> 0.8594824756 | H48: =Demonstrativos!H3/Demonstrativos!H17 -> 1.147038112 | I48: =Demonstrativos!I3/Demonstrativos!I17 -> 1.380454137 | J48: =Demonstrativos!J3/Demonstrativos!J17 -> 2.795796306 | K48: =Demonstrativos!K3/Demonstrativos!K17 -> 1.70531516 | L48: =Demonstrativos!L3/Demonstrativos!L17 ->  | M48: =Demonstrativos!M3/Demonstrativos!M17 -> 
A49: Liquidez Seca | B49: =(Demonstrativos!B3-Demonstrativos!B7)/Demonstrativos!B17 -> 0.9096761958 | C49: =(Demonstrativos!C3-Demonstrativos!C7)/Demonstrativos!C17 -> 1.099469718 | D49: =(Demonstrativos!D3-Demonstrativos!D7)/Demonstrativos!D17 -> 1.330386809 | E49: =(Demonstrativos!E3-Demonstrativos!E7)/Demonstrativos!E17 -> 1.016387264 | F49: =(Demonstrativos!F3-Demonstrativos!F7)/Demonstrativos!F17 -> 0.9743237693 | G49: =(Demonstrativos!G3-Demonstrativos!G7)/Demonstrativos!G17 -> 0.6411409477 | H49: =(Demonstrativos!H3-Demonstrativos!H7)/Demonstrativos!H17 -> 0.6172798244 | I49: =(Demonstrativos!I3-Demonstrativos!I7)/Demonstrativos!I17 -> 0.8254100693 | J49: =(Demonstrativos!J3-Demonstrativos!J7)/Demonstrativos!J17 -> 2.020559452 | K49: =(Demonstrativos!K3-Demonstrativos!K7)/Demonstrativos!K17 -> 0.9525772275 | L49: =(Demonstrativos!L3-Demonstrativos!L7)/Demonstrativos!L17 ->  | M49: =(Demonstrativos!M3-Demonstrativos!M7)/Demonstrativos!M17 -> 
A50: Liquidez Geral | B50: =Demonstrativos!B2/(Demonstrativos!B17+Demonstrativos!B25) -> 1.5359773 | C50: =Demonstrativos!C2/(Demonstrativos!C17+Demonstrativos!C25) -> 1.700756538 | D50: =Demonstrativos!D2/(Demonstrativos!D17+Demonstrativos!D25) -> 1.594655672 | E50: =Demonstrativos!E2/(Demonstrativos!E17+Demonstrativos!E25) -> 1.732918032 | F50: =Demonstrativos!F2/(Demonstrativos!F17+Demonstrativos!F25) -> 1.982553823 | G50: =Demonstrativos!G2/(Demonstrativos!G17+Demonstrativos!G25) -> 1.871598597 | H50: =Demonstrativos!H2/(Demonstrativos!H17+Demonstrativos!H25) -> 1.884633321 | I50: =Demonstrativos!I2/(Demonstrativos!I17+Demonstrativos!I25) -> 2.314693817 | J50: =Demonstrativos!J2/(Demonstrativos!J17+Demonstrativos!J25) -> 2.742093823 | K50: =Demonstrativos!K2/(Demonstrativos!K17+Demonstrativos!K25) -> 2.291814516 | L50: =Demonstrativos!L2/(Demonstrativos!L17+Demonstrativos!L25) ->  | M50: =Demonstrativos!M2/(Demonstrativos!M17+Demonstrativos!M25) -> 
A51: Liquidez Imediada | B51: =(Demonstrativos!B4+Demonstrativos!B5)/Demonstrativos!B17 -> 0.5329338234 | C51: =(Demonstrativos!C4+Demonstrativos!C5)/Demonstrativos!C17 -> 0.7944997622 | D51: =(Demonstrativos!D4+Demonstrativos!D5)/Demonstrativos!D17 -> 0.9553337169 | E51: =(Demonstrativos!E4+Demonstrativos!E5)/Demonstrativos!E17 -> 0.7935916096 | F51: =(Demonstrativos!F4+Demonstrativos!F5)/Demonstrativos!F17 -> 0.6519362788 | G51: =(Demonstrativos!G4+Demonstrativos!G5)/Demonstrativos!G17 -> 0.2714675799 | H51: =(Demonstrativos!H4+Demonstrativos!H5)/Demonstrativos!H17 -> 0.3396966621 | I51: =(Demonstrativos!I4+Demonstrativos!I5)/Demonstrativos!I17 -> 0.2318765524 | J51: =(Demonstrativos!J4+Demonstrativos!J5)/Demonstrativos!J17 -> 1.684433754 | K51: =(Demonstrativos!K4+Demonstrativos!K5)/Demonstrativos!K17 -> 0.5469614904 | L51: =(Demonstrativos!L4+Demonstrativos!L5)/Demonstrativos!L17 ->  | M51: =(Demonstrativos!M4+Demonstrativos!M5)/Demonstrativos!M17 -> 

Sheet Custo_de_capital_Empresa
B1: Não modifique os valores desta planilha. Use a aba "Parâmetros de Entrada"
B2: PASSO 1
B3: Cálculo do custo da dívida (Kd)
B4: Esses valores representam o custo da dívida bruta. Alternativamente, seria interessante calcularmos a dívida líquida, ou seja: dívida bruta – excedente de caixa. O excedente de caixa são as aplicações financeiras, as disponibilidades e os investimentos de curto prazo que possuem liquidez, mas não instantaneamente. Alternativamente, conforme Tinoco et al. página 98, o custo da dívida pode também ser estimado da seguinte forma: Kd = Rf + Spread de Risco de crédito + Risco país
C8: Parâmetros
B9: 1-Cálculo do custo da dívida (Kd) (Contábil - histórico) | C9: =AVERAGE(OFFSET(Indicadores!B10,0,0,1,D9)) -> 0.1310587417 | D9: =Parametros_de_entrada!C11 -> 5 | E9: <-Média dos últimos anos, como na célula ao lado
B10: 2-Cálculo do custo da dívida (Kd) (Contábil - dívida líquida) | C10: =AVERAGE(OFFSET(Indicadores!B11,0,0,1,D10)) ->  | D10: =Parametros_de_entrada!C12 -> 5 | E10: <-Média dos últimos anos, como na célula ao lado
B11: 3-Custo da dívida para empresas de capital aberto (nominal em R$) | C11: =C12*(1+F44)/(1+F45) -> 0.1608424842
B12: Custo da dívida para empresas de capital aberto (em US$) | C12: =C13+C15+C19 -> 0.152
B13: =B24 -> US T-Bond (Rf) | C13: =Parametros_de_entrada!C18 -> 0.02
B14: Tipo de empresa (1=grande, 2= financeira; 3=pequena) | C14: =Parametros_de_entrada!C7 -> 1
B15: Prêmio de risco da empresa | C15: =IF(C14=1,VLOOKUP(C16,'Níveis de risco corporativo'!A6:D20,4),(IF(C14=2,VLOOKUP(C16,'Níveis de risco corporativo'!F6:I20,4),VLOOKUP(C16,'Níveis de risco corporativo'!K6:N20,4)))) -> 0.08
B16: Cobertura dos Juros | C16: =C17/C18 -> 0.7723354651
B17: EBIT | C17: =Parametros_de_entrada!C13 -> 332597
B18: Juros | C18: =Parametros_de_entrada!C14 -> 430638
B19: Country Default Spread (CDS) | C19: =C25 -> 0.052
B20: Alíquota marginal de IR+CSLL | C20: =Analise_Fundamentalista!C6 -> 0.2631439544
B22: Cálculo do custo do capital próprio (Ke)
C23: Parâmetros
B24: US T-Bond (Rf) | C24: =Parametros_de_entrada!C18 -> 0.02
B25: Country Default Spread (CDS) | C25: =Parametros_de_entrada!C19 -> 0.052
B26: Índice de volatilidade | C26: =Parametros_de_entrada!C20 -> 1.858813701
B27: Coeficientes Beta | C27: =Parametros_de_entrada!C21 -> 2
B28: 1. Beta desalavancado da empresa - Desde o IPO | C28: =Parametros_de_entrada!C22 -> 0.5109369056
B29: 2. Beta desalavancado do setor (βo) - Damodaran Developing countries | C29: =Parametros_de_entrada!C23 -> 1.05
B30: Fonte: www.damodaran.com
C31: Parâmetros
B32: Relação D/(D+CP) | C32: =IF(Parametros_de_entrada!C26=1,C33,IF(Parametros_de_entrada!C26=2,C34,IF(Parametros_de_entrada!C26=3,C35,C36))) -> 0.3211209346
B33: 1-Média móvel dos últimos 5 anos de empresas do setor | C33: =Parametros_de_entrada!C27 -> 0.568
B34: 2- Endividamento médio mercados emergentes (Damodaran) | C34: =Parametros_de_entrada!C28 -> 0.2446
B35: 3- Endividamento histórico da empresa em análise | C35: =Parametros_de_entrada!C29 -> 0.3211209346
B36: 4- Outro valor | C36: =Parametros_de_entrada!C30 -> 0
B37: Relação D/CP (opções 1 a 4, acima) | C37: =C32/(1-C32) -> 0.4730164045 | D37: =D/(D+CP) / [1- D/(D+CP)]
B38: Relação D/CP (a valor de mercado - vide WACC modo 3, abaixo) | C38: =(D90/D91)/(1-(D90/D91)) -> 0 | D38: =D/(D+CP) / [1- D/(D+CP)], a valor de mercado
B39: Beta Alavancado - D/CP Histórico (vide WACC, modo 2) | C39: =IF(C27=1,C28*(1+(1-$C$20)*C37),C29*(1+(1-$C$20)*C37)) -> 1.415972247
B40: Beta Alavancado - D/CP a valor de mercado (vide WACC, modo 3) | C40: =IF(C27=1,C28*(1+(1-$C$20)*C38),C29*(1+(1-$C$20)*C38)) -> 1.05
B41: US Risk Premium | C41: =Parametros_de_entrada!C31 -> 0.0406
C43: Wacc - Modo 2 | D43: Wacc - Modo 3 | F43: Parâmetros
B44: Kcp nominal US$ | C44: =C24+C25*C26+C39*C41 -> 0.1741467857 | D44: =C24+C25*C26+C40*C41 -> 0.1592883124 | E44: Inflação BRASIL | F44: =Parametros_de_entrada!C34 -> 0.07933772298
B45: KCp nominal R$ | C45: =C44*((1+F44)/(1+F45)) -> 0.1842776423 | D45: =D44*((1+F44)/(1+F45)) -> 0.1685547887 | E45: Inflação EUA | F45: =Parametros_de_entrada!C35 -> 0.02
B46: KCp real R$ | C46: =(1+C45)/(1+F44)-1 -> 0.09722621295 | D46: =(1+D45)/(1+F44)-1 -> 0.08265908233 | E46: Fonte: http://www.portalbrasil.net/ipca.htm
B48: O custo médio ponderado do capital (WACC) é uma média ponderada dos custos das diversas fontes de recursos que financiam os ativos da empresa. O enfoque do CMPC parte da idéia de que o projeto é financiado simultaneamente com capital próprio e capital de terceiros; portanto, o CMPC é igual à soma das rentabilidades médias dessas fontes de recursos, ponderadas pela participação de cada fonte no financiamento total. Essa média ponderada é a seguinte:
B57: onde:
B58: K = custo médio ponderado do capital;
B59: Kcp = custo do capital próprio;
B60: Kd = custo da dívida;
B61: D= valor da dívida (passivo oneroso);
B62: PL= valor do patrimônio líquido;
B63: AT= ativo total;
B64: T= alíquota de imposto de renda.
B66: Apresentaremos duas metodologias para o cálculo do WACC: cálculo do WACC usando o valor do patrimônio líquido e o valor da dívida líquida onerosa contábil e o cálculo do WACC usando o valor do equity e da dívida líquida onerosa contábil. Recomenda-se usar o WACC pelo valor do equity (segundo modo).
B69: Cálculo do WACC pelo valor do patrimônio líquido e passivo oneroso contábil (dívida líquida):
B70: Custo da dívida (Kd) - 1: Dívida contábil; 2: Dívida líquida; 3: Rf+Risco da empresa + CDS | D70: =IF(E70=1,C9,IF(E70=2,C10,C11)) -> 0.1608424842 | E70: =Parametros_de_entrada!D39 -> 3
B72: Modo 1 - Wacc conforme levantamento do Assaf Neto | C72: Parâmetros
B73: Wacc Assaf Neto para empresas brasileiras de capital aberto | C73: =(1+C74)/(1+F44)-1 -> 0.04415881703 | D73: --> Real R$
B74: Wacc Assaf Neto para empresas brasileiras de capital aberto | C74: =INDEX('Wacc Brasil (Nominal)'!A1:G37,Parametros_de_entrada!C5+1,IF(Parametros_de_entrada!C43=1,5,IF(Parametros_de_entrada!C43=2,6,7))) -> 0.127 | D74: --> Nominal R$
B75: Setor escolhido | C75: =INDEX(Endividamento_Brasil!A1:P37,Parametros_de_entrada!C5+1,1) -> Cultivos da natureza
B76: Base para cálculo | C76: =INDEX(Parametros_de_entrada!B44:B46,Parametros_de_entrada!C43,1) -> Último ano
B78: Modo 2 - Wacc usando D/(D+CP) contábil | C78: Parâmetros
B79: D/(D+CP) | C79: =C32 -> 0.3211209346 | D79: =IF(D32=1,B33,IF(D32=2,B34,B35)) -> 3- Endividamento histórico da empresa em análise
B80: CP/(D+CP) | C80: =1-C79 -> 0.6788790654
B81: WACC nominal R$ | C81: =D70*C79*(1-$C$20)+C45*C80 -> 0.1631607664
B82: WACC real R$ | C82: =(1+C81)/(1+F44)-1 -> 0.07766155269
B84: Modo 3 - Wacc usando D/(D+CP) a valor de mercado | D84: Ano do valuation
C85: Quantidade de ações | D85: ="31/12/"&Parametros_de_entrada!C6 -> 31/12/2015
B86: PNA | C86: =Parametros_de_entrada!C53 -> 0 | D86: =Parametros_de_entrada!D53 -> -
B87: PNB | C87: =Parametros_de_entrada!C54 -> - | D87: =Parametros_de_entrada!D54 -> -
B88: ON | C88: =Parametros_de_entrada!C55 -> 44305119 | D88: =Parametros_de_entrada!D55 -> 35.6
B89: Market value of equity | D89: =SUMPRODUCT($C$86:$C$88,D86:D88)/1000 -> 1577262.236
B90: Dívida (líquida) | D90: =Indicadores!B39 -> 0
B91: Valor total da Empresa | D91: =SUM(D89:D90) -> 1577262.236
B92: WACC nominal R$ | D92: =D70*D90/D91*(1-$C$20)+D45*D89/D91 -> 0.1685547887
B93: WACC real R$ | D93: =(1+D92)/(1+F44)-1 -> 0.08265908233
B95: PASSO 2
B96: Os três principais e mais usados indicadores de rentabilidade são: o retorno operacional sobre os ativos (ROA — return on assets), o retorno sobre o patrimônio líquido (ROE — return on equity) e o retorno sobre o investimento (ROI — return on investment). O ROA mede a eficiência com que a administração emprega os ativos, o ROE mede a lucratividade dos recursos aplicados pelos acionistas e o ROI mede o retorno sobre o capital investido. As principais bases de comparação adotadas para a análise da rentabilidade de uma empresa são o ativo total, o patrimônio líquido, o capital investido e as receitas de vendas. Os resultados normalmente utilizados são o lucro operacional (lucro gerado pelos ativos) e o lucro líquido.
B102: A alavancagem financeira (GAF) mede o efeito sobre a rentabilidade e sobre o valor da empresa causado pelos custos fixos de obrigações de dívida. A alavancagem financeira é favorável quando os recursos de terceiros tomados pela empresa para serem aplicados nas operações rendem mais do que custam, aumentando dessa maneira o retorno dos proprietários (ROE).
B106: Resultados | C106: Parâmetros
B107: Equity Book Value (Valor contábil do Patrimônio Líquido) | C107: =Demonstrativos!B33 -> 2485795 | D107: [R$ 1.000]
B108: Debt book value (Valor contábil da dívida) | C108: =Demonstrativos!B21+Demonstrativos!B27 -> 3562115 | D108: [R$ 1.000]
B109: Ativo total | C109: =Demonstrativos!B2 -> 7123640 | D109: [R$ 1.000]
B110: Equity market value (valor de mercado das ações) | C110: =D89 -> 1577262.236 | D110: [R$ 1.000]
B111: Debt market value (dívida líquida do excendente de caixa) | C111: =D90 -> 0 | D111: [R$ 1.000]
B112: EBIT | C112: =Demonstrativos!B55 -> 332597 | D112: [R$ 1.000]
C113: Nominal | D113: Real
B114: WACC - Instituto Assaf para empresas do setor (nominal R$) | C114: =C74 -> 0.127 | D114: =C73 -> 0.04415881703 | E114: ao ano
B115: WACC - Dívida líquida | C115: =C81 -> 0.1631607664 | D115: =C82 -> 0.07766155269 | E115: ao ano
B116: WACC conforme equity de mercado | C116: =D92 -> 0.1685547887 | D116: =D93 -> 0.08265908233 | E116: ao ano
B117: Capital investido | C117: =Indicadores!B20 -> 4345820 | D117: [R$ 1.000]
B118: Nopat | C118: =Demonstrativos!B55*(1-Custo_de_capital_Empresa!C20) -> 245076.1102 | D118: [R$ 1.000]
B119: EVA (usando WACCnominal baseado em equity a valor de mercado) | C119: =(C131-C116)*C117 -> -487432.6615 | D119: [R$ 1.000]
B120: MVA | C120: =C119/C116 -> -2891835.144 | D120: [R$ 1.000]
B121: Valor da empresa [NOPAT * (1-Taxa de reinvestimento)] / (Wacc - g) | C121: =C118*(1-C133)/(D116-C132) -> 2964902.383 | D121: [R$ 1.000]
B122: Valor da empresa/EBIT | C122: =C121/C112 -> 8.914399058
B123: Valor da empresa/Capital Investido | C123: =C121/C117 -> 0.6822423348
B124: Valor patrimonial (contábil) | C124: =Demonstrativos!B33 -> 2485795 | D124: [R$ 1.000]
B125: Valor de mercado da empresa | C125: =D91 -> 1577262.236 | D125: [R$ 1.000]
B126: Valor do Equity (Market value of equity) | C126: =D89 -> 1577262.236 | D126: [R$ 1.000]
B127: P/L | C127: =D88/C128 -> 12.5809589
B128: LPA | C128: =Demonstrativos!B62/SUM(C86:C88)*1000 -> 2.829673023
B129: ROA | C129: =C118/C109 -> 0.03440321383
B130: ROE | C130: =Indicadores!B30 -> 0.05043416694
B131: ROCE ou ROI | C131: =C118/C117 -> 0.05639352532
B132: g (taxa de crescimento do fluxo de caixa livre) | C132: =Parametros_de_entrada!C57 -> 0
B133: Taxa de reinvestimento do fluxo de caixa livre - TR | C133: =Parametros_de_entrada!C58 -> 0
B134: GAF | C134: =C130/C129 -> 1.465972545

Sheet Tornado
D2: [R$/ação] | F2: Rótulo de dados
D3: P90 | E3: P10 | F3: P90 | G3: P10
C4: Nopat/Receitas | D4: 75.76955387 | E4: 113.9189627 | F4: -0.3 | G4: 0.3
C5: Investimentos/Receitas | D5: 82.41898372 | E5: 107.2695329 | F5: 0.3 | G5: -0.3
C6: ∆NCG/Receitas | D6: 100.7302711 | E6: 88.95824546 | F6: 0.3 | G6: -0.3
C7: Depreciação/Receitas | D7: 66.93323357 | E7: 122.755283 | F7: -0.3 | G7: 0.3 | J7: Base R$/ação | L7: =Resumo!H3 -> 15.17106386
C8: Cresc vendas | D8: 76.84910166 | E8: 115.7534625 | F8: -0.3 | G8: 0.3
D10: =(1+Analise_Fundamentalista!C4)/(1+Parametros_de_entrada!C34)-1 -> -0.01573630612
C13: =Demonstrativos!B55 -> 332597
C14: =-Demonstrativos!B57 -> 430638
F29: =Parametros_de_entrada!C55 -> 44305119

Sheet Monte_Carlo
A1: Estimativa do valor da Ação | R1: Classes | S1: 20 | T1: Altura (range/classes) | U1: =(H9-H10)/S1 -> 21.33029379 | V1: 1
A2: Simulação de Monte Carlo sobre FC Descontado | R2: =H10+U1 -> -350.7578907 | S2: =FREQUENCY(BL25:BL5025,R2:R23) -> 1 | T2: =S2/SUM($S$2:$S$22) -> 0.000199960008 | U2: =SUM($T$2:T2) -> 0.000199960008 | V2: 2 | W2: =R2 -> -350.7578907
A3: (Valores de entrada nas células azuis) | R3: =R2+$U$1 -> -329.4275969 | S3: 1 | T3: =S3/SUM($S$2:$S$22) -> 0.000199960008 | U3: =SUM($T$2:T3) -> 0.000399920016 | V3: 3 | W3: =R3 -> -329.4275969
R4: =R3+$U$1 -> -308.0973031 | S4: 1 | T4: 0.000199960008 | U4: =SUM($T$2:T4) -> 0.000599880024 | V4: 4 | W4: -308.0973031
R5: =R4+$U$1 -> -286.7670093 | S5: 7 | T5: 0.001399720056 | U5: =SUM($T$2:T5) -> 0.00199960008 | V5: 5 | W5: -286.7670093
B6: Distrib cumulativa? | C6: TRUE | D6: Verdadeiro/Falso | F6: Resultados ($ milhões) | R6: -265.4367155 | S6: 9 | T6: 0.001799640072 | U6: =SUM($T$2:T6) -> 0.003799240152 | V6: 6 | W6: -265.4367155
F7: VPL médio | H7: =AVERAGE(BL25:BL5025) -> -69.25415174 | I7: =NORMDIST(H7,$H$7,$H$8,$C$6) -> 0.5 | R7: -244.1064217 | S7: 21 | T7: 0.004199160168 | U7: =SUM($T$2:T7) -> 0.00799840032 | V7: 7 | W7: -244.1064217
B8: Valor base - R$/ação | D8: =BL25 -> 15.17106386 | F8: Desv padrão do VPL | H8: =_xlfn.STDEV.S(BL25:BL5025) -> 57.45840809 | R8: -222.7761279 | S8: 31 | T8: 0.006198760248 | U8: =SUM($T$2:T8) -> 0.01419716057 | V8: 8 | W8: -222.7761279
B9: Cresc. das receitas | F9: VPL máximo | H9: =MAX(BL25:BL5025) -> 54.51769139 | R9: -201.4458341 | S9: 59 | T9: 0.01179764047 | U9: =SUM($T$2:T9) -> 0.02599480104 | V9: 9 | W9: -201.4458341
B10: Crescimento esperado (real) | D10: =(1+Analise_Fundamentalista!C4)/(1+Parametros_de_entrada!C34)-1 -> -0.01573630612 | F10: VPL mínimo | H10: =MIN(BL25:BL5025) -> -372.0881845 | R10: -180.1155403 | S10: 94 | T10: 0.01879624075 | U10: =SUM($T$2:T10) -> 0.04479104179 | V10: 10 | W10: -180.1155403
B11: Distribuição | D11: Lognormal | F11: "+ 1 x Desvio Padrao | H11: =H7+H8 -> -11.79574365 | I11: =NORMDIST(H11,$H$7,$H$8,$C$6) -> 0.8413447461 | R11: -158.7852465 | S11: 166 | T11: 0.03319336133 | U11: =SUM($T$2:T11) -> 0.07798440312 | V11: 11 | W11: -158.7852465
B12: Desvio -padrão | D12: =_xlfn.STDEV.S(OFFSET(Indicadores!B24,0,0,1,Analise_Fundamentalista!F4)) -> 0.05051370466 | F12: "- 1 x Desvio Padrao | H12: =H7-H8 -> -126.7125598 | I12: =NORMDIST(H12,$H$7,$H$8,$C$6) -> 0.1586552539 | R12: -137.4549527 | S12: 248 | T12: 0.04959008198 | U12: =SUM($T$2:T12) -> 0.1275744851 | V12: 12 | W12: -137.4549527
B13: Margem operacional (antes dos impostos) | F13: Prob Ação > Valor base da ação | H13: =1-NORMDIST(D8,$H$7,$H$8,TRUE) -> 0.07087199896 | R13: -116.124659 | S13: 355 | T13: 0.07098580284 | U13: =SUM($T$2:T13) -> 0.1985602879 | V13: 13 | W13: -116.124659
B14: Margem esperada | D14: =Analise_Fundamentalista!C5 -> 0.177518619 | F14: ="VaR ("&G14&")" -> VaR (0,05) | G14: 0.05 | H14: =_xlfn.NORM.INV(G14,H7,H8) -> -163.7648227 | I14: D Normal | R14: -94.79436516 | S14: 465 | T14: 0.09298140372 | U14: =SUM($T$2:T14) -> 0.2915416917 | V14: 14 | W14: -94.79436516
B15: Distribuição | D15: Uniforme | F15: ="VaR ("&G15&")" -> VaR (0,05) | G15: =G14 -> 0.05 | H15: =(G15-INDEX(U1:V22,MATCH(G15,U1:U22,1),1))*(INDEX(R1:V22,MATCH(G15,U1:U22,1)+1,1)-INDEX(R1:V22,MATCH(G15,U1:U22,1),1))/(INDEX(U1:V22,MATCH(G15,U1:U22,1)+1,1)-INDEX(U1:V22,MATCH(G15,U1:U22,1),1))+INDEX(R1:V22,MATCH(G15,U1:U22,1),1) -> -176.7682262 | I15: Amostra | R15: -73.46407137 | S15: 579 | T15: 0.1157768446 | U15: =SUM($T$2:T15) -> 0.4073185363 | V15: 15 | W15: -73.46407137
B16: Mínimo | D16: =MAX(0,D14-9%) -> 0.087518619 | R16: -52.13377758 | S16: 745 | T16: 0.148970206 | U16: =SUM($T$2:T16) -> 0.5562887423 | V16: 16 | W16: -52.13377758
B17: Máximo | D17: =D14+9% -> 0.267518619 | R17: -30.80348378 | S17: 767 | T17: 0.1533693261 | U17: =SUM($T$2:T17) -> 0.7096580684 | V17: 17 | W17: -30.80348378
B18: Investimento/receitas | R18: -9.47318999 | S18: 817 | T18: 0.1633673265 | U18: =SUM($T$2:T18) -> 0.8730253949 | V18: 18 | W18: -9.47318999
B19: Valor esperado | D19: =Analise_Fundamentalista!C13 -> 0.1473970867 | R19: 11.8571038 | S19: 471 | T19: 0.09418116377 | U19: =SUM($T$2:T19) -> 0.9672065587 | V19: 19 | W19: 11.8571038
B20: Distribuição | D20: Lognormal | R20: 33.1873976 | S20: 145 | T20: 0.02899420116 | U20: =SUM($T$2:T20) -> 0.9962007598 | V20: 20 | W20: 33.1873976
B21: Desvio-padrão | D21: =_xlfn.STDEV.S(OFFSET(Indicadores!B13,0,0,1,Analise_Fundamentalista!F13)) -> 0.4115175961 | R21: 54.51769139 | S21: 19 | T21: 0.003799240152 | U21: =SUM($T$2:T21) -> 1 | V21: 21 | W21: 54.51769139
R22: 75.84798518 | S22: 0 | T22: 0 | U22: =SUM($T$2:T22) -> 1 | V22: 22 | W22: 75.84798518
B24: Rec 1 | C24: Nopat 1 | D24: Invest 1 | E24: Dep 1 | F24: ∆NCG 1 | G24: Rec 2 | H24: Nopat 2 | I24: Invest 2 | J24: Dep 2 | K24: ∆NCG 2 | L24: Rec 3 | M24: Nopat 3 | N24: Invest 3 | O24: Dep 3 | P24: ∆NCG 3 | Q24: Rec 4 | R24: Nopat 4 | S24: Invest 4 | T24: Dep 4 | U24: ∆NCG 4 | V24: Rec 5 | W24: Nopat 5 | X24: Invest 5 | Y24: Dep 5 | Z24: ∆NCG 5 | AA24: Rec 6 | AB24: Nopat 6 | AC24: Invest 6 | AD24: Dep 6 | AE24: ∆NCG 6 | AF24: Rec 7 | AG24: Nopat 7 | AH24: Invest 7 | AI24: Dep 7 | AJ24: ∆NCG 7 | AK24: Rec 8 | AL24: Nopat 8 | AM24: Invest 8 | AN24: Dep 8 | AO24: ∆NCG 8 | AP24: Rec 9 | AQ24: Nopat 9 | AR24: Invest 9 | AS24: Dep 9 | AT24: ∆NCG 9 | AU24: Rec 10 | AV24: Nopat 10 | AW24: Invest 10 | AX24: Dep 10 | AY24: ∆NCG 10 | AZ24: FC 1 | BA24: FC 2 | BB24: FC 3 | BC24: FC 4 | BD24: FC 5 | BE24: FC 6 | BF24: FC 7 | BG24: FC 8 | BH24: FC 9 | BI24: FC 10 | BJ24: Terminal | BK24: VPL FCL | BL24: Valor por ação | BM24: Prob
A25: Base | B25: =Demonstrativos!$B$45*(1+Monte_Carlo!$D$10) -> 1623573.475 | C25: =$D$14*(1-Analise_Fundamentalista!$C$6)*B25 -> 212372.6124 | D25: =-$D$19*B25 -> -239310.0003 | E25: =Analise_Fundamentalista!$C$12*Monte_Carlo!B25 -> 264825.4377 | F25: =-Analise_Fundamentalista!$C$14*Monte_Carlo!$B$25 -> -133568.7162 | G25: =B25*(1+Monte_Carlo!$D$10) -> 1598024.426 | H25: =$D$14*(1-Analise_Fundamentalista!$C$6)*G25 -> 209030.6519 | I25: =-$D$19*G25 -> -235544.1448 | J25: =Analise_Fundamentalista!$C$12*Monte_Carlo!G25 -> 260658.0635 | K25: =-Analise_Fundamentalista!$C$14*Monte_Carlo!G25 -> -131466.838 | L25: =G25*(1+Monte_Carlo!$D$10) -> 1572877.424 | M25: =$D$14*(1-Analise_Fundamentalista!$C$6)*L25 -> 205741.2816 | N25: =-$D$19*L25 -> -231837.5501 | O25: =Analise_Fundamentalista!$C$12*Monte_Carlo!L25 -> 256556.2684 | P25: =-Analise_Fundamentalista!$C$14*Monte_Carlo!L25 -> -129398.0356 | Q25: =L25*(1+Monte_Carlo!$D$10) -> 1548126.144 | R25: =$D$14*(1-Analise_Fundamentalista!$C$6)*Q25 -> 202503.6738 | S25: =-$D$19*Q25 -> -228189.2834 | T25: =Analise_Fundamentalista!$C$12*Monte_Carlo!Q25 -> 252519.0205 | U25: =-Analise_Fundamentalista!$C$14*Monte_Carlo!Q25 -> -127361.7885 | V25: =Q25*(1+Monte_Carlo!$D$10) -> 1523764.357 | W25: =$D$14*(1-Analise_Fundamentalista!$C$6)*V25 -> 199317.014 | X25: =-$D$19*V25 -> -224598.427 | Y25: =Analise_Fundamentalista!$C$12*Monte_Carlo!V25 -> 248545.3039 | Z25: =-Analise_Fundamentalista!$C$14*Monte_Carlo!V25 -> -125357.5844 | AA25: =V25*(1+Monte_Carlo!$D$10) -> 1499785.935 | AB25: =$D$14*(1-Analise_Fundamentalista!$C$6)*AA25 -> 196180.5004 | AC25: =-$D$19*AA25 -> -221064.0774 | AD25: =Analise_Fundamentalista!$C$12*Monte_Carlo!AA25 -> 244634.1189 | AE25: =-Analise_Fundamentalista!$C$14*Monte_Carlo!AA25 -> -123384.9191 | AF25: =AA25*(1+Monte_Carlo!$D$10) -> 1476184.844 | AG25: =$D$14*(1-Analise_Fundamentalista!$C$6)*AF25 -> 193093.344 | AH25: =-$D$19*AF25 -> -217585.3454 | AI25: =Analise_Fundamentalista!$C$12*Monte_Carlo!AF25 -> 240784.4815 | AJ25: =-Analise_Fundamentalista!$C$14*Monte_Carlo!AF25 -> -121443.2962 | AK25: =AF25*(1+Monte_Carlo!$D$10) -> 1452955.147 | AL25: =$D$14*(1-Analise_Fundamentalista!$C$6)*AK25 -> 190054.7681 | AM25: =-$D$19*AK25 -> -214161.3558 | AN25: =Analise_Fundamentalista!$C$12*Monte_Carlo!AK25 -> 236995.4232 | AO25: =-Analise_Fundamentalista!$C$14*Monte_Carlo!AK25 -> -119532.2273 | AP25: =AK25*(1+Monte_Carlo!$D$10) -> 1430091 | AQ25: =$D$14*(1-Analise_Fundamentalista!$C$6)*AP25 -> 187064.0081 | AR25: =-$D$19*AP25 -> -210791.2471 | AS25: =Analise_Fundamentalista!$C$12*Monte_Carlo!AP25 -> 233265.9906 | AT25: =-Analise_Fundamentalista!$C$14*Monte_Carlo!AP25 -> -117651.2316 | AU25: =AP25*(1+Monte_Carlo!$D$10) -> 1407586.651 | AV25: =$D$14*(1-Analise_Fundamentalista!$C$6)*AU25 -> 184120.3116 | AW25: =-$D$19*AU25 -> -207474.1715 | AX25: =Analise_Fundamentalista!$C$12*Monte_Carlo!AU25 -> 229595.2456 | AY25: =-Analise_Fundamentalista!$C$14*Monte_Carlo!AU25 -> -115799.8358 | AZ25: =SUM(C25:F25) -> 104319.3336 | BA25: =SUM(H25:K25) -> 102677.7326 | BB25: =SUM(M25:P25) -> 101061.9644 | BC25: =SUM(R25:U25) -> 99471.62238 | BD25: =SUM(W25:Z25) -> 97906.30648 | BE25: =SUM(AB25:AE25) -> 96365.62287 | BF25: =SUM(AG25:AJ25) -> 94849.18393 | BG25: =SUM(AL25:AO25) -> 93356.60813 | BH25: =SUM(AQ25:AT25) -> 91887.51997 | BI25: =SUM(AV25:AY25) -> 90441.54983 | BJ25: =BI25*(1+Analise_Fundamentalista!$C$10)/(Analise_Fundamentalista!$C$10) -> 1184592.94 | BK25: =NPV(Analise_Fundamentalista!$C$10,Monte_Carlo!AZ25:BI25)+Monte_Carlo!BJ25/(1+Analise_Fundamentalista!$C$10)^10 -> 1186700.79 | BL25: =(BK25+Analise_Fundamentalista!$C$15-Analise_Fundamentalista!$C$16-Analise_Fundamentalista!$C$17)/(Analise_Fundamentalista!$F$29+Analise_Fundamentalista!$F$30)*1000 -> 15.17106386 | BM25: =_xlfn.NORM.DIST(BL25,$H$7,$H$8,$C$6) -> 0.929128001
A26: 1 | B26: =B$25*(1+LN(_xlfn.LOGNORM.INV(RAND(),$D$10,$D$12))) -> 1535594.211 | C26: =(RAND()*($D$17-$D$16)+$D$16)*(1-Analise_Fundamentalista!$C$6)*B26 -> 192835.3485 | D26: =-ABS((LN(_xlfn.LOGNORM.INV(RAND(),$D$19,$D$21)))*B26) -> -113570.8096 | E26: =Analise_Fundamentalista!$C$12*Monte_Carlo!B26 -> 250474.9031 | F26: =-Analise_Fundamentalista!$C$14*Monte_Carlo!B26 -> -126330.807 | G26: =G$25*(1+LN(_xlfn.LOGNORM.INV(RAND(),$D$10,$D$12))) -> 1513420.518 | H26: =(RAND()*($D$17-$D$16)+$D$16)*(1-Analise_Fundamentalista!$C$6)*G26 -> 135194.0445 | I26: =-ABS((LN(_xlfn.LOGNORM.INV(RAND(),$D$19,$D$21)))*G26) -> -266391.7954 | J26: =Analise_Fundamentalista!$C$12*Monte_Carlo!G26 -> 246858.0925 | K26: =-Analise_Fundamentalista!$C$14*Monte_Carlo!G26 -> -124506.6138 | L26: =L$25*(1+LN(_xlfn.LOGNORM.INV(RAND(),$D$10,$D$12))) -> 1526231.371 | M26: =(RAND()*($D$17-$D$16)+$D$16)*(1-Analise_Fundamentalista!$C$6)*L26 -> 222701.1446 | N26: =-ABS((LN(_xlfn.LOGNORM.INV(RAND(),$D$19,$D$21)))*L26) -> -337924.4438 | O26: =Analise_Fundamentalista!$C$12*Monte_Carlo!L26 -> 248947.7052 | P26: =-Analise_Fundamentalista!$C$14*Monte_Carlo!L26 -> -125560.5416 | Q26: =Q$25*(1+LN(_xlfn.LOGNORM.INV(RAND(),$D$10,$D$12))) -> 1577299.677 | R26: =(RAND()*($D$17-$D$16)+$D$16)*(1-Analise_Fundamentalista!$C$6)*Q26 -> 122772.052 | S26: =-ABS((LN(_xlfn.LOGNORM.INV(RAND(),$D$19,$D$21)))*Q26) -> -567755.8893 | T26: =Analise_Fundamentalista!$C$12*Monte_Carlo!Q26 -> 257277.594 | U26: =-Analise_Fundamentalista!$C$14*Monte_Carlo!Q26 -> -129761.847 | V26: =V$25*(1+LN(_xlfn.LOGNORM.INV(RAND(),$D$10,$D$12))) -> 1567845.899 | W26: =(RAND()*($D$17-$D$16)+$D$16)*(1-Analise_Fundamentalista!$C$6)*V26 -> 247234.0863 | X26: =-ABS((LN(_xlfn.LOGNORM.INV(RAND(),$D$19,$D$21)))*V26) -> -320419.0825 | Y26: =Analise_Fundamentalista!$C$12*Monte_Carlo!V26 -> 255735.5628 | Z26: =-Analise_Fundamentalista!$C$14*Monte_Carlo!V26 -> -128984.1003 | AA26: =AA$25*(1+LN(_xlfn.LOGNORM.INV(RAND(),$D$10,$D$12))) -> 1417338.774 | AB26: =(RAND()*($D$17-$D$16)+$D$16)*(1-Analise_Fundamentalista!$C$6)*AA26 -> 234102.0389 | AC26: =-ABS((LN(_xlfn.LOGNORM.INV(RAND(),$D$19,$D$21)))*AA26) -> -240280.7357 | AD26: =Analise_Fundamentalista!$C$12*Monte_Carlo!AA26 -> 231185.9408 | AE26: =-Analise_Fundamentalista!$C$14*Monte_Carlo!AA26 -> -116602.127 | AF26: =AF$25*(1+LN(_xlfn.LOGNORM.INV(RAND(),$D$10,$D$12))) -> 1506947.479 | AG26: =(RAND()*($D$17-$D$16)+$D$16)*(1-Analise_Fundamentalista!$C$6)*AF26 -> 249542.0412 | AH26: =-ABS((LN(_xlfn.LOGNORM.INV(RAND(),$D$19,$D$21)))*AF26) -> -1093498.14 | AI26: =Analise_Fundamentalista!$C$12*Monte_Carlo!AF26 -> 245802.2577 | AJ26: =-Analise_Fundamentalista!$C$14*Monte_Carlo!AF26 -> -123974.0875 | AK26: =AK$25*(1+LN(_xlfn.LOGNORM.INV(RAND(),$D$10,$D$12))) -> 1450414.627 | AL26: =(RAND()*($D$17-$D$16)+$D$16)*(1-Analise_Fundamentalista!$C$6)*AK26 -> 107996.4041 | AM26: =-ABS((LN(_xlfn.LOGNORM.INV(RAND(),$D$19,$D$21)))*AK26) -> -268421.2277 | AN26: =Analise_Fundamentalista!$C$12*Monte_Carlo!AK26 -> 236581.0321 | AO26: =-Analise_Fundamentalista!$C$14*Monte_Carlo!AK26 -> -119323.2229 | AP26: =AP$25*(1+LN(_xlfn.LOGNORM.INV(RAND(),$D$10,$D$12))) -> 1318641.989 | AQ26: =(RAND()*($D$17-$D$16)+$D$16)*(1-Analise_Fundamentalista!$C$6)*AP26 -> 128828.9745 | AR26: =-ABS((LN(_xlfn.LOGNORM.INV(RAND(),$D$19,$D$21)))*AP26) -> -264064.7388 | AS26: =Analise_Fundamentalista!$C$12*Monte_Carlo!AP26 -> 215087.2426 | AT26: =-Analise_Fundamentalista!$C$14*Monte_Carlo!AP26 -> -108482.505 | AU26: =AU$25*(1+LN(_xlfn.LOGNORM.INV(RAND(),$D$10,$D$12))) -> 1429083.189 | AV26: =(RAND()*($D$17-$D$16)+$D$16)*(1-Analise_Fundamentalista!$C$6)*AU26 -> 231191.1326 | AW26: =-ABS((LN(_xlfn.LOGNORM.INV(RAND(),$D$19,$D$21)))*AU26) -> -677896.6623 | AX26: =Analise_Fundamentalista!$C$12*Monte_Carlo!AU26 -> 233101.6039 | AY26: =-Analise_Fundamentalista!$C$14*Monte_Carlo!AU26 -> -117568.3206 | AZ26: =SUM(C26:F26) -> 203408.635 | BA26: =SUM(H26:K26) -> -8846.272137 | BB26: =SUM(M26:P26) -> 8163.864338 | BC26: =SUM(R26:U26) -> -317468.0904 | BD26: =SUM(W26:Z26) -> 53566.46626 | BE26: =SUM(AB26:AE26) -> 108405.117 | BF26: =SUM(AG26:AJ26) -> -722127.9288 | BG26: =SUM(AL26:AO26) -> -43167.01437 | BH26: =SUM(AQ26:AT26) -> -28631.02663 | BI26: =SUM(AV26:AY26) -> -331172.2464 | BJ26: =BI26*(1+Analise_Fundamentalista!$C$10)/(Analise_Fundamentalista!$C$10) -> -4337655.709 | BK26: =NPV(Analise_Fundamentalista!$C$10,Monte_Carlo!AZ26:BI26)+Monte_Carlo!BJ26/(1+Analise_Fundamentalista!$C$10)^10 -> -2502055.758 | BL26: =(BK26+Analise_Fundamentalista!$C$15-Analise_Fundamentalista!$C$16-Analise_Fundamentalista!$C$17)/(Analise_Fundamentalista!$F$29+Analise_Fundamentalista!$F$30)*1000 -> -68.08695758 | BM26: 0.5081034455
A27: 2 | B27: =B$25*(1+LN(_xlfn.LOGNORM.INV(RAND(),$D$10,$D$12))) -> 1636823.632 | C27: =(RAND()*($D$17-$D$16)+$D$16)*(1-Analise_Fundamentalista!$C$6)*B27 -> 206872.5356 | D27: =-ABS((LN(_xlfn.LOGNORM.INV(RAND(),$D$19,$D$21)))*B27) -> -113088.6559 | E27: =Analise_Fundamentalista!$C$12*Monte_Carlo!B27 -> 266986.7064 | F27: =-Analise_Fundamentalista!$C$14*Monte_Carlo!B27 -> -134658.7848 | G27: 1494088.462 | H27: =(RAND()*($D$17-$D$16)+$D$16)*(1-Analise_Fundamentalista!$C$6)*G27 -> 142113.8734 | I27: =-ABS((LN(_xlfn.LOGNORM.INV(RAND(),$D$19,$D$21)))*G27) -> -489848.7017 | J27: =Analise_Fundamentalista!$C$12*Monte_Carlo!G27 -> 243704.7887 | K27: =-Analise_Fundamentalista!$C$14*Monte_Carlo!G27 -> -122916.1973 | L27: 1629848.145 | M27: =(RAND()*($D$17-$D$16)+$D$16)*(1-Analise_Fundamentalista!$C$6)*L27 -> 227506.3236 | N27: =-ABS((LN(_xlfn.LOGNORM.INV(RAND(),$D$19,$D$21)))*L27) -> -1400621.926 | O27: =Analise_Fundamentalista!$C$12*Monte_Carlo!L27 -> 265848.9159 | P27: =-Analise_Fundamentalista!$C$14*Monte_Carlo!L27 -> -134084.9229 | Q27: 1599179.219 | R27: =(RAND()*($D$17-$D$16)+$D$16)*(1-Analise_Fundamentalista!$C$6)*Q27 -> 266372.1726 | S27: =-ABS((LN(_xlfn.LOGNORM.INV(RAND(),$D$19,$D$21)))*Q27) -> -144624.7406 | T27: =Analise_Fundamentalista!$C$12*Monte_Carlo!Q27 -> 260846.4249 | U27: =-Analise_Fundamentalista!$C$14*Monte_Carlo!Q27 -> -131561.8409 | V27: 1540394.082 | W27: =(RAND()*($D$17-$D$16)+$D$16)*(1-Analise_Fundamentalista!$C$6)*V27 -> 231636.7234 | X27: =-ABS((LN(_xlfn.LOGNORM.INV(RAND(),$D$19,$D$21)))*V27) -> -671088.8568 | Y27: =Analise_Fundamentalista!$C$12*Monte_Carlo!V27 -> 251257.823 | Z27: =-Analise_Fundamentalista!$C$14*Monte_Carlo!V27 -> -126725.6844 | AA27: 1450798.313 | AB27: =(RAND()*($D$17-$D$16)+$D$16)*(1-Analise_Fundamentalista!$C$6)*AA27 -> 164564.92 | AC27: =-ABS((LN(_xlfn.LOGNORM.INV(RAND(),$D$19,$D$21)))*AA27) -> -28946.49314 | AD27: =Analise_Fundamentalista!$C$12*Monte_Carlo!AA27 -> 236643.6161 | AE27: =-Analise_Fundamentalista!$C$14*Monte_Carlo!AA27 -> -119354.7881 | AF27: 1490249.678 | AG27: =(RAND()*($D$17-$D$16)+$D$16)*(1-Analise_Fundamentalista!$C$6)*AF27 -> 120025.5943 | AH27: =-ABS((LN(_xlfn.LOGNORM.INV(RAND(),$D$19,$D$21)))*AF27) -> -409074.936 | AI27: =Analise_Fundamentalista!$C$12*Monte_Carlo!AF27 -> 243078.6344 | AJ27: =-Analise_Fundamentalista!$C$14*Monte_Carlo!AF27 -> -122600.3869 | AK27: 1444673.302 | AL27: =(RAND()*($D$17-$D$16)+$D$16)*(1-Analise_Fundamentalista!$C$6)*AK27 -> 193652.346 | AM27: =-ABS((LN(_xlfn.LOGNORM.INV(RAND(),$D$19,$D$21)))*AK27) -> -95249.09873 | AN27: =Analise_Fundamentalista!$C$12*Monte_Carlo!AK27 -> 235644.5491 | AO27: =-Analise_Fundamentalista!$C$14*Monte_Carlo!AK27 -> -118850.8935 | AP27: 1338635.315 | AQ27: =(RAND()*($D$17-$D$16)+$D$16)*(1-Analise_Fundamentalista!$C$6)*AP27 -> 178503.399 | AR27: =-ABS((LN(_xlfn.LOGNORM.INV(RAND(),$D$19,$D$21)))*AP27) -> -472927.5954 | AS27: =Analise_Fundamentalista!$C$12*Monte_Carlo!AP27 -> 218348.4078 | AT27: =-Analise_Fundamentalista!$C$14*Monte_Carlo!AP27 -> -110127.323 | AU27: 1299770.443 | AV27: =(RAND()*($D$17-$D$16)+$D$16)*(1-Analise_Fundamentalista!$C$6)*AU27 -> 141147.1513 | AW27: =-ABS((LN(_xlfn.LOGNORM.INV(RAND(),$D$19,$D$21)))*AU27) -> -173617.494 | AX27: =Analise_Fundamentalista!$C$12*Monte_Carlo!AU27 -> 212009.0538 | AY27: =-Analise_Fundamentalista!$C$14*Monte_Carlo!AU27 -> -106929.9739 | AZ27: =SUM(C27:F27) -> 226111.8014 | BA27: =SUM(H27:K27) -> -226946.237 | BB27: =SUM(M27:P27) -> -1041351.61 | BC27: =SUM(R27:U27) -> 251032.016 | BD27: =SUM(W27:Z27) -> -314919.9949 | BE27: =SUM(AB27:AE27) -> 252907.2549 | BF27: =SUM(AG27:AJ27) -> -168571.0942 | BG27: =SUM(AL27:AO27) -> 215196.9028 | BH27: =SUM(AQ27:AT27) -> -186203.1116 | BI27: =SUM(AV27:AY27) -> 72608.73726 | BJ27: =BI27*(1+Analise_Fundamentalista!$C$10)/(Analise_Fundamentalista!$C$10) -> 951020.8273 | BK27: =NPV(Analise_Fundamentalista!$C$10,Monte_Carlo!AZ27:BI27)+Monte_Carlo!BJ27/(1+Analise_Fundamentalista!$C$10)^10 -> -288478.4773 | BL27: =(BK27+Analise_Fundamentalista!$C$15-Analise_Fundamentalista!$C$16-Analise_Fundamentalista!$C$17)/(Analise_Fundamentalista!$F$29+Analise_Fundamentalista!$F$30)*1000 -> -18.12484642 | BM27: 0.8132265064
A28: 3 | B28: 1578820.852 | C28: =(RAND()*($D$17-$D$16)+$D$16)*(1-Analise_Fundamentalista!$C$6)*B28 -> 262094.22 | D28: -934890.576 | E28: =Analise_Fundamentalista!$C$12*Monte_Carlo!B28 -> 257525.7169 | F28: =-Analise_Fundamentalista!$C$14*Monte_Carlo!B28 -> -129886.9915 | G28: 1613920.539 | H28: =(RAND()*($D$17-$D$16)+$D$16)*(1-Analise_Fundamentalista!$C$6)*G28 -> 196119.0139 | I28: -507097.211 | J28: =Analise_Fundamentalista!$C$12*Monte_Carlo!G28 -> 263250.9212 | K28: =-Analise_Fundamentalista!$C$14*Monte_Carlo!G28 -> -132774.585 | L28: 1563046.889 | M28: =(RAND()*($D$17-$D$16)+$D$16)*(1-Analise_Fundamentalista!$C$6)*L28 -> 221890.9497 | N28: -1033100.75 | O28: =Analise_Fundamentalista!$C$12*Monte_Carlo!L28 -> 254952.7834 | P28: =-Analise_Fundamentalista!$C$14*Monte_Carlo!L28 -> -128589.2936 | Q28: 1537168.521 | R28: =(RAND()*($D$17-$D$16)+$D$16)*(1-Analise_Fundamentalista!$C$6)*Q28 -> 225302.012 | S28: -360931.1834 | T28: =Analise_Fundamentalista!$C$12*Monte_Carlo!Q28 -> 250731.6931 | U28: =-Analise_Fundamentalista!$C$14*Monte_Carlo!Q28 -> -126460.3228 | V28: 1573525.993 | W28: =(RAND()*($D$17-$D$16)+$D$16)*(1-Analise_Fundamentalista!$C$6)*V28 -> 283044.9698 | X28: -489177.7698 | Y28: =Analise_Fundamentalista!$C$12*Monte_Carlo!V28 -> 256662.0582 | Z28: =-Analise_Fundamentalista!$C$14*Monte_Carlo!V28 -> -129451.3922 | AA28: 1460019.211 | AB28: =(RAND()*($D$17-$D$16)+$D$16)*(1-Analise_Fundamentalista!$C$6)*AA28 -> 148114.8025 | AC28: -164100.8978 | AD28: =Analise_Fundamentalista!$C$12*Monte_Carlo!AA28 -> 238147.6616 | AE28: =-Analise_Fundamentalista!$C$14*Monte_Carlo!AA28 -> -120113.3762 | AF28: 1348920.209 | AG28: =(RAND()*($D$17-$D$16)+$D$16)*(1-Analise_Fundamentalista!$C$6)*AF28 -> 169756.8902 | AH28: -811513.9092 | AI28: =Analise_Fundamentalista!$C$12*Monte_Carlo!AF28 -> 220026.0045 | AJ28: =-Analise_Fundamentalista!$C$14*Monte_Carlo!AF28 -> -110973.4443 | AK28: 1606014.699 | AL28: =(RAND()*($D$17-$D$16)+$D$16)*(1-Analise_Fundamentalista!$C$6)*AK28 -> 142452.7949 | AM28: -79194.42572 | AN28: =Analise_Fundamentalista!$C$12*Monte_Carlo!AK28 -> 261961.3784 | AO28: =-Analise_Fundamentalista!$C$14*Monte_Carlo!AK28 -> -132124.1846 | AP28: 1470326.52 | AQ28: =(RAND()*($D$17-$D$16)+$D$16)*(1-Analise_Fundamentalista!$C$6)*AP28 -> 165927.158 | AR28: -736234.0857 | AS28: =Analise_Fundamentalista!$C$12*Monte_Carlo!AP28 -> 239828.9145 | AT28: =-Analise_Fundamentalista!$C$14*Monte_Carlo!AP28 -> -120961.3415 | AU28: 1352710.215 | AV28: =(RAND()*($D$17-$D$16)+$D$16)*(1-Analise_Fundamentalista!$C$6)*AU28 -> 151715.3347 | AW28: -19215.92237 | AX28: =Analise_Fundamentalista!$C$12*Monte_Carlo!AU28 -> 220644.2025 | AY28: =-Analise_Fundamentalista!$C$14*Monte_Carlo!AU28 -> -111285.2418 | AZ28: -545157.6307 | BA28: -180501.8608 | BB28: -684846.3109 | BC28: -11357.80117 | BD28: -78922.13406 | BE28: 102048.1902 | BF28: -532704.4587 | BG28: 193095.563 | BH28: -451439.3547 | BI28: 241858.3731 | BJ28: =BI28*(1+Analise_Fundamentalista!$C$10)/(Analise_Fundamentalista!$C$10) -> 3167832.946 | BK28: =NPV(Analise_Fundamentalista!$C$10,Monte_Carlo!AZ28:BI28)+Monte_Carlo!BJ28/(1+Analise_Fundamentalista!$C$10)^10 -> -78280.48525 | BL28: =(BK28+Analise_Fundamentalista!$C$15-Analise_Fundamentalista!$C$16-Analise_Fundamentalista!$C$17)/(Analise_Fundamentalista!$F$29+Analise_Fundamentalista!$F$30)*1000 -> -13.38051897 | BM28: 0.8345788635
A29: 4 | B29: 1575452.909 | C29: =(RAND()*($D$17-$D$16)+$D$16)*(1-Analise_Fundamentalista!$C$6)*B29 -> 173429.721 | D29: -70329.18795 | E29: =Analise_Fundamentalista!$C$12*Monte_Carlo!B29 -> 256976.3626 | F29: =-Analise_Fundamentalista!$C$14*Monte_Carlo!B29 -> -129609.9164 | G29: 1613914.059 | H29: =(RAND()*($D$17-$D$16)+$D$16)*(1-Analise_Fundamentalista!$C$6)*G29 -> 213170.7335 | I29: -981320.5518 | J29: =Analise_Fundamentalista!$C$12*Monte_Carlo!G29 -> 263249.8644 | K29: =-Analise_Fundamentalista!$C$14*Monte_Carlo!G29 -> -132774.0519 | L29: 1478888.663 | M29: =(RAND()*($D$17-$D$16)+$D$16)*(1-Analise_Fundamentalista!$C$6)*L29 -> 258286.829 | N29: -141846.8316 | O29: =Analise_Fundamentalista!$C$12*Monte_Carlo!L29 -> 241225.5086 | P29: =-Analise_Fundamentalista!$C$14*Monte_Carlo!L29 -> -121665.7349 | Q29: 1814849.864 | R29: =(RAND()*($D$17-$D$16)+$D$16)*(1-Analise_Fundamentalista!$C$6)*Q29 -> 135327.4349 | S29: -62825.63104 | T29: =Analise_Fundamentalista!$C$12*Monte_Carlo!Q29 -> 296025.0441 | U29: =-Analise_Fundamentalista!$C$14*Monte_Carlo!Q29 -> -149304.7097 | V29: 1517522.436 | W29: =(RAND()*($D$17-$D$16)+$D$16)*(1-Analise_Fundamentalista!$C$6)*V29 -> 234651.9913 | X29: -601173.7521 | Y29: =Analise_Fundamentalista!$C$12*Monte_Carlo!V29 -> 247527.1673 | Z29: =-Analise_Fundamentalista!$C$14*Monte_Carlo!V29 -> -124844.0718 | AA29: 1526810.724 | AB29: =(RAND()*($D$17-$D$16)+$D$16)*(1-Analise_Fundamentalista!$C$6)*AA29 -> 243052.8046 | AC29: -39605.93223 | AD29: =Analise_Fundamentalista!$C$12*Monte_Carlo!AA29 -> 249042.205 | AE29: =-Analise_Fundamentalista!$C$14*Monte_Carlo!AA29 -> -125608.204 | AF29: 1393954.179 | AG29: =(RAND()*($D$17-$D$16)+$D$16)*(1-Analise_Fundamentalista!$C$6)*AF29 -> 141235.0313 | AH29: -624547.9099 | AI29: =Analise_Fundamentalista!$C$12*Monte_Carlo!AF29 -> 227371.6166 | AJ29: =-Analise_Fundamentalista!$C$14*Monte_Carlo!AF29 -> -114678.3148 | AK29: 1436507.167 | AL29: =(RAND()*($D$17-$D$16)+$D$16)*(1-Analise_Fundamentalista!$C$6)*AK29 -> 149092.2957 | AM29: -223797.278 | AN29: =Analise_Fundamentalista!$C$12*Monte_Carlo!AK29 -> 234312.5489 | AO29: =-Analise_Fundamentalista!$C$14*Monte_Carlo!AK29 -> -118179.0791 | AP29: 1475894.149 | AQ29: =(RAND()*($D$17-$D$16)+$D$16)*(1-Analise_Fundamentalista!$C$6)*AP29 -> 148315.3989 | AR29: -666165.6179 | AS29: =Analise_Fundamentalista!$C$12*Monte_Carlo!AP29 -> 240737.0655 | AT29: =-Analise_Fundamentalista!$C$14*Monte_Carlo!AP29 -> -121419.3812 | AU29: 1456310.294 | AV29: =(RAND()*($D$17-$D$16)+$D$16)*(1-Analise_Fundamentalista!$C$6)*AU29 -> 200477.9325 | AW29: -1028741.389 | AX29: =Analise_Fundamentalista!$C$12*Monte_Carlo!AU29 -> 237542.6902 | AY29: =-Analise_Fundamentalista!$C$14*Monte_Carlo!AU29 -> -119808.2497 | AZ29: 230466.9793 | BA29: -637674.0058 | BB29: 235999.7712 | BC29: 219222.1383 | BD29: -243838.6653 | BE29: 326880.8734 | BF29: -370619.5769 | BG29: 41428.48755 | BH29: -398532.5347 | BI29: -710529.0163 | BJ29: =BI29*(1+Analise_Fundamentalista!$C$10)/(Analise_Fundamentalista!$C$10) -> -9306426.724 | BK29: =NPV(Analise_Fundamentalista!$C$10,Monte_Carlo!AZ29:BI29)+Monte_Carlo!BJ29/(1+Analise_Fundamentalista!$C$10)^10 -> -4859276.666 | BL29: =(BK29+Analise_Fundamentalista!$C$15-Analise_Fundamentalista!$C$16-Analise_Fundamentalista!$C$17)/(Analise_Fundamentalista!$F$29+Analise_Fundamentalista!$F$30)*1000 -> -121.2912139 | BM29: 0.1825612361
A30: 5 | B30: 1596678.037 | C30: =(RAND()*($D$17-$D$16)+$D$16)*(1-Analise_Fundamentalista!$C$6)*B30 -> 264787.189 | D30: -1304698.04 | E30: =Analise_Fundamentalista!$C$12*Monte_Carlo!B30 -> 260438.4503 | F30: =-Analise_Fundamentalista!$C$14*Monte_Carlo!B30 -> -131356.0727 | G30: 1552799.386 | H30: =(RAND()*($D$17-$D$16)+$D$16)*(1-Analise_Fundamentalista!$C$6)*G30 -> 247919.992 | I30: -49008.52238 | J30: =Analise_Fundamentalista!$C$12*Monte_Carlo!G30 -> 253281.2855 | K30: =-Analise_Fundamentalista!$C$14*Monte_Carlo!G30 -> -127746.2484 | L30: 1439535.057 | M30: =(RAND()*($D$17-$D$16)+$D$16)*(1-Analise_Fundamentalista!$C$6)*L30 -> 204060.8032 | N30: -333076.4585 | O30: =Analise_Fundamentalista!$C$12*Monte_Carlo!L30 -> 234806.4361 | P30: =-Analise_Fundamentalista!$C$14*Monte_Carlo!L30 -> -118428.1785 | Q30: 1490972.082 | R30: =(RAND()*($D$17-$D$16)+$D$16)*(1-Analise_Fundamentalista!$C$6)*Q30 -> 198119.9657 | S30: -40669.11443 | T30: =Analise_Fundamentalista!$C$12*Monte_Carlo!Q30 -> 243196.4677 | U30: =-Analise_Fundamentalista!$C$14*Monte_Carlo!Q30 -> -122659.8179 | V30: 1535764.821 | W30: =(RAND()*($D$17-$D$16)+$D$16)*(1-Analise_Fundamentalista!$C$6)*V30 -> 110863.9493 | X30: -381092.7665 | Y30: =Analise_Fundamentalista!$C$12*Monte_Carlo!V30 -> 250502.7318 | Z30: =-Analise_Fundamentalista!$C$14*Monte_Carlo!V30 -> -126344.8428 | AA30: 1590494.528 | AB30: =(RAND()*($D$17-$D$16)+$D$16)*(1-Analise_Fundamentalista!$C$6)*AA30 -> 162634.6239 | AC30: -398366.0115 | AD30: =Analise_Fundamentalista!$C$12*Monte_Carlo!AA30 -> 259429.8416 | AE30: =-Analise_Fundamentalista!$C$14*Monte_Carlo!AA30 -> -130847.3657 | AF30: 1426547.312 | AG30: =(RAND()*($D$17-$D$16)+$D$16)*(1-Analise_Fundamentalista!$C$6)*AF30 -> 198377.4408 | AH30: -1103143.297 | AI30: =Analise_Fundamentalista!$C$12*Monte_Carlo!AF30 -> 232687.97 | AJ30: =-Analise_Fundamentalista!$C$14*Monte_Carlo!AF30 -> -117359.6982 | AK30: 1372271.678 | AL30: =(RAND()*($D$17-$D$16)+$D$16)*(1-Analise_Fundamentalista!$C$6)*AK30 -> 109242.438 | AM30: -114354.4107 | AN30: =Analise_Fundamentalista!$C$12*Monte_Carlo!AK30 -> 223834.9254 | AO30: =-Analise_Fundamentalista!$C$14*Monte_Carlo!AK30 -> -112894.5312 | AP30: 1497958.258 | AQ30: =(RAND()*($D$17-$D$16)+$D$16)*(1-Analise_Fundamentalista!$C$6)*AP30 -> 224752.896 | AR30: -54055.59534 | AS30: =Analise_Fundamentalista!$C$12*Monte_Carlo!AP30 -> 244336.0017 | AT30: =-Analise_Fundamentalista!$C$14*Monte_Carlo!AP30 -> -123234.5591 | AU30: 1388786.611 | AV30: =(RAND()*($D$17-$D$16)+$D$16)*(1-Analise_Fundamentalista!$C$6)*AU30 -> 237883.7101 | AW30: -640269.0474 | AX30: =Analise_Fundamentalista!$C$12*Monte_Carlo!AU30 -> 226528.7205 | AY30: =-Analise_Fundamentalista!$C$14*Monte_Carlo!AU30 -> -114253.1875 | AZ30: -910828.4733 | BA30: 324446.5067 | BB30: -12637.39781 | BC30: 277987.5011 | BD30: -146070.9282 | BE30: -107148.9117 | BF30: -789437.5845 | BG30: 105828.4216 | BH30: 291798.7432 | BI30: -290109.8043 | BJ30: =BI30*(1+Analise_Fundamentalista!$C$10)/(Analise_Fundamentalista!$C$10) -> -3799824.601 | BK30: =NPV(Analise_Fundamentalista!$C$10,Monte_Carlo!AZ30:BI30)+Monte_Carlo!BJ30/(1+Analise_Fundamentalista!$C$10)^10 -> -2639195.724 | BL30: =(BK30+Analise_Fundamentalista!$C$15-Analise_Fundamentalista!$C$16-Analise_Fundamentalista!$C$17)/(Analise_Fundamentalista!$F$29+Analise_Fundamentalista!$F$30)*1000 -> -71.1823102 | BM30: 0.486615021
A31: 6 | B31: 1615969.026 | C31: =(RAND()*($D$17-$D$16)+$D$16)*(1-Analise_Fundamentalista!$C$6)*B31 -> 269184.3942 | D31: -767665.4843 | E31: =Analise_Fundamentalista!$C$12*Monte_Carlo!B31 -> 263585.0555 | F31: =-Analise_Fundamentalista!$C$14*Monte_Carlo!B31 -> -132943.1107 | G31: 1482263.898 | H31: =(RAND()*($D$17-$D$16)+$D$16)*(1-Analise_Fundamentalista!$C$6)*G31 -> 194480.6681 | I31: -25211.49316 | J31: =Analise_Fundamentalista!$C$12*Monte_Carlo!G31 -> 241776.0524 | K31: =-Analise_Fundamentalista!$C$14*Monte_Carlo!G31 -> -121943.41 | L31: 1508162.425 | M31: =(RAND()*($D$17-$D$16)+$D$16)*(1-Analise_Fundamentalista!$C$6)*L31 -> 127623.5076 | N31: -406585.3236 | O31: =Analise_Fundamentalista!$C$12*Monte_Carlo!L31 -> 246000.4307 | P31: =-Analise_Fundamentalista!$C$14*Monte_Carlo!L31 -> -124074.0391 | Q31: 1434698.144 | R31: =(RAND()*($D$17-$D$16)+$D$16)*(1-Analise_Fundamentalista!$C$6)*Q31 -> 137783.3892 | S31: -351668.711 | T31: =Analise_Fundamentalista!$C$12*Monte_Carlo!Q31 -> 234017.4742 | U31: =-Analise_Fundamentalista!$C$14*Monte_Carlo!Q31 -> -118030.2537 | V31: 1502893.805 | W31: =(RAND()*($D$17-$D$16)+$D$16)*(1-Analise_Fundamentalista!$C$6)*V31 -> 151849.7094 | X31: -59389.14149 | Y31: =Analise_Fundamentalista!$C$12*Monte_Carlo!V31 -> 245141.052 | Z31: =-Analise_Fundamentalista!$C$14*Monte_Carlo!V31 -> -123640.5985 | AA31: 1619972.509 | AB31: =(RAND()*($D$17-$D$16)+$D$16)*(1-Analise_Fundamentalista!$C$6)*AA31 -> 108195.0087 | AC31: -838968.3817 | AD31: =Analise_Fundamentalista!$C$12*Monte_Carlo!AA31 -> 264238.0743 | AE31: =-Analise_Fundamentalista!$C$14*Monte_Carlo!AA31 -> -133272.4706 | AF31: 1435555.104 | AG31: =(RAND()*($D$17-$D$16)+$D$16)*(1-Analise_Fundamentalista!$C$6)*AF31 -> 149213.4185 | AH31: -938381.4354 | AI31: =Analise_Fundamentalista!$C$12*Monte_Carlo!AF31 -> 234157.2553 | AJ31: =-Analise_Fundamentalista!$C$14*Monte_Carlo!AF31 -> -118100.7544 | AK31: 1442782.433 | AL31: =(RAND()*($D$17-$D$16)+$D$16)*(1-Analise_Fundamentalista!$C$6)*AK31 -> 109718.7353 | AM31: -106270.8918 | AN31: =Analise_Fundamentalista!$C$12*Monte_Carlo!AK31 -> 235336.1243 | AO31: =-Analise_Fundamentalista!$C$14*Monte_Carlo!AK31 -> -118695.3348 | AP31: 1391313.265 | AQ31: =(RAND()*($D$17-$D$16)+$D$16)*(1-Analise_Fundamentalista!$C$6)*AP31 -> 211466.5058 | AR31: -599630.4339 | AS31: =Analise_Fundamentalista!$C$12*Monte_Carlo!AP31 -> 226940.8499 | AT31: =-Analise_Fundamentalista!$C$14*Monte_Carlo!AP31 -> -114461.0512 | AU31: 1400515.661 | AV31: =(RAND()*($D$17-$D$16)+$D$16)*(1-Analise_Fundamentalista!$C$6)*AU31 -> 190111.5634 | AW31: -504244.741 | AX31: =Analise_Fundamentalista!$C$12*Monte_Carlo!AU31 -> 228441.8775 | AY31: =-Analise_Fundamentalista!$C$14*Monte_Carlo!AU31 -> -115218.1171 | AZ31: -367839.1452 | BA31: 289101.8173 | BB31: -157035.4244 | BC31: -97898.10123 | BD31: 213961.0214 | BE31: -599807.7693 | BF31: -673111.516 | BG31: 120088.633 | BH31: -275684.1293 | BI31: -200909.4172 | BJ31: =BI31*(1+Analise_Fundamentalista!$C$10)/(Analise_Fundamentalista!$C$10) -> -2631488.267 | BK31: =NPV(Analise_Fundamentalista!$C$10,Monte_Carlo!AZ31:BI31)+Monte_Carlo!BJ31/(1+Analise_Fundamentalista!$C$10)^10 -> -2254122.821 | BL31: =(BK31+Analise_Fundamentalista!$C$15-Analise_Fundamentalista!$C$16-Analise_Fundamentalista!$C$17)/(Analise_Fundamentalista!$F$29+Analise_Fundamentalista!$F$30)*1000 -> -62.49092394 | BM31: 0.5468498897
A32: 7 | B32: 1670657.918 | C32: =(RAND()*($D$17-$D$16)+$D$16)*(1-Analise_Fundamentalista!$C$6)*B32 -> 235192.7892 | D32: -944601.8273 | E32: =Analise_Fundamentalista!$C$12*Monte_Carlo!B32 -> 272505.5078 | F32: =-Analise_Fundamentalista!$C$14*Monte_Carlo!B32 -> -137442.2757 | G32: 1685931.818 | H32: =(RAND()*($D$17-$D$16)+$D$16)*(1-Analise_Fundamentalista!$C$6)*G32 -> 257517.4064 | I32: -776578.257 | J32: =Analise_Fundamentalista!$C$12*Monte_Carlo!G32 -> 274996.8748 | K32: =-Analise_Fundamentalista!$C$14*Monte_Carlo!G32 -> -138698.8344 | L32: 1454864.765 | M32: =(RAND()*($D$17-$D$16)+$D$16)*(1-Analise_Fundamentalista!$C$6)*L32 -> 268031.3502 | N32: -657065.5106 | O32: =Analise_Fundamentalista!$C$12*Monte_Carlo!L32 -> 237306.906 | P32: =-Analise_Fundamentalista!$C$14*Monte_Carlo!L32 -> -119689.3284 | Q32: 1494449.497 | R32: =(RAND()*($D$17-$D$16)+$D$16)*(1-Analise_Fundamentalista!$C$6)*Q32 -> 112245.4043 | S32: -546661.7093 | T32: =Analise_Fundamentalista!$C$12*Monte_Carlo!Q32 -> 243763.6783 | U32: =-Analise_Fundamentalista!$C$14*Monte_Carlo!Q32 -> -122945.8992 | V32: 1406375.176 | W32: =(RAND()*($D$17-$D$16)+$D$16)*(1-Analise_Fundamentalista!$C$6)*V32 -> 189319.7746 | X32: -502036.0987 | Y32: =Analise_Fundamentalista!$C$12*Monte_Carlo!V32 -> 229397.6387 | Z32: =-Analise_Fundamentalista!$C$14*Monte_Carlo!V32 -> -115700.1698 | AA32: 1387495.854 | AB32: =(RAND()*($D$17-$D$16)+$D$16)*(1-Analise_Fundamentalista!$C$6)*AA32 -> 245239.0968 | AC32: -689157.4299 | AD32: =Analise_Fundamentalista!$C$12*Monte_Carlo!AA32 -> 226318.1818 | AE32: =-Analise_Fundamentalista!$C$14*Monte_Carlo!AA32 -> -114146.9991 | AF32: 1501485.865 | AG32: =(RAND()*($D$17-$D$16)+$D$16)*(1-Analise_Fundamentalista!$C$6)*AF32 -> 287107.509 | AH32: -282522.0294 | AI32: =Analise_Fundamentalista!$C$12*Monte_Carlo!AF32 -> 244911.3991 | AJ32: =-Analise_Fundamentalista!$C$14*Monte_Carlo!AF32 -> -123524.7695 | AK32: 1620743.984 | AL32: =(RAND()*($D$17-$D$16)+$D$16)*(1-Analise_Fundamentalista!$C$6)*AK32 -> 157845.8332 | AM32: -810857.1238 | AN32: =Analise_Fundamentalista!$C$12*Monte_Carlo!AK32 -> 264363.9117 | AO32: =-Analise_Fundamentalista!$C$14*Monte_Carlo!AK32 -> -133335.9386 | AP32: 1355399.579 | AQ32: =(RAND()*($D$17-$D$16)+$D$16)*(1-Analise_Fundamentalista!$C$6)*AP32 -> 184654.1629 | AR32: -787783.2665 | AS32: =Analise_Fundamentalista!$C$12*Monte_Carlo!AP32 -> 221082.8719 | AT32: =-Analise_Fundamentalista!$C$14*Monte_Carlo!AP32 -> -111506.4913 | AU32: 1441421.785 | AV32: =(RAND()*($D$17-$D$16)+$D$16)*(1-Analise_Fundamentalista!$C$6)*AU32 -> 93033.40776 | AW32: -582714.944 | AX32: =Analise_Fundamentalista!$C$12*Monte_Carlo!AU32 -> 235114.1855 | AY32: =-Analise_Fundamentalista!$C$14*Monte_Carlo!AU32 -> -118583.3966 | AZ32: -574345.8061 | BA32: -382762.8102 | BB32: -271416.5828 | BC32: -313598.5259 | BD32: -199018.8552 | BE32: -331747.1504 | BF32: 125972.1091 | BG32: -521983.3175 | BH32: -493552.723 | BI32: -373150.7473 | BJ32: =BI32*(1+Analise_Fundamentalista!$C$10)/(Analise_Fundamentalista!$C$10) -> -4887485.25 | BK32: =NPV(Analise_Fundamentalista!$C$10,Monte_Carlo!AZ32:BI32)+Monte_Carlo!BJ32/(1+Analise_Fundamentalista!$C$10)^10 -> -4462221.588 | BL32: =(BK32+Analise_Fundamentalista!$C$15-Analise_Fundamentalista!$C$16-Analise_Fundamentalista!$C$17)/(Analise_Fundamentalista!$F$29+Analise_Fundamentalista!$F$30)*1000 -> -112.3293809 | BM32: 0.226724725
A33: 8 | B33: 1532398.514 | C33: =(RAND()*($D$17-$D$16)+$D$16)*(1-Analise_Fundamentalista!$C$6)*B33 -> 236122.6839 | D33: -496539.076 | E33: =Analise_Fundamentalista!$C$12*Monte_Carlo!B33 -> 249953.6444 | F33: =-Analise_Fundamentalista!$C$14*Monte_Carlo!B33 -> -126067.9023 | G33: 1565766.735 | H33: =(RAND()*($D$17-$D$16)+$D$16)*(1-Analise_Fundamentalista!$C$6)*G33 -> 278181.4939 | I33: -192967.7924 | J33: =Analise_Fundamentalista!$C$12*Monte_Carlo!G33 -> 255396.4247 | K33: =-Analise_Fundamentalista!$C$14*Monte_Carlo!G33 -> -128813.0508 | L33: 1636903.342 | M33: =(RAND()*($D$17-$D$16)+$D$16)*(1-Analise_Fundamentalista!$C$6)*L33 -> 144727.8834 | N33: -1069259.966 | O33: =Analise_Fundamentalista!$C$12*Monte_Carlo!L33 -> 266999.7081 | P33: =-Analise_Fundamentalista!$C$14*Monte_Carlo!L33 -> -134665.3424 | Q33: 1633542.289 | R33: =(RAND()*($D$17-$D$16)+$D$16)*(1-Analise_Fundamentalista!$C$6)*Q33 -> 269753.4522 | S33: -1273291.305 | T33: =Analise_Fundamentalista!$C$12*Monte_Carlo!Q33 -> 266451.4777 | U33: =-Analise_Fundamentalista!$C$14*Monte_Carlo!Q33 -> -134388.834 | V33: 1535397.117 | W33: =(RAND()*($D$17-$D$16)+$D$16)*(1-Analise_Fundamentalista!$C$6)*V33 -> 169072.6887 | X33: -656697.5389 | Y33: =Analise_Fundamentalista!$C$12*Monte_Carlo!V33 -> 250442.7547 | Z33: =-Analise_Fundamentalista!$C$14*Monte_Carlo!V33 -> -126314.5924 | AA33: 1394575.51 | AB33: =(RAND()*($D$17-$D$16)+$D$16)*(1-Analise_Fundamentalista!$C$6)*AA33 -> 117501.2454 | AC33: -312882.9278 | AD33: =Analise_Fundamentalista!$C$12*Monte_Carlo!AA33 -> 227472.9635 | AE33: =-Analise_Fundamentalista!$C$14*Monte_Carlo!AA33 -> -114729.4307 | AF33: 1515841.252 | AG33: =(RAND()*($D$17-$D$16)+$D$16)*(1-Analise_Fundamentalista!$C$6)*AF33 -> 282057.0855 | AH33: -377453.6654 | AI33: =Analise_Fundamentalista!$C$12*Monte_Carlo!AF33 -> 247252.9448 | AJ33: =-Analise_Fundamentalista!$C$14*Monte_Carlo!AF33 -> -124705.7635 | AK33: 1428523.572 | AL33: =(RAND()*($D$17-$D$16)+$D$16)*(1-Analise_Fundamentalista!$C$6)*AK33 -> 169495.3837 | AM33: -361536.8864 | AN33: =Analise_Fundamentalista!$C$12*Monte_Carlo!AK33 -> 233010.3233 | AO33: =-Analise_Fundamentalista!$C$14*Monte_Carlo!AK33 -> -117522.2819 | AP33: 1385293.456 | AQ33: =(RAND()*($D$17-$D$16)+$D$16)*(1-Analise_Fundamentalista!$C$6)*AP33 -> 193567.3968 | AR33: -529826.5888 | AS33: =Analise_Fundamentalista!$C$12*Monte_Carlo!AP33 -> 225958.9426 | AT33: =-Analise_Fundamentalista!$C$14*Monte_Carlo!AP33 -> -113965.8113 | AU33: 1376783.531 | AV33: =(RAND()*($D$17-$D$16)+$D$16)*(1-Analise_Fundamentalista!$C$6)*AU33 -> 150864.4131 | AW33: -541692.5522 | AX33: =Analise_Fundamentalista!$C$12*Monte_Carlo!AU33 -> 224570.8659 | AY33: =-Analise_Fundamentalista!$C$14*Monte_Carlo!AU33 -> -113265.7139 | AZ33: -136530.6499 | BA33: 211797.0754 | BB33: -792197.7169 | BC33: -871475.2089 | BD33: -363496.688 | BE33: -82638.14961 | BF33: 27150.60138 | BG33: -76553.46128 | BH33: -224266.0607 | BI33: -279522.987 | BJ33: =BI33*(1+Analise_Fundamentalista!$C$10)/(Analise_Fundamentalista!$C$10) -> -3661159.695 | BK33: =NPV(Analise_Fundamentalista!$C$10,Monte_Carlo!AZ33:BI33)+Monte_Carlo!BJ33/(1+Analise_Fundamentalista!$C$10)^10 -> -3415311.397 | BL33: =(BK33+Analise_Fundamentalista!$C$15-Analise_Fundamentalista!$C$16-Analise_Fundamentalista!$C$17)/(Analise_Fundamentalista!$F$29+Analise_Fundamentalista!$F$30)*1000 -> -88.69982715 | BM33: 0.367519412
A34: 9 | B34: 1662661.669 | C34: =(RAND()*($D$17-$D$16)+$D$16)*(1-Analise_Fundamentalista!$C$6)*B34 -> 249987.2922 | D34: -360119.2337 | E34: =Analise_Fundamentalista!$C$12*Monte_Carlo!B34 -> 271201.2181 | F34: =-Analise_Fundamentalista!$C$14*Monte_Carlo!B34 -> -136784.4375 | G34: 1622664.665 | H34: =(RAND()*($D$17-$D$16)+$D$16)*(1-Analise_Fundamentalista!$C$6)*G34 -> 145712.3457 | I34: -1186624.718 | J34: =Analise_Fundamentalista!$C$12*Monte_Carlo!G34 -> 264677.1993 | K34: =-Analise_Fundamentalista!$C$14*Monte_Carlo!G34 -> -133493.9499 | L34: 1649753.407 | M34: =(RAND()*($D$17-$D$16)+$D$16)*(1-Analise_Fundamentalista!$C$6)*L34 -> 310077.591 | N34: -878614.4245 | O34: =Analise_Fundamentalista!$C$12*Monte_Carlo!L34 -> 269095.7167 | P34: =-Analise_Fundamentalista!$C$14*Monte_Carlo!L34 -> -135722.496 | Q34: 1579425.291 | R34: =(RAND()*($D$17-$D$16)+$D$16)*(1-Analise_Fundamentalista!$C$6)*Q34 -> 128376.5012 | S34: -696709.8917 | T34: =Analise_Fundamentalista!$C$12*Monte_Carlo!Q34 -> 257624.3086 | U34: =-Analise_Fundamentalista!$C$14*Monte_Carlo!Q34 -> -129936.7178 | V34: 1596261.93 | W34: =(RAND()*($D$17-$D$16)+$D$16)*(1-Analise_Fundamentalista!$C$6)*V34 -> 275042.9444 | X34: -370558.2536 | Y34: =Analise_Fundamentalista!$C$12*Monte_Carlo!V34 -> 260370.578 | Z34: =-Analise_Fundamentalista!$C$14*Monte_Carlo!V34 -> -131321.8403 | AA34: 1399069.12 | AB34: =(RAND()*($D$17-$D$16)+$D$16)*(1-Analise_Fundamentalista!$C$6)*AA34 -> 242915.2242 | AC34: -149768.9319 | AD34: =Analise_Fundamentalista!$C$12*Monte_Carlo!AA34 -> 228205.9282 | AE34: =-Analise_Fundamentalista!$C$14*Monte_Carlo!AA34 -> -115099.1126 | AF34: 1522484.575 | AG34: =(RAND()*($D$17-$D$16)+$D$16)*(1-Analise_Fundamentalista!$C$6)*AF34 -> 213974.2249 | AH34: -254909.0196 | AI34: =Analise_Fundamentalista!$C$12*Monte_Carlo!AF34 -> 248336.5551 | AJ34: =-Analise_Fundamentalista!$C$14*Monte_Carlo!AF34 -> -125252.2988 | AK34: 1445038.471 | AL34: =(RAND()*($D$17-$D$16)+$D$16)*(1-Analise_Fundamentalista!$C$6)*AK34 -> 147984.7644 | AM34: -933133.5781 | AN34: =Analise_Fundamentalista!$C$12*Monte_Carlo!AK34 -> 235704.1128 | AO34: =-Analise_Fundamentalista!$C$14*Monte_Carlo!AK34 -> -118880.9354 | AP34: 1433574.487 | AQ34: =(RAND()*($D$17-$D$16)+$D$16)*(1-Analise_Fundamentalista!$C$6)*AP34 -> 226715.9772 | AR34: -95130.61966 | AS34: =Analise_Fundamentalista!$C$12*Monte_Carlo!AP34 -> 233834.1915 | AT34: =-Analise_Fundamentalista!$C$14*Monte_Carlo!AP34 -> -117937.8123 | AU34: 1357281.369 | AV34: =(RAND()*($D$17-$D$16)+$D$16)*(1-Analise_Fundamentalista!$C$6)*AU34 -> 109773.4239 | AW34: -155287.0498 | AX34: =Analise_Fundamentalista!$C$12*Monte_Carlo!AU34 -> 221389.8158 | AY34: =-Analise_Fundamentalista!$C$14*Monte_Carlo!AU34 -> -111661.3031 | AZ34: 24284.83913 | BA34: -909729.1232 | BB34: -435163.6128 | BC34: -440645.7997 | BD34: 33533.42848 | BE34: 206253.1079 | BF34: 82149.46164 | BG34: -668325.6364 | BH34: 247481.7368 | BI34: 64214.88673 | BJ34: =BI34*(1+Analise_Fundamentalista!$C$10)/(Analise_Fundamentalista!$C$10) -> 841079.1456 | BK34: =NPV(Analise_Fundamentalista!$C$10,Monte_Carlo!AZ34:BI34)+Monte_Carlo!BJ34/(1+Analise_Fundamentalista!$C$10)^10 -> -1043393.24 | BL34: =(BK34+Analise_Fundamentalista!$C$15-Analise_Fundamentalista!$C$16-Analise_Fundamentalista!$C$17)/(Analise_Fundamentalista!$F$29+Analise_Fundamentalista!$F$30)*1000 -> -35.1638428 | BM34: 0.7235111713
A35: 10 | B35: 1735227.838 | C35: =(RAND()*($D$17-$D$16)+$D$16)*(1-Analise_Fundamentalista!$C$6)*B35 -> 267847.2351 | D35: -17517.09733 | E35: =Analise_Fundamentalista!$C$12*Monte_Carlo!B35 -> 283037.6811 | F35: =-Analise_Fundamentalista!$C$14*Monte_Carlo!B35 -> -142754.3367 | G35: 1584804.655 | H35: =(RAND()*($D$17-$D$16)+$D$16)*(1-Analise_Fundamentalista!$C$6)*G35 -> 127866.0487 | I35: -613112.811 | J35: =Analise_Fundamentalista!$C$12*Monte_Carlo!G35 -> 258501.7512 | K35: =-Analise_Fundamentalista!$C$14*Monte_Carlo!G35 -> -130379.2692 | L35: 1548750.968 | M35: =(RAND()*($D$17-$D$16)+$D$16)*(1-Analise_Fundamentalista!$C$6)*L35 -> 253662.1903 | N35: -107480.6883 | O35: =Analise_Fundamentalista!$C$12*Monte_Carlo!L35 -> 252620.9372 | P35: =-Analise_Fundamentalista!$C$14*Monte_Carlo!L35 -> -127413.1917 | Q35: 1587910.297 | R35: =(RAND()*($D$17-$D$16)+$D$16)*(1-Analise_Fundamentalista!$C$6)*Q35 -> 187167.4385 | S35: -636282.7719 | T35: =Analise_Fundamentalista!$C$12*Monte_Carlo!Q35 -> 259008.3207 | U35: =-Analise_Fundamentalista!$C$14*Monte_Carlo!Q35 -> -130634.7652 | V35: 1502481.259 | W35: =(RAND()*($D$17-$D$16)+$D$16)*(1-Analise_Fundamentalista!$C$6)*V35 -> 104236.8014 | X35: -571364.7932 | Y35: =Analise_Fundamentalista!$C$12*Monte_Carlo!V35 -> 245073.7605 | Z35: =-Analise_Fundamentalista!$C$14*Monte_Carlo!V35 -> -123606.659 | AA35: 1401083.871 | AB35: =(RAND()*($D$17-$D$16)+$D$16)*(1-Analise_Fundamentalista!$C$6)*AA35 -> 216422.4607 | AC35: -422251.2611 | AD35: =Analise_Fundamentalista!$C$12*Monte_Carlo!AA35 -> 228534.5598 | AE35: =-Analise_Fundamentalista!$C$14*Monte_Carlo!AA35 -> -115264.8628 | AF35: 1510233.771 | AG35: =(RAND()*($D$17-$D$16)+$D$16)*(1-Analise_Fundamentalista!$C$6)*AF35 -> 114793.9906 | AH35: -741885.3922 | AI35: =Analise_Fundamentalista!$C$12*Monte_Carlo!AF35 -> 246338.2937 | AJ35: =-Analise_Fundamentalista!$C$14*Monte_Carlo!AF35 -> -124244.4454 | AK35: 1396555.535 | AL35: =(RAND()*($D$17-$D$16)+$D$16)*(1-Analise_Fundamentalista!$C$6)*AK35 -> 151516.0181 | AM35: -754560.8949 | AN35: =Analise_Fundamentalista!$C$12*Monte_Carlo!AK35 -> 227795.9307 | AO35: =-Analise_Fundamentalista!$C$14*Monte_Carlo!AK35 -> -114892.3241 | AP35: 1408312.826 | AQ35: =(RAND()*($D$17-$D$16)+$D$16)*(1-Analise_Fundamentalista!$C$6)*AP35 -> 211427.2567 | AR35: -1176230.335 | AS35: =Analise_Fundamentalista!$C$12*Monte_Carlo!AP35 -> 229713.6941 | AT35: =-Analise_Fundamentalista!$C$14*Monte_Carlo!AP35 -> -115859.5771 | AU35: 1321531.882 | AV35: =(RAND()*($D$17-$D$16)+$D$16)*(1-Analise_Fundamentalista!$C$6)*AU35 -> 190078.1268 | AW35: -759246.7675 | AX35: =Analise_Fundamentalista!$C$12*Monte_Carlo!AU35 -> 215558.6207 | AY35: =-Analise_Fundamentalista!$C$14*Monte_Carlo!AU35 -> -108720.2517 | AZ35: 390613.4822 | BA35: -357124.2803 | BB35: 271389.2474 | BC35: -320741.7779 | BD35: -345660.8902 | BE35: -92559.10352 | BF35: -504997.5533 | BG35: -490141.2702 | BH35: -850948.9613 | BI35: -462330.2716 | BJ35: =BI35*(1+Analise_Fundamentalista!$C$10)/(Analise_Fundamentalista!$C$10) -> -6055548.326 | BK35: =NPV(Analise_Fundamentalista!$C$10,Monte_Carlo!AZ35:BI35)+Monte_Carlo!BJ35/(1+Analise_Fundamentalista!$C$10)^10 -> -4164680.595 | BL35: =(BK35+Analise_Fundamentalista!$C$15-Analise_Fundamentalista!$C$16-Analise_Fundamentalista!$C$17)/(Analise_Fundamentalista!$F$29+Analise_Fundamentalista!$F$30)*1000 -> -105.6136559 | BM35: 0.2634331311
A36: Tent11 | B36: 1655991.311 | C36: =(RAND()*($D$17-$D$16)+$D$16)*(1-Analise_Fundamentalista!$C$6)*B36 -> 218200.831 | D36: -160845.3833 | E36: =Analise_Fundamentalista!$C$12*Monte_Carlo!B36 -> 270113.198 | F36: =-Analise_Fundamentalista!$C$14*Monte_Carlo!B36 -> -136235.6781 | G36: 1610938.095 | H36: =(RAND()*($D$17-$D$16)+$D$16)*(1-Analise_Fundamentalista!$C$6)*G36 -> 208620.6176 | I36: -120705.6169 | J36: =Analise_Fundamentalista!$C$12*Monte_Carlo!G36 -> 262764.4468 | K36: =-Analise_Fundamentalista!$C$14*Monte_Carlo!G36 -> -132529.2242 | L36: 1461500.355 | M36: =(RAND()*($D$17-$D$16)+$D$16)*(1-Analise_Fundamentalista!$C$6)*L36 -> 129405.6949 | N36: -788.8606743 | O36: =Analise_Fundamentalista!$C$12*Monte_Carlo!L36 -> 238389.2549 | P36: =-Analise_Fundamentalista!$C$14*Monte_Carlo!L36 -> -120235.2274 | Q36: 1529177.791 | R36: =(RAND()*($D$17-$D$16)+$D$16)*(1-Analise_Fundamentalista!$C$6)*Q36 -> 248189.5163 | S36: -80378.75741 | T36: =Analise_Fundamentalista!$C$12*Monte_Carlo!Q36 -> 249428.3036 | U36: =-Analise_Fundamentalista!$C$14*Monte_Carlo!Q36 -> -125802.9386 | V36: 1652603.347 | W36: =(RAND()*($D$17-$D$16)+$D$16)*(1-Analise_Fundamentalista!$C$6)*V36 -> 141763.7668 | X36: -1559282.325 | Y36: =Analise_Fundamentalista!$C$12*Monte_Carlo!V36 -> 269560.5782 | Z36: =-Analise_Fundamentalista!$C$14*Monte_Carlo!V36 -> -135956.956 | AA36: 1556935.047 | AB36: =(RAND()*($D$17-$D$16)+$D$16)*(1-Analise_Fundamentalista!$C$6)*AA36 -> 262840.6883 | AC36: -716506.0255 | AD36: =Analise_Fundamentalista!$C$12*Monte_Carlo!AA36 -> 253955.8644 | AE36: =-Analise_Fundamentalista!$C$14*Monte_Carlo!AA36 -> -128086.4825 | AF36: 1469966.216 | AG36: =(RAND()*($D$17-$D$16)+$D$16)*(1-Analise_Fundamentalista!$C$6)*AF36 -> 250819.3931 | AH36: -278266.6089 | AI36: =Analise_Fundamentalista!$C$12*Monte_Carlo!AF36 -> 239770.1443 | AJ36: =-Analise_Fundamentalista!$C$14*Monte_Carlo!AF36 -> -120931.6999 | AK36: 1445898.553 | AL36: =(RAND()*($D$17-$D$16)+$D$16)*(1-Analise_Fundamentalista!$C$6)*AK36 -> 111804.9217 | AM36: -265647.8448 | AN36: =Analise_Fundamentalista!$C$12*Monte_Carlo!AK36 -> 235844.4032 | AO36: =-Analise_Fundamentalista!$C$14*Monte_Carlo!AK36 -> -118951.693 | AP36: 1371743.709 | AQ36: =(RAND()*($D$17-$D$16)+$D$16)*(1-Analise_Fundamentalista!$C$6)*AP36 -> 164280.1595 | AR36: -65470.90742 | AS36: =Analise_Fundamentalista!$C$12*Monte_Carlo!AP36 -> 223748.8069 | AT36: =-Analise_Fundamentalista!$C$14*Monte_Carlo!AP36 -> -112851.096 | AU36: 1422536.827 | AV36: =(RAND()*($D$17-$D$16)+$D$16)*(1-Analise_Fundamentalista!$C$6)*AU36 -> 228349.2717 | AW36: -573772.3012 | AX36: =Analise_Fundamentalista!$C$12*Monte_Carlo!AU36 -> 232033.8091 | AY36: =-Analise_Fundamentalista!$C$14*Monte_Carlo!AU36 -> -117029.7622 | AZ36: 191232.9676 | BA36: 218150.2233 | BB36: 246770.8617 | BC36: 291436.1238 | BD36: -1283914.936 | BE36: -327795.9553 | BF36: 91391.22862 | BG36: -36950.21294 | BH36: 209706.963 | BI36: -230418.9826 | BJ36: =BI36*(1+Analise_Fundamentalista!$C$10)/(Analise_Fundamentalista!$C$10) -> -3018001.135 | BK36: =NPV(Analise_Fundamentalista!$C$10,Monte_Carlo!AZ36:BI36)+Monte_Carlo!BJ36/(1+Analise_Fundamentalista!$C$10)^10 -> -1630004.979 | BL36: =(BK36+Analise_Fundamentalista!$C$15-Analise_Fundamentalista!$C$16-Analise_Fundamentalista!$C$17)/(Analise_Fundamentalista!$F$29+Analise_Fundamentalista!$F$30)*1000 -> -48.40411284 | BM36: 0.6416496924
A37: Tent12 | B37: 1558413.518 | C37: =(RAND()*($D$17-$D$16)+$D$16)*(1-Analise_Fundamentalista!$C$6)*B37 -> 143019.2825 | D37: -969520.3786 | E37: =Analise_Fundamentalista!$C$12*Monte_Carlo!B37 -> 254197.0217 | F37: =-Analise_Fundamentalista!$C$14*Monte_Carlo!B37 -> -128208.1138 | G37: 1724511.653 | H37: =(RAND()*($D$17-$D$16)+$D$16)*(1-Analise_Fundamentalista!$C$6)*G37 -> 132099.1787 | I37: -271937.5661 | J37: =Analise_Fundamentalista!$C$12*Monte_Carlo!G37 -> 281289.7354 | K37: =-Analise_Fundamentalista!$C$14*Monte_Carlo!G37 -> -141872.7338 | L37: 1555822.555 | M37: =(RAND()*($D$17-$D$16)+$D$16)*(1-Analise_Fundamentalista!$C$6)*L37 -> 187171.3861 | N37: -625648.2923 | O37: =Analise_Fundamentalista!$C$12*Monte_Carlo!L37 -> 253774.4028 | P37: =-Analise_Fundamentalista!$C$14*Monte_Carlo!L37 -> -127994.9595 | Q37: 1515881.536 | R37: =(RAND()*($D$17-$D$16)+$D$16)*(1-Analise_Fundamentalista!$C$6)*Q37 -> 163470.5381 | S37: -72773.40285 | T37: =Analise_Fundamentalista!$C$12*Monte_Carlo!Q37 -> 247259.5157 | U37: =-Analise_Fundamentalista!$C$14*Monte_Carlo!Q37 -> -124709.0777 | V37: 1556592.928 | W37: =(RAND()*($D$17-$D$16)+$D$16)*(1-Analise_Fundamentalista!$C$6)*V37 -> 298684.8888 | X37: -78265.52678 | Y37: =Analise_Fundamentalista!$C$12*Monte_Carlo!V37 -> 253900.0604 | Z37: =-Analise_Fundamentalista!$C$14*Monte_Carlo!V37 -> -128058.3369 | AA37: 1498133.534 | AB37: =(RAND()*($D$17-$D$16)+$D$16)*(1-Analise_Fundamentalista!$C$6)*AA37 -> 286916.1093 | AC37: -178774.4362 | AD37: =Analise_Fundamentalista!$C$12*Monte_Carlo!AA37 -> 244364.5914 | AE37: =-Analise_Fundamentalista!$C$14*Monte_Carlo!AA37 -> -123248.9788 | AF37: 1398715.034 | AG37: =(RAND()*($D$17-$D$16)+$D$16)*(1-Analise_Fundamentalista!$C$6)*AF37 -> 258075.6667 | AH37: -313542.4427 | AI37: =Analise_Fundamentalista!$C$12*Monte_Carlo!AF37 -> 228148.1724 | AJ37: =-Analise_Fundamentalista!$C$14*Monte_Carlo!AF37 -> -115069.9825 | AK37: 1300472.739 | AL37: =(RAND()*($D$17-$D$16)+$D$16)*(1-Analise_Fundamentalista!$C$6)*AK37 -> 231739.2796 | AM37: -760937.8509 | AN37: =Analise_Fundamentalista!$C$12*Monte_Carlo!AK37 -> 212123.6073 | AO37: =-Analise_Fundamentalista!$C$14*Monte_Carlo!AK37 -> -106987.7507 | AP37: 1461365.34 | AQ37: =(RAND()*($D$17-$D$16)+$D$16)*(1-Analise_Fundamentalista!$C$6)*AP37 -> 150642.5447 | AR37: -18716.48392 | AS37: =Analise_Fundamentalista!$C$12*Monte_Carlo!AP37 -> 238367.2323 | AT37: =-Analise_Fundamentalista!$C$14*Monte_Carlo!AP37 -> -120224.12 | AU37: 1420895.094 | AV37: =(RAND()*($D$17-$D$16)+$D$16)*(1-Analise_Fundamentalista!$C$6)*AU37 -> 248854.342 | AW37: -647415.9069 | AX37: =Analise_Fundamentalista!$C$12*Monte_Carlo!AU37 -> 231766.0216 | AY37: =-Analise_Fundamentalista!$C$14*Monte_Carlo!AU37 -> -116894.6995 | AZ37: -700512.1882 | BA37: -421.3858599 | BB37: -312697.4629 | BC37: 213247.5733 | BD37: 346261.0856 | BE37: 229257.2857 | BF37: 57611.4139 | BG37: -424062.7147 | BH37: 250069.1731 | BI37: -283690.2428 | BJ37: =BI37*(1+Analise_Fundamentalista!$C$10)/(Analise_Fundamentalista!$C$10) -> -3715741.928 | BK37: =NPV(Analise_Fundamentalista!$C$10,Monte_Carlo!AZ37:BI37)+Monte_Carlo!BJ37/(1+Analise_Fundamentalista!$C$10)^10 -> -2240205.576 | BL37: =(BK37+Analise_Fundamentalista!$C$15-Analise_Fundamentalista!$C$16-Analise_Fundamentalista!$C$17)/(Analise_Fundamentalista!$F$29+Analise_Fundamentalista!$F$30)*1000 -> -62.1768012 | BM37: 0.5490151266
A38: Tent13 | B38: 1583063.745 | C38: =(RAND()*($D$17-$D$16)+$D$16)*(1-Analise_Fundamentalista!$C$6)*B38 -> 188272.9681 | D38: -9687.026707 | E38: =Analise_Fundamentalista!$C$12*Monte_Carlo!B38 -> 258217.7865 | F38: =-Analise_Fundamentalista!$C$14*Monte_Carlo!B38 -> -130236.0473 | G38: 1729946.456 | H38: =(RAND()*($D$17-$D$16)+$D$16)*(1-Analise_Fundamentalista!$C$6)*G38 -> 206200.9591 | I38: -1347931.694 | J38: =Analise_Fundamentalista!$C$12*Monte_Carlo!G38 -> 282176.2208 | K38: =-Analise_Fundamentalista!$C$14*Monte_Carlo!G38 -> -142319.8462 | L38: 1561046.609 | M38: =(RAND()*($D$17-$D$16)+$D$16)*(1-Analise_Fundamentalista!$C$6)*L38 -> 296285.4718 | N38: -146453.0987 | O38: =Analise_Fundamentalista!$C$12*Monte_Carlo!L38 -> 254626.5124 | P38: =-Analise_Fundamentalista!$C$14*Monte_Carlo!L38 -> -128424.7339 | Q38: 1600400.669 | R38: =(RAND()*($D$17-$D$16)+$D$16)*(1-Analise_Fundamentalista!$C$6)*Q38 -> 231399.0828 | S38: -1227302.676 | T38: =Analise_Fundamentalista!$C$12*Monte_Carlo!Q38 -> 261045.6589 | U38: =-Analise_Fundamentalista!$C$14*Monte_Carlo!Q38 -> -131662.3276 | V38: 1496645.434 | W38: =(RAND()*($D$17-$D$16)+$D$16)*(1-Analise_Fundamentalista!$C$6)*V38 -> 265554.8562 | X38: -366583.2599 | Y38: =Analise_Fundamentalista!$C$12*Monte_Carlo!V38 -> 244121.8634 | Z38: =-Analise_Fundamentalista!$C$14*Monte_Carlo!V38 -> -123126.5552 | AA38: 1390341.84 | AB38: =(RAND()*($D$17-$D$16)+$D$16)*(1-Analise_Fundamentalista!$C$6)*AA38 -> 109635.6042 | AC38: -219276.0023 | AD38: =Analise_Fundamentalista!$C$12*Monte_Carlo!AA38 -> 226782.3982 | AE38: =-Analise_Fundamentalista!$C$14*Monte_Carlo!AA38 -> -114381.1336 | AF38: 1473470.426 | AG38: =(RAND()*($D$17-$D$16)+$D$16)*(1-Analise_Fundamentalista!$C$6)*AF38 -> 286035.0973 | AH38: -677897.1053 | AI38: =Analise_Fundamentalista!$C$12*Monte_Carlo!AF38 -> 240341.7254 | AJ38: =-Analise_Fundamentalista!$C$14*Monte_Carlo!AF38 -> -121219.9855 | AK38: 1384786.965 | AL38: =(RAND()*($D$17-$D$16)+$D$16)*(1-Analise_Fundamentalista!$C$6)*AK38 -> 235194.9546 | AM38: -213173.4306 | AN38: =Analise_Fundamentalista!$C$12*Monte_Carlo!AK38 -> 225876.3276 | AO38: =-Analise_Fundamentalista!$C$14*Monte_Carlo!AK38 -> -113924.1432 | AP38: 1461765.947 | AQ38: =(RAND()*($D$17-$D$16)+$D$16)*(1-Analise_Fundamentalista!$C$6)*AP38 -> 269245.8556 | AR38: -840710.6675 | AS38: =Analise_Fundamentalista!$C$12*Monte_Carlo!AP38 -> 238432.5765 | AT38: =-Analise_Fundamentalista!$C$14*Monte_Carlo!AP38 -> -120257.0773 | AU38: 1396049.189 | AV38: =(RAND()*($D$17-$D$16)+$D$16)*(1-Analise_Fundamentalista!$C$6)*AU38 -> 219006.5349 | AW38: -605088.5241 | AX38: =Analise_Fundamentalista!$C$12*Monte_Carlo!AU38 -> 227713.3391 | AY38: =-Analise_Fundamentalista!$C$14*Monte_Carlo!AU38 -> -114850.6678 | AZ38: 306567.6806 | BA38: -1001874.36 | BB38: 276034.1516 | BC38: -866520.2615 | BD38: 19966.9045 | BE38: 2760.866493 | BF38: -272740.268 | BG38: 133973.7084 | BH38: -453289.3128 | BI38: -273219.3179 | BJ38: =BI38*(1+Analise_Fundamentalista!$C$10)/(Analise_Fundamentalista!$C$10) -> -3578594.967 | BK38: =NPV(Analise_Fundamentalista!$C$10,Monte_Carlo!AZ38:BI38)+Monte_Carlo!BJ38/(1+Analise_Fundamentalista!$C$10)^10 -> -3017646.881 | BL38: =(BK38+Analise_Fundamentalista!$C$15-Analise_Fundamentalista!$C$16-Analise_Fundamentalista!$C$17)/(Analise_Fundamentalista!$F$29+Analise_Fundamentalista!$F$30)*1000 -> -79.72423866 | BM38: 0.4277049311
A39: Tent14 | B39: 1699973.047 | C39: =(RAND()*($D$17-$D$16)+$D$16)*(1-Analise_Fundamentalista!$C$6)*B39 -> 225070.3079 | D39: -278176.3327 | E39: =Analise_Fundamentalista!$C$12*Monte_Carlo!B39 -> 277287.1774 | F39: =-Analise_Fundamentalista!$C$14*Monte_Carlo!B39 -> -139853.9832 | G39: 1505364.293 | H39: =(RAND()*($D$17-$D$16)+$D$16)*(1-Analise_Fundamentalista!$C$6)*G39 -> 227294.9272 | I39: -1494421.987 | J39: =Analise_Fundamentalista!$C$12*Monte_Carlo!G39 -> 245544.02 | K39: =-Analise_Fundamentalista!$C$14*Monte_Carlo!G39 -> -123843.8415 | L39: 1666534.187 | M39: =(RAND()*($D$17-$D$16)+$D$16)*(1-Analise_Fundamentalista!$C$6)*L39 -> 240361.9607 | N39: -243254.9043 | O39: =Analise_Fundamentalista!$C$12*Monte_Carlo!L39 -> 271832.875 | P39: =-Analise_Fundamentalista!$C$14*Monte_Carlo!L39 -> -137103.0232 | Q39: 1581146.362 | R39: =(RAND()*($D$17-$D$16)+$D$16)*(1-Analise_Fundamentalista!$C$6)*Q39 -> 180530.469 | S39: -47569.81489 | T39: =Analise_Fundamentalista!$C$12*Monte_Carlo!Q39 -> 257905.0372 | U39: =-Analise_Fundamentalista!$C$14*Monte_Carlo!Q39 -> -130078.3075 | V39: 1503459.87 | W39: =(RAND()*($D$17-$D$16)+$D$16)*(1-Analise_Fundamentalista!$C$6)*V39 -> 144060.2343 | X39: -51837.56253 | Y39: =Analise_Fundamentalista!$C$12*Monte_Carlo!V39 -> 245233.3844 | Z39: =-Analise_Fundamentalista!$C$14*Monte_Carlo!V39 -> -123687.1677 | AA39: 1439638.577 | AB39: =(RAND()*($D$17-$D$16)+$D$16)*(1-Analise_Fundamentalista!$C$6)*AA39 -> 156821.2843 | AC39: -465638.6786 | AD39: =Analise_Fundamentalista!$C$12*Monte_Carlo!AA39 -> 234823.3215 | AE39: =-Analise_Fundamentalista!$C$14*Monte_Carlo!AA39 -> -118436.695 | AF39: 1392610.893 | AG39: =(RAND()*($D$17-$D$16)+$D$16)*(1-Analise_Fundamentalista!$C$6)*AF39 -> 249423.5647 | AH39: -483605.704 | AI39: =Analise_Fundamentalista!$C$12*Monte_Carlo!AF39 -> 227152.5096 | AJ39: =-Analise_Fundamentalista!$C$14*Monte_Carlo!AF39 -> -114567.8049 | AK39: 1494517.219 | AL39: =(RAND()*($D$17-$D$16)+$D$16)*(1-Analise_Fundamentalista!$C$6)*AK39 -> 131248.7573 | AM39: -288205.7906 | AN39: =Analise_Fundamentalista!$C$12*Monte_Carlo!AK39 -> 243774.7245 | AO39: =-Analise_Fundamentalista!$C$14*Monte_Carlo!AK39 -> -122951.4705 | AP39: 1459620.598 | AQ39: =(RAND()*($D$17-$D$16)+$D$16)*(1-Analise_Fundamentalista!$C$6)*AP39 -> 134822.5327 | AR39: -88863.54888 | AS39: =Analise_Fundamentalista!$C$12*Monte_Carlo!AP39 -> 238082.6428 | AT39: =-Analise_Fundamentalista!$C$14*Monte_Carlo!AP39 -> -120080.583 | AU39: 1378939.404 | AV39: =(RAND()*($D$17-$D$16)+$D$16)*(1-Analise_Fundamentalista!$C$6)*AU39 -> 116535.4387 | AW39: -809834.6006 | AX39: =Analise_Fundamentalista!$C$12*Monte_Carlo!AU39 -> 224922.5162 | AY39: =-Analise_Fundamentalista!$C$14*Monte_Carlo!AU39 -> -113443.074 | AZ39: 84327.16946 | BA39: -1145426.881 | BB39: 131836.9082 | BC39: 260787.3838 | BD39: 213768.8885 | BE39: -192430.7678 | BF39: -121597.4347 | BG39: -36133.77933 | BH39: 163961.0436 | BI39: -581819.7197 | BJ39: =BI39*(1+Analise_Fundamentalista!$C$10)/(Analise_Fundamentalista!$C$10) -> -7620607.271 | BK39: =NPV(Analise_Fundamentalista!$C$10,Monte_Carlo!AZ39:BI39)+Monte_Carlo!BJ39/(1+Analise_Fundamentalista!$C$10)^10 -> -4297070.536 | BL39: =(BK39+Analise_Fundamentalista!$C$15-Analise_Fundamentalista!$C$16-Analise_Fundamentalista!$C$17)/(Analise_Fundamentalista!$F$29+Analise_Fundamentalista!$F$30)*1000 -> -108.6017969 | BM39: 0.2467343684
A40: Tent15 | B40: 1597431.176 | C40: =(RAND()*($D$17-$D$16)+$D$16)*(1-Analise_Fundamentalista!$C$6)*B40 -> 258027.1672 | D40: -734445.2466 | E40: =Analise_Fundamentalista!$C$12*Monte_Carlo!B40 -> 260561.2969 | F40: =-Analise_Fundamentalista!$C$14*Monte_Carlo!B40 -> -131418.0323 | G40: 1534588.605 | H40: =(RAND()*($D$17-$D$16)+$D$16)*(1-Analise_Fundamentalista!$C$6)*G40 -> 102884.9972 | I40: -467321.1496 | J40: =Analise_Fundamentalista!$C$12*Monte_Carlo!G40 -> 250310.8762 | K40: =-Analise_Fundamentalista!$C$14*Monte_Carlo!G40 -> -126248.0775 | L40: 1550010.323 | M40: =(RAND()*($D$17-$D$16)+$D$16)*(1-Analise_Fundamentalista!$C$6)*L40 -> 217931.9357 | N40: -584287.784 | O40: =Analise_Fundamentalista!$C$12*Monte_Carlo!L40 -> 252826.354 | P40: =-Analise_Fundamentalista!$C$14*Monte_Carlo!L40 -> -127516.7968 | Q40: 1511133.468 | R40: =(RAND()*($D$17-$D$16)+$D$16)*(1-Analise_Fundamentalista!$C$6)*Q40 -> 155071.0138 | S40: -411306.6905 | T40: =Analise_Fundamentalista!$C$12*Monte_Carlo!Q40 -> 246485.0456 | U40: =-Analise_Fundamentalista!$C$14*Monte_Carlo!Q40 -> -124318.4619 | V40: 1358999.582 | W40: =(RAND()*($D$17-$D$16)+$D$16)*(1-Analise_Fundamentalista!$C$6)*V40 -> 248878.0438 | X40: -174494.5073 | Y40: =Analise_Fundamentalista!$C$12*Monte_Carlo!V40 -> 221670.0781 | Z40: =-Analise_Fundamentalista!$C$14*Monte_Carlo!V40 -> -111802.6577 | AA40: 1454894.947 | AB40: =(RAND()*($D$17-$D$16)+$D$16)*(1-Analise_Fundamentalista!$C$6)*AA40 -> 225045.1337 | AC40: -616185.3491 | AD40: =Analise_Fundamentalista!$C$12*Monte_Carlo!AA40 -> 237311.829 | AE40: =-Analise_Fundamentalista!$C$14*Monte_Carlo!AA40 -> -119691.8114 | AF40: 1383139.013 | AG40: =(RAND()*($D$17-$D$16)+$D$16)*(1-Analise_Fundamentalista!$C$6)*AF40 -> 223457.8243 | AH40: -725462.6808 | AI40: =Analise_Fundamentalista!$C$12*Monte_Carlo!AF40 -> 225607.5257 | AJ40: =-Analise_Fundamentalista!$C$14*Monte_Carlo!AF40 -> -113788.5689 | AK40: 1475376.32 | AL40: =(RAND()*($D$17-$D$16)+$D$16)*(1-Analise_Fundamentalista!$C$6)*AK40 -> 286025.0212 | AM40: -34090.01337 | AN40: =Analise_Fundamentalista!$C$12*Monte_Carlo!AK40 -> 240652.6009 | AO40: =-Analise_Fundamentalista!$C$14*Monte_Carlo!AK40 -> -121376.7802 | AP40: 1494866.506 | AQ40: =(RAND()*($D$17-$D$16)+$D$16)*(1-Analise_Fundamentalista!$C$6)*AP40 -> 131026.4327 | AR40: -247234.9317 | AS40: =Analise_Fundamentalista!$C$12*Monte_Carlo!AP40 -> 243831.6977 | AT40: =-Analise_Fundamentalista!$C$14*Monte_Carlo!AP40 -> -122980.2058 | AU40: 1366807.603 | AV40: =(RAND()*($D$17-$D$16)+$D$16)*(1-Analise_Fundamentalista!$C$6)*AU40 -> 203020.9051 | AW40: -692356.5661 | AX40: =Analise_Fundamentalista!$C$12*Monte_Carlo!AU40 -> 222943.6654 | AY40: =-Analise_Fundamentalista!$C$14*Monte_Carlo!AU40 -> -112445.0107 | AZ40: -347274.8148 | BA40: -240373.3537 | BB40: -241046.2911 | BC40: -134069.0931 | BD40: 184250.9569 | BE40: -273520.1978 | BF40: -390185.8998 | BG40: 371210.8285 | BH40: 4642.992852 | BI40: -378837.0063 | BJ40: =BI40*(1+Analise_Fundamentalista!$C$10)/(Analise_Fundamentalista!$C$10) -> -4961963.212 | BK40: =NPV(Analise_Fundamentalista!$C$10,Monte_Carlo!AZ40:BI40)+Monte_Carlo!BJ40/(1+Analise_Fundamentalista!$C$10)^10 -> -3297927.286 | BL40: =(BK40+Analise_Fundamentalista!$C$15-Analise_Fundamentalista!$C$16-Analise_Fundamentalista!$C$17)/(Analise_Fundamentalista!$F$29+Analise_Fundamentalista!$F$30)*1000 -> -86.05037909 | BM40: 0.3850210807
A41: Tent16 | B41: 1529488.248 | C41: =(RAND()*($D$17-$D$16)+$D$16)*(1-Analise_Fundamentalista!$C$6)*B41 -> 171937.9346 | D41: -80337.98876 | E41: =Analise_Fundamentalista!$C$12*Monte_Carlo!B41 -> 249478.9432 | F41: =-Analise_Fundamentalista!$C$14*Monte_Carlo!B41 -> -125828.4795 | G41: 1583785.642 | H41: =(RAND()*($D$17-$D$16)+$D$16)*(1-Analise_Fundamentalista!$C$6)*G41 -> 143406.5627 | I41: -59919.78453 | J41: =Analise_Fundamentalista!$C$12*Monte_Carlo!G41 -> 258335.5371 | K41: =-Analise_Fundamentalista!$C$14*Monte_Carlo!G41 -> -130295.4366 | L41: 1418440.835 | M41: =(RAND()*($D$17-$D$16)+$D$16)*(1-Analise_Fundamentalista!$C$6)*L41 -> 225391.2783 | N41: -398013.5026 | O41: =Analise_Fundamentalista!$C$12*Monte_Carlo!L41 -> 231365.7009 | P41: =-Analise_Fundamentalista!$C$14*Monte_Carlo!L41 -> -116692.7917 | Q41: 1436992.225 | R41: =(RAND()*($D$17-$D$16)+$D$16)*(1-Analise_Fundamentalista!$C$6)*Q41 -> 230418.1337 | S41: -73133.41323 | T41: =Analise_Fundamentalista!$C$12*Monte_Carlo!Q41 -> 234391.668 | U41: =-Analise_Fundamentalista!$C$14*Monte_Carlo!Q41 -> -118218.984 | V41: 1506058.372 | W41: =(RAND()*($D$17-$D$16)+$D$16)*(1-Analise_Fundamentalista!$C$6)*V41 -> 150585.0994 | X41: -776941.2549 | Y41: =Analise_Fundamentalista!$C$12*Monte_Carlo!V41 -> 245657.2331 | Z41: =-Analise_Fundamentalista!$C$14*Monte_Carlo!V41 -> -123900.9422 | AA41: 1551704.539 | AB41: =(RAND()*($D$17-$D$16)+$D$16)*(1-Analise_Fundamentalista!$C$6)*AA41 -> 121499.6645 | AC41: -340669.0064 | AD41: =Analise_Fundamentalista!$C$12*Monte_Carlo!AA41 -> 253102.7022 | AE41: =-Analise_Fundamentalista!$C$14*Monte_Carlo!AA41 -> -127656.1772 | AF41: 1478687.216 | AG41: =(RAND()*($D$17-$D$16)+$D$16)*(1-Analise_Fundamentalista!$C$6)*AF41 -> 155331.8061 | AH41: -920367.6509 | AI41: =Analise_Fundamentalista!$C$12*Monte_Carlo!AF41 -> 241192.6502 | AJ41: =-Analise_Fundamentalista!$C$14*Monte_Carlo!AF41 -> -121649.1622 | AK41: 1424009.284 | AL41: =(RAND()*($D$17-$D$16)+$D$16)*(1-Analise_Fundamentalista!$C$6)*AK41 -> 245936.1256 | AM41: -225712.8625 | AN41: =Analise_Fundamentalista!$C$12*Monte_Carlo!AK41 -> 232273.9856 | AO41: =-Analise_Fundamentalista!$C$14*Monte_Carlo!AK41 -> -117150.8988 | AP41: 1427616.372 | AQ41: =(RAND()*($D$17-$D$16)+$D$16)*(1-Analise_Fundamentalista!$C$6)*AP41 -> 232273.0714 | AR41: -712550.2729 | AS41: =Analise_Fundamentalista!$C$12*Monte_Carlo!AP41 -> 232862.3474 | AT41: =-Analise_Fundamentalista!$C$14*Monte_Carlo!AP41 -> -117447.648 | AU41: 1416604.144 | AV41: =(RAND()*($D$17-$D$16)+$D$16)*(1-Analise_Fundamentalista!$C$6)*AU41 -> 223030.7525 | AW41: -466403.5282 | AX41: =Analise_Fundamentalista!$C$12*Monte_Carlo!AU41 -> 231066.1132 | AY41: =-Analise_Fundamentalista!$C$14*Monte_Carlo!AU41 -> -116541.6901 | AZ41: 215250.4095 | BA41: 211526.8786 | BB41: -57949.31509 | BC41: 273457.4045 | BD41: -504599.8646 | BE41: -93722.8169 | BF41: -645492.3568 | BG41: 135346.3499 | BH41: -364862.5021 | BI41: -128848.3527 | BJ41: =BI41*(1+Analise_Fundamentalista!$C$10)/(Analise_Fundamentalista!$C$10) -> -1687640.793 | BK41: =NPV(Analise_Fundamentalista!$C$10,Monte_Carlo!AZ41:BI41)+Monte_Carlo!BJ41/(1+Analise_Fundamentalista!$C$10)^10 -> -1162763.419 | BL41: =(BK41+Analise_Fundamentalista!$C$15-Analise_Fundamentalista!$C$16-Analise_Fundamentalista!$C$17)/(Analise_Fundamentalista!$F$29+Analise_Fundamentalista!$F$30)*1000 -> -37.85811791 | BM41: 0.7076090379
A42: Tent17 | B42: 1636856.101 | C42: =(RAND()*($D$17-$D$16)+$D$16)*(1-Analise_Fundamentalista!$C$6)*B42 -> 271105.1668 | D42: -48635.27891 | E42: =Analise_Fundamentalista!$C$12*Monte_Carlo!B42 -> 266992.0025 | F42: =-Analise_Fundamentalista!$C$14*Monte_Carlo!B42 -> -134661.4559 | G42: 1648327.47 | H42: =(RAND()*($D$17-$D$16)+$D$16)*(1-Analise_Fundamentalista!$C$6)*G42 -> 112542.6416 | I42: -431537.5983 | J42: =Analise_Fundamentalista!$C$12*Monte_Carlo!G42 -> 268863.1284 | K42: =-Analise_Fundamentalista!$C$14*Monte_Carlo!G42 -> -135605.1866 | L42: 1544430.221 | M42: =(RAND()*($D$17-$D$16)+$D$16)*(1-Analise_Fundamentalista!$C$6)*L42 -> 221774.7593 | N42: -480002.0683 | O42: =Analise_Fundamentalista!$C$12*Monte_Carlo!L42 -> 251916.1685 | P42: =-Analise_Fundamentalista!$C$14*Monte_Carlo!L42 -> -127057.731 | Q42: 1424848.82 | R42: =(RAND()*($D$17-$D$16)+$D$16)*(1-Analise_Fundamentalista!$C$6)*Q42 -> 250241.2422 | S42: -70245.1811 | T42: =Analise_Fundamentalista!$C$12*Monte_Carlo!Q42 -> 232410.9245 | U42: =-Analise_Fundamentalista!$C$14*Monte_Carlo!Q42 -> -117219.966 | V42: 1536075.564 | W42: =(RAND()*($D$17-$D$16)+$D$16)*(1-Analise_Fundamentalista!$C$6)*V42 -> 220632.8199 | X42: -549962.3598 | Y42: =Analise_Fundamentalista!$C$12*Monte_Carlo!V42 -> 250553.418 | Z42: =-Analise_Fundamentalista!$C$14*Monte_Carlo!V42 -> -126370.4071 | AA42: 1632900.677 | AB42: =(RAND()*($D$17-$D$16)+$D$16)*(1-Analise_Fundamentalista!$C$6)*AA42 -> 271311.417 | AC42: -1539129.952 | AD42: =Analise_Fundamentalista!$C$12*Monte_Carlo!AA42 -> 266346.8227 | AE42: =-Analise_Fundamentalista!$C$14*Monte_Carlo!AA42 -> -134336.0497 | AF42: 1470905.286 | AG42: =(RAND()*($D$17-$D$16)+$D$16)*(1-Analise_Fundamentalista!$C$6)*AF42 -> 230554.7286 | AH42: -528045.9931 | AI42: =Analise_Fundamentalista!$C$12*Monte_Carlo!AF42 -> 239923.3185 | AJ42: =-Analise_Fundamentalista!$C$14*Monte_Carlo!AF42 -> -121008.9556 | AK42: 1488869.485 | AL42: =(RAND()*($D$17-$D$16)+$D$16)*(1-Analise_Fundamentalista!$C$6)*AK42 -> 132023.091 | AM42: -676623.7784 | AN42: =Analise_Fundamentalista!$C$12*Monte_Carlo!AK42 -> 242853.5074 | AO42: =-Analise_Fundamentalista!$C$14*Monte_Carlo!AK42 -> -122486.8407 | AP42: 1278511.852 | AQ42: =(RAND()*($D$17-$D$16)+$D$16)*(1-Analise_Fundamentalista!$C$6)*AP42 -> 134647.5497 | AR42: -160402.5138 | AS42: =Analise_Fundamentalista!$C$12*Monte_Carlo!AP42 -> 208541.5079 | AT42: =-Analise_Fundamentalista!$C$14*Monte_Carlo!AP42 -> -105181.0646 | AU42: 1464491.816 | AV42: =(RAND()*($D$17-$D$16)+$D$16)*(1-Analise_Fundamentalista!$C$6)*AU42 -> 171285.8751 | AW42: -87571.34903 | AX42: =Analise_Fundamentalista!$C$12*Monte_Carlo!AU42 -> 238877.2002 | AY42: =-Analise_Fundamentalista!$C$14*Monte_Carlo!AU42 -> -120481.33 | AZ42: 354800.4344 | BA42: -185737.0149 | BB42: -133368.8715 | BC42: 295187.0196 | BD42: -205146.529 | BE42: -1135807.762 | BF42: -178576.9015 | BG42: -424234.0207 | BH42: 77605.47914 | BI42: 202110.3962 | BJ42: =BI42*(1+Analise_Fundamentalista!$C$10)/(Analise_Fundamentalista!$C$10) -> 2647218.55 | BK42: =NPV(Analise_Fundamentalista!$C$10,Monte_Carlo!AZ42:BI42)+Monte_Carlo!BJ42/(1+Analise_Fundamentalista!$C$10)^10 -> 434374.0812 | BL42: =(BK42+Analise_Fundamentalista!$C$15-Analise_Fundamentalista!$C$16-Analise_Fundamentalista!$C$17)/(Analise_Fundamentalista!$F$29+Analise_Fundamentalista!$F$30)*1000 -> -1.809518191 | BM42: 0.8797622681
A43: Tent18 | B43: 1620527.198 | C43: =(RAND()*($D$17-$D$16)+$D$16)*(1-Analise_Fundamentalista!$C$6)*B43 -> 309916.8774 | D43: -1016435.747 | E43: =Analise_Fundamentalista!$C$12*Monte_Carlo!B43 -> 264328.5512 | F43: =-Analise_Fundamentalista!$C$14*Monte_Carlo!B43 -> -133318.104 | G43: 1534282.006 | H43: =(RAND()*($D$17-$D$16)+$D$16)*(1-Analise_Fundamentalista!$C$6)*G43 -> 124279.7142 | I43: -420666.4902 | J43: =Analise_Fundamentalista!$C$12*Monte_Carlo!G43 -> 250260.8659 | K43: =-Analise_Fundamentalista!$C$14*Monte_Carlo!G43 -> -126222.8541 | L43: 1545550.051 | M43: =(RAND()*($D$17-$D$16)+$D$16)*(1-Analise_Fundamentalista!$C$6)*L43 -> 181900.3804 | N43: -339867.4101 | O43: =Analise_Fundamentalista!$C$12*Monte_Carlo!L43 -> 252098.827 | P43: =-Analise_Fundamentalista!$C$14*Monte_Carlo!L43 -> -127149.8575 | Q43: 1558883.829 | R43: =(RAND()*($D$17-$D$16)+$D$16)*(1-Analise_Fundamentalista!$C$6)*Q43 -> 273859.9298 | S43: -425034.6042 | T43: =Analise_Fundamentalista!$C$12*Monte_Carlo!Q43 -> 254273.7354 | U43: =-Analise_Fundamentalista!$C$14*Monte_Carlo!Q43 -> -128246.8055 | V43: 1634061.798 | W43: =(RAND()*($D$17-$D$16)+$D$16)*(1-Analise_Fundamentalista!$C$6)*V43 -> 120472.9172 | X43: -331824.5339 | Y43: =Analise_Fundamentalista!$C$12*Monte_Carlo!V43 -> 266536.2162 | Z43: =-Analise_Fundamentalista!$C$14*Monte_Carlo!V43 -> -134431.5732 | AA43: 1548266.788 | AB43: =(RAND()*($D$17-$D$16)+$D$16)*(1-Analise_Fundamentalista!$C$6)*AA43 -> 301965.4376 | AC43: -704373.48 | AD43: =Analise_Fundamentalista!$C$12*Monte_Carlo!AA43 -> 252541.9613 | AE43: =-Analise_Fundamentalista!$C$14*Monte_Carlo!AA43 -> -127373.359 | AF43: 1427020.955 | AG43: =(RAND()*($D$17-$D$16)+$D$16)*(1-Analise_Fundamentalista!$C$6)*AF43 -> 202833.2499 | AH43: -440506.6655 | AI43: =Analise_Fundamentalista!$C$12*Monte_Carlo!AF43 -> 232765.2272 | AJ43: =-Analise_Fundamentalista!$C$14*Monte_Carlo!AF43 -> -117398.664 | AK43: 1409156.584 | AL43: =(RAND()*($D$17-$D$16)+$D$16)*(1-Analise_Fundamentalista!$C$6)*AK43 -> 121754.8675 | AM43: -1118014.764 | AN43: =Analise_Fundamentalista!$C$12*Monte_Carlo!AK43 -> 229851.3216 | AO43: =-Analise_Fundamentalista!$C$14*Monte_Carlo!AK43 -> -115928.9916 | AP43: 1512794.55 | AQ43: =(RAND()*($D$17-$D$16)+$D$16)*(1-Analise_Fundamentalista!$C$6)*AP43 -> 217447.9027 | AR43: -529001.2969 | AS43: =Analise_Fundamentalista!$C$12*Monte_Carlo!AP43 -> 246755.9891 | AT43: =-Analise_Fundamentalista!$C$14*Monte_Carlo!AP43 -> -124455.1164 | AU43: 1281798.729 | AV43: =(RAND()*($D$17-$D$16)+$D$16)*(1-Analise_Fundamentalista!$C$6)*AU43 -> 123052.1669 | AW43: -431902.218 | AX43: =Analise_Fundamentalista!$C$12*Monte_Carlo!AU43 -> 209077.6393 | AY43: =-Analise_Fundamentalista!$C$14*Monte_Carlo!AU43 -> -105451.4706 | AZ43: -575508.4223 | BA43: -172348.7641 | BB43: -33018.06017 | BC43: -25147.74452 | BD43: -79246.97377 | BE43: -277239.4401 | BF43: -122306.8524 | BG43: -882337.5668 | BH43: -189252.5215 | BI43: -205223.8824 | BJ43: =BI43*(1+Analise_Fundamentalista!$C$10)/(Analise_Fundamentalista!$C$10) -> -2687998.631 | BK43: =NPV(Analise_Fundamentalista!$C$10,Monte_Carlo!AZ43:BI43)+Monte_Carlo!BJ43/(1+Analise_Fundamentalista!$C$10)^10 -> -2886081.653 | BL43: =(BK43+Analise_Fundamentalista!$C$15-Analise_Fundamentalista!$C$16-Analise_Fundamentalista!$C$17)/(Analise_Fundamentalista!$F$29+Analise_Fundamentalista!$F$30)*1000 -> -76.75471209 | BM43: 0.4480700194
A44: Tent19 | B44: 1497586.707 | C44: =(RAND()*($D$17-$D$16)+$D$16)*(1-Analise_Fundamentalista!$C$6)*B44 -> 286485.2079 | D44: -129236.6713 | E44: =Analise_Fundamentalista!$C$12*Monte_Carlo!B44 -> 244275.3969 | F44: =-Analise_Fundamentalista!$C$14*Monte_Carlo!B44 -> -123203.9922 | G44: 1499780.389 | H44: =(RAND()*($D$17-$D$16)+$D$16)*(1-Analise_Fundamentalista!$C$6)*G44 -> 253871.6551 | I44: -191408.7295 | J44: =Analise_Fundamentalista!$C$12*Monte_Carlo!G44 -> 244633.2143 | K44: =-Analise_Fundamentalista!$C$14*Monte_Carlo!G44 -> -123384.4628 | L44: 1689258.298 | M44: =(RAND()*($D$17-$D$16)+$D$16)*(1-Analise_Fundamentalista!$C$6)*L44 -> 121808.5492 | N44: -115728.6681 | O44: =Analise_Fundamentalista!$C$12*Monte_Carlo!L44 -> 275539.4659 | P44: =-Analise_Fundamentalista!$C$14*Monte_Carlo!L44 -> -138972.4984 | Q44: 1650861.091 | R44: =(RAND()*($D$17-$D$16)+$D$16)*(1-Analise_Fundamentalista!$C$6)*Q44 -> 248114.6709 | S44: -135734.0151 | T44: =Analise_Fundamentalista!$C$12*Monte_Carlo!Q44 -> 269276.3941 | U44: =-Analise_Fundamentalista!$C$14*Monte_Carlo!Q44 -> -135813.6234 | V44: 1423360.06 | W44: =(RAND()*($D$17-$D$16)+$D$16)*(1-Analise_Fundamentalista!$C$6)*V44 -> 183188.7468 | X44: -445182.1418 | Y44: =Analise_Fundamentalista!$C$12*Monte_Carlo!V44 -> 232168.0888 | Z44: =-Analise_Fundamentalista!$C$14*Monte_Carlo!V44 -> -117097.4882 | AA44: 1403059.924 | AB44: =(RAND()*($D$17-$D$16)+$D$16)*(1-Analise_Fundamentalista!$C$6)*AA44 -> 162716.9968 | AC44: -117218.4538 | AD44: =Analise_Fundamentalista!$C$12*Monte_Carlo!AA44 -> 228856.879 | AE44: =-Analise_Fundamentalista!$C$14*Monte_Carlo!AA44 -> -115427.4294 | AF44: 1553549.423 | AG44: =(RAND()*($D$17-$D$16)+$D$16)*(1-Analise_Fundamentalista!$C$6)*AF44 -> 298571.1383 | AH44: -66860.71574 | AI44: =Analise_Fundamentalista!$C$12*Monte_Carlo!AF44 -> 253403.6261 | AJ44: =-Analise_Fundamentalista!$C$14*Monte_Carlo!AF44 -> -127807.9527 | AK44: 1408314.189 | AL44: =(RAND()*($D$17-$D$16)+$D$16)*(1-Analise_Fundamentalista!$C$6)*AK44 -> 258834.4873 | AM44: -218462.8433 | AN44: =Analise_Fundamentalista!$C$12*Monte_Carlo!AK44 -> 229713.9163 | AO44: =-Analise_Fundamentalista!$C$14*Monte_Carlo!AK44 -> -115859.6892 | AP44: 1479369.282 | AQ44: =(RAND()*($D$17-$D$16)+$D$16)*(1-Analise_Fundamentalista!$C$6)*AP44 -> 167939.2273 | AR44: -172524.2008 | AS44: =Analise_Fundamentalista!$C$12*Monte_Carlo!AP44 -> 241303.9037 | AT44: =-Analise_Fundamentalista!$C$14*Monte_Carlo!AP44 -> -121705.2747 | AU44: 1278075.708 | AV44: =(RAND()*($D$17-$D$16)+$D$16)*(1-Analise_Fundamentalista!$C$6)*AU44 -> 231324.4083 | AW44: -650200.0983 | AX44: =Analise_Fundamentalista!$C$12*Monte_Carlo!AU44 -> 208470.3674 | AY44: =-Analise_Fundamentalista!$C$14*Monte_Carlo!AU44 -> -105145.1838 | AZ44: 278319.9413 | BA44: 183711.6771 | BB44: 142646.8486 | BC44: 245843.4266 | BD44: -146922.7945 | BE44: 158927.9926 | BF44: 357306.096 | BG44: 154225.8711 | BH44: 115013.6555 | BI44: -315550.5065 | BJ44: =BI44*(1+Analise_Fundamentalista!$C$10)/(Analise_Fundamentalista!$C$10) -> -4133043.971 | BK44: =NPV(Analise_Fundamentalista!$C$10,Monte_Carlo!AZ44:BI44)+Monte_Carlo!BJ44/(1+Analise_Fundamentalista!$C$10)^10 -> -962550.4943 | BL44: =(BK44+Analise_Fundamentalista!$C$15-Analise_Fundamentalista!$C$16-Analise_Fundamentalista!$C$17)/(Analise_Fundamentalista!$F$29+Analise_Fundamentalista!$F$30)*1000 -> -33.33916097 | BM44: 0.7340343784
A45: Tent20 | B45: 1530987.358 | C45: =(RAND()*($D$17-$D$16)+$D$16)*(1-Analise_Fundamentalista!$C$6)*B45 -> 272112.3547 | D45: -178343.1056 | E45: =Analise_Fundamentalista!$C$12*Monte_Carlo!B45 -> 249723.467 | F45: =-Analise_Fundamentalista!$C$14*Monte_Carlo!B45 -> -125951.8088 | G45: 1779540.443 | H45: =(RAND()*($D$17-$D$16)+$D$16)*(1-Analise_Fundamentalista!$C$6)*G45 -> 192298.0327 | I45: -507688.9699 | J45: =Analise_Fundamentalista!$C$12*Monte_Carlo!G45 -> 290265.6294 | K45: =-Analise_Fundamentalista!$C$14*Monte_Carlo!G45 -> -146399.8617 | L45: 1535291.718 | M45: =(RAND()*($D$17-$D$16)+$D$16)*(1-Analise_Fundamentalista!$C$6)*L45 -> 240391.4821 | N45: -1147432.001 | O45: =Analise_Fundamentalista!$C$12*Monte_Carlo!L45 -> 250425.5627 | P45: =-Analise_Fundamentalista!$C$14*Monte_Carlo!L45 -> -126305.9214 | Q45: 1579471.572 | R45: =(RAND()*($D$17-$D$16)+$D$16)*(1-Analise_Fundamentalista!$C$6)*Q45 -> 237997.6973 | S45: -570972.2909 | T45: =Analise_Fundamentalista!$C$12*Monte_Carlo!Q45 -> 257631.8576 | U45: =-Analise_Fundamentalista!$C$14*Monte_Carlo!Q45 -> -129940.5252 | V45: 1534278.278 | W45: =(RAND()*($D$17-$D$16)+$D$16)*(1-Analise_Fundamentalista!$C$6)*V45 -> 249976.2484 | X45: -831423.8203 | Y45: =Analise_Fundamentalista!$C$12*Monte_Carlo!V45 -> 250260.2579 | Z45: =-Analise_Fundamentalista!$C$14*Monte_Carlo!V45 -> -126222.5474 | AA45: 1533067.411 | AB45: =(RAND()*($D$17-$D$16)+$D$16)*(1-Analise_Fundamentalista!$C$6)*AA45 -> 243127.8773 | AC45: -1022013.859 | AD45: =Analise_Fundamentalista!$C$12*Monte_Carlo!AA45 -> 250062.75 | AE45: =-Analise_Fundamentalista!$C$14*Monte_Carlo!AA45 -> -126122.9313 | AF45: 1438502.952 | AG45: =(RAND()*($D$17-$D$16)+$D$16)*(1-Analise_Fundamentalista!$C$6)*AF45 -> 180416.74 | AH45: -161650.7457 | AI45: =Analise_Fundamentalista!$C$12*Monte_Carlo!AF45 -> 234638.0867 | AJ45: =-Analise_Fundamentalista!$C$14*Monte_Carlo!AF45 -> -118343.269 | AK45: 1464014.056 | AL45: =(RAND()*($D$17-$D$16)+$D$16)*(1-Analise_Fundamentalista!$C$6)*AK45 -> 142449.5567 | AM45: -438335.2428 | AN45: =Analise_Fundamentalista!$C$12*Monte_Carlo!AK45 -> 238799.2714 | AO45: =-Analise_Fundamentalista!$C$14*Monte_Carlo!AK45 -> -120442.0255 | AP45: 1383082.917 | AQ45: =(RAND()*($D$17-$D$16)+$D$16)*(1-Analise_Fundamentalista!$C$6)*AP45 -> 113254.2467 | AR45: -1240428.214 | AS45: =Analise_Fundamentalista!$C$12*Monte_Carlo!AP45 -> 225598.3757 | AT45: =-Analise_Fundamentalista!$C$14*Monte_Carlo!AP45 -> -113783.954 | AU45: 1376952.426 | AV45: =(RAND()*($D$17-$D$16)+$D$16)*(1-Analise_Fundamentalista!$C$6)*AU45 -> 135080.4903 | AW45: -324092.3066 | AX45: =Analise_Fundamentalista!$C$12*Monte_Carlo!AU45 -> 224598.4148 | AY45: =-Analise_Fundamentalista!$C$14*Monte_Carlo!AU45 -> -113279.6086 | AZ45: 217540.9073 | BA45: -171525.1696 | BB45: -782920.8779 | BC45: -205283.2613 | BD45: -457409.8614 | BE45: -654946.1628 | BF45: 135060.8119 | BG45: -177528.44 | BH45: -1015359.546 | BI45: -77693.01008 | BJ45: =BI45*(1+Analise_Fundamentalista!$C$10)/(Analise_Fundamentalista!$C$10) -> -1017614.044 | BK45: =NPV(Analise_Fundamentalista!$C$10,Monte_Carlo!AZ45:BI45)+Monte_Carlo!BJ45/(1+Analise_Fundamentalista!$C$10)^10 -> -2434350.145 | BL45: =(BK45+Analise_Fundamentalista!$C$15-Analise_Fundamentalista!$C$16-Analise_Fundamentalista!$C$17)/(Analise_Fundamentalista!$F$29+Analise_Fundamentalista!$F$30)*1000 -> -66.55879077 | BM45: 0.5187074311
A46: Tent21 | B46: 1465905.601 | C46: =(RAND()*($D$17-$D$16)+$D$16)*(1-Analise_Fundamentalista!$C$6)*B46 -> 188447.7743 | D46: -891749.5621 | E46: =Analise_Fundamentalista!$C$12*Monte_Carlo!B46 -> 239107.8066 | F46: =-Analise_Fundamentalista!$C$14*Monte_Carlo!B46 -> -120597.6398 | G46: 1603591.7 | H46: =(RAND()*($D$17-$D$16)+$D$16)*(1-Analise_Fundamentalista!$C$6)*G46 -> 137207.0392 | I46: -1260441.432 | J46: =Analise_Fundamentalista!$C$12*Monte_Carlo!G46 -> 261566.1565 | K46: =-Analise_Fundamentalista!$C$14*Monte_Carlo!G46 -> -131924.8484 | L46: 1620791.585 | M46: =(RAND()*($D$17-$D$16)+$D$16)*(1-Analise_Fundamentalista!$C$6)*L46 -> 234774.9905 | N46: -10794.3453 | O46: =Analise_Fundamentalista!$C$12*Monte_Carlo!L46 -> 264371.676 | P46: =-Analise_Fundamentalista!$C$14*Monte_Carlo!L46 -> -133339.8546 | Q46: 1397292.82 | R46: =(RAND()*($D$17-$D$16)+$D$16)*(1-Analise_Fundamentalista!$C$6)*Q46 -> 266027.304 | S46: -275503.2234 | T46: =Analise_Fundamentalista!$C$12*Monte_Carlo!Q46 -> 227916.1912 | U46: =-Analise_Fundamentalista!$C$14*Monte_Carlo!Q46 -> -114952.9793 | V46: 1421299.658 | W46: =(RAND()*($D$17-$D$16)+$D$16)*(1-Analise_Fundamentalista!$C$6)*V46 -> 177802.0026 | X46: -494163.3621 | Y46: =Analise_Fundamentalista!$C$12*Monte_Carlo!V46 -> 231832.0111 | Z46: =-Analise_Fundamentalista!$C$14*Monte_Carlo!V46 -> -116927.9823 | AA46: 1489150.23 | AB46: =(RAND()*($D$17-$D$16)+$D$16)*(1-Analise_Fundamentalista!$C$6)*AA46 -> 159136.3367 | AC46: -201746.5492 | AD46: =Analise_Fundamentalista!$C$12*Monte_Carlo!AA46 -> 242899.3005 | AE46: =-Analise_Fundamentalista!$C$14*Monte_Carlo!AA46 -> -122509.9371 | AF46: 1427352.681 | AG46: =(RAND()*($D$17-$D$16)+$D$16)*(1-Analise_Fundamentalista!$C$6)*AF46 -> 268875.0299 | AH46: -1082428.358 | AI46: =Analise_Fundamentalista!$C$12*Monte_Carlo!AF46 -> 232819.336 | AJ46: =-Analise_Fundamentalista!$C$14*Monte_Carlo!AF46 -> -117425.9546 | AK46: 1453110.808 | AL46: =(RAND()*($D$17-$D$16)+$D$16)*(1-Analise_Fundamentalista!$C$6)*AK46 -> 151728.3148 | AM46: -104149.0881 | AN46: =Analise_Fundamentalista!$C$12*Monte_Carlo!AK46 -> 237020.8135 | AO46: =-Analise_Fundamentalista!$C$14*Monte_Carlo!AK46 -> -119545.0333 | AP46: 1423730.446 | AQ46: =(RAND()*($D$17-$D$16)+$D$16)*(1-Analise_Fundamentalista!$C$6)*AP46 -> 246141.378 | AR46: -909424.5117 | AS46: =Analise_Fundamentalista!$C$12*Monte_Carlo!AP46 -> 232228.5035 | AT46: =-Analise_Fundamentalista!$C$14*Monte_Carlo!AP46 -> -117127.9593 | AU46: 1399058.634 | AV46: =(RAND()*($D$17-$D$16)+$D$16)*(1-Analise_Fundamentalista!$C$6)*AU46 -> 164701.1874 | AW46: -250447.5757 | AX46: =Analise_Fundamentalista!$C$12*Monte_Carlo!AU46 -> 228204.2179 | AY46: =-Analise_Fundamentalista!$C$14*Monte_Carlo!AU46 -> -115098.2499 | AZ46: -584791.621 | BA46: -993593.0848 | BB46: 355012.4666 | BC46: 103487.2925 | BD46: -201457.3307 | BE46: 77779.15079 | BF46: -698159.9467 | BG46: 165055.0069 | BH46: -548182.5895 | BI46: 27359.57968 | BJ46: =BI46*(1+Analise_Fundamentalista!$C$10)/(Analise_Fundamentalista!$C$10) -> 358352.6045 | BK46: =NPV(Analise_Fundamentalista!$C$10,Monte_Carlo!AZ46:BI46)+Monte_Carlo!BJ46/(1+Analise_Fundamentalista!$C$10)^10 -> -1526762.804 | BL46: =(BK46+Analise_Fundamentalista!$C$15-Analise_Fundamentalista!$C$16-Analise_Fundamentalista!$C$17)/(Analise_Fundamentalista!$F$29+Analise_Fundamentalista!$F$30)*1000 -> -46.07385896 | BM46: 0.6566830616
A47: Tent22 | B47: 1574720.962 | C47: =(RAND()*($D$17-$D$16)+$D$16)*(1-Analise_Fundamentalista!$C$6)*B47 -> 170122.9902 | D47: -232231.4177 | E47: =Analise_Fundamentalista!$C$12*Monte_Carlo!B47 -> 256856.9728 | F47: =-Analise_Fundamentalista!$C$14*Monte_Carlo!B47 -> -129549.7004 | G47: 1600727.04 | H47: =(RAND()*($D$17-$D$16)+$D$16)*(1-Analise_Fundamentalista!$C$6)*G47 -> 282802.9281 | I47: -1370095.599 | J47: =Analise_Fundamentalista!$C$12*Monte_Carlo!G47 -> 261098.8942 | K47: =-Analise_Fundamentalista!$C$14*Monte_Carlo!G47 -> -131689.1776 | L47: 1565740.614 | M47: =(RAND()*($D$17-$D$16)+$D$16)*(1-Analise_Fundamentalista!$C$6)*L47 -> 152917.0024 | N47: -110155.2853 | O47: =Analise_Fundamentalista!$C$12*Monte_Carlo!L47 -> 255392.1641 | P47: =-Analise_Fundamentalista!$C$14*Monte_Carlo!L47 -> -128810.902 | Q47: 1511724.578 | R47: =(RAND()*($D$17-$D$16)+$D$16)*(1-Analise_Fundamentalista!$C$6)*Q47 -> 173243.1912 | S47: -329553.121 | T47: =Analise_Fundamentalista!$C$12*Monte_Carlo!Q47 -> 246581.4632 | U47: =-Analise_Fundamentalista!$C$14*Monte_Carlo!Q47 -> -124367.0916 | V47: 1441428.221 | W47: =(RAND()*($D$17-$D$16)+$D$16)*(1-Analise_Fundamentalista!$C$6)*V47 -> 193328.867 | X47: -459738.7139 | Y47: =Analise_Fundamentalista!$C$12*Monte_Carlo!V47 -> 235115.2352 | Z47: =-Analise_Fundamentalista!$C$14*Monte_Carlo!V47 -> -118583.9261 | AA47: 1472981.591 | AB47: =(RAND()*($D$17-$D$16)+$D$16)*(1-Analise_Fundamentalista!$C$6)*AA47 -> 236376.4548 | AC47: -427752.8576 | AD47: =Analise_Fundamentalista!$C$12*Monte_Carlo!AA47 -> 240261.9902 | AE47: =-Analise_Fundamentalista!$C$14*Monte_Carlo!AA47 -> -121179.7698 | AF47: 1538189.926 | AG47: =(RAND()*($D$17-$D$16)+$D$16)*(1-Analise_Fundamentalista!$C$6)*AF47 -> 209913.4195 | AH47: -312945.1745 | AI47: =Analise_Fundamentalista!$C$12*Monte_Carlo!AF47 -> 250898.2973 | AJ47: =-Analise_Fundamentalista!$C$14*Monte_Carlo!AF47 -> -126544.3522 | AK47: 1471103.722 | AL47: =(RAND()*($D$17-$D$16)+$D$16)*(1-Analise_Fundamentalista!$C$6)*AK47 -> 260000.8419 | AM47: -275771.544 | AN47: =Analise_Fundamentalista!$C$12*Monte_Carlo!AK47 -> 239955.6859 | AO47: =-Analise_Fundamentalista!$C$14*Monte_Carlo!AK47 -> -121025.2806 | AP47: 1263147.742 | AQ47: =(RAND()*($D$17-$D$16)+$D$16)*(1-Analise_Fundamentalista!$C$6)*AP47 -> 228349.989 | AR47: -507749.4792 | AS47: =Analise_Fundamentalista!$C$12*Monte_Carlo!AP47 -> 206035.4266 | AT47: =-Analise_Fundamentalista!$C$14*Monte_Carlo!AP47 -> -103917.0846 | AU47: 1328401.545 | AV47: =(RAND()*($D$17-$D$16)+$D$16)*(1-Analise_Fundamentalista!$C$6)*AU47 -> 151964.0057 | AW47: -89326.6921 | AX47: =Analise_Fundamentalista!$C$12*Monte_Carlo!AU47 -> 216679.15 | AY47: =-Analise_Fundamentalista!$C$14*Monte_Carlo!AU47 -> -109285.4076 | AZ47: 65198.84496 | BA47: -957882.9545 | BB47: 169342.9793 | BC47: -34095.55825 | BD47: -149878.5377 | BE47: -72294.1824 | BF47: 21322.19008 | BG47: 103159.7032 | BH47: -177281.1482 | BI47: 170031.0561 | BJ47: =BI47*(1+Analise_Fundamentalista!$C$10)/(Analise_Fundamentalista!$C$10) -> 2227047.07 | BK47: =NPV(Analise_Fundamentalista!$C$10,Monte_Carlo!AZ47:BI47)+Monte_Carlo!BJ47/(1+Analise_Fundamentalista!$C$10)^10 -> 269471.2018 | BL47: =(BK47+Analise_Fundamentalista!$C$15-Analise_Fundamentalista!$C$16-Analise_Fundamentalista!$C$17)/(Analise_Fundamentalista!$F$29+Analise_Fundamentalista!$F$30)*1000 -> -5.531500733 | BM47: 0.8662897006
A48: Tent23 | B48: 1611121.716 | C48: =(RAND()*($D$17-$D$16)+$D$16)*(1-Analise_Fundamentalista!$C$6)*B48 -> 182378.1376 | D48: -122317.5879 | E48: =Analise_Fundamentalista!$C$12*Monte_Carlo!B48 -> 262794.3977 | F48: =-Analise_Fundamentalista!$C$14*Monte_Carlo!B48 -> -132544.3304 | G48: 1595670.525 | H48: =(RAND()*($D$17-$D$16)+$D$16)*(1-Analise_Fundamentalista!$C$6)*G48 -> 103935.3628 | I48: -465398.0513 | J48: =Analise_Fundamentalista!$C$12*Monte_Carlo!G48 -> 260274.1124 | K48: =-Analise_Fundamentalista!$C$14*Monte_Carlo!G48 -> -131273.1864 | L48: 1479422.848 | M48: =(RAND()*($D$17-$D$16)+$D$16)*(1-Analise_Fundamentalista!$C$6)*L48 -> 229957.8533 | N48: -1019003.845 | O48: =Analise_Fundamentalista!$C$12*Monte_Carlo!L48 -> 241312.641 | P48: =-Analise_Fundamentalista!$C$14*Monte_Carlo!L48 -> -121709.6815 | Q48: 1590013.88 | R48: =(RAND()*($D$17-$D$16)+$D$16)*(1-Analise_Fundamentalista!$C$6)*Q48 -> 130449.5045 | S48: -311560.3411 | T48: =Analise_Fundamentalista!$C$12*Monte_Carlo!Q48 -> 259351.4418 | U48: =-Analise_Fundamentalista!$C$14*Monte_Carlo!Q48 -> -130807.8235 | V48: 1508520.397 | W48: =(RAND()*($D$17-$D$16)+$D$16)*(1-Analise_Fundamentalista!$C$6)*V48 -> 109745.8534 | X48: -500104.9914 | Y48: =Analise_Fundamentalista!$C$12*Monte_Carlo!V48 -> 246058.8205 | Z48: =-Analise_Fundamentalista!$C$14*Monte_Carlo!V48 -> -124103.4889 | AA48: 1475656.405 | AB48: =(RAND()*($D$17-$D$16)+$D$16)*(1-Analise_Fundamentalista!$C$6)*AA48 -> 276298.6026 | AC48: -498318.6758 | AD48: =Analise_Fundamentalista!$C$12*Monte_Carlo!AA48 -> 240698.2864 | AE48: =-Analise_Fundamentalista!$C$14*Monte_Carlo!AA48 -> -121399.8224 | AF48: 1334616.894 | AG48: =(RAND()*($D$17-$D$16)+$D$16)*(1-Analise_Fundamentalista!$C$6)*AF48 -> 109394.5491 | AH48: -79473.29606 | AI48: =Analise_Fundamentalista!$C$12*Monte_Carlo!AF48 -> 217692.9523 | AJ48: =-Analise_Fundamentalista!$C$14*Monte_Carlo!AF48 -> -109796.7341 | AK48: 1415168.914 | AL48: =(RAND()*($D$17-$D$16)+$D$16)*(1-Analise_Fundamentalista!$C$6)*AK48 -> 193827.6763 | AM48: -255000.7646 | AN48: =Analise_Fundamentalista!$C$12*Monte_Carlo!AK48 -> 230832.009 | AO48: =-Analise_Fundamentalista!$C$14*Monte_Carlo!AK48 -> -116423.6161 | AP48: 1386836.377 | AQ48: =(RAND()*($D$17-$D$16)+$D$16)*(1-Analise_Fundamentalista!$C$6)*AP48 -> 115106.7795 | AR48: -304589.4404 | AS48: =Analise_Fundamentalista!$C$12*Monte_Carlo!AP48 -> 226210.6127 | AT48: =-Analise_Fundamentalista!$C$14*Monte_Carlo!AP48 -> -114092.745 | AU48: 1438508.836 | AV48: =(RAND()*($D$17-$D$16)+$D$16)*(1-Analise_Fundamentalista!$C$6)*AU48 -> 246504.5628 | AW48: -554050.9181 | AX48: =Analise_Fundamentalista!$C$12*Monte_Carlo!AU48 -> 234639.0464 | AY48: =-Analise_Fundamentalista!$C$14*Monte_Carlo!AU48 -> -118343.753 | AZ48: 190310.6169 | BA48: -232461.7625 | BB48: -669443.0321 | BC48: -52567.21829 | BD48: -268403.8064 | BE48: -102721.6093 | BF48: 137817.4713 | BG48: 53235.3046 | BH48: -77364.79318 | BI48: -191251.062 | BJ48: =BI48*(1+Analise_Fundamentalista!$C$10)/(Analise_Fundamentalista!$C$10) -> -2504984.249 | BK48: =NPV(Analise_Fundamentalista!$C$10,Monte_Carlo!AZ48:BI48)+Monte_Carlo!BJ48/(1+Analise_Fundamentalista!$C$10)^10 -> -1981695.29 | BL48: =(BK48+Analise_Fundamentalista!$C$15-Analise_Fundamentalista!$C$16-Analise_Fundamentalista!$C$17)/(Analise_Fundamentalista!$F$29+Analise_Fundamentalista!$F$30)*1000 -> -56.34202878 | BM48: 0.5889019181
A49: Tent24 | B49: 1441118.422 | C49: =(RAND()*($D$17-$D$16)+$D$16)*(1-Analise_Fundamentalista!$C$6)*B49 -> 174460.4301 | D49: -739267.2666 | E49: =Analise_Fundamentalista!$C$12*Monte_Carlo!B49 -> 235064.7031 | F49: =-Analise_Fundamentalista!$C$14*Monte_Carlo!B49 -> -118558.4394 | G49: 1595809.986 | H49: =(RAND()*($D$17-$D$16)+$D$16)*(1-Analise_Fundamentalista!$C$6)*G49 -> 212991.9692 | I49: -108919.9552 | J49: =Analise_Fundamentalista!$C$12*Monte_Carlo!G49 -> 260296.8603 | K49: =-Analise_Fundamentalista!$C$14*Monte_Carlo!G49 -> -131284.6597 | L49: 1431602.73 | M49: =(RAND()*($D$17-$D$16)+$D$16)*(1-Analise_Fundamentalista!$C$6)*L49 -> 186141.5275 | N49: -339659.4353 | O49: =Analise_Fundamentalista!$C$12*Monte_Carlo!L49 -> 233512.5729 | P49: =-Analise_Fundamentalista!$C$14*Monte_Carlo!L49 -> -117775.5991 | Q49: 1408484.477 | R49: =(RAND()*($D$17-$D$16)+$D$16)*(1-Analise_Fundamentalista!$C$6)*Q49 -> 223891.5217 | S49: -113641.7123 | T49: =Analise_Fundamentalista!$C$12*Monte_Carlo!Q49 -> 229741.6926 | U49: =-Analise_Fundamentalista!$C$14*Monte_Carlo!Q49 -> -115873.6985 | V49: 1604701.858 | W49: =(RAND()*($D$17-$D$16)+$D$16)*(1-Analise_Fundamentalista!$C$6)*V49 -> 285962.015 | X49: -1160268.957 | Y49: =Analise_Fundamentalista!$C$12*Monte_Carlo!V49 -> 261747.2374 | Z49: =-Analise_Fundamentalista!$C$14*Monte_Carlo!V49 -> -132016.1793 | AA49: 1492773.477 | AB49: =(RAND()*($D$17-$D$16)+$D$16)*(1-Analise_Fundamentalista!$C$6)*AA49 -> 210894.2368 | AC49: -694337.547 | AD49: =Analise_Fundamentalista!$C$12*Monte_Carlo!AA49 -> 243490.2981 | AE49: =-Analise_Fundamentalista!$C$14*Monte_Carlo!AA49 -> -122808.0157 | AF49: 1489828.042 | AG49: =(RAND()*($D$17-$D$16)+$D$16)*(1-Analise_Fundamentalista!$C$6)*AF49 -> 103745.5469 | AH49: -19677.68569 | AI49: =Analise_Fundamentalista!$C$12*Monte_Carlo!AF49 -> 243009.8603 | AJ49: =-Analise_Fundamentalista!$C$14*Monte_Carlo!AF49 -> -122565.6997 | AK49: 1528171.917 | AL49: =(RAND()*($D$17-$D$16)+$D$16)*(1-Analise_Fundamentalista!$C$6)*AK49 -> 173251.7959 | AM49: -945280.8886 | AN49: =Analise_Fundamentalista!$C$12*Monte_Carlo!AK49 -> 249264.2328 | AO49: =-Analise_Fundamentalista!$C$14*Monte_Carlo!AK49 -> -125720.1871 | AP49: 1531522.594 | AQ49: =(RAND()*($D$17-$D$16)+$D$16)*(1-Analise_Fundamentalista!$C$6)*AP49 -> 136933.1656 | AR49: -1664997.463 | AS49: =Analise_Fundamentalista!$C$12*Monte_Carlo!AP49 -> 249810.7708 | AT49: =-Analise_Fundamentalista!$C$14*Monte_Carlo!AP49 -> -125995.8418 | AU49: 1411157.72 | AV49: =(RAND()*($D$17-$D$16)+$D$16)*(1-Analise_Fundamentalista!$C$6)*AU49 -> 106755.3286 | AW49: -984677.3111 | AX49: =Analise_Fundamentalista!$C$12*Monte_Carlo!AU49 -> 230177.7323 | AY49: =-Analise_Fundamentalista!$C$14*Monte_Carlo!AU49 -> -116093.6218 | AZ49: -448300.5729 | BA49: 233084.2146 | BB49: -37780.93397 | BC49: 224117.8034 | BD49: -744575.8835 | BE49: -362761.0279 | BF49: 204512.0219 | BG49: -648485.047 | BH49: -1404249.369 | BI49: -763837.872 | BJ49: =BI49*(1+Analise_Fundamentalista!$C$10)/(Analise_Fundamentalista!$C$10) -> -10004659.94 | BK49: =NPV(Analise_Fundamentalista!$C$10,Monte_Carlo!AZ49:BI49)+Monte_Carlo!BJ49/(1+Analise_Fundamentalista!$C$10)^10 -> -6587750.604 | BL49: =(BK49+Analise_Fundamentalista!$C$15-Analise_Fundamentalista!$C$16-Analise_Fundamentalista!$C$17)/(Analise_Fundamentalista!$F$29+Analise_Fundamentalista!$F$30)*1000 -> -160.3041762 | BM49: 0.05652579144
A50: Tent25 | B50: 1570906.246 | C50: =(RAND()*($D$17-$D$16)+$D$16)*(1-Analise_Fundamentalista!$C$6)*B50 -> 273698.489 | D50: -611304.6309 | E50: =Analise_Fundamentalista!$C$12*Monte_Carlo!B50 -> 256234.7442 | F50: =-Analise_Fundamentalista!$C$14*Monte_Carlo!B50 -> -129235.87 | G50: 1641595.708 | H50: =(RAND()*($D$17-$D$16)+$D$16)*(1-Analise_Fundamentalista!$C$6)*G50 -> 300106.4545 | I50: -533490.9275 | J50: =Analise_Fundamentalista!$C$12*Monte_Carlo!G50 -> 267765.0925 | K50: =-Analise_Fundamentalista!$C$14*Monte_Carlo!G50 -> -135051.3756 | L50: 1468269.339 | M50: =(RAND()*($D$17-$D$16)+$D$16)*(1-Analise_Fundamentalista!$C$6)*L50 -> 279608.7793 | N50: -326641.3688 | O50: =Analise_Fundamentalista!$C$12*Monte_Carlo!L50 -> 239493.3621 | P50: =-Analise_Fundamentalista!$C$14*Monte_Carlo!L50 -> -120792.1006 | Q50: 1648063.631 | R50: =(RAND()*($D$17-$D$16)+$D$16)*(1-Analise_Fundamentalista!$C$6)*Q50 -> 222058.2645 | S50: -766213.767 | T50: =Analise_Fundamentalista!$C$12*Monte_Carlo!Q50 -> 268820.0929 | U50: =-Analise_Fundamentalista!$C$14*Monte_Carlo!Q50 -> -135583.481 | V50: 1372740.141 | W50: =(RAND()*($D$17-$D$16)+$D$16)*(1-Analise_Fundamentalista!$C$6)*V50 -> 156258.6838 | X50: -92147.95401 | Y50: =Analise_Fundamentalista!$C$12*Monte_Carlo!V50 -> 223911.3377 | Z50: =-Analise_Fundamentalista!$C$14*Monte_Carlo!V50 -> -112933.0708 | AA50: 1529713.815 | AB50: =(RAND()*($D$17-$D$16)+$D$16)*(1-Analise_Fundamentalista!$C$6)*AA50 -> 111036.6868 | AC50: -715131.1378 | AD50: =Analise_Fundamentalista!$C$12*Monte_Carlo!AA50 -> 249515.736 | AE50: =-Analise_Fundamentalista!$C$14*Monte_Carlo!AA50 -> -125847.0365 | AF50: 1414555.73 | AG50: =(RAND()*($D$17-$D$16)+$D$16)*(1-Analise_Fundamentalista!$C$6)*AF50 -> 183650.1976 | AH50: -213124.8152 | AI50: =Analise_Fundamentalista!$C$12*Monte_Carlo!AF50 -> 230731.9908 | AJ50: =-Analise_Fundamentalista!$C$14*Monte_Carlo!AF50 -> -116373.1704 | AK50: 1409092.102 | AL50: =(RAND()*($D$17-$D$16)+$D$16)*(1-Analise_Fundamentalista!$C$6)*AK50 -> 175020.4788 | AM50: -221945.6191 | AN50: =Analise_Fundamentalista!$C$12*Monte_Carlo!AK50 -> 229840.8039 | AO50: =-Analise_Fundamentalista!$C$14*Monte_Carlo!AK50 -> -115923.6868 | AP50: 1591796.83 | AQ50: =(RAND()*($D$17-$D$16)+$D$16)*(1-Analise_Fundamentalista!$C$6)*AP50 -> 252829.4152 | AR50: -1065463.64 | AS50: =Analise_Fundamentalista!$C$12*Monte_Carlo!AP50 -> 259642.2636 | AT50: =-Analise_Fundamentalista!$C$14*Monte_Carlo!AP50 -> -130954.5039 | AU50: 1395996.27 | AV50: =(RAND()*($D$17-$D$16)+$D$16)*(1-Analise_Fundamentalista!$C$6)*AU50 -> 253539.0786 | AW50: -102488.0434 | AX50: =Analise_Fundamentalista!$C$12*Monte_Carlo!AU50 -> 227704.7074 | AY50: =-Analise_Fundamentalista!$C$14*Monte_Carlo!AU50 -> -114846.3143 | AZ50: -210607.2676 | BA50: -100670.756 | BB50: 71668.67206 | BC50: -410918.8905 | BD50: 175088.9967 | BE50: -480425.7515 | BF50: 84884.20278 | BG50: 66991.97667 | BH50: -683946.4649 | BI50: 263909.4283 | BJ50: =BI50*(1+Analise_Fundamentalista!$C$10)/(Analise_Fundamentalista!$C$10) -> 3456655.112 | BK50: =NPV(Analise_Fundamentalista!$C$10,Monte_Carlo!AZ50:BI50)+Monte_Carlo!BJ50/(1+Analise_Fundamentalista!$C$10)^10 -> 727368.6641 | BL50: =(BK50+Analise_Fundamentalista!$C$15-Analise_Fundamentalista!$C$16-Analise_Fundamentalista!$C$17)/(Analise_Fundamentalista!$F$29+Analise_Fundamentalista!$F$30)*1000 -> 4.803590847 | BM50: 0.9012823639
A51: Tent26 | B51: 1604931.535 | C51: =(RAND()*($D$17-$D$16)+$D$16)*(1-Analise_Fundamentalista!$C$6)*B51 -> 144157.3152 | D51: -833993.8846 | E51: =Analise_Fundamentalista!$C$12*Monte_Carlo!B51 -> 261784.7006 | F51: =-Analise_Fundamentalista!$C$14*Monte_Carlo!B51 -> -132035.0744 | G51: 1607120.391 | H51: =(RAND()*($D$17-$D$16)+$D$16)*(1-Analise_Fundamentalista!$C$6)*G51 -> 204246.1491 | I51: -92355.00166 | J51: =Analise_Fundamentalista!$C$12*Monte_Carlo!G51 -> 262141.7309 | K51: =-Analise_Fundamentalista!$C$14*Monte_Carlo!G51 -> -132215.1481 | L51: 1543653.609 | M51: =(RAND()*($D$17-$D$16)+$D$16)*(1-Analise_Fundamentalista!$C$6)*L51 -> 260598.9646 | N51: -1171969.283 | O51: =Analise_Fundamentalista!$C$12*Monte_Carlo!L51 -> 251789.4933 | P51: =-Analise_Fundamentalista!$C$14*Monte_Carlo!L51 -> -126993.8404 | Q51: 1613882.163 | R51: =(RAND()*($D$17-$D$16)+$D$16)*(1-Analise_Fundamentalista!$C$6)*Q51 -> 172170.17 | S51: -163755.5468 | T51: =Analise_Fundamentalista!$C$12*Monte_Carlo!Q51 -> 263244.6617 | U51: =-Analise_Fundamentalista!$C$14*Monte_Carlo!Q51 -> -132771.4279 | V51: 1515186.684 | W51: =(RAND()*($D$17-$D$16)+$D$16)*(1-Analise_Fundamentalista!$C$6)*V51 -> 240866.636 | X51: -57161.57607 | Y51: =Analise_Fundamentalista!$C$12*Monte_Carlo!V51 -> 247146.1766 | Z51: =-Analise_Fundamentalista!$C$14*Monte_Carlo!V51 -> -124651.9134 | AA51: 1452263.24 | AB51: =(RAND()*($D$17-$D$16)+$D$16)*(1-Analise_Fundamentalista!$C$6)*AA51 -> 101017.6821 | AC51: -283566.1305 | AD51: =Analise_Fundamentalista!$C$12*Monte_Carlo!AA51 -> 236882.5643 | AE51: =-Analise_Fundamentalista!$C$14*Monte_Carlo!AA51 -> -119475.3052 | AF51: 1486111.322 | AG51: =(RAND()*($D$17-$D$16)+$D$16)*(1-Analise_Fundamentalista!$C$6)*AF51 -> 235618.9787 | AH51: -591368.958 | AI51: =Analise_Fundamentalista!$C$12*Monte_Carlo!AF51 -> 242403.616 | AJ51: =-Analise_Fundamentalista!$C$14*Monte_Carlo!AF51 -> -122259.9312 | AK51: 1479182.702 | AL51: =(RAND()*($D$17-$D$16)+$D$16)*(1-Analise_Fundamentalista!$C$6)*AK51 -> 274609.8565 | AM51: -355555.3561 | AN51: =Analise_Fundamentalista!$C$12*Monte_Carlo!AK51 -> 241273.4701 | AO51: =-Analise_Fundamentalista!$C$14*Monte_Carlo!AK51 -> -121689.925 | AP51: 1404907.501 | AQ51: =(RAND()*($D$17-$D$16)+$D$16)*(1-Analise_Fundamentalista!$C$6)*AP51 -> 97081.71215 | AR51: -1204867.368 | AS51: =Analise_Fundamentalista!$C$12*Monte_Carlo!AP51 -> 229158.2423 | AT51: =-Analise_Fundamentalista!$C$14*Monte_Carlo!AP51 -> -115579.4266 | AU51: 1353578.386 | AV51: =(RAND()*($D$17-$D$16)+$D$16)*(1-Analise_Fundamentalista!$C$6)*AU51 -> 193141.2798 | AW51: -332761.1009 | AX51: =Analise_Fundamentalista!$C$12*Monte_Carlo!AU51 -> 220785.8122 | AY51: =-Analise_Fundamentalista!$C$14*Monte_Carlo!AU51 -> -111356.6648 | AZ51: -560086.9433 | BA51: 241817.7303 | BB51: -786574.666 | BC51: 138887.8571 | BD51: 306199.3232 | BE51: -65141.18935 | BF51: -235606.2944 | BG51: 38638.04548 | BH51: -994206.8403 | BI51: -30190.67366 | BJ51: =BI51*(1+Analise_Fundamentalista!$C$10)/(Analise_Fundamentalista!$C$10) -> -395433.9453 | BK51: =NPV(Analise_Fundamentalista!$C$10,Monte_Carlo!AZ51:BI51)+Monte_Carlo!BJ51/(1+Analise_Fundamentalista!$C$10)^10 -> -1457837.168 | BL51: =(BK51+Analise_Fundamentalista!$C$15-Analise_Fundamentalista!$C$16-Analise_Fundamentalista!$C$17)/(Analise_Fundamentalista!$F$29+Analise_Fundamentalista!$F$30)*1000 -> -44.5181553 | BM51: 0.666584977
A52: Tent27 | B52: 1557468.739 | C52: =(RAND()*($D$17-$D$16)+$D$16)*(1-Analise_Fundamentalista!$C$6)*B52 -> 106334.7466 | D52: -949735.1693 | E52: =Analise_Fundamentalista!$C$12*Monte_Carlo!B52 -> 254042.9163 | F52: =-Analise_Fundamentalista!$C$14*Monte_Carlo!B52 -> -128130.3884 | G52: 1587576.76 | H52: =(RAND()*($D$17-$D$16)+$D$16)*(1-Analise_Fundamentalista!$C$6)*G52 -> 147274.2356 | I52: -548746.6472 | J52: =Analise_Fundamentalista!$C$12*Monte_Carlo!G52 -> 258953.9167 | K52: =-Analise_Fundamentalista!$C$14*Monte_Carlo!G52 -> -130607.3257 | L52: 1563583.533 | M52: =(RAND()*($D$17-$D$16)+$D$16)*(1-Analise_Fundamentalista!$C$6)*L52 -> 190003.8555 | N52: -452525.4515 | O52: =Analise_Fundamentalista!$C$12*Monte_Carlo!L52 -> 255040.3168 | P52: =-Analise_Fundamentalista!$C$14*Monte_Carlo!L52 -> -128633.4424 | Q52: 1600380.018 | R52: =(RAND()*($D$17-$D$16)+$D$16)*(1-Analise_Fundamentalista!$C$6)*Q52 -> 287929.6582 | S52: -196303.5372 | T52: =Analise_Fundamentalista!$C$12*Monte_Carlo!Q52 -> 261042.2905 | U52: =-Analise_Fundamentalista!$C$14*Monte_Carlo!Q52 -> -131660.6287 | V52: 1513139.541 | W52: =(RAND()*($D$17-$D$16)+$D$16)*(1-Analise_Fundamentalista!$C$6)*V52 -> 162960.8233 | X52: -185647.1022 | Y52: =Analise_Fundamentalista!$C$12*Monte_Carlo!V52 -> 246812.2616 | Z52: =-Analise_Fundamentalista!$C$14*Monte_Carlo!V52 -> -124483.4983 | AA52: 1548424.512 | AB52: =(RAND()*($D$17-$D$16)+$D$16)*(1-Analise_Fundamentalista!$C$6)*AA52 -> 155660.479 | AC52: -1758680.124 | AD52: =Analise_Fundamentalista!$C$12*Monte_Carlo!AA52 -> 252567.6881 | AE52: =-Analise_Fundamentalista!$C$14*Monte_Carlo!AA52 -> -127386.3347 | AF52: 1412424.002 | AG52: =(RAND()*($D$17-$D$16)+$D$16)*(1-Analise_Fundamentalista!$C$6)*AF52 -> 251014.9917 | AH52: -616409.1638 | AI52: =Analise_Fundamentalista!$C$12*Monte_Carlo!AF52 -> 230384.2789 | AJ52: =-Analise_Fundamentalista!$C$14*Monte_Carlo!AF52 -> -116197.7967 | AK52: 1415823.658 | AL52: =(RAND()*($D$17-$D$16)+$D$16)*(1-Analise_Fundamentalista!$C$6)*AK52 -> 196912.1017 | AM52: -773714.0876 | AN52: =Analise_Fundamentalista!$C$12*Monte_Carlo!AK52 -> 230938.8061 | AO52: =-Analise_Fundamentalista!$C$14*Monte_Carlo!AK52 -> -116477.4808 | AP52: 1365698.8 | AQ52: =(RAND()*($D$17-$D$16)+$D$16)*(1-Analise_Fundamentalista!$C$6)*AP52 -> 145676.5489 | AR52: -349410.026 | AS52: =Analise_Fundamentalista!$C$12*Monte_Carlo!AP52 -> 222762.8055 | AT52: =-Analise_Fundamentalista!$C$14*Monte_Carlo!AP52 -> -112353.7913 | AU52: 1444481.763 | AV52: =(RAND()*($D$17-$D$16)+$D$16)*(1-Analise_Fundamentalista!$C$6)*AU52 -> 203311.5388 | AW52: -443265.1509 | AX52: =Analise_Fundamentalista!$C$12*Monte_Carlo!AU52 -> 235613.3067 | AY52: =-Analise_Fundamentalista!$C$14*Monte_Carlo!AU52 -> -118835.136 | AZ52: -717487.8949 | BA52: -273125.8206 | BB52: -136114.7217 | BC52: 221007.7829 | BD52: 99642.48441 | BE52: -1477838.292 | BF52: -251207.6899 | BG52: -462340.6606 | BH52: -93324.46275 | BI52: -123175.4413 | BJ52: =BI52*(1+Analise_Fundamentalista!$C$10)/(Analise_Fundamentalista!$C$10) -> -1613337.658 | BK52: =NPV(Analise_Fundamentalista!$C$10,Monte_Carlo!AZ52:BI52)+Monte_Carlo!BJ52/(1+Analise_Fundamentalista!$C$10)^10 -> -2912249.912 | BL52: =(BK52+Analise_Fundamentalista!$C$15-Analise_Fundamentalista!$C$16-Analise_Fundamentalista!$C$17)/(Analise_Fundamentalista!$F$29+Analise_Fundamentalista!$F$30)*1000 -> -77.34534946 | BM52: 0.4440067266
A53: Tent28 | B53: 1580738.002 | C53: =(RAND()*($D$17-$D$16)+$D$16)*(1-Analise_Fundamentalista!$C$6)*B53 -> 259451.0161 | D53: -237592.6912 | E53: =Analise_Fundamentalista!$C$12*Monte_Carlo!B53 -> 257838.4285 | F53: =-Analise_Fundamentalista!$C$14*Monte_Carlo!B53 -> -130044.7124 | G53: 1573466.974 | H53: =(RAND()*($D$17-$D$16)+$D$16)*(1-Analise_Fundamentalista!$C$6)*G53 -> 157656.9214 | I53: -288068.4026 | J53: =Analise_Fundamentalista!$C$12*Monte_Carlo!G53 -> 256652.4315 | K53: =-Analise_Fundamentalista!$C$14*Monte_Carlo!G53 -> -129446.5369 | L53: 1484800.278 | M53: =(RAND()*($D$17-$D$16)+$D$16)*(1-Analise_Fundamentalista!$C$6)*L53 -> 100664.3577 | N53: -342572.3819 | O53: =Analise_Fundamentalista!$C$12*Monte_Carlo!L53 -> 242189.7681 | P53: =-Analise_Fundamentalista!$C$14*Monte_Carlo!L53 -> -122152.0738 | Q53: 1508786.616 | R53: =(RAND()*($D$17-$D$16)+$D$16)*(1-Analise_Fundamentalista!$C$6)*Q53 -> 192501.4845 | S53: -1579975.909 | T53: =Analise_Fundamentalista!$C$12*Monte_Carlo!Q53 -> 246102.2442 | U53: =-Analise_Fundamentalista!$C$14*Monte_Carlo!Q53 -> -124125.3903 | V53: 1539448.582 | W53: =(RAND()*($D$17-$D$16)+$D$16)*(1-Analise_Fundamentalista!$C$6)*V53 -> 226823.6322 | X53: -1064516.877 | Y53: =Analise_Fundamentalista!$C$12*Monte_Carlo!V53 -> 251103.5999 | Z53: =-Analise_Fundamentalista!$C$14*Monte_Carlo!V53 -> -126647.8997 | AA53: 1401115.801 | AB53: =(RAND()*($D$17-$D$16)+$D$16)*(1-Analise_Fundamentalista!$C$6)*AA53 -> 240505.282 | AC53: -202346.1767 | AD53: =Analise_Fundamentalista!$C$12*Monte_Carlo!AA53 -> 228539.7679 | AE53: =-Analise_Fundamentalista!$C$14*Monte_Carlo!AA53 -> -115267.4896 | AF53: 1397280.332 | AG53: =(RAND()*($D$17-$D$16)+$D$16)*(1-Analise_Fundamentalista!$C$6)*AF53 -> 95429.6162 | AH53: -1318509.531 | AI53: =Analise_Fundamentalista!$C$12*Monte_Carlo!AF53 -> 227914.1542 | AJ53: =-Analise_Fundamentalista!$C$14*Monte_Carlo!AF53 -> -114951.9519 | AK53: 1453354.595 | AL53: =(RAND()*($D$17-$D$16)+$D$16)*(1-Analise_Fundamentalista!$C$6)*AK53 -> 216675.0328 | AM53: -299925.3523 | AN53: =Analise_Fundamentalista!$C$12*Monte_Carlo!AK53 -> 237060.5782 | AO53: =-Analise_Fundamentalista!$C$14*Monte_Carlo!AK53 -> -119565.0892 | AP53: 1482228.358 | AQ53: =(RAND()*($D$17-$D$16)+$D$16)*(1-Analise_Fundamentalista!$C$6)*AP53 -> 255258.0932 | AR53: -294442.8621 | AS53: =Analise_Fundamentalista!$C$12*Monte_Carlo!AP53 -> 241770.2553 | AT53: =-Analise_Fundamentalista!$C$14*Monte_Carlo!AP53 -> -121940.4861 | AU53: 1367645.155 | AV53: =(RAND()*($D$17-$D$16)+$D$16)*(1-Analise_Fundamentalista!$C$6)*AU53 -> 210573.4124 | AW53: -410614.4406 | AX53: =Analise_Fundamentalista!$C$12*Monte_Carlo!AU53 -> 223080.2808 | AY53: =-Analise_Fundamentalista!$C$14*Monte_Carlo!AU53 -> -112513.9147 | AZ53: 149652.0409 | BA53: -3205.586529 | BB53: -121870.3298 | BC53: -1265497.571 | BD53: -713237.5446 | BE53: 151431.3835 | BF53: -1110117.713 | BG53: 34245.16941 | BH53: 80645.00032 | BI53: -89474.66209 | BJ53: =BI53*(1+Analise_Fundamentalista!$C$10)/(Analise_Fundamentalista!$C$10) -> -1171928.756 | BK53: =NPV(Analise_Fundamentalista!$C$10,Monte_Carlo!AZ53:BI53)+Monte_Carlo!BJ53/(1+Analise_Fundamentalista!$C$10)^10 -> -2416240.512 | BL53: =(BK53+Analise_Fundamentalista!$C$15-Analise_Fundamentalista!$C$16-Analise_Fundamentalista!$C$17)/(Analise_Fundamentalista!$F$29+Analise_Fundamentalista!$F$30)*1000 -> -66.15004267 | BM53: 0.5215418123
A54: Tent29 | B54: 1660005.799 | C54: =(RAND()*($D$17-$D$16)+$D$16)*(1-Analise_Fundamentalista!$C$6)*B54 -> 108403.0292 | D54: -542617.3612 | E54: =Analise_Fundamentalista!$C$12*Monte_Carlo!B54 -> 270768.012 | F54: =-Analise_Fundamentalista!$C$14*Monte_Carlo!B54 -> -136565.9435 | G54: 1530813.849 | H54: =(RAND()*($D$17-$D$16)+$D$16)*(1-Analise_Fundamentalista!$C$6)*G54 -> 196381.3092 | I54: -569365.9807 | J54: =Analise_Fundamentalista!$C$12*Monte_Carlo!G54 -> 249695.1655 | K54: =-Analise_Fundamentalista!$C$14*Monte_Carlo!G54 -> -125937.5345 | L54: 1558105.75 | M54: =(RAND()*($D$17-$D$16)+$D$16)*(1-Analise_Fundamentalista!$C$6)*L54 -> 217151.9209 | N54: -1105857.76 | O54: =Analise_Fundamentalista!$C$12*Monte_Carlo!L54 -> 254146.8208 | P54: =-Analise_Fundamentalista!$C$14*Monte_Carlo!L54 -> -128182.7942 | Q54: 1494539.639 | R54: =(RAND()*($D$17-$D$16)+$D$16)*(1-Analise_Fundamentalista!$C$6)*Q54 -> 140198.3689 | S54: -551979.2876 | T54: =Analise_Fundamentalista!$C$12*Monte_Carlo!Q54 -> 243778.3815 | U54: =-Analise_Fundamentalista!$C$14*Monte_Carlo!Q54 -> -122953.3149 | V54: 1628142.474 | W54: =(RAND()*($D$17-$D$16)+$D$16)*(1-Analise_Fundamentalista!$C$6)*V54 -> 239922.879 | X54: -494155.8287 | Y54: =Analise_Fundamentalista!$C$12*Monte_Carlo!V54 -> 265570.6994 | Z54: =-Analise_Fundamentalista!$C$14*Monte_Carlo!V54 -> -133944.6002 | AA54: 1476457.804 | AB54: =(RAND()*($D$17-$D$16)+$D$16)*(1-Analise_Fundamentalista!$C$6)*AA54 -> 135729.764 | AC54: -806446.6305 | AD54: =Analise_Fundamentalista!$C$12*Monte_Carlo!AA54 -> 240829.0047 | AE54: =-Analise_Fundamentalista!$C$14*Monte_Carlo!AA54 -> -121465.7521 | AF54: 1503123.701 | AG54: =(RAND()*($D$17-$D$16)+$D$16)*(1-Analise_Fundamentalista!$C$6)*AF54 -> 165910.6925 | AH54: -229786.4336 | AI54: =Analise_Fundamentalista!$C$12*Monte_Carlo!AF54 -> 245178.5509 | AJ54: =-Analise_Fundamentalista!$C$14*Monte_Carlo!AF54 -> -123659.5116 | AK54: 1325295.33 | AL54: =(RAND()*($D$17-$D$16)+$D$16)*(1-Analise_Fundamentalista!$C$6)*AK54 -> 190126.9953 | AM54: -95297.03581 | AN54: =Analise_Fundamentalista!$C$12*Monte_Carlo!AK54 -> 216172.4869 | AO54: =-Analise_Fundamentalista!$C$14*Monte_Carlo!AK54 -> -109029.8643 | AP54: 1445711.162 | AQ54: =(RAND()*($D$17-$D$16)+$D$16)*(1-Analise_Fundamentalista!$C$6)*AP54 -> 251241.7957 | AR54: -626205.4399 | AS54: =Analise_Fundamentalista!$C$12*Monte_Carlo!AP54 -> 235813.8372 | AT54: =-Analise_Fundamentalista!$C$14*Monte_Carlo!AP54 -> -118936.2766 | AU54: 1419219.568 | AV54: =(RAND()*($D$17-$D$16)+$D$16)*(1-Analise_Fundamentalista!$C$6)*AU54 -> 253156.5052 | AW54: -350191.0538 | AX54: =Analise_Fundamentalista!$C$12*Monte_Carlo!AU54 -> 231492.722 | AY54: =-Analise_Fundamentalista!$C$14*Monte_Carlo!AU54 -> -116756.8567 | AZ54: -300012.2634 | BA54: -249227.0406 | BB54: -762741.8129 | BC54: -290955.8522 | BD54: -122606.8505 | BE54: -551353.614 | BF54: 57643.29823 | BG54: 201972.582 | BH54: -258086.0836 | BI54: 17701.3167 | BJ54: =BI54*(1+Analise_Fundamentalista!$C$10)/(Analise_Fundamentalista!$C$10) -> 231849.7951 | BK54: =NPV(Analise_Fundamentalista!$C$10,Monte_Carlo!AZ54:BI54)+Monte_Carlo!BJ54/(1+Analise_Fundamentalista!$C$10)^10 -> -1600763.703 | BL54: =(BK54+Analise_Fundamentalista!$C$15-Analise_Fundamentalista!$C$16-Analise_Fundamentalista!$C$17)/(Analise_Fundamentalista!$F$29+Analise_Fundamentalista!$F$30)*1000 -> -47.74411514 | BM54: 0.6459311485
A55: Tent30 | B55: 1554726.745 | C55: =(RAND()*($D$17-$D$16)+$D$16)*(1-Analise_Fundamentalista!$C$6)*B55 -> 194903.2294 | D55: -89185.28266 | E55: =Analise_Fundamentalista!$C$12*Monte_Carlo!B55 -> 253595.6623 | F55: =-Analise_Fundamentalista!$C$14*Monte_Carlo!B55 -> -127904.8091 | G55: 1606327.574 | H55: =(RAND()*($D$17-$D$16)+$D$16)*(1-Analise_Fundamentalista!$C$6)*G55 -> 154569.7673 | I55: -244369.374 | J55: =Analise_Fundamentalista!$C$12*Monte_Carlo!G55 -> 262012.4122 | K55: =-Analise_Fundamentalista!$C$14*Monte_Carlo!G55 -> -132149.9242 | L55: 1532718.775 | M55: =(RAND()*($D$17-$D$16)+$D$16)*(1-Analise_Fundamentalista!$C$6)*L55 -> 131180.5199 | N55: -249333.4844 | O55: =Analise_Fundamentalista!$C$12*Monte_Carlo!L55 -> 250005.8832 | P55: =-Analise_Fundamentalista!$C$14*Monte_Carlo!L55 -> -126094.2496 | Q55: 1591917.405 | R55: =(RAND()*($D$17-$D$16)+$D$16)*(1-Analise_Fundamentalista!$C$6)*Q55 -> 165967.8074 | S55: -392105.2937 | T55: =Analise_Fundamentalista!$C$12*Monte_Carlo!Q55 -> 259661.9308 | U55: =-Analise_Fundamentalista!$C$14*Monte_Carlo!Q55 -> -130964.4234 | V55: 1653083.602 | W55: =(RAND()*($D$17-$D$16)+$D$16)*(1-Analise_Fundamentalista!$C$6)*V55 -> 121375.2826 | X55: -991519.4578 | Y55: =Analise_Fundamentalista!$C$12*Monte_Carlo!V55 -> 269638.9139 | Z55: =-Analise_Fundamentalista!$C$14*Monte_Carlo!V55 -> -135996.4657 | AA55: 1353098.761 | AB55: =(RAND()*($D$17-$D$16)+$D$16)*(1-Analise_Fundamentalista!$C$6)*AA55 -> 102770.9081 | AC55: -203415.1727 | AD55: =Analise_Fundamentalista!$C$12*Monte_Carlo!AA55 -> 220707.5794 | AE55: =-Analise_Fundamentalista!$C$14*Monte_Carlo!AA55 -> -111317.2069 | AF55: 1505474.332 | AG55: =(RAND()*($D$17-$D$16)+$D$16)*(1-Analise_Fundamentalista!$C$6)*AF55 -> 106219.7863 | AH55: -495987.2579 | AI55: =Analise_Fundamentalista!$C$12*Monte_Carlo!AF55 -> 245561.9688 | AJ55: =-Analise_Fundamentalista!$C$14*Monte_Carlo!AF55 -> -123852.8942 | AK55: 1295218.194 | AL55: =(RAND()*($D$17-$D$16)+$D$16)*(1-Analise_Fundamentalista!$C$6)*AK55 -> 209518.4627 | AM55: -345281.1416 | AN55: =Analise_Fundamentalista!$C$12*Monte_Carlo!AK55 -> 211266.5244 | AO55: =-Analise_Fundamentalista!$C$14*Monte_Carlo!AK55 -> -106555.468 | AP55: 1370713.698 | AQ55: =(RAND()*($D$17-$D$16)+$D$16)*(1-Analise_Fundamentalista!$C$6)*AP55 -> 165843.7685 | AR55: -296737.5428 | AS55: =Analise_Fundamentalista!$C$12*Monte_Carlo!AP55 -> 223580.7992 | AT55: =-Analise_Fundamentalista!$C$14*Monte_Carlo!AP55 -> -112766.3587 | AU55: 1411531.874 | AV55: =(RAND()*($D$17-$D$16)+$D$16)*(1-Analise_Fundamentalista!$C$6)*AU55 -> 169307.389 | AW55: -418721.1891 | AX55: =Analise_Fundamentalista!$C$12*Monte_Carlo!AU55 -> 230238.7616 | AY55: =-Analise_Fundamentalista!$C$14*Monte_Carlo!AU55 -> -116124.4028 | AZ55: 231408.8 | BA55: 40062.88133 | BB55: 5758.669005 | BC55: -97439.97884 | BD55: -736501.727 | BE55: 8746.107917 | BF55: -268058.3971 | BG55: -31051.62247 | BH55: -20079.33387 | BI55: -135299.4413 | BJ55: =BI55*(1+Analise_Fundamentalista!$C$10)/(Analise_Fundamentalista!$C$10) -> -1772136.404 | BK55: =NPV(Analise_Fundamentalista!$C$10,Monte_Carlo!AZ55:BI55)+Monte_Carlo!BJ55/(1+Analise_Fundamentalista!$C$10)^10 -> -1350221.744 | BL55: =(BK55+Analise_Fundamentalista!$C$15-Analise_Fundamentalista!$C$16-Analise_Fundamentalista!$C$17)/(Analise_Fundamentalista!$F$29+Analise_Fundamentalista!$F$30)*1000 -> -42.0891939 | BM55: 0.6818135101
A56: Tent31 | B56: 1560997.286 | C56: =(RAND()*($D$17-$D$16)+$D$16)*(1-Analise_Fundamentalista!$C$6)*B56 -> 289248.6273 | D56: -914802.8383 | E56: =Analise_Fundamentalista!$C$12*Monte_Carlo!B56 -> 254618.4671 | F56: =-Analise_Fundamentalista!$C$14*Monte_Carlo!B56 -> -128420.6762 | G56: 1544990.609 | H56: =(RAND()*($D$17-$D$16)+$D$16)*(1-Analise_Fundamentalista!$C$6)*G56 -> 136695.1833 | I56: -179680.5358 | J56: =Analise_Fundamentalista!$C$12*Monte_Carlo!G56 -> 252007.5749 | K56: =-Analise_Fundamentalista!$C$14*Monte_Carlo!G56 -> -127103.8332 | L56: 1705946.46 | M56: =(RAND()*($D$17-$D$16)+$D$16)*(1-Analise_Fundamentalista!$C$6)*L56 -> 182081.6748 | N56: -748313.7774 | O56: =Analise_Fundamentalista!$C$12*Monte_Carlo!L56 -> 278261.5168 | P56: =-Analise_Fundamentalista!$C$14*Monte_Carlo!L56 -> -140345.406 | Q56: 1479316.469 | R56: =(RAND()*($D$17-$D$16)+$D$16)*(1-Analise_Fundamentalista!$C$6)*Q56 -> 104650.98 | S56: -778914.088 | T56: =Analise_Fundamentalista!$C$12*Monte_Carlo!Q56 -> 241295.2892 | U56: =-Analise_Fundamentalista!$C$14*Monte_Carlo!Q56 -> -121700.9298 | V56: 1503899.2 | W56: =(RAND()*($D$17-$D$16)+$D$16)*(1-Analise_Fundamentalista!$C$6)*V56 -> 151667.0491 | X56: -337769.9634 | Y56: =Analise_Fundamentalista!$C$12*Monte_Carlo!V56 -> 245305.0446 | Z56: =-Analise_Fundamentalista!$C$14*Monte_Carlo!V56 -> -123723.3106 | AA56: 1508262.898 | AB56: =(RAND()*($D$17-$D$16)+$D$16)*(1-Analise_Fundamentalista!$C$6)*AA56 -> 248892.4053 | AC56: -844062.9621 | AD56: =Analise_Fundamentalista!$C$12*Monte_Carlo!AA56 -> 246016.8192 | AE56: =-Analise_Fundamentalista!$C$14*Monte_Carlo!AA56 -> -124082.3049 | AF56: 1468782.842 | AG56: =(RAND()*($D$17-$D$16)+$D$16)*(1-Analise_Fundamentalista!$C$6)*AF56 -> 215848.8564 | AH56: -87992.39906 | AI56: =Analise_Fundamentalista!$C$12*Monte_Carlo!AF56 -> 239577.121 | AJ56: =-Analise_Fundamentalista!$C$14*Monte_Carlo!AF56 -> -120834.3457 | AK56: 1393138.35 | AL56: =(RAND()*($D$17-$D$16)+$D$16)*(1-Analise_Fundamentalista!$C$6)*AK56 -> 143169.163 | AM56: -252225.1035 | AN56: =Analise_Fundamentalista!$C$12*Monte_Carlo!AK56 -> 227238.5443 | AO56: =-Analise_Fundamentalista!$C$14*Monte_Carlo!AK56 -> -114611.1979 | AP56: 1349792.79 | AQ56: =(RAND()*($D$17-$D$16)+$D$16)*(1-Analise_Fundamentalista!$C$6)*AP56 -> 197943.6983 | AR56: -843636.1119 | AS56: =Analise_Fundamentalista!$C$12*Monte_Carlo!AP56 -> 220168.3335 | AT56: =-Analise_Fundamentalista!$C$14*Monte_Carlo!AP56 -> -111045.23 | AU56: 1539526.072 | AV56: =(RAND()*($D$17-$D$16)+$D$16)*(1-Analise_Fundamentalista!$C$6)*AU56 -> 234141.4177 | AW56: -54705.38785 | AX56: =Analise_Fundamentalista!$C$12*Monte_Carlo!AU56 -> 251116.2396 | AY56: =-Analise_Fundamentalista!$C$14*Monte_Carlo!AU56 -> -126654.2747 | AZ56: -499356.42 | BA56: 81918.38919 | BB56: -428315.9918 | BC56: -554668.7486 | BD56: -64521.1802 | BE56: -473236.0424 | BF56: 246599.2326 | BG56: 3571.405941 | BH56: -536569.3102 | BI56: 303897.9948 | BJ56: =BI56*(1+Analise_Fundamentalista!$C$10)/(Analise_Fundamentalista!$C$10) -> 3980420.722 | BK56: =NPV(Analise_Fundamentalista!$C$10,Monte_Carlo!AZ56:BI56)+Monte_Carlo!BJ56/(1+Analise_Fundamentalista!$C$10)^10 -> 347255.2633 | BL56: =(BK56+Analise_Fundamentalista!$C$15-Analise_Fundamentalista!$C$16-Analise_Fundamentalista!$C$17)/(Analise_Fundamentalista!$F$29+Analise_Fundamentalista!$F$30)*1000 -> -3.775855713 | BM56: 0.872768771
A57: Tent32 | B57: 1485198.556 | C57: =(RAND()*($D$17-$D$16)+$D$16)*(1-Analise_Fundamentalista!$C$6)*B57 -> 236964.664 | D57: -195875.9347 | E57: =Analise_Fundamentalista!$C$12*Monte_Carlo!B57 -> 242254.7323 | F57: =-Analise_Fundamentalista!$C$14*Monte_Carlo!B57 -> -122184.8395 | G57: 1619403.151 | H57: =(RAND()*($D$17-$D$16)+$D$16)*(1-Analise_Fundamentalista!$C$6)*G57 -> 109989.7405 | I57: -941959.7099 | J57: =Analise_Fundamentalista!$C$12*Monte_Carlo!G57 -> 264145.2049 | K57: =-Analise_Fundamentalista!$C$14*Monte_Carlo!G57 -> -133225.6305 | L57: 1792938.117 | M57: =(RAND()*($D$17-$D$16)+$D$16)*(1-Analise_Fundamentalista!$C$6)*L57 -> 281565.0834 | N57: -760548.3225 | O57: =Analise_Fundamentalista!$C$12*Monte_Carlo!L57 -> 292450.96 | P57: =-Analise_Fundamentalista!$C$14*Monte_Carlo!L57 -> -147502.0663 | Q57: 1582403.779 | R57: =(RAND()*($D$17-$D$16)+$D$16)*(1-Analise_Fundamentalista!$C$6)*Q57 -> 258045.1515 | S57: -512990.9499 | T57: =Analise_Fundamentalista!$C$12*Monte_Carlo!Q57 -> 258110.1377 | U57: =-Analise_Fundamentalista!$C$14*Monte_Carlo!Q57 -> -130181.753 | V57: 1509782.156 | W57: =(RAND()*($D$17-$D$16)+$D$16)*(1-Analise_Fundamentalista!$C$6)*V57 -> 159556.1028 | X57: -906180.6696 | Y57: =Analise_Fundamentalista!$C$12*Monte_Carlo!V57 -> 246264.6295 | Z57: =-Analise_Fundamentalista!$C$14*Monte_Carlo!V57 -> -124207.2918 | AA57: 1327874.735 | AB57: =(RAND()*($D$17-$D$16)+$D$16)*(1-Analise_Fundamentalista!$C$6)*AA57 -> 198580.2011 | AC57: -272336.5408 | AD57: =Analise_Fundamentalista!$C$12*Monte_Carlo!AA57 -> 216593.2206 | AE57: =-Analise_Fundamentalista!$C$14*Monte_Carlo!AA57 -> -109242.0678 | AF57: 1451364.161 | AG57: =(RAND()*($D$17-$D$16)+$D$16)*(1-Analise_Fundamentalista!$C$6)*AF57 -> 206262.9258 | AH57: -707730.0827 | AI57: =Analise_Fundamentalista!$C$12*Monte_Carlo!AF57 -> 236735.9131 | AJ57: =-Analise_Fundamentalista!$C$14*Monte_Carlo!AF57 -> -119401.3395 | AK57: 1518647.991 | AL57: =(RAND()*($D$17-$D$16)+$D$16)*(1-Analise_Fundamentalista!$C$6)*AK57 -> 183493.3297 | AM57: -418936.9687 | AN57: =Analise_Fundamentalista!$C$12*Monte_Carlo!AK57 -> 247710.7596 | AO57: =-Analise_Fundamentalista!$C$14*Monte_Carlo!AK57 -> -124936.6693 | AP57: 1307732.584 | AQ57: =(RAND()*($D$17-$D$16)+$D$16)*(1-Analise_Fundamentalista!$C$6)*AP57 -> 186089.2771 | AR57: -526726.4484 | AS57: =Analise_Fundamentalista!$C$12*Monte_Carlo!AP57 -> 213307.7801 | AT57: =-Analise_Fundamentalista!$C$14*Monte_Carlo!AP57 -> -107585.0062 | AU57: 1465788.145 | AV57: =(RAND()*($D$17-$D$16)+$D$16)*(1-Analise_Fundamentalista!$C$6)*AU57 -> 187270.6275 | AW57: -57001.48834 | AX57: =Analise_Fundamentalista!$C$12*Monte_Carlo!AU57 -> 239088.6479 | AY57: =-Analise_Fundamentalista!$C$14*Monte_Carlo!AU57 -> -120587.9769 | AZ57: 161158.6222 | BA57: -701050.395 | BB57: -334034.3454 | BC57: -127017.4138 | BD57: -624567.229 | BE57: 33594.81316 | BF57: -384132.5833 | BG57: -112669.5488 | BH57: -234914.3973 | BI57: 248769.8101 | BJ57: =BI57*(1+Analise_Fundamentalista!$C$10)/(Analise_Fundamentalista!$C$10) -> 3258358.147 | BK57: =NPV(Analise_Fundamentalista!$C$10,Monte_Carlo!AZ57:BI57)+Monte_Carlo!BJ57/(1+Analise_Fundamentalista!$C$10)^10 -> -13838.9566 | BL57: =(BK57+Analise_Fundamentalista!$C$15-Analise_Fundamentalista!$C$16-Analise_Fundamentalista!$C$17)/(Analise_Fundamentalista!$F$29+Analise_Fundamentalista!$F$30)*1000 -> -11.926025 | BM57: 0.840795479
A58: Tent33 | B58: 1700221.418 | C58: =(RAND()*($D$17-$D$16)+$D$16)*(1-Analise_Fundamentalista!$C$6)*B58 -> 254003.7742 | D58: -999484.7791 | E58: =Analise_Fundamentalista!$C$12*Monte_Carlo!B58 -> 277327.6898 | F58: =-Analise_Fundamentalista!$C$14*Monte_Carlo!B58 -> -139874.4162 | G58: 1576870.319 | H58: =(RAND()*($D$17-$D$16)+$D$16)*(1-Analise_Fundamentalista!$C$6)*G58 -> 250742.8019 | I58: -855833.2749 | J58: =Analise_Fundamentalista!$C$12*Monte_Carlo!G58 -> 257207.5602 | K58: =-Analise_Fundamentalista!$C$14*Monte_Carlo!G58 -> -129726.5244 | L58: 1547157.233 | M58: =(RAND()*($D$17-$D$16)+$D$16)*(1-Analise_Fundamentalista!$C$6)*L58 -> 145923.5344 | N58: -518935.714 | O58: =Analise_Fundamentalista!$C$12*Monte_Carlo!L58 -> 252360.9788 | P58: =-Analise_Fundamentalista!$C$14*Monte_Carlo!L58 -> -127282.0778 | Q58: 1653232.562 | R58: =(RAND()*($D$17-$D$16)+$D$16)*(1-Analise_Fundamentalista!$C$6)*Q58 -> 181672.6808 | S58: -835243.0652 | T58: =Analise_Fundamentalista!$C$12*Monte_Carlo!Q58 -> 269663.2111 | U58: =-Analise_Fundamentalista!$C$14*Monte_Carlo!Q58 -> -136008.7204 | V58: 1528172.836 | W58: =(RAND()*($D$17-$D$16)+$D$16)*(1-Analise_Fundamentalista!$C$6)*V58 -> 145993.7399 | X58: -848418.1082 | Y58: =Analise_Fundamentalista!$C$12*Monte_Carlo!V58 -> 249264.3828 | Z58: =-Analise_Fundamentalista!$C$14*Monte_Carlo!V58 -> -125720.2627 | AA58: 1554102.278 | AB58: =(RAND()*($D$17-$D$16)+$D$16)*(1-Analise_Fundamentalista!$C$6)*AA58 -> 118309.1506 | AC58: -779787.131 | AD58: =Analise_Fundamentalista!$C$12*Monte_Carlo!AA58 -> 253493.8038 | AE58: =-Analise_Fundamentalista!$C$14*Monte_Carlo!AA58 -> -127853.4352 | AF58: 1471727.795 | AG58: =(RAND()*($D$17-$D$16)+$D$16)*(1-Analise_Fundamentalista!$C$6)*AF58 -> 155466.1363 | AH58: -549020.6878 | AI58: =Analise_Fundamentalista!$C$12*Monte_Carlo!AF58 -> 240057.4802 | AJ58: =-Analise_Fundamentalista!$C$14*Monte_Carlo!AF58 -> -121076.6221 | AK58: 1473504.509 | AL58: =(RAND()*($D$17-$D$16)+$D$16)*(1-Analise_Fundamentalista!$C$6)*AK58 -> 269695.7605 | AM58: -425411.5667 | AN58: =Analise_Fundamentalista!$C$12*Monte_Carlo!AK58 -> 240347.2848 | AO58: =-Analise_Fundamentalista!$C$14*Monte_Carlo!AK58 -> -121222.7894 | AP58: 1404254.166 | AQ58: =(RAND()*($D$17-$D$16)+$D$16)*(1-Analise_Fundamentalista!$C$6)*AP58 -> 94881.66743 | AR58: -107592.2967 | AS58: =Analise_Fundamentalista!$C$12*Monte_Carlo!AP58 -> 229051.6751 | AT58: =-Analise_Fundamentalista!$C$14*Monte_Carlo!AP58 -> -115525.6778 | AU58: 1292383.818 | AV58: =(RAND()*($D$17-$D$16)+$D$16)*(1-Analise_Fundamentalista!$C$6)*AU58 -> 249840.0624 | AW58: -873974.8589 | AX58: =Analise_Fundamentalista!$C$12*Monte_Carlo!AU58 -> 210804.2016 | AY58: =-Analise_Fundamentalista!$C$14*Monte_Carlo!AU58 -> -106322.2884 | AZ58: -608027.7312 | BA58: -477609.4373 | BB58: -247933.2786 | BC58: -519915.8937 | BD58: -578880.2482 | BE58: -535837.6118 | BF58: -274573.6934 | BG58: -36591.31083 | BH58: 100815.368 | BI58: -519652.8833 | BJ58: =BI58*(1+Analise_Fundamentalista!$C$10)/(Analise_Fundamentalista!$C$10) -> -6806353.252 | BK58: =NPV(Analise_Fundamentalista!$C$10,Monte_Carlo!AZ58:BI58)+Monte_Carlo!BJ58/(1+Analise_Fundamentalista!$C$10)^10 -> -5703201.168 | BL58: =(BK58+Analise_Fundamentalista!$C$15-Analise_Fundamentalista!$C$16-Analise_Fundamentalista!$C$17)/(Analise_Fundamentalista!$F$29+Analise_Fundamentalista!$F$30)*1000 -> -140.3392273 | BM58: 0.1080143885
A59: Tent34 | B59: 1457160.193 | C59: =(RAND()*($D$17-$D$16)+$D$16)*(1-Analise_Fundamentalista!$C$6)*B59 -> 181823.9455 | D59: -206740.7538 | E59: =Analise_Fundamentalista!$C$12*Monte_Carlo!B59 -> 237681.3194 | F59: =-Analise_Fundamentalista!$C$14*Monte_Carlo!B59 -> -119878.1695 | G59: 1567342.875 | H59: =(RAND()*($D$17-$D$16)+$D$16)*(1-Analise_Fundamentalista!$C$6)*G59 -> 202327.3038 | I59: -31138.71789 | J59: =Analise_Fundamentalista!$C$12*Monte_Carlo!G59 -> 255653.5132 | K59: =-Analise_Fundamentalista!$C$14*Monte_Carlo!G59 -> -128942.7173 | L59: 1438374.292 | M59: =(RAND()*($D$17-$D$16)+$D$16)*(1-Analise_Fundamentalista!$C$6)*L59 -> 199929.898 | N59: -46477.67686 | O59: =Analise_Fundamentalista!$C$12*Monte_Carlo!L59 -> 234617.1006 | P59: =-Analise_Fundamentalista!$C$14*Monte_Carlo!L59 -> -118332.6843 | Q59: 1580630.865 | R59: =(RAND()*($D$17-$D$16)+$D$16)*(1-Analise_Fundamentalista!$C$6)*Q59 -> 263171.5845 | S59: -296967.1096 | T59: =Analise_Fundamentalista!$C$12*Monte_Carlo!Q59 -> 257820.953 | U59: =-Analise_Fundamentalista!$C$14*Monte_Carlo!Q59 -> -130035.8983 | V59: 1565880.155 | W59: =(RAND()*($D$17-$D$16)+$D$16)*(1-Analise_Fundamentalista!$C$6)*V59 -> 223923.1973 | X59: -180182.3355 | Y59: =Analise_Fundamentalista!$C$12*Monte_Carlo!V59 -> 255414.925 | Z59: =-Analise_Fundamentalista!$C$14*Monte_Carlo!V59 -> -128822.3817 | AA59: 1518100.989 | AB59: =(RAND()*($D$17-$D$16)+$D$16)*(1-Analise_Fundamentalista!$C$6)*AA59 -> 209408.7701 | AC59: -764574.7423 | AD59: =Analise_Fundamentalista!$C$12*Monte_Carlo!AA59 -> 247621.5367 | AE59: =-Analise_Fundamentalista!$C$14*Monte_Carlo!AA59 -> -124891.6684 | AF59: 1464247.582 | AG59: =(RAND()*($D$17-$D$16)+$D$16)*(1-Analise_Fundamentalista!$C$6)*AF59 -> 230841.2496 | AH59: -1391557.07 | AI59: =Analise_Fundamentalista!$C$12*Monte_Carlo!AF59 -> 238837.3625 | AJ59: =-Analise_Fundamentalista!$C$14*Monte_Carlo!AF59 -> -120461.2373 | AK59: 1438935.418 | AL59: =(RAND()*($D$17-$D$16)+$D$16)*(1-Analise_Fundamentalista!$C$6)*AK59 -> 135536.1482 | AM59: -1076691.401 | AN59: =Analise_Fundamentalista!$C$12*Monte_Carlo!AK59 -> 234708.6274 | AO59: =-Analise_Fundamentalista!$C$14*Monte_Carlo!AK59 -> -118378.8473 | AP59: 1454725.863 | AQ59: =(RAND()*($D$17-$D$16)+$D$16)*(1-Analise_Fundamentalista!$C$6)*AP59 -> 274856.9505 | AR59: -413319.7048 | AS59: =Analise_Fundamentalista!$C$12*Monte_Carlo!AP59 -> 237284.2494 | AT59: =-Analise_Fundamentalista!$C$14*Monte_Carlo!AP59 -> -119677.9012 | AU59: 1354773.456 | AV59: =(RAND()*($D$17-$D$16)+$D$16)*(1-Analise_Fundamentalista!$C$6)*AU59 -> 96545.39355 | AW59: -72415.48784 | AX59: =Analise_Fundamentalista!$C$12*Monte_Carlo!AU59 -> 220980.7434 | AY59: =-Analise_Fundamentalista!$C$14*Monte_Carlo!AU59 -> -111454.9813 | AZ59: 92886.3417 | BA59: 297899.3818 | BB59: 269736.6374 | BC59: 93989.52946 | BD59: 170333.4051 | BE59: -432436.104 | BF59: -1042339.695 | BG59: -824825.4725 | BH59: -20856.4061 | BI59: 133655.6678 | BJ59: =BI59*(1+Analise_Fundamentalista!$C$10)/(Analise_Fundamentalista!$C$10) -> 1750606.45 | BK59: =NPV(Analise_Fundamentalista!$C$10,Monte_Carlo!AZ59:BI59)+Monte_Carlo!BJ59/(1+Analise_Fundamentalista!$C$10)^10 -> 273505.7571 | BL59: =(BK59+Analise_Fundamentalista!$C$15-Analise_Fundamentalista!$C$16-Analise_Fundamentalista!$C$17)/(Analise_Fundamentalista!$F$29+Analise_Fundamentalista!$F$30)*1000 -> -5.440437773 | BM59: 0.8666312398
A60: Tent35 | B60: 1669619.447 | C60: =(RAND()*($D$17-$D$16)+$D$16)*(1-Analise_Fundamentalista!$C$6)*B60 -> 205129.1297 | D60: -193985.641 | E60: =Analise_Fundamentalista!$C$12*Monte_Carlo!B60 -> 272336.12 | F60: =-Analise_Fundamentalista!$C$14*Monte_Carlo!B60 -> -137356.8425 | G60: 1628091.172 | H60: =(RAND()*($D$17-$D$16)+$D$16)*(1-Analise_Fundamentalista!$C$6)*G60 -> 260980.9961 | I60: -884098.1612 | J60: =Analise_Fundamentalista!$C$12*Monte_Carlo!G60 -> 265562.3313 | K60: =-Analise_Fundamentalista!$C$14*Monte_Carlo!G60 -> -133940.3796 | L60: 1572628.579 | M60: =(RAND()*($D$17-$D$16)+$D$16)*(1-Analise_Fundamentalista!$C$6)*L60 -> 188458.0255 | N60: -1254981.169 | O60: =Analise_Fundamentalista!$C$12*Monte_Carlo!L60 -> 256515.6786 | P60: =-Analise_Fundamentalista!$C$14*Monte_Carlo!L60 -> -129377.5635 | Q60: 1436177.927 | R60: =(RAND()*($D$17-$D$16)+$D$16)*(1-Analise_Fundamentalista!$C$6)*Q60 -> 180255.1585 | S60: -173685.5026 | T60: =Analise_Fundamentalista!$C$12*Monte_Carlo!Q60 -> 234258.8457 | U60: =-Analise_Fundamentalista!$C$14*Monte_Carlo!Q60 -> -118151.993 | V60: 1396492.026 | W60: =(RAND()*($D$17-$D$16)+$D$16)*(1-Analise_Fundamentalista!$C$6)*V60 -> 99919.28348 | X60: -90699.36088 | Y60: =Analise_Fundamentalista!$C$12*Monte_Carlo!V60 -> 227785.5715 | Z60: =-Analise_Fundamentalista!$C$14*Monte_Carlo!V60 -> -114887.0993 | AA60: 1528132.966 | AB60: =(RAND()*($D$17-$D$16)+$D$16)*(1-Analise_Fundamentalista!$C$6)*AA60 -> 262728.6232 | AC60: -930557.0914 | AD60: =Analise_Fundamentalista!$C$12*Monte_Carlo!AA60 -> 249257.8795 | AE60: =-Analise_Fundamentalista!$C$14*Monte_Carlo!AA60 -> -125716.9827 | AF60: 1528758.671 | AG60: =(RAND()*($D$17-$D$16)+$D$16)*(1-Analise_Fundamentalista!$C$6)*AF60 -> 250581.9623 | AH60: -754560.4543 | AI60: =Analise_Fundamentalista!$C$12*Monte_Carlo!AF60 -> 249359.9399 | AJ60: =-Analise_Fundamentalista!$C$14*Monte_Carlo!AF60 -> -125768.4584 | AK60: 1447498.408 | AL60: =(RAND()*($D$17-$D$16)+$D$16)*(1-Analise_Fundamentalista!$C$6)*AK60 -> 271284.4511 | AM60: -37614.42213 | AN60: =Analise_Fundamentalista!$C$12*Monte_Carlo!AK60 -> 236105.3597 | AO60: =-Analise_Fundamentalista!$C$14*Monte_Carlo!AK60 -> -119083.3104 | AP60: 1512713.381 | AQ60: =(RAND()*($D$17-$D$16)+$D$16)*(1-Analise_Fundamentalista!$C$6)*AP60 -> 134080.0455 | AR60: -88960.71747 | AS60: =Analise_Fundamentalista!$C$12*Monte_Carlo!AP60 -> 246742.7495 | AT60: =-Analise_Fundamentalista!$C$14*Monte_Carlo!AP60 -> -124448.4388 | AU60: 1272678.654 | AV60: =(RAND()*($D$17-$D$16)+$D$16)*(1-Analise_Fundamentalista!$C$6)*AU60 -> 162528.7601 | AW60: -105248.9706 | AX60: =Analise_Fundamentalista!$C$12*Monte_Carlo!AU60 -> 207590.0393 | AY60: =-Analise_Fundamentalista!$C$14*Monte_Carlo!AU60 -> -104701.1771 | AZ60: 146122.7662 | BA60: -491495.2134 | BB60: -939385.0283 | BC60: 122676.5085 | BD60: 122118.3948 | BE60: -544287.5713 | BF60: -380387.0105 | BG60: 350692.0784 | BH60: 167413.6387 | BI60: 160168.6517 | BJ60: =BI60*(1+Analise_Fundamentalista!$C$10)/(Analise_Fundamentalista!$C$10) -> 2097870.441 | BK60: =NPV(Analise_Fundamentalista!$C$10,Monte_Carlo!AZ60:BI60)+Monte_Carlo!BJ60/(1+Analise_Fundamentalista!$C$10)^10 -> -121131.6105 | BL60: =(BK60+Analise_Fundamentalista!$C$15-Analise_Fundamentalista!$C$16-Analise_Fundamentalista!$C$17)/(Analise_Fundamentalista!$F$29+Analise_Fundamentalista!$F$30)*1000 -> -14.34770123 | BM60: 0.830359282
A61: Tent36 | B61: 1559210.648 | C61: =(RAND()*($D$17-$D$16)+$D$16)*(1-Analise_Fundamentalista!$C$6)*B61 -> 120308.8245 | D61: -749611.9375 | E61: =Analise_Fundamentalista!$C$12*Monte_Carlo!B61 -> 254327.0438 | F61: =-Analise_Fundamentalista!$C$14*Monte_Carlo!B61 -> -128273.6924 | G61: 1495495.769 | H61: =(RAND()*($D$17-$D$16)+$D$16)*(1-Analise_Fundamentalista!$C$6)*G61 -> 234846.5661 | I61: -1262988.523 | J61: =Analise_Fundamentalista!$C$12*Monte_Carlo!G61 -> 243934.3384 | K61: =-Analise_Fundamentalista!$C$14*Monte_Carlo!G61 -> -123031.9742 | L61: 1518089.508 | M61: =(RAND()*($D$17-$D$16)+$D$16)*(1-Analise_Fundamentalista!$C$6)*L61 -> 262522.0058 | N61: -1223603.288 | O61: =Analise_Fundamentalista!$C$12*Monte_Carlo!L61 -> 247619.664 | P61: =-Analise_Fundamentalista!$C$14*Monte_Carlo!L61 -> -124890.7239 | Q61: 1577585.394 | R61: =(RAND()*($D$17-$D$16)+$D$16)*(1-Analise_Fundamentalista!$C$6)*Q61 -> 211224.6646 | S61: -37475.45262 | T61: =Analise_Fundamentalista!$C$12*Monte_Carlo!Q61 -> 257324.198 | U61: =-Analise_Fundamentalista!$C$14*Monte_Carlo!Q61 -> -129785.3525 | V61: 1480641.541 | W61: =(RAND()*($D$17-$D$16)+$D$16)*(1-Analise_Fundamentalista!$C$6)*V61 -> 192206.018 | X61: -464551.7381 | Y61: =Analise_Fundamentalista!$C$12*Monte_Carlo!V61 -> 241511.4254 | Z61: =-Analise_Fundamentalista!$C$14*Monte_Carlo!V61 -> -121809.9413 | AA61: 1487674.411 | AB61: =(RAND()*($D$17-$D$16)+$D$16)*(1-Analise_Fundamentalista!$C$6)*AA61 -> 159817.5578 | AC61: -778341.5249 | AD61: =Analise_Fundamentalista!$C$12*Monte_Carlo!AA61 -> 242658.5756 | AE61: =-Analise_Fundamentalista!$C$14*Monte_Carlo!AA61 -> -122388.5239 | AF61: 1452927.753 | AG61: =(RAND()*($D$17-$D$16)+$D$16)*(1-Analise_Fundamentalista!$C$6)*AF61 -> 141336.5982 | AH61: -389385.9062 | AI61: =Analise_Fundamentalista!$C$12*Monte_Carlo!AF61 -> 236990.9548 | AJ61: =-Analise_Fundamentalista!$C$14*Monte_Carlo!AF61 -> -119529.9736 | AK61: 1427197.805 | AL61: =(RAND()*($D$17-$D$16)+$D$16)*(1-Analise_Fundamentalista!$C$6)*AK61 -> 215751.4936 | AM61: -581084.4581 | AN61: =Analise_Fundamentalista!$C$12*Monte_Carlo!AK61 -> 232794.0737 | AO61: =-Analise_Fundamentalista!$C$14*Monte_Carlo!AK61 -> -117413.2131 | AP61: 1477120.341 | AQ61: =(RAND()*($D$17-$D$16)+$D$16)*(1-Analise_Fundamentalista!$C$6)*AP61 -> 172238.0257 | AR61: -302859.8494 | AS61: =Analise_Fundamentalista!$C$12*Monte_Carlo!AP61 -> 240937.0729 | AT61: =-Analise_Fundamentalista!$C$14*Monte_Carlo!AP61 -> -121520.258 | AU61: 1421721.729 | AV61: =(RAND()*($D$17-$D$16)+$D$16)*(1-Analise_Fundamentalista!$C$6)*AU61 -> 215665.0703 | AW61: -538906.2434 | AX61: =Analise_Fundamentalista!$C$12*Monte_Carlo!AU61 -> 231900.8563 | AY61: =-Analise_Fundamentalista!$C$14*Monte_Carlo!AU61 -> -116962.7054 | AZ61: -503249.7615 | BA61: -907239.5924 | BB61: -838352.3422 | BC61: 301288.0575 | BD61: -152644.2361 | BE61: -498253.9155 | BF61: -130588.3269 | BG61: -249952.1039 | BH61: -11205.00873 | BI61: -208303.0222 | BJ61: =BI61*(1+Analise_Fundamentalista!$C$10)/(Analise_Fundamentalista!$C$10) -> -2728328.848 | BK61: =NPV(Analise_Fundamentalista!$C$10,Monte_Carlo!AZ61:BI61)+Monte_Carlo!BJ61/(1+Analise_Fundamentalista!$C$10)^10 -> -3632135.467 | BL61: =(BK61+Analise_Fundamentalista!$C$15-Analise_Fundamentalista!$C$16-Analise_Fundamentalista!$C$17)/(Analise_Fundamentalista!$F$29+Analise_Fundamentalista!$F$30)*1000 -> -93.59371018 | BM61: 0.3359276556
A62: Tent37 | B62: 1651002.471 | C62: =(RAND()*($D$17-$D$16)+$D$16)*(1-Analise_Fundamentalista!$C$6)*B62 -> 148248.4584 | D62: -382710.4287 | E62: =Analise_Fundamentalista!$C$12*Monte_Carlo!B62 -> 269299.4549 | F62: =-Analise_Fundamentalista!$C$14*Monte_Carlo!B62 -> -135825.2545 | G62: 1509248.487 | H62: =(RAND()*($D$17-$D$16)+$D$16)*(1-Analise_Fundamentalista!$C$6)*G62 -> 166202.7809 | I62: -211401.8671 | J62: =Analise_Fundamentalista!$C$12*Monte_Carlo!G62 -> 246177.5812 | K62: =-Analise_Fundamentalista!$C$14*Monte_Carlo!G62 -> -124163.3876 | L62: 1612577.132 | M62: =(RAND()*($D$17-$D$16)+$D$16)*(1-Analise_Fundamentalista!$C$6)*L62 -> 104494.3969 | N62: -523574.1029 | O62: =Analise_Fundamentalista!$C$12*Monte_Carlo!L62 -> 263031.7945 | P62: =-Analise_Fundamentalista!$C$14*Monte_Carlo!L62 -> -132664.0651 | Q62: 1467199.794 | R62: =(RAND()*($D$17-$D$16)+$D$16)*(1-Analise_Fundamentalista!$C$6)*Q62 -> 277612.192 | S62: -952713.1695 | T62: =Analise_Fundamentalista!$C$12*Monte_Carlo!Q62 -> 239318.9058 | U62: =-Analise_Fundamentalista!$C$14*Monte_Carlo!Q62 -> -120704.1109 | V62: 1467635.462 | W62: =(RAND()*($D$17-$D$16)+$D$16)*(1-Analise_Fundamentalista!$C$6)*V62 -> 222932.9557 | X62: -730483.6276 | Y62: =Analise_Fundamentalista!$C$12*Monte_Carlo!V62 -> 239389.9688 | Z62: =-Analise_Fundamentalista!$C$14*Monte_Carlo!V62 -> -120739.9526 | AA62: 1355249.821 | AB62: =(RAND()*($D$17-$D$16)+$D$16)*(1-Analise_Fundamentalista!$C$6)*AA62 -> 202317.8961 | AC62: -95483.2321 | AD62: =Analise_Fundamentalista!$C$12*Monte_Carlo!AA62 -> 221058.4446 | AE62: =-Analise_Fundamentalista!$C$14*Monte_Carlo!AA62 -> -111494.171 | AF62: 1289714.889 | AG62: =(RAND()*($D$17-$D$16)+$D$16)*(1-Analise_Fundamentalista!$C$6)*AF62 -> 118106.2142 | AH62: -1060528.888 | AI62: =Analise_Fundamentalista!$C$12*Monte_Carlo!AF62 -> 210368.8654 | AJ62: =-Analise_Fundamentalista!$C$14*Monte_Carlo!AF62 -> -106102.7201 | AK62: 1589899.247 | AL62: =(RAND()*($D$17-$D$16)+$D$16)*(1-Analise_Fundamentalista!$C$6)*AK62 -> 202435.2527 | AM62: -360766.9152 | AN62: =Analise_Fundamentalista!$C$12*Monte_Carlo!AK62 -> 259332.7437 | AO62: =-Analise_Fundamentalista!$C$14*Monte_Carlo!AK62 -> -130798.3929 | AP62: 1307967.524 | AQ62: =(RAND()*($D$17-$D$16)+$D$16)*(1-Analise_Fundamentalista!$C$6)*AP62 -> 217530.5954 | AR62: -212183.0204 | AS62: =Analise_Fundamentalista!$C$12*Monte_Carlo!AP62 -> 213346.1018 | AT62: =-Analise_Fundamentalista!$C$14*Monte_Carlo!AP62 -> -107604.3343 | AU62: 1394081.573 | AV62: =(RAND()*($D$17-$D$16)+$D$16)*(1-Analise_Fundamentalista!$C$6)*AU62 -> 191536.6636 | AW62: -23589.70782 | AX62: =Analise_Fundamentalista!$C$12*Monte_Carlo!AU62 -> 227392.3961 | AY62: =-Analise_Fundamentalista!$C$14*Monte_Carlo!AU62 -> -114688.7953 | AZ62: -100987.7699 | BA62: 76815.10738 | BB62: -288711.9767 | BC62: -556486.1827 | BD62: -388900.6557 | BE62: 216398.9376 | BF62: -838156.5283 | BG62: -29797.31164 | BH62: 111089.3426 | BI62: 280650.5565 | BJ62: =BI62*(1+Analise_Fundamentalista!$C$10)/(Analise_Fundamentalista!$C$10) -> 3675928.47 | BK62: =NPV(Analise_Fundamentalista!$C$10,Monte_Carlo!AZ62:BI62)+Monte_Carlo!BJ62/(1+Analise_Fundamentalista!$C$10)^10 -> 558652.8461 | BL62: =(BK62+Analise_Fundamentalista!$C$15-Analise_Fundamentalista!$C$16-Analise_Fundamentalista!$C$17)/(Analise_Fundamentalista!$F$29+Analise_Fundamentalista!$F$30)*1000 -> 0.9955474026 | BM62: 0.8892630442
A63: Tent38 | B63: 1691956.842 | C63: =(RAND()*($D$17-$D$16)+$D$16)*(1-Analise_Fundamentalista!$C$6)*B63 -> 332079.6341 | D63: -76054.62797 | E63: =Analise_Fundamentalista!$C$12*Monte_Carlo!B63 -> 275979.6326 | F63: =-Analise_Fundamentalista!$C$14*Monte_Carlo!B63 -> -139194.5032 | G63: 1562031.753 | H63: =(RAND()*($D$17-$D$16)+$D$16)*(1-Analise_Fundamentalista!$C$6)*G63 -> 152543.9701 | I63: -66767.48001 | J63: =Analise_Fundamentalista!$C$12*Monte_Carlo!G63 -> 254787.2017 | K63: =-Analise_Fundamentalista!$C$14*Monte_Carlo!G63 -> -128505.78 | L63: 1436257.259 | M63: =(RAND()*($D$17-$D$16)+$D$16)*(1-Analise_Fundamentalista!$C$6)*L63 -> 148270.361 | N63: -199049.4086 | O63: =Analise_Fundamentalista!$C$12*Monte_Carlo!L63 -> 234271.7857 | P63: =-Analise_Fundamentalista!$C$14*Monte_Carlo!L63 -> -118158.5195 | Q63: 1472092.773 | R63: =(RAND()*($D$17-$D$16)+$D$16)*(1-Analise_Fundamentalista!$C$6)*Q63 -> 173782.3838 | S63: -8485.220493 | T63: =Analise_Fundamentalista!$C$12*Monte_Carlo!Q63 -> 240117.0127 | U63: =-Analise_Fundamentalista!$C$14*Monte_Carlo!Q63 -> -121106.6482 | V63: 1380026.026 | W63: =(RAND()*($D$17-$D$16)+$D$16)*(1-Analise_Fundamentalista!$C$6)*V63 -> 253533.5117 | X63: -782843.0097 | Y63: =Analise_Fundamentalista!$C$12*Monte_Carlo!V63 -> 225099.758 | Z63: =-Analise_Fundamentalista!$C$14*Monte_Carlo!V63 -> -113532.4686 | AA63: 1398061.979 | AB63: =(RAND()*($D$17-$D$16)+$D$16)*(1-Analise_Fundamentalista!$C$6)*AA63 -> 95090.54706 | AC63: -908085.3486 | AD63: =Analise_Fundamentalista!$C$12*Monte_Carlo!AA63 -> 228041.6508 | AE63: =-Analise_Fundamentalista!$C$14*Monte_Carlo!AA63 -> -115016.2567 | AF63: 1468786.418 | AG63: =(RAND()*($D$17-$D$16)+$D$16)*(1-Analise_Fundamentalista!$C$6)*AF63 -> 171661.6651 | AH63: -308451.7046 | AI63: =Analise_Fundamentalista!$C$12*Monte_Carlo!AF63 -> 239577.7043 | AJ63: =-Analise_Fundamentalista!$C$14*Monte_Carlo!AF63 -> -120834.6399 | AK63: 1489057.3 | AL63: =(RAND()*($D$17-$D$16)+$D$16)*(1-Analise_Fundamentalista!$C$6)*AK63 -> 187870.067 | AM63: -715567.8082 | AN63: =Analise_Fundamentalista!$C$12*Monte_Carlo!AK63 -> 242884.1424 | AO63: =-Analise_Fundamentalista!$C$14*Monte_Carlo!AK63 -> -122502.292 | AP63: 1371644.475 | AQ63: =(RAND()*($D$17-$D$16)+$D$16)*(1-Analise_Fundamentalista!$C$6)*AP63 -> 201368.7951 | AR63: -684617.4902 | AS63: =Analise_Fundamentalista!$C$12*Monte_Carlo!AP63 -> 223732.6206 | AT63: =-Analise_Fundamentalista!$C$14*Monte_Carlo!AP63 -> -112842.9322 | AU63: 1311261.051 | AV63: =(RAND()*($D$17-$D$16)+$D$16)*(1-Analise_Fundamentalista!$C$6)*AU63 -> 103443.8687 | AW63: -321759.7075 | AX63: =Analise_Fundamentalista!$C$12*Monte_Carlo!AU63 -> 213883.318 | AY63: =-Analise_Fundamentalista!$C$14*Monte_Carlo!AU63 -> -107875.2874 | AZ63: 392810.1356 | BA63: 212057.9118 | BB63: 65334.21859 | BC63: 284307.5278 | BD63: -417742.2086 | BE63: -699969.4075 | BF63: -18046.97499 | BG63: -407315.8907 | BH63: -372359.0067 | BI63: -112307.8081 | BJ63: =BI63*(1+Analise_Fundamentalista!$C$10)/(Analise_Fundamentalista!$C$10) -> -1470994.658 | BK63: =NPV(Analise_Fundamentalista!$C$10,Monte_Carlo!AZ63:BI63)+Monte_Carlo!BJ63/(1+Analise_Fundamentalista!$C$10)^10 -> -1037207.199 | BL63: =(BK63+Analise_Fundamentalista!$C$15-Analise_Fundamentalista!$C$16-Analise_Fundamentalista!$C$17)/(Analise_Fundamentalista!$F$29+Analise_Fundamentalista!$F$30)*1000 -> -35.0242192 | BM63: 0.7243235601
A64: Tent39 | B64: 1634614.327 | C64: =(RAND()*($D$17-$D$16)+$D$16)*(1-Analise_Fundamentalista!$C$6)*B64 -> 291049.3921 | D64: -739392.6884 | E64: =Analise_Fundamentalista!$C$12*Monte_Carlo!B64 -> 266626.3406 | F64: =-Analise_Fundamentalista!$C$14*Monte_Carlo!B64 -> -134477.0288 | G64: 1711927.874 | H64: =(RAND()*($D$17-$D$16)+$D$16)*(1-Analise_Fundamentalista!$C$6)*G64 -> 289004.3263 | I64: -414359.844 | J64: =Analise_Fundamentalista!$C$12*Monte_Carlo!G64 -> 279237.1614 | K64: =-Analise_Fundamentalista!$C$14*Monte_Carlo!G64 -> -140837.4871 | L64: 1577876.098 | M64: =(RAND()*($D$17-$D$16)+$D$16)*(1-Analise_Fundamentalista!$C$6)*L64 -> 268500.4387 | N64: -224836.4989 | O64: =Analise_Fundamentalista!$C$12*Monte_Carlo!L64 -> 257371.6155 | P64: =-Analise_Fundamentalista!$C$14*Monte_Carlo!L64 -> -129809.2682 | Q64: 1567137.898 | R64: =(RAND()*($D$17-$D$16)+$D$16)*(1-Analise_Fundamentalista!$C$6)*Q64 -> 229692.1392 | S64: -612774.9151 | T64: =Analise_Fundamentalista!$C$12*Monte_Carlo!Q64 -> 255620.0788 | U64: =-Analise_Fundamentalista!$C$14*Monte_Carlo!Q64 -> -128925.8542 | V64: 1509294.706 | W64: =(RAND()*($D$17-$D$16)+$D$16)*(1-Analise_Fundamentalista!$C$6)*V64 -> 105467.8643 | X64: -312992.4532 | Y64: =Analise_Fundamentalista!$C$12*Monte_Carlo!V64 -> 246185.1201 | Z64: =-Analise_Fundamentalista!$C$14*Monte_Carlo!V64 -> -124167.19 | AA64: 1437927.378 | AB64: =(RAND()*($D$17-$D$16)+$D$16)*(1-Analise_Fundamentalista!$C$6)*AA64 -> 187629.3279 | AC64: -205205.4401 | AD64: =Analise_Fundamentalista!$C$12*Monte_Carlo!AA64 -> 234544.2032 | AE64: =-Analise_Fundamentalista!$C$14*Monte_Carlo!AA64 -> -118295.9174 | AF64: 1408032.781 | AG64: =(RAND()*($D$17-$D$16)+$D$16)*(1-Analise_Fundamentalista!$C$6)*AF64 -> 93183.56668 | AH64: -14864.29861 | AI64: =Analise_Fundamentalista!$C$12*Monte_Carlo!AF64 -> 229668.0151 | AJ64: =-Analise_Fundamentalista!$C$14*Monte_Carlo!AF64 -> -115836.5382 | AK64: 1382550.24 | AL64: =(RAND()*($D$17-$D$16)+$D$16)*(1-Analise_Fundamentalista!$C$6)*AK64 -> 242474.2516 | AM64: -443024.3011 | AN64: =Analise_Fundamentalista!$C$12*Monte_Carlo!AK64 -> 225511.4893 | AO64: =-Analise_Fundamentalista!$C$14*Monte_Carlo!AK64 -> -113740.1315 | AP64: 1460078.548 | AQ64: =(RAND()*($D$17-$D$16)+$D$16)*(1-Analise_Fundamentalista!$C$6)*AP64 -> 273613.1435 | AR64: -571162.1218 | AS64: =Analise_Fundamentalista!$C$12*Monte_Carlo!AP64 -> 238157.3402 | AT64: =-Analise_Fundamentalista!$C$14*Monte_Carlo!AP64 -> -120118.2578 | AU64: 1233583.984 | AV64: =(RAND()*($D$17-$D$16)+$D$16)*(1-Analise_Fundamentalista!$C$6)*AU64 -> 230470.5821 | AW64: -252484.0913 | AX64: =Analise_Fundamentalista!$C$12*Monte_Carlo!AU64 -> 201213.2025 | AY64: =-Analise_Fundamentalista!$C$14*Monte_Carlo!AU64 -> -101484.923 | AZ64: -316193.9845 | BA64: 13044.15665 | BB64: 171226.2871 | BC64: -256388.5512 | BD64: -85506.65878 | BE64: 98672.17354 | BF64: 192150.745 | BG64: -88778.69172 | BH64: -179509.8958 | BI64: 77714.77038 | BJ64: =BI64*(1+Analise_Fundamentalista!$C$10)/(Analise_Fundamentalista!$C$10) -> 1017899.057 | BK64: =NPV(Analise_Fundamentalista!$C$10,Monte_Carlo!AZ64:BI64)+Monte_Carlo!BJ64/(1+Analise_Fundamentalista!$C$10)^10 -> 141673.3618 | BL64: =(BK64+Analise_Fundamentalista!$C$15-Analise_Fundamentalista!$C$16-Analise_Fundamentalista!$C$17)/(Analise_Fundamentalista!$F$29+Analise_Fundamentalista!$F$30)*1000 -> -8.415994509 | BM64: 0.8551592989
A65: Tent40 | B65: 1644976.855 | C65: =(RAND()*($D$17-$D$16)+$D$16)*(1-Analise_Fundamentalista!$C$6)*B65 -> 316757.8215 | D65: -1145810.623 | E65: =Analise_Fundamentalista!$C$12*Monte_Carlo!B65 -> 268316.6006 | F65: =-Analise_Fundamentalista!$C$14*Monte_Carlo!B65 -> -135329.537 | G65: 1559350.257 | H65: =(RAND()*($D$17-$D$16)+$D$16)*(1-Analise_Fundamentalista!$C$6)*G65 -> 279744.4006 | I65: -1408151.405 | J65: =Analise_Fundamentalista!$C$12*Monte_Carlo!G65 -> 254349.8158 | K65: =-Analise_Fundamentalista!$C$14*Monte_Carlo!G65 -> -128285.1778 | L65: 1692568.297 | M65: =(RAND()*($D$17-$D$16)+$D$16)*(1-Analise_Fundamentalista!$C$6)*L65 -> 292012.848 | N65: -768618.8439 | O65: =Analise_Fundamentalista!$C$12*Monte_Carlo!L65 -> 276079.3688 | P65: =-Analise_Fundamentalista!$C$14*Monte_Carlo!L65 -> -139244.8066 | Q65: 1540921.409 | R65: =(RAND()*($D$17-$D$16)+$D$16)*(1-Analise_Fundamentalista!$C$6)*Q65 -> 186760.2953 | S65: -1424774.794 | T65: =Analise_Fundamentalista!$C$12*Monte_Carlo!Q65 -> 251343.8368 | U65: =-Analise_Fundamentalista!$C$14*Monte_Carlo!Q65 -> -126769.0668 | V65: 1417860.996 | W65: =(RAND()*($D$17-$D$16)+$D$16)*(1-Analise_Fundamentalista!$C$6)*V65 -> 237370.8111 | X65: -495040.5316 | Y65: =Analise_Fundamentalista!$C$12*Monte_Carlo!V65 -> 231271.1217 | Z65: =-Analise_Fundamentalista!$C$14*Monte_Carlo!V65 -> -116645.0892 | AA65: 1574751.992 | AB65: =(RAND()*($D$17-$D$16)+$D$16)*(1-Analise_Fundamentalista!$C$6)*AA65 -> 226853.4854 | AC65: -624490.6086 | AD65: =Analise_Fundamentalista!$C$12*Monte_Carlo!AA65 -> 256862.0342 | AE65: =-Analise_Fundamentalista!$C$14*Monte_Carlo!AA65 -> -129552.2532 | AF65: 1227265.536 | AG65: =(RAND()*($D$17-$D$16)+$D$16)*(1-Analise_Fundamentalista!$C$6)*AF65 -> 218077.2568 | AH65: -985936.6373 | AI65: =Analise_Fundamentalista!$C$12*Monte_Carlo!AF65 -> 200182.5834 | AJ65: =-Analise_Fundamentalista!$C$14*Monte_Carlo!AF65 -> -100965.1146 | AK65: 1439820.959 | AL65: =(RAND()*($D$17-$D$16)+$D$16)*(1-Analise_Fundamentalista!$C$6)*AK65 -> 173600.6848 | AM65: -1481133.121 | AN65: =Analise_Fundamentalista!$C$12*Monte_Carlo!AK65 -> 234853.0704 | AO65: =-Analise_Fundamentalista!$C$14*Monte_Carlo!AK65 -> -118451.6993 | AP65: 1533913.942 | AQ65: =(RAND()*($D$17-$D$16)+$D$16)*(1-Analise_Fundamentalista!$C$6)*AP65 -> 189486.2188 | AR65: -266202.9487 | AS65: =Analise_Fundamentalista!$C$12*Monte_Carlo!AP65 -> 250200.8299 | AT65: =-Analise_Fundamentalista!$C$14*Monte_Carlo!AP65 -> -126192.574 | AU65: 1340149.55 | AV65: =(RAND()*($D$17-$D$16)+$D$16)*(1-Analise_Fundamentalista!$C$6)*AU65 -> 152278.2109 | AW65: -785218.472 | AX65: =Analise_Fundamentalista!$C$12*Monte_Carlo!AU65 -> 218595.3987 | AY65: =-Analise_Fundamentalista!$C$14*Monte_Carlo!AU65 -> -110251.8966 | AZ65: -696065.7383 | BA65: -1002342.366 | BB65: -339771.4337 | BC65: -1113439.729 | BD65: -143043.688 | BE65: -270327.3421 | BF65: -668641.9117 | BG65: -1191131.065 | BH65: 47291.52594 | BI65: -524596.7591 | BJ65: =BI65*(1+Analise_Fundamentalista!$C$10)/(Analise_Fundamentalista!$C$10) -> -6871107.564 | BK65: =NPV(Analise_Fundamentalista!$C$10,Monte_Carlo!AZ65:BI65)+Monte_Carlo!BJ65/(1+Analise_Fundamentalista!$C$10)^10 -> -7173986.36 | BL65: =(BK65+Analise_Fundamentalista!$C$15-Analise_Fundamentalista!$C$16-Analise_Fundamentalista!$C$17)/(Analise_Fundamentalista!$F$29+Analise_Fundamentalista!$F$30)*1000 -> -173.53596 | BM65: 0.03476891241
A66: Tent41 | B66: 1614954.453 | C66: =(RAND()*($D$17-$D$16)+$D$16)*(1-Analise_Fundamentalista!$C$6)*B66 -> 108969.6492 | D66: -27063.89316 | E66: =Analise_Fundamentalista!$C$12*Monte_Carlo!B66 -> 263419.5657 | F66: =-Analise_Fundamentalista!$C$14*Monte_Carlo!B66 -> -132859.6434 | G66: 1565148.489 | H66: =(RAND()*($D$17-$D$16)+$D$16)*(1-Analise_Fundamentalista!$C$6)*G66 -> 240102.1338 | I66: -679849.4005 | J66: =Analise_Fundamentalista!$C$12*Monte_Carlo!G66 -> 255295.5809 | K66: =-Analise_Fundamentalista!$C$14*Monte_Carlo!G66 -> -128762.1887 | L66: 1540847.515 | M66: =(RAND()*($D$17-$D$16)+$D$16)*(1-Analise_Fundamentalista!$C$6)*L66 -> 144153.0092 | N66: -390379.077 | O66: =Analise_Fundamentalista!$C$12*Monte_Carlo!L66 -> 251331.7837 | P66: =-Analise_Fundamentalista!$C$14*Monte_Carlo!L66 -> -126762.9876 | Q66: 1527519.816 | R66: =(RAND()*($D$17-$D$16)+$D$16)*(1-Analise_Fundamentalista!$C$6)*Q66 -> 224530.1762 | S66: -54974.39588 | T66: =Analise_Fundamentalista!$C$12*Monte_Carlo!Q66 -> 249157.8669 | U66: =-Analise_Fundamentalista!$C$14*Monte_Carlo!Q66 -> -125666.5398 | V66: 1461279.575 | W66: =(RAND()*($D$17-$D$16)+$D$16)*(1-Analise_Fundamentalista!$C$6)*V66 -> 258363.9053 | X66: -224293.9879 | Y66: =Analise_Fundamentalista!$C$12*Monte_Carlo!V66 -> 238353.2429 | Z66: =-Analise_Fundamentalista!$C$14*Monte_Carlo!V66 -> -120217.0642 | AA66: 1513131.983 | AB66: =(RAND()*($D$17-$D$16)+$D$16)*(1-Analise_Fundamentalista!$C$6)*AA66 -> 211666.288 | AC66: -720625.7773 | AD66: =Analise_Fundamentalista!$C$12*Monte_Carlo!AA66 -> 246811.0287 | AE66: =-Analise_Fundamentalista!$C$14*Monte_Carlo!AA66 -> -124482.8765 | AF66: 1452287.914 | AG66: =(RAND()*($D$17-$D$16)+$D$16)*(1-Analise_Fundamentalista!$C$6)*AF66 -> 189834.9618 | AH66: -366913.452 | AI66: =Analise_Fundamentalista!$C$12*Monte_Carlo!AF66 -> 236886.5889 | AJ66: =-Analise_Fundamentalista!$C$14*Monte_Carlo!AF66 -> -119477.3351 | AK66: 1568551.964 | AL66: =(RAND()*($D$17-$D$16)+$D$16)*(1-Analise_Fundamentalista!$C$6)*AK66 -> 258544.5487 | AM66: -358596.7654 | AN66: =Analise_Fundamentalista!$C$12*Monte_Carlo!AK66 -> 255850.731 | AO66: =-Analise_Fundamentalista!$C$14*Monte_Carlo!AK66 -> -129042.1871 | AP66: 1357712.897 | AQ66: =(RAND()*($D$17-$D$16)+$D$16)*(1-Analise_Fundamentalista!$C$6)*AP66 -> 151444.2292 | AR66: -80421.91413 | AS66: =Analise_Fundamentalista!$C$12*Monte_Carlo!AP66 -> 221460.2035 | AT66: =-Analise_Fundamentalista!$C$14*Monte_Carlo!AP66 -> -111696.8042 | AU66: 1353909.636 | AV66: =(RAND()*($D$17-$D$16)+$D$16)*(1-Analise_Fundamentalista!$C$6)*AU66 -> 92064.7888 | AW66: -125398.9034 | AX66: =Analise_Fundamentalista!$C$12*Monte_Carlo!AU66 -> 220839.8433 | AY66: =-Analise_Fundamentalista!$C$14*Monte_Carlo!AU66 -> -111383.9162 | AZ66: 212465.6784 | BA66: -313213.8746 | BB66: -121657.2717 | BC66: 293047.1074 | BD66: 152206.096 | BE66: -386631.3371 | BF66: -59669.23645 | BG66: 26756.32721 | BH66: 180785.7143 | BI66: 76121.81253 | BJ66: =BI66*(1+Analise_Fundamentalista!$C$10)/(Analise_Fundamentalista!$C$10) -> 997034.6801 | BK66: =NPV(Analise_Fundamentalista!$C$10,Monte_Carlo!AZ66:BI66)+Monte_Carlo!BJ66/(1+Analise_Fundamentalista!$C$10)^10 -> 462118.5261 | BL66: =(BK66+Analise_Fundamentalista!$C$15-Analise_Fundamentalista!$C$16-Analise_Fundamentalista!$C$17)/(Analise_Fundamentalista!$F$29+Analise_Fundamentalista!$F$30)*1000 -> -1.183305114 | BM66: 0.8819315132
A67: Tent42 | B67: 1720442.506 | C67: =(RAND()*($D$17-$D$16)+$D$16)*(1-Analise_Fundamentalista!$C$6)*B67 -> 317203.403 | D67: -685781.1624 | E67: =Analise_Fundamentalista!$C$12*Monte_Carlo!B67 -> 280626.0059 | F67: =-Analise_Fundamentalista!$C$14*Monte_Carlo!B67 -> -141537.9718 | G67: 1607788.756 | H67: =(RAND()*($D$17-$D$16)+$D$16)*(1-Analise_Fundamentalista!$C$6)*G67 -> 222492.9606 | I67: -1095151.33 | J67: =Analise_Fundamentalista!$C$12*Monte_Carlo!G67 -> 262250.7497 | K67: =-Analise_Fundamentalista!$C$14*Monte_Carlo!G67 -> -132270.1334 | L67: 1512153.346 | M67: =(RAND()*($D$17-$D$16)+$D$16)*(1-Analise_Fundamentalista!$C$6)*L67 -> 165596.881 | N67: -69408.53035 | O67: =Analise_Fundamentalista!$C$12*Monte_Carlo!L67 -> 246651.4007 | P67: =-Analise_Fundamentalista!$C$14*Monte_Carlo!L67 -> -124402.3657 | Q67: 1631060.988 | R67: =(RAND()*($D$17-$D$16)+$D$16)*(1-Analise_Fundamentalista!$C$6)*Q67 -> 242336.314 | S67: -40820.86552 | T67: =Analise_Fundamentalista!$C$12*Monte_Carlo!Q67 -> 266046.7461 | U67: =-Analise_Fundamentalista!$C$14*Monte_Carlo!Q67 -> -134184.7015 | V67: 1564353.925 | W67: =(RAND()*($D$17-$D$16)+$D$16)*(1-Analise_Fundamentalista!$C$6)*V67 -> 134960.0087 | X67: -350228.4603 | Y67: =Analise_Fundamentalista!$C$12*Monte_Carlo!V67 -> 255165.9775 | Z67: =-Analise_Fundamentalista!$C$14*Monte_Carlo!V67 -> -128696.8213 | AA67: 1511076.635 | AB67: =(RAND()*($D$17-$D$16)+$D$16)*(1-Analise_Fundamentalista!$C$6)*AA67 -> 99570.56764 | AC67: -1001053.795 | AD67: =Analise_Fundamentalista!$C$12*Monte_Carlo!AA67 -> 246475.7754 | AE67: =-Analise_Fundamentalista!$C$14*Monte_Carlo!AA67 -> -124313.7864 | AF67: 1411160.451 | AG67: =(RAND()*($D$17-$D$16)+$D$16)*(1-Analise_Fundamentalista!$C$6)*AF67 -> 195097.3704 | AH67: -384591.8874 | AI67: =Analise_Fundamentalista!$C$12*Monte_Carlo!AF67 -> 230178.1777 | AJ67: =-Analise_Fundamentalista!$C$14*Monte_Carlo!AF67 -> -116093.8464 | AK67: 1372503.822 | AL67: =(RAND()*($D$17-$D$16)+$D$16)*(1-Analise_Fundamentalista!$C$6)*AK67 -> 103055.6133 | AM67: -1030220.098 | AN67: =Analise_Fundamentalista!$C$12*Monte_Carlo!AK67 -> 223872.791 | AO67: =-Analise_Fundamentalista!$C$14*Monte_Carlo!AK67 -> -112913.6293 | AP67: 1460384.509 | AQ67: =(RAND()*($D$17-$D$16)+$D$16)*(1-Analise_Fundamentalista!$C$6)*AP67 -> 246599.9636 | AR67: -504743.811 | AS67: =Analise_Fundamentalista!$C$12*Monte_Carlo!AP67 -> 238207.2464 | AT67: =-Analise_Fundamentalista!$C$14*Monte_Carlo!AP67 -> -120143.4287 | AU67: 1349795.681 | AV67: =(RAND()*($D$17-$D$16)+$D$16)*(1-Analise_Fundamentalista!$C$6)*AU67 -> 148940.5175 | AW67: -266100.704 | AX67: =Analise_Fundamentalista!$C$12*Monte_Carlo!AU67 -> 220168.805 | AY67: =-Analise_Fundamentalista!$C$14*Monte_Carlo!AU67 -> -111045.4679 | AZ67: -229489.7253 | BA67: -742677.7526 | BB67: 218437.3857 | BC67: 333377.493 | BD67: -88799.29549 | BE67: -779321.2388 | BF67: -75410.18575 | BG67: -816205.3231 | BH67: -140080.0298 | BI67: -8036.849329 | BJ67: =BI67*(1+Analise_Fundamentalista!$C$10)/(Analise_Fundamentalista!$C$10) -> -105265.7213 | BK67: =NPV(Analise_Fundamentalista!$C$10,Monte_Carlo!AZ67:BI67)+Monte_Carlo!BJ67/(1+Analise_Fundamentalista!$C$10)^10 -> -1569785.203 | BL67: =(BK67+Analise_Fundamentalista!$C$15-Analise_Fundamentalista!$C$16-Analise_Fundamentalista!$C$17)/(Analise_Fundamentalista!$F$29+Analise_Fundamentalista!$F$30)*1000 -> -47.044907 | BM67: 0.6504469149
A68: Tent43 | B68: 1575727.318 | C68: =(RAND()*($D$17-$D$16)+$D$16)*(1-Analise_Fundamentalista!$C$6)*B68 -> 285216.5177 | D68: -390797.2374 | E68: =Analise_Fundamentalista!$C$12*Monte_Carlo!B68 -> 257021.1222 | F68: =-Analise_Fundamentalista!$C$14*Monte_Carlo!B68 -> -129632.4916 | G68: 1593436.025 | H68: =(RAND()*($D$17-$D$16)+$D$16)*(1-Analise_Fundamentalista!$C$6)*G68 -> 172736.9932 | I68: -900275.9001 | J68: =Analise_Fundamentalista!$C$12*Monte_Carlo!G68 -> 259909.6371 | K68: =-Analise_Fundamentalista!$C$14*Monte_Carlo!G68 -> -131089.3578 | L68: 1540986.323 | M68: =(RAND()*($D$17-$D$16)+$D$16)*(1-Analise_Fundamentalista!$C$6)*L68 -> 112060.7563 | N68: -181373.1902 | O68: =Analise_Fundamentalista!$C$12*Monte_Carlo!L68 -> 251354.425 | P68: =-Analise_Fundamentalista!$C$14*Monte_Carlo!L68 -> -126774.4071 | Q68: 1566673.035 | R68: =(RAND()*($D$17-$D$16)+$D$16)*(1-Analise_Fundamentalista!$C$6)*Q68 -> 169163.3354 | S68: -183380.1865 | T68: =Analise_Fundamentalista!$C$12*Monte_Carlo!Q68 -> 255544.2538 | U68: =-Analise_Fundamentalista!$C$14*Monte_Carlo!Q68 -> -128887.6107 | V68: 1664837.239 | W68: =(RAND()*($D$17-$D$16)+$D$16)*(1-Analise_Fundamentalista!$C$6)*V68 -> 131550.3042 | X68: -248361.6403 | Y68: =Analise_Fundamentalista!$C$12*Monte_Carlo!V68 -> 271556.0812 | Z68: =-Analise_Fundamentalista!$C$14*Monte_Carlo!V68 -> -136963.4181 | AA68: 1541649.883 | AB68: =(RAND()*($D$17-$D$16)+$D$16)*(1-Analise_Fundamentalista!$C$6)*AA68 -> 182048.6231 | AC68: -714113.8319 | AD68: =Analise_Fundamentalista!$C$12*Monte_Carlo!AA68 -> 251462.6601 | AE68: =-Analise_Fundamentalista!$C$14*Monte_Carlo!AA68 -> -126828.9972 | AF68: 1561729.464 | AG68: =(RAND()*($D$17-$D$16)+$D$16)*(1-Analise_Fundamentalista!$C$6)*AF68 -> 113329.5027 | AH68: -65567.30451 | AI68: =Analise_Fundamentalista!$C$12*Monte_Carlo!AF68 -> 254737.8946 | AJ68: =-Analise_Fundamentalista!$C$14*Monte_Carlo!AF68 -> -128480.9112 | AK68: 1331585.901 | AL68: =(RAND()*($D$17-$D$16)+$D$16)*(1-Analise_Fundamentalista!$C$6)*AK68 -> 238055.6821 | AM68: -376568.3497 | AN68: =Analise_Fundamentalista!$C$12*Monte_Carlo!AK68 -> 217198.5588 | AO68: =-Analise_Fundamentalista!$C$14*Monte_Carlo!AK68 -> -109547.3793 | AP68: 1441741.349 | AQ68: =(RAND()*($D$17-$D$16)+$D$16)*(1-Analise_Fundamentalista!$C$6)*AP68 -> 257729.5726 | AR68: -428759.8294 | AS68: =Analise_Fundamentalista!$C$12*Monte_Carlo!AP68 -> 235166.3104 | AT68: =-Analise_Fundamentalista!$C$14*Monte_Carlo!AP68 -> -118609.6866 | AU68: 1321049.465 | AV68: =(RAND()*($D$17-$D$16)+$D$16)*(1-Analise_Fundamentalista!$C$6)*AU68 -> 258586.836 | AW68: -186261.4413 | AX68: =Analise_Fundamentalista!$C$12*Monte_Carlo!AU68 -> 215479.9324 | AY68: =-Analise_Fundamentalista!$C$14*Monte_Carlo!AU68 -> -108680.564 | AZ68: 21807.91089 | BA68: -598718.6276 | BB68: 55267.58401 | BC68: 112439.792 | BD68: 17781.32696 | BE68: -407431.5459 | BF68: 174019.1816 | BG68: -30861.4881 | BH68: -54473.63303 | BI68: 179124.763 | BJ68: =BI68*(1+Analise_Fundamentalista!$C$10)/(Analise_Fundamentalista!$C$10) -> 2346155.39 | BK68: =NPV(Analise_Fundamentalista!$C$10,Monte_Carlo!AZ68:BI68)+Monte_Carlo!BJ68/(1+Analise_Fundamentalista!$C$10)^10 -> 591791.4757 | BL68: =(BK68+Analise_Fundamentalista!$C$15-Analise_Fundamentalista!$C$16-Analise_Fundamentalista!$C$17)/(Analise_Fundamentalista!$F$29+Analise_Fundamentalista!$F$30)*1000 -> 1.743511302 | BM68: 0.8917030047
A69: Tent44 | B69: 1536804.568 | C69: =(RAND()*($D$17-$D$16)+$D$16)*(1-Analise_Fundamentalista!$C$6)*B69 -> 144911.3566 | D69: -16156.73521 | E69: =Analise_Fundamentalista!$C$12*Monte_Carlo!B69 -> 250672.3278 | F69: =-Analise_Fundamentalista!$C$14*Monte_Carlo!B69 -> -126430.3811 | G69: 1617841.727 | H69: =(RAND()*($D$17-$D$16)+$D$16)*(1-Analise_Fundamentalista!$C$6)*G69 -> 221256.1463 | I69: -124041.5824 | J69: =Analise_Fundamentalista!$C$12*Monte_Carlo!G69 -> 263890.5168 | K69: =-Analise_Fundamentalista!$C$14*Monte_Carlo!G69 -> -133097.1747 | L69: 1471234.088 | M69: =(RAND()*($D$17-$D$16)+$D$16)*(1-Analise_Fundamentalista!$C$6)*L69 -> 282687.8479 | N69: -743958.9871 | O69: =Analise_Fundamentalista!$C$12*Monte_Carlo!L69 -> 239976.9504 | P69: =-Analise_Fundamentalista!$C$14*Monte_Carlo!L69 -> -121036.0057 | Q69: 1464869.463 | R69: =(RAND()*($D$17-$D$16)+$D$16)*(1-Analise_Fundamentalista!$C$6)*Q69 -> 283819.7242 | S69: -440049.439 | T69: =Analise_Fundamentalista!$C$12*Monte_Carlo!Q69 -> 238938.7993 | U69: =-Analise_Fundamentalista!$C$14*Monte_Carlo!Q69 -> -120512.3984 | V69: 1555087.775 | W69: =(RAND()*($D$17-$D$16)+$D$16)*(1-Analise_Fundamentalista!$C$6)*V69 -> 204483.463 | X69: -403897.1351 | Y69: =Analise_Fundamentalista!$C$12*Monte_Carlo!V69 -> 253654.5508 | Z69: =-Analise_Fundamentalista!$C$14*Monte_Carlo!V69 -> -127934.5104 | AA69: 1342947.12 | AB69: =(RAND()*($D$17-$D$16)+$D$16)*(1-Analise_Fundamentalista!$C$6)*AA69 -> 135877.4753 | AC69: -516231.2393 | AD69: =Analise_Fundamentalista!$C$12*Monte_Carlo!AA69 -> 219051.7178 | AE69: =-Analise_Fundamentalista!$C$14*Monte_Carlo!AA69 -> -110482.048 | AF69: 1467308.359 | AG69: =(RAND()*($D$17-$D$16)+$D$16)*(1-Analise_Fundamentalista!$C$6)*AF69 -> 201550.6491 | AH69: -286569.5864 | AI69: =Analise_Fundamentalista!$C$12*Monte_Carlo!AF69 -> 239336.6141 | AJ69: =-Analise_Fundamentalista!$C$14*Monte_Carlo!AF69 -> -120713.0424 | AK69: 1386311.101 | AL69: =(RAND()*($D$17-$D$16)+$D$16)*(1-Analise_Fundamentalista!$C$6)*AK69 -> 253506.7263 | AM69: -114885.1638 | AN69: =Analise_Fundamentalista!$C$12*Monte_Carlo!AK69 -> 226124.9334 | AO69: =-Analise_Fundamentalista!$C$14*Monte_Carlo!AK69 -> -114049.5313 | AP69: 1379269.668 | AQ69: =(RAND()*($D$17-$D$16)+$D$16)*(1-Analise_Fundamentalista!$C$6)*AP69 -> 127386.9406 | AR69: -15160.93983 | AS69: =Analise_Fundamentalista!$C$12*Monte_Carlo!AP69 -> 224976.3865 | AT69: =-Analise_Fundamentalista!$C$14*Monte_Carlo!AP69 -> -113470.2443 | AU69: 1454710.494 | AV69: =(RAND()*($D$17-$D$16)+$D$16)*(1-Analise_Fundamentalista!$C$6)*AU69 -> 224305.9278 | AW69: -192168.8098 | AX69: =Analise_Fundamentalista!$C$12*Monte_Carlo!AU69 -> 237281.7425 | AY69: =-Analise_Fundamentalista!$C$14*Monte_Carlo!AU69 -> -119676.6368 | AZ69: 252996.5681 | BA69: 228007.906 | BB69: -342330.1944 | BC69: -37803.31395 | BD69: -73693.63169 | BE69: -271784.0943 | BF69: 33604.6344 | BG69: 250696.9646 | BH69: 223732.1429 | BI69: 149742.2238 | BJ69: =BI69*(1+Analise_Fundamentalista!$C$10)/(Analise_Fundamentalista!$C$10) -> 1961306.296 | BK69: =NPV(Analise_Fundamentalista!$C$10,Monte_Carlo!AZ69:BI69)+Monte_Carlo!BJ69/(1+Analise_Fundamentalista!$C$10)^10 -> 1128250.616 | BL69: =(BK69+Analise_Fundamentalista!$C$15-Analise_Fundamentalista!$C$16-Analise_Fundamentalista!$C$17)/(Analise_Fundamentalista!$F$29+Analise_Fundamentalista!$F$30)*1000 -> 13.8517993 | BM69: 0.9259628676
A70: Tent45 | B70: 1508134.813 | C70: =(RAND()*($D$17-$D$16)+$D$16)*(1-Analise_Fundamentalista!$C$6)*B70 -> 201702.903 | D70: -279700.3929 | E70: =Analise_Fundamentalista!$C$12*Monte_Carlo!B70 -> 245995.9269 | F70: =-Analise_Fundamentalista!$C$14*Monte_Carlo!B70 -> -124071.7675 | G70: 1610693.789 | H70: =(RAND()*($D$17-$D$16)+$D$16)*(1-Analise_Fundamentalista!$C$6)*G70 -> 183276.0727 | I70: -45278.27395 | J70: =Analise_Fundamentalista!$C$12*Monte_Carlo!G70 -> 262724.5974 | K70: =-Analise_Fundamentalista!$C$14*Monte_Carlo!G70 -> -132509.1256 | L70: 1474816.997 | M70: =(RAND()*($D$17-$D$16)+$D$16)*(1-Analise_Fundamentalista!$C$6)*L70 -> 256086.3414 | N70: -966760.5803 | O70: =Analise_Fundamentalista!$C$12*Monte_Carlo!L70 -> 240561.3683 | P70: =-Analise_Fundamentalista!$C$14*Monte_Carlo!L70 -> -121330.7657 | Q70: 1641773.023 | R70: =(RAND()*($D$17-$D$16)+$D$16)*(1-Analise_Fundamentalista!$C$6)*Q70 -> 107164.9895 | S70: -1086127.305 | T70: =Analise_Fundamentalista!$C$12*Monte_Carlo!Q70 -> 267794.0148 | U70: =-Analise_Fundamentalista!$C$14*Monte_Carlo!Q70 -> -135065.963 | V70: 1439741.443 | W70: =(RAND()*($D$17-$D$16)+$D$16)*(1-Analise_Fundamentalista!$C$6)*V70 -> 228393.7479 | X70: -456876.5417 | Y70: =Analise_Fundamentalista!$C$12*Monte_Carlo!V70 -> 234840.1003 | Z70: =-Analise_Fundamentalista!$C$14*Monte_Carlo!V70 -> -118445.1576 | AA70: 1611432.348 | AB70: =(RAND()*($D$17-$D$16)+$D$16)*(1-Analise_Fundamentalista!$C$6)*AA70 -> 299481.0258 | AC70: -809383.6531 | AD70: =Analise_Fundamentalista!$C$12*Monte_Carlo!AA70 -> 262845.0658 | AE70: =-Analise_Fundamentalista!$C$14*Monte_Carlo!AA70 -> -132569.8857 | AF70: 1583329.307 | AG70: =(RAND()*($D$17-$D$16)+$D$16)*(1-Analise_Fundamentalista!$C$6)*AF70 -> 186078.9534 | AH70: -853009.7985 | AI70: =Analise_Fundamentalista!$C$12*Monte_Carlo!AF70 -> 258261.103 | AJ70: =-Analise_Fundamentalista!$C$14*Monte_Carlo!AF70 -> -130257.8947 | AK70: 1286360.575 | AL70: =(RAND()*($D$17-$D$16)+$D$16)*(1-Analise_Fundamentalista!$C$6)*AK70 -> 252215.9925 | AM70: -427240.677 | AN70: =Analise_Fundamentalista!$C$12*Monte_Carlo!AK70 -> 209821.7343 | AO70: =-Analise_Fundamentalista!$C$14*Monte_Carlo!AK70 -> -105826.7662 | AP70: 1515691.9 | AQ70: =(RAND()*($D$17-$D$16)+$D$16)*(1-Analise_Fundamentalista!$C$6)*AP70 -> 265278.0796 | AR70: -279731.5272 | AS70: =Analise_Fundamentalista!$C$12*Monte_Carlo!AP70 -> 247228.5836 | AT70: =-Analise_Fundamentalista!$C$14*Monte_Carlo!AP70 -> -124693.4766 | AU70: 1440188.198 | AV70: =(RAND()*($D$17-$D$16)+$D$16)*(1-Analise_Fundamentalista!$C$6)*AU70 -> 212422.3551 | AW70: -701431.0058 | AX70: =Analise_Fundamentalista!$C$12*Monte_Carlo!AU70 -> 234912.9717 | AY70: =-Analise_Fundamentalista!$C$14*Monte_Carlo!AU70 -> -118481.9114 | AZ70: 43926.6695 | BA70: 268213.2705 | BB70: -591443.6362 | BC70: -846234.2636 | BD70: -112087.8511 | BE70: -379627.4472 | BF70: -538927.6367 | BG70: -71029.71643 | BH70: 108081.6595 | BI70: -372577.5905 | BJ70: =BI70*(1+Analise_Fundamentalista!$C$10)/(Analise_Fundamentalista!$C$10) -> -4879978.108 | BK70: =NPV(Analise_Fundamentalista!$C$10,Monte_Carlo!AZ70:BI70)+Monte_Carlo!BJ70/(1+Analise_Fundamentalista!$C$10)^10 -> -3791346.207 | BL70: =(BK70+Analise_Fundamentalista!$C$15-Analise_Fundamentalista!$C$16-Analise_Fundamentalista!$C$17)/(Analise_Fundamentalista!$F$29+Analise_Fundamentalista!$F$30)*1000 -> -97.18721683 | BM70: 0.3134325069
A71: Tent46 | B71: 1561635.74 | C71: =(RAND()*($D$17-$D$16)+$D$16)*(1-Analise_Fundamentalista!$C$6)*B71 -> 300970.5753 | D71: -390360.2657 | E71: =Analise_Fundamentalista!$C$12*Monte_Carlo!B71 -> 254722.6071 | F71: =-Analise_Fundamentalista!$C$14*Monte_Carlo!B71 -> -128473.2007 | G71: 1666111.381 | H71: =(RAND()*($D$17-$D$16)+$D$16)*(1-Analise_Fundamentalista!$C$6)*G71 -> 175372.182 | I71: -95971.19675 | J71: =Analise_Fundamentalista!$C$12*Monte_Carlo!G71 -> 271763.9099 | K71: =-Analise_Fundamentalista!$C$14*Monte_Carlo!G71 -> -137068.2396 | L71: 1551988.55 | M71: =(RAND()*($D$17-$D$16)+$D$16)*(1-Analise_Fundamentalista!$C$6)*L71 -> 221163.3992 | N71: -437035.4357 | O71: =Analise_Fundamentalista!$C$12*Monte_Carlo!L71 -> 253149.028 | P71: =-Analise_Fundamentalista!$C$14*Monte_Carlo!L71 -> -127679.5423 | Q71: 1464743.256 | R71: =(RAND()*($D$17-$D$16)+$D$16)*(1-Analise_Fundamentalista!$C$6)*Q71 -> 102865.1111 | S71: -485745.0686 | T71: =Analise_Fundamentalista!$C$12*Monte_Carlo!Q71 -> 238918.2132 | U71: =-Analise_Fundamentalista!$C$14*Monte_Carlo!Q71 -> -120502.0156 | V71: 1575589.141 | W71: =(RAND()*($D$17-$D$16)+$D$16)*(1-Analise_Fundamentalista!$C$6)*V71 -> 132028.0603 | X71: -88510.76433 | Y71: =Analise_Fundamentalista!$C$12*Monte_Carlo!V71 -> 256998.5838 | Z71: =-Analise_Fundamentalista!$C$14*Monte_Carlo!V71 -> -129621.124 | AA71: 1431587.456 | AB71: =(RAND()*($D$17-$D$16)+$D$16)*(1-Analise_Fundamentalista!$C$6)*AA71 -> 180817.1523 | AC71: -11546.58994 | AD71: =Analise_Fundamentalista!$C$12*Monte_Carlo!AA71 -> 233510.0815 | AE71: =-Analise_Fundamentalista!$C$14*Monte_Carlo!AA71 -> -117774.3425 | AF71: 1427759.242 | AG71: =(RAND()*($D$17-$D$16)+$D$16)*(1-Analise_Fundamentalista!$C$6)*AF71 -> 225980.1213 | AH71: -33612.2512 | AI71: =Analise_Fundamentalista!$C$12*Monte_Carlo!AF71 -> 232885.6513 | AJ71: =-Analise_Fundamentalista!$C$14*Monte_Carlo!AF71 -> -117459.4017 | AK71: 1498343.056 | AL71: =(RAND()*($D$17-$D$16)+$D$16)*(1-Analise_Fundamentalista!$C$6)*AK71 -> 120701.0891 | AM71: -1047253.035 | AN71: =Analise_Fundamentalista!$C$12*Monte_Carlo!AK71 -> 244398.7671 | AO71: =-Analise_Fundamentalista!$C$14*Monte_Carlo!AK71 -> -123266.2158 | AP71: 1406875.894 | AQ71: =(RAND()*($D$17-$D$16)+$D$16)*(1-Analise_Fundamentalista!$C$6)*AP71 -> 155624.2484 | AR71: -311025.9048 | AS71: =Analise_Fundamentalista!$C$12*Monte_Carlo!AP71 -> 229479.3121 | AT71: =-Analise_Fundamentalista!$C$14*Monte_Carlo!AP71 -> -115741.363 | AU71: 1396167.896 | AV71: =(RAND()*($D$17-$D$16)+$D$16)*(1-Analise_Fundamentalista!$C$6)*AU71 -> 188850.6557 | AW71: -236744.5664 | AX71: =Analise_Fundamentalista!$C$12*Monte_Carlo!AU71 -> 227732.7019 | AY71: =-Analise_Fundamentalista!$C$14*Monte_Carlo!AU71 -> -114860.4337 | AZ71: 36859.71601 | BA71: 214096.6555 | BB71: -90402.55078 | BC71: -264463.7599 | BD71: 170894.7558 | BE71: 285006.3014 | BF71: 307794.1197 | BG71: -805419.3943 | BH71: -41663.70724 | BI71: 64978.35757 | BJ71: =BI71*(1+Analise_Fundamentalista!$C$10)/(Analise_Fundamentalista!$C$10) -> 851078.9982 | BK71: =NPV(Analise_Fundamentalista!$C$10,Monte_Carlo!AZ71:BI71)+Monte_Carlo!BJ71/(1+Analise_Fundamentalista!$C$10)^10 -> 388316.4367 | BL71: =(BK71+Analise_Fundamentalista!$C$15-Analise_Fundamentalista!$C$16-Analise_Fundamentalista!$C$17)/(Analise_Fundamentalista!$F$29+Analise_Fundamentalista!$F$30)*1000 -> -2.849074015 | BM71: 0.8760994641
A72: Tent47 | B72: 1624088.223 | C72: =(RAND()*($D$17-$D$16)+$D$16)*(1-Analise_Fundamentalista!$C$6)*B72 -> 175751.7498 | D72: -1225865.392 | E72: =Analise_Fundamentalista!$C$12*Monte_Carlo!B72 -> 264909.3996 | F72: =-Analise_Fundamentalista!$C$14*Monte_Carlo!B72 -> -133611.0637 | G72: 1551741.165 | H72: =(RAND()*($D$17-$D$16)+$D$16)*(1-Analise_Fundamentalista!$C$6)*G72 -> 143589.6078 | I72: -99957.74084 | J72: =Analise_Fundamentalista!$C$12*Monte_Carlo!G72 -> 253108.6762 | K72: =-Analise_Fundamentalista!$C$14*Monte_Carlo!G72 -> -127659.1903 | L72: 1499275.646 | M72: =(RAND()*($D$17-$D$16)+$D$16)*(1-Analise_Fundamentalista!$C$6)*L72 -> 128316.0336 | N72: -434128.6755 | O72: =Analise_Fundamentalista!$C$12*Monte_Carlo!L72 -> 244550.8844 | P72: =-Analise_Fundamentalista!$C$14*Monte_Carlo!L72 -> -123342.9385 | Q72: 1471837.796 | R72: =(RAND()*($D$17-$D$16)+$D$16)*(1-Analise_Fundamentalista!$C$6)*Q72 -> 99684.29413 | S72: -90323.60381 | T72: =Analise_Fundamentalista!$C$12*Monte_Carlo!Q72 -> 240075.4229 | U72: =-Analise_Fundamentalista!$C$14*Monte_Carlo!Q72 -> -121085.6718 | V72: 1447582.832 | W72: =(RAND()*($D$17-$D$16)+$D$16)*(1-Analise_Fundamentalista!$C$6)*V72 -> 185232.1215 | X72: -452007.0994 | Y72: =Analise_Fundamentalista!$C$12*Monte_Carlo!V72 -> 236119.1304 | Z72: =-Analise_Fundamentalista!$C$14*Monte_Carlo!V72 -> -119090.2558 | AA72: 1532401.74 | AB72: =(RAND()*($D$17-$D$16)+$D$16)*(1-Analise_Fundamentalista!$C$6)*AA72 -> 281583.8495 | AC72: -642628.8718 | AD72: =Analise_Fundamentalista!$C$12*Monte_Carlo!AA72 -> 249954.1706 | AE72: =-Analise_Fundamentalista!$C$14*Monte_Carlo!AA72 -> -126068.1676 | AF72: 1380456.573 | AG72: =(RAND()*($D$17-$D$16)+$D$16)*(1-Analise_Fundamentalista!$C$6)*AF72 -> 201713.4636 | AH72: -603237.97 | AI72: =Analise_Fundamentalista!$C$12*Monte_Carlo!AF72 -> 225169.9857 | AJ72: =-Analise_Fundamentalista!$C$14*Monte_Carlo!AF72 -> -113567.889 | AK72: 1494501.15 | AL72: =(RAND()*($D$17-$D$16)+$D$16)*(1-Analise_Fundamentalista!$C$6)*AK72 -> 146930.1688 | AM72: -1146189.949 | AN72: =Analise_Fundamentalista!$C$12*Monte_Carlo!AK72 -> 243772.1035 | AO72: =-Analise_Fundamentalista!$C$14*Monte_Carlo!AK72 -> -122950.1485 | AP72: 1442219.816 | AQ72: =(RAND()*($D$17-$D$16)+$D$16)*(1-Analise_Fundamentalista!$C$6)*AP72 -> 107855.2552 | AR72: -822116.5456 | AS72: =Analise_Fundamentalista!$C$12*Monte_Carlo!AP72 -> 235244.3545 | AT72: =-Analise_Fundamentalista!$C$14*Monte_Carlo!AP72 -> -118649.0493 | AU72: 1321241.245 | AV72: =(RAND()*($D$17-$D$16)+$D$16)*(1-Analise_Fundamentalista!$C$6)*AU72 -> 119592.7222 | AW72: -378636.4826 | AX72: =Analise_Fundamentalista!$C$12*Monte_Carlo!AU72 -> 215511.2141 | AY72: =-Analise_Fundamentalista!$C$14*Monte_Carlo!AU72 -> -108696.3414 | AZ72: -918815.306 | BA72: 169081.3529 | BB72: -184604.696 | BC72: 128350.4414 | BD72: -149746.1033 | BE72: -237159.0194 | BF72: -289922.4097 | BG72: -878437.8253 | BH72: -597665.9853 | BI72: -152228.8877 | BJ72: =BI72*(1+Analise_Fundamentalista!$C$10)/(Analise_Fundamentalista!$C$10) -> -1993876.332 | BK72: =NPV(Analise_Fundamentalista!$C$10,Monte_Carlo!AZ72:BI72)+Monte_Carlo!BJ72/(1+Analise_Fundamentalista!$C$10)^10 -> -2898377.368 | BL72: =(BK72+Analise_Fundamentalista!$C$15-Analise_Fundamentalista!$C$16-Analise_Fundamentalista!$C$17)/(Analise_Fundamentalista!$F$29+Analise_Fundamentalista!$F$30)*1000 -> -77.03223566 | BM72: 0.4461600893
A73: Tent48 | B73: 1700167.672 | C73: =(RAND()*($D$17-$D$16)+$D$16)*(1-Analise_Fundamentalista!$C$6)*B73 -> 126864.9695 | D73: -512770.6221 | E73: =Analise_Fundamentalista!$C$12*Monte_Carlo!B73 -> 277318.9232 | F73: =-Analise_Fundamentalista!$C$14*Monte_Carlo!B73 -> -139869.9946 | G73: 1601215.562 | H73: =(RAND()*($D$17-$D$16)+$D$16)*(1-Analise_Fundamentalista!$C$6)*G73 -> 161719.2368 | I73: -1072428.854 | J73: =Analise_Fundamentalista!$C$12*Monte_Carlo!G73 -> 261178.5783 | K73: =-Analise_Fundamentalista!$C$14*Monte_Carlo!G73 -> -131729.3675 | L73: 1644376.879 | M73: =(RAND()*($D$17-$D$16)+$D$16)*(1-Analise_Fundamentalista!$C$6)*L73 -> 292072.7952 | N73: -791211.9549 | O73: =Analise_Fundamentalista!$C$12*Monte_Carlo!L73 -> 268218.7369 | P73: =-Analise_Fundamentalista!$C$14*Monte_Carlo!L73 -> -135280.178 | Q73: 1462654.014 | R73: =(RAND()*($D$17-$D$16)+$D$16)*(1-Analise_Fundamentalista!$C$6)*Q73 -> 276656.2617 | S73: -261322.3706 | T73: =Analise_Fundamentalista!$C$12*Monte_Carlo!Q73 -> 238577.4314 | U73: =-Analise_Fundamentalista!$C$14*Monte_Carlo!Q73 -> -120330.1371 | V73: 1555116.751 | W73: =(RAND()*($D$17-$D$16)+$D$16)*(1-Analise_Fundamentalista!$C$6)*V73 -> 260730.2595 | X73: -142694.2482 | Y73: =Analise_Fundamentalista!$C$12*Monte_Carlo!V73 -> 253659.2773 | Z73: =-Analise_Fundamentalista!$C$14*Monte_Carlo!V73 -> -127936.8942 | AA73: 1516088.64 | AB73: =(RAND()*($D$17-$D$16)+$D$16)*(1-Analise_Fundamentalista!$C$6)*AA73 -> 225703.9535 | AC73: -528141.6093 | AD73: =Analise_Fundamentalista!$C$12*Monte_Carlo!AA73 -> 247293.2969 | AE73: =-Analise_Fundamentalista!$C$14*Monte_Carlo!AA73 -> -124726.1157 | AF73: 1402718.577 | AG73: =(RAND()*($D$17-$D$16)+$D$16)*(1-Analise_Fundamentalista!$C$6)*AF73 -> 131491.9157 | AH73: -1499820.621 | AI73: =Analise_Fundamentalista!$C$12*Monte_Carlo!AF73 -> 228801.201 | AJ73: =-Analise_Fundamentalista!$C$14*Monte_Carlo!AF73 -> -115399.3474 | AK73: 1428122.967 | AL73: =(RAND()*($D$17-$D$16)+$D$16)*(1-Analise_Fundamentalista!$C$6)*AK73 -> 196795.2149 | AM73: -55722.64911 | AN73: =Analise_Fundamentalista!$C$12*Monte_Carlo!AK73 -> 232944.9795 | AO73: =-Analise_Fundamentalista!$C$14*Monte_Carlo!AK73 -> -117489.3247 | AP73: 1329210.652 | AQ73: =(RAND()*($D$17-$D$16)+$D$16)*(1-Analise_Fundamentalista!$C$6)*AP73 -> 131344.9911 | AR73: -296061.3343 | AS73: =Analise_Fundamentalista!$C$12*Monte_Carlo!AP73 -> 216811.1257 | AT73: =-Analise_Fundamentalista!$C$14*Monte_Carlo!AP73 -> -109351.9715 | AU73: 1254203.573 | AV73: =(RAND()*($D$17-$D$16)+$D$16)*(1-Analise_Fundamentalista!$C$6)*AU73 -> 190120.6169 | AW73: -103339.9179 | AX73: =Analise_Fundamentalista!$C$12*Monte_Carlo!AU73 -> 204576.5192 | AY73: =-Analise_Fundamentalista!$C$14*Monte_Carlo!AU73 -> -103181.2626 | AZ73: -248456.7241 | BA73: -781260.4066 | BB73: -366200.6008 | BC73: 133581.1854 | BD73: 243758.3943 | BE73: -179870.4746 | BF73: -1254926.852 | BG73: 256528.2205 | BH73: -57257.18899 | BI73: 188175.9556 | BJ73: =BI73*(1+Analise_Fundamentalista!$C$10)/(Analise_Fundamentalista!$C$10) -> 2464706.862 | BK73: =NPV(Analise_Fundamentalista!$C$10,Monte_Carlo!AZ73:BI73)+Monte_Carlo!BJ73/(1+Analise_Fundamentalista!$C$10)^10 -> -448077.8981 | BL73: =(BK73+Analise_Fundamentalista!$C$15-Analise_Fundamentalista!$C$16-Analise_Fundamentalista!$C$17)/(Analise_Fundamentalista!$F$29+Analise_Fundamentalista!$F$30)*1000 -> -21.72712589 | BM73: 0.7959254735
A74: Tent49 | B74: 1523616.183 | C74: =(RAND()*($D$17-$D$16)+$D$16)*(1-Analise_Fundamentalista!$C$6)*B74 -> 164258.5969 | D74: -612595.8446 | E74: =Analise_Fundamentalista!$C$12*Monte_Carlo!B74 -> 248521.1349 | F74: =-Analise_Fundamentalista!$C$14*Monte_Carlo!B74 -> -125345.3944 | G74: 1584977.488 | H74: =(RAND()*($D$17-$D$16)+$D$16)*(1-Analise_Fundamentalista!$C$6)*G74 -> 256457.7362 | I74: -116616.1918 | J74: =Analise_Fundamentalista!$C$12*Monte_Carlo!G74 -> 258529.9424 | K74: =-Analise_Fundamentalista!$C$14*Monte_Carlo!G74 -> -130393.4879 | L74: 1659748.731 | M74: =(RAND()*($D$17-$D$16)+$D$16)*(1-Analise_Fundamentalista!$C$6)*L74 -> 238399.4607 | N74: -239701.6237 | O74: =Analise_Fundamentalista!$C$12*Monte_Carlo!L74 -> 270726.081 | P74: =-Analise_Fundamentalista!$C$14*Monte_Carlo!L74 -> -136544.7949 | Q74: 1558412.657 | R74: =(RAND()*($D$17-$D$16)+$D$16)*(1-Analise_Fundamentalista!$C$6)*Q74 -> 215123.6959 | S74: -68393.4057 | T74: =Analise_Fundamentalista!$C$12*Monte_Carlo!Q74 -> 254196.8814 | U74: =-Analise_Fundamentalista!$C$14*Monte_Carlo!Q74 -> -128208.043 | V74: 1498396.601 | W74: =(RAND()*($D$17-$D$16)+$D$16)*(1-Analise_Fundamentalista!$C$6)*V74 -> 199861.3259 | X74: -3271.876928 | Y74: =Analise_Fundamentalista!$C$12*Monte_Carlo!V74 -> 244407.5009 | Z74: =-Analise_Fundamentalista!$C$14*Monte_Carlo!V74 -> -123270.6209 | AA74: 1471460.46 | AB74: =(RAND()*($D$17-$D$16)+$D$16)*(1-Analise_Fundamentalista!$C$6)*AA74 -> 242000.4132 | AC74: -1349617.316 | AD74: =Analise_Fundamentalista!$C$12*Monte_Carlo!AA74 -> 240013.8746 | AE74: =-Analise_Fundamentalista!$C$14*Monte_Carlo!AA74 -> -121054.6289 | AF74: 1524932.774 | AG74: =(RAND()*($D$17-$D$16)+$D$16)*(1-Analise_Fundamentalista!$C$6)*AF74 -> 299841.766 | AH74: -83806.41409 | AI74: =Analise_Fundamentalista!$C$12*Monte_Carlo!AF74 -> 248735.8875 | AJ74: =-Analise_Fundamentalista!$C$14*Monte_Carlo!AF74 -> -125453.7081 | AK74: 1333719.854 | AL74: =(RAND()*($D$17-$D$16)+$D$16)*(1-Analise_Fundamentalista!$C$6)*AK74 -> 130314.1902 | AM74: -536077.5433 | AN74: =Analise_Fundamentalista!$C$12*Monte_Carlo!AK74 -> 217546.6337 | AO74: =-Analise_Fundamentalista!$C$14*Monte_Carlo!AK74 -> -109722.9361 | AP74: 1473840.714 | AQ74: =(RAND()*($D$17-$D$16)+$D$16)*(1-Analise_Fundamentalista!$C$6)*AP74 -> 273801.8187 | AR74: -916310.3356 | AS74: =Analise_Fundamentalista!$C$12*Monte_Carlo!AP74 -> 240402.1241 | AT74: =-Analise_Fundamentalista!$C$14*Monte_Carlo!AP74 -> -121250.4484 | AU74: 1449213.66 | AV74: =(RAND()*($D$17-$D$16)+$D$16)*(1-Analise_Fundamentalista!$C$6)*AU74 -> 267528.2704 | AW74: -641820.637 | AX74: =Analise_Fundamentalista!$C$12*Monte_Carlo!AU74 -> 236385.1391 | AY74: =-Analise_Fundamentalista!$C$14*Monte_Carlo!AU74 -> -119224.4213 | AZ74: -325161.5071 | BA74: 267977.9989 | BB74: 132879.1231 | BC74: 272719.1285 | BD74: 317726.329 | BE74: -988657.657 | BF74: 339317.5313 | BG74: -297939.6556 | BH74: -523356.8412 | BI74: -257131.6488 | BJ74: =BI74*(1+Analise_Fundamentalista!$C$10)/(Analise_Fundamentalista!$C$10) -> -3367880.541 | BK74: =NPV(Analise_Fundamentalista!$C$10,Monte_Carlo!AZ74:BI74)+Monte_Carlo!BJ74/(1+Analise_Fundamentalista!$C$10)^10 -> -2026408.389 | BL74: =(BK74+Analise_Fundamentalista!$C$15-Analise_Fundamentalista!$C$16-Analise_Fundamentalista!$C$17)/(Analise_Fundamentalista!$F$29+Analise_Fundamentalista!$F$30)*1000 -> -57.3512372 | BM74: 0.5820563971
A75: Tent50 | B75: 1625322.115 | C75: =(RAND()*($D$17-$D$16)+$D$16)*(1-Analise_Fundamentalista!$C$6)*B75 -> 177204.6602 | D75: -792993.2602 | E75: =Analise_Fundamentalista!$C$12*Monte_Carlo!B75 -> 265110.663 | F75: =-Analise_Fundamentalista!$C$14*Monte_Carlo!B75 -> -133712.5739 | G75: 1678526.283 | H75: =(RAND()*($D$17-$D$16)+$D$16)*(1-Analise_Fundamentalista!$C$6)*G75 -> 187889.4816 | I75: -568177.3198 | J75: =Analise_Fundamentalista!$C$12*Monte_Carlo!G75 -> 273788.938 | K75: =-Analise_Fundamentalista!$C$14*Monte_Carlo!G75 -> -138089.5932 | L75: 1485004.337 | M75: =(RAND()*($D$17-$D$16)+$D$16)*(1-Analise_Fundamentalista!$C$6)*L75 -> 266951.389 | N75: -365867.4066 | O75: =Analise_Fundamentalista!$C$12*Monte_Carlo!L75 -> 242223.0528 | P75: =-Analise_Fundamentalista!$C$14*Monte_Carlo!L75 -> -122168.8614 | Q75: 1590394.094 | R75: =(RAND()*($D$17-$D$16)+$D$16)*(1-Analise_Fundamentalista!$C$6)*Q75 -> 300723.4167 | S75: -381790.1067 | T75: =Analise_Fundamentalista!$C$12*Monte_Carlo!Q75 -> 259413.4595 | U75: =-Analise_Fundamentalista!$C$14*Monte_Carlo!Q75 -> -130839.1031 | V75: 1550023.86 | W75: =(RAND()*($D$17-$D$16)+$D$16)*(1-Analise_Fundamentalista!$C$6)*V75 -> 247322.5239 | X75: -366643.8986 | Y75: =Analise_Fundamentalista!$C$12*Monte_Carlo!V75 -> 252828.5621 | Z75: =-Analise_Fundamentalista!$C$14*Monte_Carlo!V75 -> -127517.9105 | AA75: 1536279.546 | AB75: =(RAND()*($D$17-$D$16)+$D$16)*(1-Analise_Fundamentalista!$C$6)*AA75 -> 104981.6292 | AC75: -1084525.667 | AD75: =Analise_Fundamentalista!$C$12*Monte_Carlo!AA75 -> 250586.6901 | AE75: =-Analise_Fundamentalista!$C$14*Monte_Carlo!AA75 -> -126387.1884 | AF75: 1504555.509 | AG75: =(RAND()*($D$17-$D$16)+$D$16)*(1-Analise_Fundamentalista!$C$6)*AF75 -> 254024.1759 | AH75: -125292.72 | AI75: =Analise_Fundamentalista!$C$12*Monte_Carlo!AF75 -> 245412.0969 | AJ75: =-Analise_Fundamentalista!$C$14*Monte_Carlo!AF75 -> -123777.3041 | AK75: 1454002.661 | AL75: =(RAND()*($D$17-$D$16)+$D$16)*(1-Analise_Fundamentalista!$C$6)*AK75 -> 109772.2252 | AM75: -407375.7007 | AN75: =Analise_Fundamentalista!$C$12*Monte_Carlo!AK75 -> 237166.2859 | AO75: =-Analise_Fundamentalista!$C$14*Monte_Carlo!AK75 -> -119618.4045 | AP75: 1371606.937 | AQ75: =(RAND()*($D$17-$D$16)+$D$16)*(1-Analise_Fundamentalista!$C$6)*AP75 -> 148325.3476 | AR75: -278143.6666 | AS75: =Analise_Fundamentalista!$C$12*Monte_Carlo!AP75 -> 223726.4978 | AT75: =-Analise_Fundamentalista!$C$14*Monte_Carlo!AP75 -> -112839.844 | AU75: 1371360.592 | AV75: =(RAND()*($D$17-$D$16)+$D$16)*(1-Analise_Fundamentalista!$C$6)*AU75 -> 148648.043 | AW75: -175248.0233 | AX75: =Analise_Fundamentalista!$C$12*Monte_Carlo!AU75 -> 223686.3158 | AY75: =-Analise_Fundamentalista!$C$14*Monte_Carlo!AU75 -> -112819.5776 | AZ75: -484390.5109 | BA75: -244588.4934 | BB75: 21138.17377 | BC75: 47507.66642 | BD75: 5989.276866 | BE75: -855344.5356 | BF75: 250366.2488 | BG75: -180055.5941 | BH75: -18931.66526 | BI75: 84266.75782 | BJ75: =BI75*(1+Analise_Fundamentalista!$C$10)/(Analise_Fundamentalista!$C$10) -> 1103716.23 | BK75: =NPV(Analise_Fundamentalista!$C$10,Monte_Carlo!AZ75:BI75)+Monte_Carlo!BJ75/(1+Analise_Fundamentalista!$C$10)^10 -> -556085.3 | BL75: =(BK75+Analise_Fundamentalista!$C$15-Analise_Fundamentalista!$C$16-Analise_Fundamentalista!$C$17)/(Analise_Fundamentalista!$F$29+Analise_Fundamentalista!$F$30)*1000 -> -24.16493453 | BM75: 0.7836934461
A76: Tent51 | B76: 1620756.33 | C76: =(RAND()*($D$17-$D$16)+$D$16)*(1-Analise_Fundamentalista!$C$6)*B76 -> 303816.1199 | D76: -597349.8779 | E76: =Analise_Fundamentalista!$C$12*Monte_Carlo!B76 -> 264365.9255 | F76: =-Analise_Fundamentalista!$C$14*Monte_Carlo!B76 -> -133336.9543 | G76: 1437192.896 | H76: =(RAND()*($D$17-$D$16)+$D$16)*(1-Analise_Fundamentalista!$C$6)*G76 -> 109124.9109 | I76: -326344.1834 | J76: =Analise_Fundamentalista!$C$12*Monte_Carlo!G76 -> 234424.3999 | K76: =-Analise_Fundamentalista!$C$14*Monte_Carlo!G76 -> -118235.4928 | L76: 1648768.412 | M76: =(RAND()*($D$17-$D$16)+$D$16)*(1-Analise_Fundamentalista!$C$6)*L76 -> 218712.4323 | N76: -311005.868 | O76: =Analise_Fundamentalista!$C$12*Monte_Carlo!L76 -> 268935.0516 | P76: =-Analise_Fundamentalista!$C$14*Monte_Carlo!L76 -> -135641.4621 | Q76: 1529702.035 | R76: =(RAND()*($D$17-$D$16)+$D$16)*(1-Analise_Fundamentalista!$C$6)*Q76 -> 204959.8322 | S76: -55618.22306 | T76: =Analise_Fundamentalista!$C$12*Monte_Carlo!Q76 -> 249513.8145 | U76: =-Analise_Fundamentalista!$C$14*Monte_Carlo!Q76 -> -125846.0674 | V76: 1428598.495 | W76: =(RAND()*($D$17-$D$16)+$D$16)*(1-Analise_Fundamentalista!$C$6)*V76 -> 280657.4678 | X76: -13766.9832 | Y76: =Analise_Fundamentalista!$C$12*Monte_Carlo!V76 -> 233022.5441 | Z76: =-Analise_Fundamentalista!$C$14*Monte_Carlo!V76 -> -117528.4456 | AA76: 1342351.916 | AB76: =(RAND()*($D$17-$D$16)+$D$16)*(1-Analise_Fundamentalista!$C$6)*AA76 -> 220672.6427 | AC76: -415509.997 | AD76: =Analise_Fundamentalista!$C$12*Monte_Carlo!AA76 -> 218954.6325 | AE76: =-Analise_Fundamentalista!$C$14*Monte_Carlo!AA76 -> -110433.0816 | AF76: 1463004.578 | AG76: =(RAND()*($D$17-$D$16)+$D$16)*(1-Analise_Fundamentalista!$C$6)*AF76 -> 201255.789 | AH76: -117080.158 | AI76: =Analise_Fundamentalista!$C$12*Monte_Carlo!AF76 -> 238634.6129 | AJ76: =-Analise_Fundamentalista!$C$14*Monte_Carlo!AF76 -> -120358.9775 | AK76: 1431833.611 | AL76: =(RAND()*($D$17-$D$16)+$D$16)*(1-Analise_Fundamentalista!$C$6)*AK76 -> 275346.6696 | AM76: -4762.664128 | AN76: =Analise_Fundamentalista!$C$12*Monte_Carlo!AK76 -> 233550.2325 | AO76: =-Analise_Fundamentalista!$C$14*Monte_Carlo!AK76 -> -117794.5933 | AP76: 1454638.312 | AQ76: =(RAND()*($D$17-$D$16)+$D$16)*(1-Analise_Fundamentalista!$C$6)*AP76 -> 166226.3618 | AR76: -1211342.285 | AS76: =Analise_Fundamentalista!$C$12*Monte_Carlo!AP76 -> 237269.9686 | AT76: =-Analise_Fundamentalista!$C$14*Monte_Carlo!AP76 -> -119670.6985 | AU76: 1319539.7 | AV76: =(RAND()*($D$17-$D$16)+$D$16)*(1-Analise_Fundamentalista!$C$6)*AU76 -> 124869.5175 | AW76: -27094.28164 | AX76: =Analise_Fundamentalista!$C$12*Monte_Carlo!AU76 -> 215233.6706 | AY76: =-Analise_Fundamentalista!$C$14*Monte_Carlo!AU76 -> -108556.3582 | AZ76: -162504.7868 | BA76: -101030.3654 | BB76: 41000.15371 | BC76: 273009.3562 | BD76: 382384.5831 | BE76: -86315.8034 | BF76: 202451.2665 | BG76: 386339.6447 | BH76: -927516.653 | BI76: 204452.5483 | BJ76: =BI76*(1+Analise_Fundamentalista!$C$10)/(Analise_Fundamentalista!$C$10) -> 2677895.787 | BK76: =NPV(Analise_Fundamentalista!$C$10,Monte_Carlo!AZ76:BI76)+Monte_Carlo!BJ76/(1+Analise_Fundamentalista!$C$10)^10 -> 1367785.938 | BL76: =(BK76+Analise_Fundamentalista!$C$15-Analise_Fundamentalista!$C$16-Analise_Fundamentalista!$C$17)/(Analise_Fundamentalista!$F$29+Analise_Fundamentalista!$F$30)*1000 -> 19.25829242 | BM76: 0.9382760045
A77: Tent52 | B77: 1684633.379 | C77: =(RAND()*($D$17-$D$16)+$D$16)*(1-Analise_Fundamentalista!$C$6)*B77 -> 182323.4129 | D77: -318282.0296 | E77: =Analise_Fundamentalista!$C$12*Monte_Carlo!B77 -> 274785.0829 | F77: =-Analise_Fundamentalista!$C$14*Monte_Carlo!B77 -> -138592.0139 | G77: 1480174.526 | H77: =(RAND()*($D$17-$D$16)+$D$16)*(1-Analise_Fundamentalista!$C$6)*G77 -> 103796.5004 | I77: -1820855.923 | J77: =Analise_Fundamentalista!$C$12*Monte_Carlo!G77 -> 241435.2492 | K77: =-Analise_Fundamentalista!$C$14*Monte_Carlo!G77 -> -121771.5207 | L77: 1567325.254 | M77: =(RAND()*($D$17-$D$16)+$D$16)*(1-Analise_Fundamentalista!$C$6)*L77 -> 264177.6299 | N77: -31414.7815 | O77: =Analise_Fundamentalista!$C$12*Monte_Carlo!L77 -> 255650.6389 | P77: =-Analise_Fundamentalista!$C$14*Monte_Carlo!L77 -> -128941.2676 | Q77: 1380376.082 | R77: =(RAND()*($D$17-$D$16)+$D$16)*(1-Analise_Fundamentalista!$C$6)*Q77 -> 207262.6979 | S77: -404437.1996 | T77: =Analise_Fundamentalista!$C$12*Monte_Carlo!Q77 -> 225156.8565 | U77: =-Analise_Fundamentalista!$C$14*Monte_Carlo!Q77 -> -113561.2671 | V77: 1467110.49 | W77: =(RAND()*($D$17-$D$16)+$D$16)*(1-Analise_Fundamentalista!$C$6)*V77 -> 173406.4964 | X77: -30428.95099 | Y77: =Analise_Fundamentalista!$C$12*Monte_Carlo!V77 -> 239304.3391 | Z77: =-Analise_Fundamentalista!$C$14*Monte_Carlo!V77 -> -120696.764 | AA77: 1472228.7 | AB77: =(RAND()*($D$17-$D$16)+$D$16)*(1-Analise_Fundamentalista!$C$6)*AA77 -> 255172.7268 | AC77: -136264.0487 | AD77: =Analise_Fundamentalista!$C$12*Monte_Carlo!AA77 -> 240139.1841 | AE77: =-Analise_Fundamentalista!$C$14*Monte_Carlo!AA77 -> -121117.8307 | AF77: 1440662.328 | AG77: =(RAND()*($D$17-$D$16)+$D$16)*(1-Analise_Fundamentalista!$C$6)*AF77 -> 129745.3743 | AH77: -113751.8572 | AI77: =Analise_Fundamentalista!$C$12*Monte_Carlo!AF77 -> 234990.3083 | AJ77: =-Analise_Fundamentalista!$C$14*Monte_Carlo!AF77 -> -118520.9173 | AK77: 1393264.626 | AL77: =(RAND()*($D$17-$D$16)+$D$16)*(1-Analise_Fundamentalista!$C$6)*AK77 -> 189980.9824 | AM77: -974597.3414 | AN77: =Analise_Fundamentalista!$C$12*Monte_Carlo!AK77 -> 227259.1417 | AO77: =-Analise_Fundamentalista!$C$14*Monte_Carlo!AK77 -> -114621.5864 | AP77: 1356556.171 | AQ77: =(RAND()*($D$17-$D$16)+$D$16)*(1-Analise_Fundamentalista!$C$6)*AP77 -> 136168.2186 | AR77: -461334.2454 | AS77: =Analise_Fundamentalista!$C$12*Monte_Carlo!AP77 -> 221271.5268 | AT77: =-Analise_Fundamentalista!$C$14*Monte_Carlo!AP77 -> -111601.6423 | AU77: 1409842.271 | AV77: =(RAND()*($D$17-$D$16)+$D$16)*(1-Analise_Fundamentalista!$C$6)*AU77 -> 161241.8142 | AW77: -239868.2676 | AX77: =Analise_Fundamentalista!$C$12*Monte_Carlo!AU77 -> 229963.1659 | AY77: =-Analise_Fundamentalista!$C$14*Monte_Carlo!AU77 -> -115985.402 | AZ77: 234.4522788 | BA77: -1597395.695 | BB77: 359472.2198 | BC77: -85578.91229 | BD77: 261585.1205 | BE77: 237930.0315 | BF77: 132462.9082 | BG77: -671978.8037 | BH77: -215496.1423 | BI77: 35351.31061 | BJ77: =BI77*(1+Analise_Fundamentalista!$C$10)/(Analise_Fundamentalista!$C$10) -> 463027.3701 | BK77: =NPV(Analise_Fundamentalista!$C$10,Monte_Carlo!AZ77:BI77)+Monte_Carlo!BJ77/(1+Analise_Fundamentalista!$C$10)^10 -> -978211.7326 | BL77: =(BK77+Analise_Fundamentalista!$C$15-Analise_Fundamentalista!$C$16-Analise_Fundamentalista!$C$17)/(Analise_Fundamentalista!$F$29+Analise_Fundamentalista!$F$30)*1000 -> -33.69264695 | BM77: 0.7320117244
A78: Tent53 | B78: 1437043.492 | C78: =(RAND()*($D$17-$D$16)+$D$16)*(1-Analise_Fundamentalista!$C$6)*B78 -> 257038.1952 | D78: -979464.4609 | E78: =Analise_Fundamentalista!$C$12*Monte_Carlo!B78 -> 234400.0303 | F78: =-Analise_Fundamentalista!$C$14*Monte_Carlo!B78 -> -118223.2017 | G78: 1602131.723 | H78: =(RAND()*($D$17-$D$16)+$D$16)*(1-Analise_Fundamentalista!$C$6)*G78 -> 197633.8089 | I78: -433571.123 | J78: =Analise_Fundamentalista!$C$12*Monte_Carlo!G78 -> 261328.0158 | K78: =-Analise_Fundamentalista!$C$14*Monte_Carlo!G78 -> -131804.7385 | L78: 1646368.494 | M78: =(RAND()*($D$17-$D$16)+$D$16)*(1-Analise_Fundamentalista!$C$6)*L78 -> 249084.9267 | N78: -998555.857 | O78: =Analise_Fundamentalista!$C$12*Monte_Carlo!L78 -> 268543.5945 | P78: =-Analise_Fundamentalista!$C$14*Monte_Carlo!L78 -> -135444.0248 | Q78: 1580611.663 | R78: =(RAND()*($D$17-$D$16)+$D$16)*(1-Analise_Fundamentalista!$C$6)*Q78 -> 136652.785 | S78: -157932.7592 | T78: =Analise_Fundamentalista!$C$12*Monte_Carlo!Q78 -> 257817.821 | U78: =-Analise_Fundamentalista!$C$14*Monte_Carlo!Q78 -> -130034.3187 | V78: 1442970.763 | W78: =(RAND()*($D$17-$D$16)+$D$16)*(1-Analise_Fundamentalista!$C$6)*V78 -> 220699.7936 | X78: -539350.2189 | Y78: =Analise_Fundamentalista!$C$12*Monte_Carlo!V78 -> 235366.8433 | Z78: =-Analise_Fundamentalista!$C$14*Monte_Carlo!V78 -> -118710.8284 | AA78: 1549533.687 | AB78: =(RAND()*($D$17-$D$16)+$D$16)*(1-Analise_Fundamentalista!$C$6)*AA78 -> 189266.9658 | AC78: -433377.355 | AD78: =Analise_Fundamentalista!$C$12*Monte_Carlo!AA78 -> 252748.6086 | AE78: =-Analise_Fundamentalista!$C$14*Monte_Carlo!AA78 -> -127477.5847 | AF78: 1280521.649 | AG78: =(RAND()*($D$17-$D$16)+$D$16)*(1-Analise_Fundamentalista!$C$6)*AF78 -> 121270.7987 | AH78: -203297.2095 | AI78: =Analise_Fundamentalista!$C$12*Monte_Carlo!AF78 -> 208869.3313 | AJ78: =-Analise_Fundamentalista!$C$14*Monte_Carlo!AF78 -> -105346.4073 | AK78: 1457158.457 | AL78: =(RAND()*($D$17-$D$16)+$D$16)*(1-Analise_Fundamentalista!$C$6)*AK78 -> 184398.252 | AM78: -518145.1545 | AN78: =Analise_Fundamentalista!$C$12*Monte_Carlo!AK78 -> 237681.0364 | AO78: =-Analise_Fundamentalista!$C$14*Monte_Carlo!AK78 -> -119878.0267 | AP78: 1379165.521 | AQ78: =(RAND()*($D$17-$D$16)+$D$16)*(1-Analise_Fundamentalista!$C$6)*AP78 -> 245390.6759 | AR78: -923410.4623 | AS78: =Analise_Fundamentalista!$C$12*Monte_Carlo!AP78 -> 224959.3987 | AT78: =-Analise_Fundamentalista!$C$14*Monte_Carlo!AP78 -> -113461.6762 | AU78: 1306507.729 | AV78: =(RAND()*($D$17-$D$16)+$D$16)*(1-Analise_Fundamentalista!$C$6)*AU78 -> 93275.15982 | AW78: -149604.2337 | AX78: =Analise_Fundamentalista!$C$12*Monte_Carlo!AU78 -> 213107.9907 | AY78: =-Analise_Fundamentalista!$C$14*Monte_Carlo!AU78 -> -107484.2393 | AZ78: -606249.437 | BA78: -106414.0369 | BB78: -616371.3606 | BC78: 106503.5282 | BD78: -201994.4103 | BE78: -118839.3653 | BF78: 21496.51325 | BG78: -215943.8928 | BH78: -566522.0639 | BI78: 49294.67751 | BJ78: =BI78*(1+Analise_Fundamentalista!$C$10)/(Analise_Fundamentalista!$C$10) -> 645655.974 | BK78: =NPV(Analise_Fundamentalista!$C$10,Monte_Carlo!AZ78:BI78)+Monte_Carlo!BJ78/(1+Analise_Fundamentalista!$C$10)^10 -> -1333704.315 | BL78: =(BK78+Analise_Fundamentalista!$C$15-Analise_Fundamentalista!$C$16-Analise_Fundamentalista!$C$17)/(Analise_Fundamentalista!$F$29+Analise_Fundamentalista!$F$30)*1000 -> -41.71638304 | BM78: 0.6841247228
A79: Tent54 | B79: 1610790.849 | C79: =(RAND()*($D$17-$D$16)+$D$16)*(1-Analise_Fundamentalista!$C$6)*B79 -> 181592.0604 | D79: -646698.1857 | E79: =Analise_Fundamentalista!$C$12*Monte_Carlo!B79 -> 262740.4292 | F79: =-Analise_Fundamentalista!$C$14*Monte_Carlo!B79 -> -132517.1106 | G79: 1675385.653 | H79: =(RAND()*($D$17-$D$16)+$D$16)*(1-Analise_Fundamentalista!$C$6)*G79 -> 289139.3535 | I79: -945966.7093 | J79: =Analise_Fundamentalista!$C$12*Monte_Carlo!G79 -> 273276.6613 | K79: =-Analise_Fundamentalista!$C$14*Monte_Carlo!G79 -> -137831.2187 | L79: 1402599.136 | M79: =(RAND()*($D$17-$D$16)+$D$16)*(1-Analise_Fundamentalista!$C$6)*L79 -> 240277.8765 | N79: -704001.093 | O79: =Analise_Fundamentalista!$C$12*Monte_Carlo!L79 -> 228781.7187 | P79: =-Analise_Fundamentalista!$C$14*Monte_Carlo!L79 -> -115389.5212 | Q79: 1438860.907 | R79: =(RAND()*($D$17-$D$16)+$D$16)*(1-Analise_Fundamentalista!$C$6)*Q79 -> 148601.3814 | S79: -52379.39223 | T79: =Analise_Fundamentalista!$C$12*Monte_Carlo!Q79 -> 234696.4737 | U79: =-Analise_Fundamentalista!$C$14*Monte_Carlo!Q79 -> -118372.7174 | V79: 1662888.726 | W79: =(RAND()*($D$17-$D$16)+$D$16)*(1-Analise_Fundamentalista!$C$6)*V79 -> 143326.7713 | X79: -560817.4295 | Y79: =Analise_Fundamentalista!$C$12*Monte_Carlo!V79 -> 271238.254 | Z79: =-Analise_Fundamentalista!$C$14*Monte_Carlo!V79 -> -136803.1171 | AA79: 1497430.2 | AB79: =(RAND()*($D$17-$D$16)+$D$16)*(1-Analise_Fundamentalista!$C$6)*AA79 -> 113059.7173 | AC79: -21802.94755 | AD79: =Analise_Fundamentalista!$C$12*Monte_Carlo!AA79 -> 244249.8687 | AE79: =-Analise_Fundamentalista!$C$14*Monte_Carlo!AA79 -> -123191.1167 | AF79: 1460208.115 | AG79: =(RAND()*($D$17-$D$16)+$D$16)*(1-Analise_Fundamentalista!$C$6)*AF79 -> 266366.8771 | AH79: -950326.4234 | AI79: =Analise_Fundamentalista!$C$12*Monte_Carlo!AF79 -> 238178.4742 | AJ79: =-Analise_Fundamentalista!$C$14*Monte_Carlo!AF79 -> -120128.917 | AK79: 1432814.291 | AL79: =(RAND()*($D$17-$D$16)+$D$16)*(1-Analise_Fundamentalista!$C$6)*AK79 -> 154188.6847 | AM79: -702319.2652 | AN79: =Analise_Fundamentalista!$C$12*Monte_Carlo!AK79 -> 233710.1939 | AO79: =-Analise_Fundamentalista!$C$14*Monte_Carlo!AK79 -> -117875.2722 | AP79: 1395803.942 | AQ79: =(RAND()*($D$17-$D$16)+$D$16)*(1-Analise_Fundamentalista!$C$6)*AP79 -> 220201.3607 | AR79: -383022.8344 | AS79: =Analise_Fundamentalista!$C$12*Monte_Carlo!AP79 -> 227673.3363 | AT79: =-Analise_Fundamentalista!$C$14*Monte_Carlo!AP79 -> -114830.4918 | AU79: 1390791.504 | AV79: =(RAND()*($D$17-$D$16)+$D$16)*(1-Analise_Fundamentalista!$C$6)*AU79 -> 237691.9505 | AW79: -760015.9359 | AX79: =Analise_Fundamentalista!$C$12*Monte_Carlo!AU79 -> 226855.7441 | AY79: =-Analise_Fundamentalista!$C$14*Monte_Carlo!AU79 -> -114418.1267 | AZ79: -334882.8068 | BA79: -521381.9131 | BB79: -350331.019 | BC79: 212545.7455 | BD79: -283055.5214 | BE79: 212315.5218 | BF79: -565909.9891 | BG79: -432295.6589 | BH79: -49978.62919 | BI79: -409886.3681 | BJ79: =BI79*(1+Analise_Fundamentalista!$C$10)/(Analise_Fundamentalista!$C$10) -> -5368644.154 | BK79: =NPV(Analise_Fundamentalista!$C$10,Monte_Carlo!AZ79:BI79)+Monte_Carlo!BJ79/(1+Analise_Fundamentalista!$C$10)^10 -> -4123527.526 | BL79: =(BK79+Analise_Fundamentalista!$C$15-Analise_Fundamentalista!$C$16-Analise_Fundamentalista!$C$17)/(Analise_Fundamentalista!$F$29+Analise_Fundamentalista!$F$30)*1000 -> -104.6848001 | BM79: 0.2687389981
A80: Tent55 | B80: 1772032.766 | C80: =(RAND()*($D$17-$D$16)+$D$16)*(1-Analise_Fundamentalista!$C$6)*B80 -> 181478.5114 | D80: -757668.8601 | E80: =Analise_Fundamentalista!$C$12*Monte_Carlo!B80 -> 289041.0321 | F80: =-Analise_Fundamentalista!$C$14*Monte_Carlo!B80 -> -145782.2176 | G80: 1453679.171 | H80: =(RAND()*($D$17-$D$16)+$D$16)*(1-Analise_Fundamentalista!$C$6)*G80 -> 234489.8811 | I80: -52614.90328 | J80: =Analise_Fundamentalista!$C$12*Monte_Carlo!G80 -> 237113.5205 | K80: =-Analise_Fundamentalista!$C$14*Monte_Carlo!G80 -> -119591.7915 | L80: 1472417.262 | M80: =(RAND()*($D$17-$D$16)+$D$16)*(1-Analise_Fundamentalista!$C$6)*L80 -> 265634.3093 | N80: -58357.738 | O80: =Analise_Fundamentalista!$C$12*Monte_Carlo!L80 -> 240169.941 | P80: =-Analise_Fundamentalista!$C$14*Monte_Carlo!L80 -> -121133.3434 | Q80: 1614805.941 | R80: =(RAND()*($D$17-$D$16)+$D$16)*(1-Analise_Fundamentalista!$C$6)*Q80 -> 253804.8302 | S80: -133753.3465 | T80: =Analise_Fundamentalista!$C$12*Monte_Carlo!Q80 -> 263395.3415 | U80: =-Analise_Fundamentalista!$C$14*Monte_Carlo!Q80 -> -132847.4256 | V80: 1524863.551 | W80: =(RAND()*($D$17-$D$16)+$D$16)*(1-Analise_Fundamentalista!$C$6)*V80 -> 213937.663 | X80: -205174.9565 | Y80: =Analise_Fundamentalista!$C$12*Monte_Carlo!V80 -> 248724.5963 | Z80: =-Analise_Fundamentalista!$C$14*Monte_Carlo!V80 -> -125448.0132 | AA80: 1458983.069 | AB80: =(RAND()*($D$17-$D$16)+$D$16)*(1-Analise_Fundamentalista!$C$6)*AA80 -> 249629.8877 | AC80: -849319.4546 | AD80: =Analise_Fundamentalista!$C$12*Monte_Carlo!AA80 -> 237978.6536 | AE80: =-Analise_Fundamentalista!$C$14*Monte_Carlo!AA80 -> -120028.1345 | AF80: 1514130.392 | AG80: =(RAND()*($D$17-$D$16)+$D$16)*(1-Analise_Fundamentalista!$C$6)*AF80 -> 192364.7045 | AH80: -37476.10232 | AI80: =Analise_Fundamentalista!$C$12*Monte_Carlo!AF80 -> 246973.8819 | AJ80: =-Analise_Fundamentalista!$C$14*Monte_Carlo!AF80 -> -124565.0139 | AK80: 1441271.253 | AL80: =(RAND()*($D$17-$D$16)+$D$16)*(1-Analise_Fundamentalista!$C$6)*AK80 -> 261987.3623 | AM80: -90192.57543 | AN80: =Analise_Fundamentalista!$C$12*Monte_Carlo!AK80 -> 235089.6318 | AO80: =-Analise_Fundamentalista!$C$14*Monte_Carlo!AK80 -> -118571.0126 | AP80: 1347973.895 | AQ80: =(RAND()*($D$17-$D$16)+$D$16)*(1-Analise_Fundamentalista!$C$6)*AP80 -> 112113.9854 | AR80: -210425.6668 | AS80: =Analise_Fundamentalista!$C$12*Monte_Carlo!AP80 -> 219871.6486 | AT80: =-Analise_Fundamentalista!$C$14*Monte_Carlo!AP80 -> -110895.5926 | AU80: 1405478.729 | AV80: =(RAND()*($D$17-$D$16)+$D$16)*(1-Analise_Fundamentalista!$C$6)*AU80 -> 172390.1387 | AW80: -510480.0497 | AX80: =Analise_Fundamentalista!$C$12*Monte_Carlo!AU80 -> 229251.4168 | AY80: =-Analise_Fundamentalista!$C$14*Monte_Carlo!AU80 -> -115626.4205 | AZ80: -432931.5343 | BA80: 299396.7069 | BB80: 326313.1689 | BC80: 250599.3998 | BD80: 132039.2896 | BE80: -481739.0478 | BF80: 277297.4702 | BG80: 288313.4061 | BH80: 10664.37476 | BI80: -224464.9147 | BJ80: =BI80*(1+Analise_Fundamentalista!$C$10)/(Analise_Fundamentalista!$C$10) -> -2940015.443 | BK80: =NPV(Analise_Fundamentalista!$C$10,Monte_Carlo!AZ80:BI80)+Monte_Carlo!BJ80/(1+Analise_Fundamentalista!$C$10)^10 -> -1028461.617 | BL80: =(BK80+Analise_Fundamentalista!$C$15-Analise_Fundamentalista!$C$16-Analise_Fundamentalista!$C$17)/(Analise_Fundamentalista!$F$29+Analise_Fundamentalista!$F$30)*1000 -> -34.82682479 | BM80: 0.7254700778
A81: Tent56 | B81: 1526019.917 | C81: =(RAND()*($D$17-$D$16)+$D$16)*(1-Analise_Fundamentalista!$C$6)*B81 -> 146765.9027 | D81: -282671.3407 | E81: =Analise_Fundamentalista!$C$12*Monte_Carlo!B81 -> 248913.2144 | F81: =-Analise_Fundamentalista!$C$14*Monte_Carlo!B81 -> -125543.1456 | G81: 1643806.309 | H81: =(RAND()*($D$17-$D$16)+$D$16)*(1-Analise_Fundamentalista!$C$6)*G81 -> 167884.8015 | I81: -228113.3787 | J81: =Analise_Fundamentalista!$C$12*Monte_Carlo!G81 -> 268125.6697 | K81: =-Analise_Fundamentalista!$C$14*Monte_Carlo!G81 -> -135233.2381 | L81: 1490015.695 | M81: =(RAND()*($D$17-$D$16)+$D$16)*(1-Analise_Fundamentalista!$C$6)*L81 -> 181984.0141 | N81: -677690.0604 | O81: =Analise_Fundamentalista!$C$12*Monte_Carlo!L81 -> 243040.4688 | P81: =-Analise_Fundamentalista!$C$14*Monte_Carlo!L81 -> -122581.1375 | Q81: 1506012.031 | R81: =(RAND()*($D$17-$D$16)+$D$16)*(1-Analise_Fundamentalista!$C$6)*Q81 -> 257327.3823 | S81: -74703.18381 | T81: =Analise_Fundamentalista!$C$12*Monte_Carlo!Q81 -> 245649.6743 | U81: =-Analise_Fundamentalista!$C$14*Monte_Carlo!Q81 -> -123897.1298 | V81: 1560785.322 | W81: =(RAND()*($D$17-$D$16)+$D$16)*(1-Analise_Fundamentalista!$C$6)*V81 -> 227665.1061 | X81: -145338.7337 | Y81: =Analise_Fundamentalista!$C$12*Monte_Carlo!V81 -> 254583.8931 | Z81: =-Analise_Fundamentalista!$C$14*Monte_Carlo!V81 -> -128403.2382 | AA81: 1369028.264 | AB81: =(RAND()*($D$17-$D$16)+$D$16)*(1-Analise_Fundamentalista!$C$6)*AA81 -> 176411.9162 | AC81: -206800.2809 | AD81: =Analise_Fundamentalista!$C$12*Monte_Carlo!AA81 -> 223305.8834 | AE81: =-Analise_Fundamentalista!$C$14*Monte_Carlo!AA81 -> -112627.7008 | AF81: 1439075.912 | AG81: =(RAND()*($D$17-$D$16)+$D$16)*(1-Analise_Fundamentalista!$C$6)*AF81 -> 250294.0581 | AH81: -508990.3993 | AI81: =Analise_Fundamentalista!$C$12*Monte_Carlo!AF81 -> 234731.5438 | AJ81: =-Analise_Fundamentalista!$C$14*Monte_Carlo!AF81 -> -118390.4055 | AK81: 1412938.51 | AL81: =(RAND()*($D$17-$D$16)+$D$16)*(1-Analise_Fundamentalista!$C$6)*AK81 -> 234720.401 | AM81: -407052.6206 | AN81: =Analise_Fundamentalista!$C$12*Monte_Carlo!AK81 -> 230468.2017 | AO81: =-Analise_Fundamentalista!$C$14*Monte_Carlo!AK81 -> -116240.1244 | AP81: 1343030.915 | AQ81: =(RAND()*($D$17-$D$16)+$D$16)*(1-Analise_Fundamentalista!$C$6)*AP81 -> 107599.4924 | AR81: -1111558.106 | AS81: =Analise_Fundamentalista!$C$12*Monte_Carlo!AP81 -> 219065.3858 | AT81: =-Analise_Fundamentalista!$C$14*Monte_Carlo!AP81 -> -110488.9417 | AU81: 1497949.062 | AV81: =(RAND()*($D$17-$D$16)+$D$16)*(1-Analise_Fundamentalista!$C$6)*AU81 -> 213305.2498 | AW81: -274506.3704 | AX81: =Analise_Fundamentalista!$C$12*Monte_Carlo!AU81 -> 244334.5017 | AY81: =-Analise_Fundamentalista!$C$14*Monte_Carlo!AU81 -> -123233.8026 | AZ81: -12535.36926 | BA81: 72663.85437 | BB81: -375246.715 | BC81: 304376.7429 | BD81: 208507.0273 | BE81: 80289.81785 | BF81: -142355.2029 | BG81: -58104.1423 | BH81: -895382.1698 | BI81: 59899.57845 | BJ81: =BI81*(1+Analise_Fundamentalista!$C$10)/(Analise_Fundamentalista!$C$10) -> 784557.7377 | BK81: =NPV(Analise_Fundamentalista!$C$10,Monte_Carlo!AZ81:BI81)+Monte_Carlo!BJ81/(1+Analise_Fundamentalista!$C$10)^10 -> -2605.949849 | BL81: =(BK81+Analise_Fundamentalista!$C$15-Analise_Fundamentalista!$C$16-Analise_Fundamentalista!$C$17)/(Analise_Fundamentalista!$F$29+Analise_Fundamentalista!$F$30)*1000 -> -11.67248755 | BM81: 0.8418632494
A82: Tent57 | B82: 1587932.378 | C82: =(RAND()*($D$17-$D$16)+$D$16)*(1-Analise_Fundamentalista!$C$6)*B82 -> 255295.3565 | D82: -331519.0866 | E82: =Analise_Fundamentalista!$C$12*Monte_Carlo!B82 -> 259011.9225 | F82: =-Analise_Fundamentalista!$C$14*Monte_Carlo!B82 -> -130636.5818 | G82: 1787842.362 | H82: =(RAND()*($D$17-$D$16)+$D$16)*(1-Analise_Fundamentalista!$C$6)*G82 -> 154616.9464 | I82: -328741.578 | J82: =Analise_Fundamentalista!$C$12*Monte_Carlo!G82 -> 291619.7778 | K82: =-Analise_Fundamentalista!$C$14*Monte_Carlo!G82 -> -147082.847 | L82: 1600111.758 | M82: =(RAND()*($D$17-$D$16)+$D$16)*(1-Analise_Fundamentalista!$C$6)*L82 -> 212809.1816 | N82: -458780.1811 | O82: =Analise_Fundamentalista!$C$12*Monte_Carlo!L82 -> 260998.5339 | P82: =-Analise_Fundamentalista!$C$14*Monte_Carlo!L82 -> -131638.5594 | Q82: 1537014.132 | R82: =(RAND()*($D$17-$D$16)+$D$16)*(1-Analise_Fundamentalista!$C$6)*Q82 -> 230808.5282 | S82: -827895.4412 | T82: =Analise_Fundamentalista!$C$12*Monte_Carlo!Q82 -> 250706.5103 | U82: =-Analise_Fundamentalista!$C$14*Monte_Carlo!Q82 -> -126447.6215 | V82: 1435564.655 | W82: =(RAND()*($D$17-$D$16)+$D$16)*(1-Analise_Fundamentalista!$C$6)*V82 -> 188693.178 | X82: -11072.19293 | Y82: =Analise_Fundamentalista!$C$12*Monte_Carlo!V82 -> 234158.8132 | Z82: =-Analise_Fundamentalista!$C$14*Monte_Carlo!V82 -> -118101.5402 | AA82: 1553791.655 | AB82: =(RAND()*($D$17-$D$16)+$D$16)*(1-Analise_Fundamentalista!$C$6)*AA82 -> 233413.9132 | AC82: -185908.1251 | AD82: =Analise_Fundamentalista!$C$12*Monte_Carlo!AA82 -> 253443.1373 | AE82: =-Analise_Fundamentalista!$C$14*Monte_Carlo!AA82 -> -127827.8808 | AF82: 1417365.973 | AG82: =(RAND()*($D$17-$D$16)+$D$16)*(1-Analise_Fundamentalista!$C$6)*AF82 -> 276322.4745 | AH82: -570372.9454 | AI82: =Analise_Fundamentalista!$C$12*Monte_Carlo!AF82 -> 231190.3771 | AJ82: =-Analise_Fundamentalista!$C$14*Monte_Carlo!AF82 -> -116604.3645 | AK82: 1383462.425 | AL82: =(RAND()*($D$17-$D$16)+$D$16)*(1-Analise_Fundamentalista!$C$6)*AK82 -> 131186.0288 | AM82: -614708.254 | AN82: =Analise_Fundamentalista!$C$12*Monte_Carlo!AK82 -> 225660.2783 | AO82: =-Analise_Fundamentalista!$C$14*Monte_Carlo!AK82 -> -113815.1755 | AP82: 1395948.253 | AQ82: =(RAND()*($D$17-$D$16)+$D$16)*(1-Analise_Fundamentalista!$C$6)*AP82 -> 166510.8739 | AR82: -423365.0495 | AS82: =Analise_Fundamentalista!$C$12*Monte_Carlo!AP82 -> 227696.8752 | AT82: =-Analise_Fundamentalista!$C$14*Monte_Carlo!AP82 -> -114842.364 | AU82: 1432243.224 | AV82: =(RAND()*($D$17-$D$16)+$D$16)*(1-Analise_Fundamentalista!$C$6)*AU82 -> 216327.3926 | AW82: -553922.5976 | AX82: =Analise_Fundamentalista!$C$12*Monte_Carlo!AU82 -> 233617.0457 | AY82: =-Analise_Fundamentalista!$C$14*Monte_Carlo!AU82 -> -117828.2915 | AZ82: 52151.61045 | BA82: -29587.7009 | BB82: -116611.0249 | BC82: -472828.0242 | BD82: 293678.2581 | BE82: 173121.0445 | BF82: -179464.4583 | BG82: -371677.1225 | BH82: -143999.6644 | BI82: -221806.4508 | BJ82: =BI82*(1+Analise_Fundamentalista!$C$10)/(Analise_Fundamentalista!$C$10) -> -2905195.191 | BK82: =NPV(Analise_Fundamentalista!$C$10,Monte_Carlo!AZ82:BI82)+Monte_Carlo!BJ82/(1+Analise_Fundamentalista!$C$10)^10 -> -1891679.589 | BL82: =(BK82+Analise_Fundamentalista!$C$15-Analise_Fundamentalista!$C$16-Analise_Fundamentalista!$C$17)/(Analise_Fundamentalista!$F$29+Analise_Fundamentalista!$F$30)*1000 -> -54.31030642 | BM82: 0.6025993873
A83: Tent58 | B83: 1664801.104 | C83: =(RAND()*($D$17-$D$16)+$D$16)*(1-Analise_Fundamentalista!$C$6)*B83 -> 313787.2972 | D83: -538392.6138 | E83: =Analise_Fundamentalista!$C$12*Monte_Carlo!B83 -> 271550.1871 | F83: =-Analise_Fundamentalista!$C$14*Monte_Carlo!B83 -> -136960.4453 | G83: 1510796.021 | H83: =(RAND()*($D$17-$D$16)+$D$16)*(1-Analise_Fundamentalista!$C$6)*G83 -> 111712.1543 | I83: -554900.3001 | J83: =Analise_Fundamentalista!$C$12*Monte_Carlo!G83 -> 246430.0037 | K83: =-Analise_Fundamentalista!$C$14*Monte_Carlo!G83 -> -124290.7007 | L83: 1512704.446 | M83: =(RAND()*($D$17-$D$16)+$D$16)*(1-Analise_Fundamentalista!$C$6)*L83 -> 204136.0075 | N83: -214938.4475 | O83: =Analise_Fundamentalista!$C$12*Monte_Carlo!L83 -> 246741.292 | P83: =-Analise_Fundamentalista!$C$14*Monte_Carlo!L83 -> -124447.7037 | Q83: 1625834.351 | R83: =(RAND()*($D$17-$D$16)+$D$16)*(1-Analise_Fundamentalista!$C$6)*Q83 -> 299583.906 | S83: -1404728.003 | T83: =Analise_Fundamentalista!$C$12*Monte_Carlo!Q83 -> 265194.2153 | U83: =-Analise_Fundamentalista!$C$14*Monte_Carlo!Q83 -> -133754.7147 | V83: 1683977.834 | W83: =(RAND()*($D$17-$D$16)+$D$16)*(1-Analise_Fundamentalista!$C$6)*V83 -> 224990.4615 | X83: -1022926.143 | Y83: =Analise_Fundamentalista!$C$12*Monte_Carlo!V83 -> 274678.1551 | Z83: =-Analise_Fundamentalista!$C$14*Monte_Carlo!V83 -> -138538.0833 | AA83: 1518782.287 | AB83: =(RAND()*($D$17-$D$16)+$D$16)*(1-Analise_Fundamentalista!$C$6)*AA83 -> 148286.2535 | AC83: -824816.4111 | AD83: =Analise_Fundamentalista!$C$12*Monte_Carlo!AA83 -> 247732.665 | AE83: =-Analise_Fundamentalista!$C$14*Monte_Carlo!AA83 -> -124947.7177 | AF83: 1349665.135 | AG83: =(RAND()*($D$17-$D$16)+$D$16)*(1-Analise_Fundamentalista!$C$6)*AF83 -> 91901.7383 | AH83: -217539.5855 | AI83: =Analise_Fundamentalista!$C$12*Monte_Carlo!AF83 -> 220147.5113 | AJ83: =-Analise_Fundamentalista!$C$14*Monte_Carlo!AF83 -> -111034.7281 | AK83: 1359136.073 | AL83: =(RAND()*($D$17-$D$16)+$D$16)*(1-Analise_Fundamentalista!$C$6)*AK83 -> 236183.3122 | AM83: -1041452.641 | AN83: =Analise_Fundamentalista!$C$12*Monte_Carlo!AK83 -> 221692.3416 | AO83: =-Analise_Fundamentalista!$C$14*Monte_Carlo!AK83 -> -111813.8866 | AP83: 1472966.915 | AQ83: =(RAND()*($D$17-$D$16)+$D$16)*(1-Analise_Fundamentalista!$C$6)*AP83 -> 167137.6717 | AR83: -708514.4162 | AS83: =Analise_Fundamentalista!$C$12*Monte_Carlo!AP83 -> 240259.5965 | AT83: =-Analise_Fundamentalista!$C$14*Monte_Carlo!AP83 -> -121178.5625 | AU83: 1314520.634 | AV83: =(RAND()*($D$17-$D$16)+$D$16)*(1-Analise_Fundamentalista!$C$6)*AU83 -> 180355.2376 | AW83: -550939.0097 | AX83: =Analise_Fundamentalista!$C$12*Monte_Carlo!AU83 -> 214414.9972 | AY83: =-Analise_Fundamentalista!$C$14*Monte_Carlo!AU83 -> -108143.4478 | AZ83: -90015.57484 | BA83: -321048.8428 | BB83: 111491.1483 | BC83: -973704.596 | BD83: -661795.6101 | BE83: -553745.2103 | BF83: -16525.06398 | BG83: -695390.874 | BH83: -422295.7106 | BI83: -264312.2228 | BJ83: =BI83*(1+Analise_Fundamentalista!$C$10)/(Analise_Fundamentalista!$C$10) -> -3461930.868 | BK83: =NPV(Analise_Fundamentalista!$C$10,Monte_Carlo!AZ83:BI83)+Monte_Carlo!BJ83/(1+Analise_Fundamentalista!$C$10)^10 -> -4035159.487 | BL83: =(BK83+Analise_Fundamentalista!$C$15-Analise_Fundamentalista!$C$16-Analise_Fundamentalista!$C$17)/(Analise_Fundamentalista!$F$29+Analise_Fundamentalista!$F$30)*1000 -> -102.6902667 | BM83: 0.2803107639
A84: Tent59 | B84: 1653659.367 | C84: =(RAND()*($D$17-$D$16)+$D$16)*(1-Analise_Fundamentalista!$C$6)*B84 -> 231686.7965 | D84: -96606.17889 | E84: =Analise_Fundamentalista!$C$12*Monte_Carlo!B84 -> 269732.8285 | F84: =-Analise_Fundamentalista!$C$14*Monte_Carlo!B84 -> -136043.833 | G84: 1681184.426 | H84: =(RAND()*($D$17-$D$16)+$D$16)*(1-Analise_Fundamentalista!$C$6)*G84 -> 282778.5606 | I84: -522956.428 | J84: =Analise_Fundamentalista!$C$12*Monte_Carlo!G84 -> 274222.5149 | K84: =-Analise_Fundamentalista!$C$14*Monte_Carlo!G84 -> -138308.2742 | L84: 1433318.205 | M84: =(RAND()*($D$17-$D$16)+$D$16)*(1-Analise_Fundamentalista!$C$6)*L84 -> 103394.6597 | N84: -534486.7154 | O84: =Analise_Fundamentalista!$C$12*Monte_Carlo!L84 -> 233792.3887 | P84: =-Analise_Fundamentalista!$C$14*Monte_Carlo!L84 -> -117916.7284 | Q84: 1617426.578 | R84: =(RAND()*($D$17-$D$16)+$D$16)*(1-Analise_Fundamentalista!$C$6)*Q84 -> 289641.5287 | S84: -429431.2477 | T84: =Analise_Fundamentalista!$C$12*Monte_Carlo!Q84 -> 263822.8007 | U84: =-Analise_Fundamentalista!$C$14*Monte_Carlo!Q84 -> -133063.0211 | V84: 1444220.558 | W84: =(RAND()*($D$17-$D$16)+$D$16)*(1-Analise_Fundamentalista!$C$6)*V84 -> 189879.6328 | X84: -601907.7723 | Y84: =Analise_Fundamentalista!$C$12*Monte_Carlo!V84 -> 235570.7008 | Z84: =-Analise_Fundamentalista!$C$14*Monte_Carlo!V84 -> -118813.647 | AA84: 1504200.404 | AB84: =(RAND()*($D$17-$D$16)+$D$16)*(1-Analise_Fundamentalista!$C$6)*AA84 -> 156761.378 | AC84: -1380257.594 | AD84: =Analise_Fundamentalista!$C$12*Monte_Carlo!AA84 -> 245354.1748 | AE84: =-Analise_Fundamentalista!$C$14*Monte_Carlo!AA84 -> -123748.0902 | AF84: 1522166.408 | AG84: =(RAND()*($D$17-$D$16)+$D$16)*(1-Analise_Fundamentalista!$C$6)*AF84 -> 155178.0477 | AH84: -257431.5629 | AI84: =Analise_Fundamentalista!$C$12*Monte_Carlo!AF84 -> 248284.6581 | AJ84: =-Analise_Fundamentalista!$C$14*Monte_Carlo!AF84 -> -125226.1238 | AK84: 1516846.116 | AL84: =(RAND()*($D$17-$D$16)+$D$16)*(1-Analise_Fundamentalista!$C$6)*AK84 -> 270376.8492 | AM84: -1977583.787 | AN84: =Analise_Fundamentalista!$C$12*Monte_Carlo!AK84 -> 247416.851 | AO84: =-Analise_Fundamentalista!$C$14*Monte_Carlo!AK84 -> -124788.4321 | AP84: 1378778.496 | AQ84: =(RAND()*($D$17-$D$16)+$D$16)*(1-Analise_Fundamentalista!$C$6)*AP84 -> 154147.4743 | AR84: -297500.2769 | AS84: =Analise_Fundamentalista!$C$12*Monte_Carlo!AP84 -> 224896.27 | AT84: =-Analise_Fundamentalista!$C$14*Monte_Carlo!AP84 -> -113429.8363 | AU84: 1313550.25 | AV84: =(RAND()*($D$17-$D$16)+$D$16)*(1-Analise_Fundamentalista!$C$6)*AU84 -> 210378.6975 | AW84: -416870.6054 | AX84: =Analise_Fundamentalista!$C$12*Monte_Carlo!AU84 -> 214256.7153 | AY84: =-Analise_Fundamentalista!$C$14*Monte_Carlo!AU84 -> -108063.616 | AZ84: 268769.6131 | BA84: -104263.6268 | BB84: -315216.3954 | BC84: -9029.939278 | BD84: -295271.0857 | BE84: -1101890.132 | BF84: 20805.01915 | BG84: -1584578.519 | BH84: -31886.36897 | BI84: -100298.8086 | BJ84: =BI84*(1+Analise_Fundamentalista!$C$10)/(Analise_Fundamentalista!$C$10) -> -1313702.172 | BK84: =NPV(Analise_Fundamentalista!$C$10,Monte_Carlo!AZ84:BI84)+Monte_Carlo!BJ84/(1+Analise_Fundamentalista!$C$10)^10 -> -2460509.141 | BL84: =(BK84+Analise_Fundamentalista!$C$15-Analise_Fundamentalista!$C$16-Analise_Fundamentalista!$C$17)/(Analise_Fundamentalista!$F$29+Analise_Fundamentalista!$F$30)*1000 -> -67.14921905 | BM84: 0.5146115926
A85: Tent60 | B85: 1492931.322 | C85: =(RAND()*($D$17-$D$16)+$D$16)*(1-Analise_Fundamentalista!$C$6)*B85 -> 102100.3171 | D85: -599097.3731 | E85: =Analise_Fundamentalista!$C$12*Monte_Carlo!B85 -> 243516.0447 | F85: =-Analise_Fundamentalista!$C$14*Monte_Carlo!B85 -> -122821.0014 | G85: 1676237.455 | H85: =(RAND()*($D$17-$D$16)+$D$16)*(1-Analise_Fundamentalista!$C$6)*G85 -> 307247.471 | I85: -55601.28927 | J85: =Analise_Fundamentalista!$C$12*Monte_Carlo!G85 -> 273415.6012 | K85: =-Analise_Fundamentalista!$C$14*Monte_Carlo!G85 -> -137901.2951 | L85: 1527062.702 | M85: =(RAND()*($D$17-$D$16)+$D$16)*(1-Analise_Fundamentalista!$C$6)*L85 -> 142998.8868 | N85: -558648.9751 | O85: =Analise_Fundamentalista!$C$12*Monte_Carlo!L85 -> 249083.3057 | P85: =-Analise_Fundamentalista!$C$14*Monte_Carlo!L85 -> -125628.9338 | Q85: 1497973.17 | R85: =(RAND()*($D$17-$D$16)+$D$16)*(1-Analise_Fundamentalista!$C$6)*Q85 -> 206746.2375 | S85: -69182.57973 | T85: =Analise_Fundamentalista!$C$12*Monte_Carlo!Q85 -> 244338.434 | U85: =-Analise_Fundamentalista!$C$14*Monte_Carlo!Q85 -> -123235.7859 | V85: 1533410.379 | W85: =(RAND()*($D$17-$D$16)+$D$16)*(1-Analise_Fundamentalista!$C$6)*V85 -> 179371.2154 | X85: -706618.711 | Y85: =Analise_Fundamentalista!$C$12*Monte_Carlo!V85 -> 250118.6925 | Z85: =-Analise_Fundamentalista!$C$14*Monte_Carlo!V85 -> -126151.1468 | AA85: 1409508.475 | AB85: =(RAND()*($D$17-$D$16)+$D$16)*(1-Analise_Fundamentalista!$C$6)*AA85 -> 269643.644 | AC85: -204676.9985 | AD85: =Analise_Fundamentalista!$C$12*Monte_Carlo!AA85 -> 229908.7195 | AE85: =-Analise_Fundamentalista!$C$14*Monte_Carlo!AA85 -> -115957.9411 | AF85: 1501918.903 | AG85: =(RAND()*($D$17-$D$16)+$D$16)*(1-Analise_Fundamentalista!$C$6)*AF85 -> 154683.1408 | AH85: -585656.2385 | AI85: =Analise_Fundamentalista!$C$12*Monte_Carlo!AF85 -> 244982.0331 | AJ85: =-Analise_Fundamentalista!$C$14*Monte_Carlo!AF85 -> -123560.3949 | AK85: 1457677.059 | AL85: =(RAND()*($D$17-$D$16)+$D$16)*(1-Analise_Fundamentalista!$C$6)*AK85 -> 191692.0846 | AM85: -196510.3035 | AN85: =Analise_Fundamentalista!$C$12*Monte_Carlo!AK85 -> 237765.6269 | AO85: =-Analise_Fundamentalista!$C$14*Monte_Carlo!AK85 -> -119920.6912 | AP85: 1412180.91 | AQ85: =(RAND()*($D$17-$D$16)+$D$16)*(1-Analise_Fundamentalista!$C$6)*AP85 -> 127544.3307 | AR85: -122847.0819 | AS85: =Analise_Fundamentalista!$C$12*Monte_Carlo!AP85 -> 230344.6276 | AT85: =-Analise_Fundamentalista!$C$14*Monte_Carlo!AP85 -> -116177.7979 | AU85: 1438867.846 | AV85: =(RAND()*($D$17-$D$16)+$D$16)*(1-Analise_Fundamentalista!$C$6)*AU85 -> 131650.3107 | AW85: -649802.812 | AX85: =Analise_Fundamentalista!$C$12*Monte_Carlo!AU85 -> 234697.6056 | AY85: =-Analise_Fundamentalista!$C$14*Monte_Carlo!AU85 -> -118373.2882 | AZ85: -376302.0128 | BA85: 387160.4878 | BB85: -292195.7163 | BC85: 258666.3059 | BD85: -403279.9498 | BE85: 178917.424 | BF85: -309551.4594 | BG85: 113026.7168 | BH85: 118864.0784 | BI85: -401828.184 | BJ85: =BI85*(1+Analise_Fundamentalista!$C$10)/(Analise_Fundamentalista!$C$10) -> -5263098.993 | BK85: =NPV(Analise_Fundamentalista!$C$10,Monte_Carlo!AZ85:BI85)+Monte_Carlo!BJ85/(1+Analise_Fundamentalista!$C$10)^10 -> -2838991.683 | BL85: =(BK85+Analise_Fundamentalista!$C$15-Analise_Fundamentalista!$C$16-Analise_Fundamentalista!$C$17)/(Analise_Fundamentalista!$F$29+Analise_Fundamentalista!$F$30)*1000 -> -75.69185589 | BM85: 0.455395403
A86: Tent61 | B86: 1594073.448 | C86: =(RAND()*($D$17-$D$16)+$D$16)*(1-Analise_Fundamentalista!$C$6)*B86 -> 301448.9528 | D86: -584601.8143 | E86: =Analise_Fundamentalista!$C$12*Monte_Carlo!B86 -> 260013.6089 | F86: =-Analise_Fundamentalista!$C$14*Monte_Carlo!B86 -> -131141.7975 | G86: 1521168.184 | H86: =(RAND()*($D$17-$D$16)+$D$16)*(1-Analise_Fundamentalista!$C$6)*G86 -> 191547.0439 | I86: -501106.1463 | J86: =Analise_Fundamentalista!$C$12*Monte_Carlo!G86 -> 248121.8351 | K86: =-Analise_Fundamentalista!$C$14*Monte_Carlo!G86 -> -125144.0015 | L86: 1367634.242 | M86: =(RAND()*($D$17-$D$16)+$D$16)*(1-Analise_Fundamentalista!$C$6)*L86 -> 171933.1518 | N86: -361475.1922 | O86: =Analise_Fundamentalista!$C$12*Monte_Carlo!L86 -> 223078.5007 | P86: =-Analise_Fundamentalista!$C$14*Monte_Carlo!L86 -> -112513.0169 | Q86: 1415695.574 | R86: =(RAND()*($D$17-$D$16)+$D$16)*(1-Analise_Fundamentalista!$C$6)*Q86 -> 221897.4914 | S86: -92730.37813 | T86: =Analise_Fundamentalista!$C$12*Monte_Carlo!Q86 -> 230917.9139 | U86: =-Analise_Fundamentalista!$C$14*Monte_Carlo!Q86 -> -116466.9436 | V86: 1428687.498 | W86: =(RAND()*($D$17-$D$16)+$D$16)*(1-Analise_Fundamentalista!$C$6)*V86 -> 220175.5832 | X86: -890367.3042 | Y86: =Analise_Fundamentalista!$C$12*Monte_Carlo!V86 -> 233037.0615 | Z86: =-Analise_Fundamentalista!$C$14*Monte_Carlo!V86 -> -117535.7677 | AA86: 1503199.437 | AB86: =(RAND()*($D$17-$D$16)+$D$16)*(1-Analise_Fundamentalista!$C$6)*AA86 -> 227942.2833 | AC86: -117154.5076 | AD86: =Analise_Fundamentalista!$C$12*Monte_Carlo!AA86 -> 245190.9045 | AE86: =-Analise_Fundamentalista!$C$14*Monte_Carlo!AA86 -> -123665.7423 | AF86: 1484229.484 | AG86: =(RAND()*($D$17-$D$16)+$D$16)*(1-Analise_Fundamentalista!$C$6)*AF86 -> 160976.5358 | AH86: -857418.3897 | AI86: =Analise_Fundamentalista!$C$12*Monte_Carlo!AF86 -> 242096.6643 | AJ86: =-Analise_Fundamentalista!$C$14*Monte_Carlo!AF86 -> -122105.1155 | AK86: 1321294.622 | AL86: =(RAND()*($D$17-$D$16)+$D$16)*(1-Analise_Fundamentalista!$C$6)*AK86 -> 185033.6549 | AM86: -793970.2289 | AN86: =Analise_Fundamentalista!$C$12*Monte_Carlo!AK86 -> 215519.9206 | AO86: =-Analise_Fundamentalista!$C$14*Monte_Carlo!AK86 -> -108700.7327 | AP86: 1452727.577 | AQ86: =(RAND()*($D$17-$D$16)+$D$16)*(1-Analise_Fundamentalista!$C$6)*AP86 -> 131381.0967 | AR86: -940515.1195 | AS86: =Analise_Fundamentalista!$C$12*Monte_Carlo!AP86 -> 236958.3035 | AT86: =-Analise_Fundamentalista!$C$14*Monte_Carlo!AP86 -> -119513.5055 | AU86: 1378876.251 | AV86: =(RAND()*($D$17-$D$16)+$D$16)*(1-Analise_Fundamentalista!$C$6)*AU86 -> 173319.0652 | AW86: -328546.9149 | AX86: =Analise_Fundamentalista!$C$12*Monte_Carlo!AU86 -> 224912.2151 | AY86: =-Analise_Fundamentalista!$C$14*Monte_Carlo!AU86 -> -113437.8785 | AZ86: -154281.0501 | BA86: -186581.2688 | BB86: -78976.55666 | BC86: 243618.0836 | BD86: -554690.4272 | BE86: 232312.9379 | BF86: -576450.305 | BG86: -502117.386 | BH86: -691689.2247 | BI86: -43753.51308 | BJ86: =BI86*(1+Analise_Fundamentalista!$C$10)/(Analise_Fundamentalista!$C$10) -> -573078.4444 | BK86: =NPV(Analise_Fundamentalista!$C$10,Monte_Carlo!AZ86:BI86)+Monte_Carlo!BJ86/(1+Analise_Fundamentalista!$C$10)^10 -> -1629069.305 | BL86: =(BK86+Analise_Fundamentalista!$C$15-Analise_Fundamentalista!$C$16-Analise_Fundamentalista!$C$17)/(Analise_Fundamentalista!$F$29+Analise_Fundamentalista!$F$30)*1000 -> -48.38299395 | BM86: 0.6417869718
A87: Tent62 | B87: 1664872.842 | C87: =(RAND()*($D$17-$D$16)+$D$16)*(1-Analise_Fundamentalista!$C$6)*B87 -> 178613.332 | D87: -224941.6444 | E87: =Analise_Fundamentalista!$C$12*Monte_Carlo!B87 -> 271561.8885 | F87: =-Analise_Fundamentalista!$C$14*Monte_Carlo!B87 -> -136966.3471 | G87: 1556197.758 | H87: =(RAND()*($D$17-$D$16)+$D$16)*(1-Analise_Fundamentalista!$C$6)*G87 -> 147876.1177 | I87: -707821.7319 | J87: =Analise_Fundamentalista!$C$12*Monte_Carlo!G87 -> 253835.6031 | K87: =-Analise_Fundamentalista!$C$14*Monte_Carlo!G87 -> -128025.8269 | L87: 1677274.15 | M87: =(RAND()*($D$17-$D$16)+$D$16)*(1-Analise_Fundamentalista!$C$6)*L87 -> 183408.4417 | N87: -272021.3131 | O87: =Analise_Fundamentalista!$C$12*Monte_Carlo!L87 -> 273584.6991 | P87: =-Analise_Fundamentalista!$C$14*Monte_Carlo!L87 -> -137986.5822 | Q87: 1486338.825 | R87: =(RAND()*($D$17-$D$16)+$D$16)*(1-Analise_Fundamentalista!$C$6)*Q87 -> 149323.4197 | S87: -17660.35604 | T87: =Analise_Fundamentalista!$C$12*Monte_Carlo!Q87 -> 242440.7247 | U87: =-Analise_Fundamentalista!$C$14*Monte_Carlo!Q87 -> -122278.6475 | V87: 1584355.899 | W87: =(RAND()*($D$17-$D$16)+$D$16)*(1-Analise_Fundamentalista!$C$6)*V87 -> 124058.9308 | X87: -872741.118 | Y87: =Analise_Fundamentalista!$C$12*Monte_Carlo!V87 -> 258428.5532 | Z87: =-Analise_Fundamentalista!$C$14*Monte_Carlo!V87 -> -130342.3507 | AA87: 1379636.986 | AB87: =(RAND()*($D$17-$D$16)+$D$16)*(1-Analise_Fundamentalista!$C$6)*AA87 -> 220163.8999 | AC87: -255315.5799 | AD87: =Analise_Fundamentalista!$C$12*Monte_Carlo!AA87 -> 225036.3005 | AE87: =-Analise_Fundamentalista!$C$14*Monte_Carlo!AA87 -> -113500.4629 | AF87: 1509422.372 | AG87: =(RAND()*($D$17-$D$16)+$D$16)*(1-Analise_Fundamentalista!$C$6)*AF87 -> 165284.4934 | AH87: -478524.1445 | AI87: =Analise_Fundamentalista!$C$12*Monte_Carlo!AF87 -> 246205.944 | AJ87: =-Analise_Fundamentalista!$C$14*Monte_Carlo!AF87 -> -124177.6929 | AK87: 1369612.27 | AL87: =(RAND()*($D$17-$D$16)+$D$16)*(1-Analise_Fundamentalista!$C$6)*AK87 -> 189537.7714 | AM87: -570496.5436 | AN87: =Analise_Fundamentalista!$C$12*Monte_Carlo!AK87 -> 223401.1421 | AO87: =-Analise_Fundamentalista!$C$14*Monte_Carlo!AK87 -> -112675.746 | AP87: 1324400.124 | AQ87: =(RAND()*($D$17-$D$16)+$D$16)*(1-Analise_Fundamentalista!$C$6)*AP87 -> 239396.0056 | AR87: -578054.858 | AS87: =Analise_Fundamentalista!$C$12*Monte_Carlo!AP87 -> 216026.4675 | AT87: =-Analise_Fundamentalista!$C$14*Monte_Carlo!AP87 -> -108956.2173 | AU87: 1323488.144 | AV87: =(RAND()*($D$17-$D$16)+$D$16)*(1-Analise_Fundamentalista!$C$6)*AU87 -> 146198.4517 | AW87: -165991.903 | AX87: =Analise_Fundamentalista!$C$12*Monte_Carlo!AU87 -> 215877.7119 | AY87: =-Analise_Fundamentalista!$C$14*Monte_Carlo!AU87 -> -108881.1901 | AZ87: 88267.229 | BA87: -434135.8379 | BB87: 46985.24546 | BC87: 251825.1408 | BD87: -620595.9847 | BE87: 76384.15771 | BF87: -191211.3999 | BG87: -270233.3761 | BH87: -231588.6021 | BI87: 87203.07046 | BJ87: =BI87*(1+Analise_Fundamentalista!$C$10)/(Analise_Fundamentalista!$C$10) -> 1142175.712 | BK87: =NPV(Analise_Fundamentalista!$C$10,Monte_Carlo!AZ87:BI87)+Monte_Carlo!BJ87/(1+Analise_Fundamentalista!$C$10)^10 -> -248840.232 | BL87: =(BK87+Analise_Fundamentalista!$C$15-Analise_Fundamentalista!$C$16-Analise_Fundamentalista!$C$17)/(Analise_Fundamentalista!$F$29+Analise_Fundamentalista!$F$30)*1000 -> -17.23018128 | BM87: 0.8173784393
